Workbook

Sheet Setup Data
A1: Data settings | J1: FAQ
A2: Pallets per truck | B2: 22 | J2: How do I add new Articles? | K2: You can add as many artcles as you want in the articles cell splitting them by a ,
A3: 8oz av | B3: 118 | J3: How do we know what the forecast offset is? | K3: The forecast off set is in based on the the default customer of the av, as a reminder this means if you have more than one av with the same customer and want different offsets this wont work, due to how alpla prod works
A4: 10oz av | B4: 120 | J4: In the background will all data be pulled? | K4: The only data that will be pulled in to this file is data related to the articles you have entered.
A6: 8oz per truck | B6: 173888
A7: 10oz per truck | B7: 152152
A9: 8oz btl pal | B9: 7904
A10: 10oz btl pal | B10: 6916
J11: General info
A12: min 8oz | B12: 16000000 | J12: All data is pulled from alplaprod no manual entry of numbers is accepted, anything manual will be over written by the scripts, with the exception of comments on why the line(s) was down this will stay on this line.
A13: max 8oz | B13: 22000000 | J13: intial inventory will be what was in stock on January 1st of the select year.
A15: min 10oz | B15: 3500000
A16: max 10oz | B16: 5000000
J17: Master Data insturctions
A18: year | B18: 2025 | J18: Setting Customer Offset for forecast
A19: Query data | B19: =TODAY() -> 2025-05-21 | J19: Setting inventory limits
J20: Adding forecast via lst
A21: Setup
A22: year | B22: 2025
A23: query data | B23: =TODAY() -> 2025-05-21
A24: articles | B24: 118,120,113
A29: Data below is for reference only, it will be over written if you change the article data
A31: AV | B31: alias | C31: pallets per truck | D31: qty per truck | E31: pieces per pallet | F31: min | G31: max

Sheet 8oz data
A1: ALPLA Dayton Abbott 8oz
A2: av | B2: 118 | Y2: starting INV | Z2: 17291976
A3: Date | D3: Actaul production per line | J3: Actual prod | L3: Projected production per line | R3: Planned prod | T3: Deliveries | W3: Inventory | AB3: Shippable pallets per line | AH3: Total Pallets | AJ3: Comments/remarks
A4: Day | B4: date | D4: 1 | E4: 2 | F4: 3 | G4: 4 | H4: 5 | I4: 6 | J4: Total | L4: 1 | M4: 2 | N4: 3 | O4: 4 | P4: 5 | Q4: 6 | R4: Total | T4: Scheduled/forecast | U4: Shipped | W4: Good & Released | X4: COA | Y4: Held | Z4: Total Potential Shippable | AB4: 1 | AC4: 2 | AD4: 3 | AE4: 4 | AF4: 5 | AG4: 6 | AH4: Total Shippable Pallets
A5: =TEXT(B5,"dddd") -> Wednesday | B5: 2025-01-01 | D5: =SUMIFS(productionNumbers!$C:$C,productionNumbers!$E:$E,$B5,productionNumbers!$A:$A,D$4,productionNumbers!$B:$B,$B$2) -> 0 | E5: =SUMIFS(productionNumbers!$C:$C,productionNumbers!$E:$E,$B5,productionNumbers!$A:$A,E$4,productionNumbers!$B:$B,$B$2) -> 0 | F5: =SUMIFS(productionNumbers!$C:$C,productionNumbers!$E:$E,$B5,productionNumbers!$A:$A,F$4,productionNumbers!$B:$B,$B$2) -> 0 | G5: =SUMIFS(productionNumbers!$C:$C,productionNumbers!$E:$E,$B5,productionNumbers!$A:$A,G$4,productionNumbers!$B:$B,$B$2) -> 0 | H5: =SUMIFS(productionNumbers!$C:$C,productionNumbers!$E:$E,$B5,productionNumbers!$A:$A,H$4,productionNumbers!$B:$B,$B$2) -> 0 | I5: =SUMIFS(productionNumbers!$C:$C,productionNumbers!$E:$E,$B5,productionNumbers!$A:$A,I$4,productionNumbers!$B:$B,$B$2) -> 0 | J5: =SUM(D5:I5) -> 0 | L5: =SUMIFS(planningNumbers!$H:$H,planningNumbers!$F:$F,$B5,planningNumbers!$C:$C,L$4,planningNumbers!$A:$A,$B$2) -> 0 | M5: =SUMIFS(planningNumbers!$H:$H,planningNumbers!$F:$F,$B5,planningNumbers!$C:$C,M$4,planningNumbers!$A:$A,$B$2) -> 0 | N5: =SUMIFS(planningNumbers!$H:$H,planningNumbers!$F:$F,$B5,planningNumbers!$C:$C,N$4,planningNumbers!$A:$A,$B$2) -> 0 | O5: =SUMIFS(planningNumbers!$H:$H,planningNumbers!$F:$F,$B5,planningNumbers!$C:$C,O$4,planningNumbers!$A:$A,$B$2) -> 0 | P5: =SUMIFS(planningNumbers!$H:$H,planningNumbers!$F:$F,$B5,planningNumbers!$C:$C,P$4,planningNumbers!$A:$A,$B$2) -> 0 | Q5: =SUMIFS(planningNumbers!$H:$H,planningNumbers!$F:$F,$B5,planningNumbers!$C:$C,Q$4,planningNumbers!$A:$A,$B$2) -> 0 | R5: =SUM(L5:Q5) -> 0 | S5: =ROUND(IF(DATE(YEAR(Forecast!$K$2),MONTH(Forecast!$K$2),1)=DATE(YEAR(B5),MONTH(B5),1),Forecast!$K$6/Forecast!$K$3,INDEX(Forecast!$D$2:$D$16,MATCH(DATE(YEAR(B5),MONTH(B5),1),Forecast!$A$2:$A$16,0))/DAY(EOMONTH(B5,0))),0) -> 910188 | T5: =IFERROR(IF((Forecast!$K$2+30)<B5,0,IF(INDEX('Truck list'!$G$6:$G$500,COUNTA('Truck list'!$G$6:$G$500))<B5,S5,IF(U5="",SUMIFS('Truck list'!H:H,'Truck list'!G:G,B5),U5))),0) -> 0 | U5: 0 | W5: 15608424 | X5: 1825824 | Y5: 339872 | Z5: =IF(W5="",IF(J5=0,Z2+R5-IF(U5=0,T5,U5),Z2+J5-IF(U5=0,T5,U5)),SUM(W5:X5)) -> 17434248 | AB5: 207 | AC5: 261 | AD5: 0 | AE5: 465 | AF5: 454 | AG5: 588 | AH5: =SUM(AB5:AG5) -> 1975
A6: =TEXT(B6,"dddd") -> Thursday | B6: =+B5+1 -> 2025-01-02 | D6: =SUMIFS(productionNumbers!$C:$C,productionNumbers!$E:$E,$B6,productionNumbers!$A:$A,D$4,productionNumbers!$B:$B,$B$2) -> 197600 | E6: =SUMIFS(productionNumbers!$C:$C,productionNumbers!$E:$E,$B6,productionNumbers!$A:$A,E$4,productionNumbers!$B:$B,$B$2) -> 0 | F6: =SUMIFS(productionNumbers!$C:$C,productionNumbers!$E:$E,$B6,productionNumbers!$A:$A,F$4,productionNumbers!$B:$B,$B$2) -> 0 | G6: =SUMIFS(productionNumbers!$C:$C,productionNumbers!$E:$E,$B6,productionNumbers!$A:$A,G$4,productionNumbers!$B:$B,$B$2) -> 229216 | H6: =SUMIFS(productionNumbers!$C:$C,productionNumbers!$E:$E,$B6,productionNumbers!$A:$A,H$4,productionNumbers!$B:$B,$B$2) -> 213408 | I6: =SUMIFS(productionNumbers!$C:$C,productionNumbers!$E:$E,$B6,productionNumbers!$A:$A,I$4,productionNumbers!$B:$B,$B$2) -> 0 | J6: =SUM(D6:I6) -> 640224 | L6: =SUMIFS(planningNumbers!$H:$H,planningNumbers!$F:$F,$B6,planningNumbers!$C:$C,L$4,planningNumbers!$A:$A,$B$2) -> 211991 | M6: =SUMIFS(planningNumbers!$H:$H,planningNumbers!$F:$F,$B6,planningNumbers!$C:$C,M$4,planningNumbers!$A:$A,$B$2) -> 0 | N6: =SUMIFS(planningNumbers!$H:$H,planningNumbers!$F:$F,$B6,planningNumbers!$C:$C,N$4,planningNumbers!$A:$A,$B$2) -> 0 | O6: =SUMIFS(planningNumbers!$H:$H,planningNumbers!$F:$F,$B6,planningNumbers!$C:$C,O$4,planningNumbers!$A:$A,$B$2) -> 233482 | P6: =SUMIFS(planningNumbers!$H:$H,planningNumbers!$F:$F,$B6,planningNumbers!$C:$C,P$4,planningNumbers!$A:$A,$B$2) -> 187015 | Q6: =SUMIFS(planningNumbers!$H:$H,planningNumbers!$F:$F,$B6,planningNumbers!$C:$C,Q$4,planningNumbers!$A:$A,$B$2) -> 0 | R6: =SUM(L6:Q6) -> 632488 | S6: =ROUND(IF(DATE(YEAR(Forecast!$K$2),MONTH(Forecast!$K$2),1)=DATE(YEAR(B6),MONTH(B6),1),Forecast!$K$6/Forecast!$K$3,INDEX(Forecast!$D$2:$D$16,MATCH(DATE(YEAR(B6),MONTH(B6),1),Forecast!$A$2:$A$16,0))/DAY(EOMONTH(B6,0))),0) -> 910188 | T6: =IFERROR(IF((Forecast!$K$2+30)<B6,0,IF(INDEX('Truck list'!$G$6:$G$500,COUNTA('Truck list'!$G$6:$G$500))<B6,S6,IF(U6="",SUMIFS('Truck list'!H:H,'Truck list'!G:G,B6),U6))),0) -> 1564992 | U6: 1564992 | W6: 14027624 | X6: 2331680 | Y6: 300352 | Z6: =IF(W6="",IF(J6=0,Z5+R6-IF(U6=0,T6,U6),Z5+J6-IF(U6=0,T6,U6)),SUM(W6:X6)) -> 16359304 | AB6: 166 | AC6: 261 | AD6: 0 | AE6: 422 | AF6: 381 | AG6: 545 | AH6: =SUM(AB6:AG6) -> 1775 | AJ6: Line 2 long PM. Planned restart date 01/14/2025
A7: Friday | B7: =+B6+1 -> 2025-01-03 | D7: =SUMIFS(productionNumbers!$C:$C,productionNumbers!$E:$E,$B7,productionNumbers!$A:$A,D$4,productionNumbers!$B:$B,$B$2) -> 181792 | E7: =SUMIFS(productionNumbers!$C:$C,productionNumbers!$E:$E,$B7,productionNumbers!$A:$A,E$4,productionNumbers!$B:$B,$B$2) -> 0 | F7: =SUMIFS(productionNumbers!$C:$C,productionNumbers!$E:$E,$B7,productionNumbers!$A:$A,F$4,productionNumbers!$B:$B,$B$2) -> 0 | G7: =SUMIFS(productionNumbers!$C:$C,productionNumbers!$E:$E,$B7,productionNumbers!$A:$A,G$4,productionNumbers!$B:$B,$B$2) -> 221312 | H7: =SUMIFS(productionNumbers!$C:$C,productionNumbers!$E:$E,$B7,productionNumbers!$A:$A,H$4,productionNumbers!$B:$B,$B$2) -> 229216 | I7: =SUMIFS(productionNumbers!$C:$C,productionNumbers!$E:$E,$B7,productionNumbers!$A:$A,I$4,productionNumbers!$B:$B,$B$2) -> 0 | J7: 632320 | L7: =SUMIFS(planningNumbers!$H:$H,planningNumbers!$F:$F,$B7,planningNumbers!$C:$C,L$4,planningNumbers!$A:$A,$B$2) -> 242275 | M7: =SUMIFS(planningNumbers!$H:$H,planningNumbers!$F:$F,$B7,planningNumbers!$C:$C,M$4,planningNumbers!$A:$A,$B$2) -> 0 | N7: =SUMIFS(planningNumbers!$H:$H,planningNumbers!$F:$F,$B7,planningNumbers!$C:$C,N$4,planningNumbers!$A:$A,$B$2) -> 0 | O7: =SUMIFS(planningNumbers!$H:$H,planningNumbers!$F:$F,$B7,planningNumbers!$C:$C,O$4,planningNumbers!$A:$A,$B$2) -> 266836 | P7: =SUMIFS(planningNumbers!$H:$H,planningNumbers!$F:$F,$B7,planningNumbers!$C:$C,P$4,planningNumbers!$A:$A,$B$2) -> 213732 | Q7: =SUMIFS(planningNumbers!$H:$H,planningNumbers!$F:$F,$B7,planningNumbers!$C:$C,Q$4,planningNumbers!$A:$A,$B$2) -> 0 | R7: 722843 | S7: =ROUND(IF(DATE(YEAR(Forecast!$K$2),MONTH(Forecast!$K$2),1)=DATE(YEAR(B7),MONTH(B7),1),Forecast!$K$6/Forecast!$K$3,INDEX(Forecast!$D$2:$D$16,MATCH(DATE(YEAR(B7),MONTH(B7),1),Forecast!$A$2:$A$16,0))/DAY(EOMONTH(B7,0))),0) -> 910188 | T7: =IFERROR(IF((Forecast!$K$2+30)<B7,0,IF(INDEX('Truck list'!$G$6:$G$500,COUNTA('Truck list'!$G$6:$G$500))<B7,S7,IF(U7="",SUMIFS('Truck list'!H:H,'Truck list'!G:G,B7),U7))),0) -> 1391104 | U7: 1391104 | W7: 12233416 | X7: 2924480 | Y7: 395200 | Z7: 15157896 | AB7: 152 | AC7: 260 | AD7: 0 | AE7: 327 | AF7: 352 | AG7: 457 | AH7: 1548
A8: Saturday | B8: 2025-01-04 | D8: =SUMIFS(productionNumbers!$C:$C,productionNumbers!$E:$E,$B8,productionNumbers!$A:$A,D$4,productionNumbers!$B:$B,$B$2) -> 205504 | E8: =SUMIFS(productionNumbers!$C:$C,productionNumbers!$E:$E,$B8,productionNumbers!$A:$A,E$4,productionNumbers!$B:$B,$B$2) -> 0 | F8: =SUMIFS(productionNumbers!$C:$C,productionNumbers!$E:$E,$B8,productionNumbers!$A:$A,F$4,productionNumbers!$B:$B,$B$2) -> 0 | G8: =SUMIFS(productionNumbers!$C:$C,productionNumbers!$E:$E,$B8,productionNumbers!$A:$A,G$4,productionNumbers!$B:$B,$B$2) -> 229216 | H8: =SUMIFS(productionNumbers!$C:$C,productionNumbers!$E:$E,$B8,productionNumbers!$A:$A,H$4,productionNumbers!$B:$B,$B$2) -> 197600 | I8: =SUMIFS(productionNumbers!$C:$C,productionNumbers!$E:$E,$B8,productionNumbers!$A:$A,I$4,productionNumbers!$B:$B,$B$2) -> 0 | J8: 632320 | L8: =SUMIFS(planningNumbers!$H:$H,planningNumbers!$F:$F,$B8,planningNumbers!$C:$C,L$4,planningNumbers!$A:$A,$B$2) -> 219776 | M8: =SUMIFS(planningNumbers!$H:$H,planningNumbers!$F:$F,$B8,planningNumbers!$C:$C,M$4,planningNumbers!$A:$A,$B$2) -> 0 | N8: =SUMIFS(planningNumbers!$H:$H,planningNumbers!$F:$F,$B8,planningNumbers!$C:$C,N$4,planningNumbers!$A:$A,$B$2) -> 0 | O8: =SUMIFS(planningNumbers!$H:$H,planningNumbers!$F:$F,$B8,planningNumbers!$C:$C,O$4,planningNumbers!$A:$A,$B$2) -> 237771 | P8: =SUMIFS(planningNumbers!$H:$H,planningNumbers!$F:$F,$B8,planningNumbers!$C:$C,P$4,planningNumbers!$A:$A,$B$2) -> 221214 | Q8: =SUMIFS(planningNumbers!$H:$H,planningNumbers!$F:$F,$B8,planningNumbers!$C:$C,Q$4,planningNumbers!$A:$A,$B$2) -> 0 | R8: 678761 | S8: =ROUND(IF(DATE(YEAR(Forecast!$K$2),MONTH(Forecast!$K$2),1)=DATE(YEAR(B8),MONTH(B8),1),Forecast!$K$6/Forecast!$K$3,INDEX(Forecast!$D$2:$D$16,MATCH(DATE(YEAR(B8),MONTH(B8),1),Forecast!$A$2:$A$16,0))/DAY(EOMONTH(B8,0))),0) -> 910188 | T8: =IFERROR(IF((Forecast!$K$2+30)<B8,0,IF(INDEX('Truck list'!$G$6:$G$500,COUNTA('Truck list'!$G$6:$G$500))<B8,S8,IF(U8="",SUMIFS('Truck list'!H:H,'Truck list'!G:G,B8),U8))),0) -> 1043328 | U8: 1043328 | W8: 12233416 | X8: 2924480 | Y8: 395200 | Z8: 15157896 | AB8: 152 | AC8: 260 | AD8: 0 | AE8: 327 | AF8: 352 | AG8: 457 | AH8: 1548
A9: Sunday | B9: 2025-01-05 | D9: =SUMIFS(productionNumbers!$C:$C,productionNumbers!$E:$E,$B9,productionNumbers!$A:$A,D$4,productionNumbers!$B:$B,$B$2) -> 284544 | E9: =SUMIFS(productionNumbers!$C:$C,productionNumbers!$E:$E,$B9,productionNumbers!$A:$A,E$4,productionNumbers!$B:$B,$B$2) -> 0 | F9: =SUMIFS(productionNumbers!$C:$C,productionNumbers!$E:$E,$B9,productionNumbers!$A:$A,F$4,productionNumbers!$B:$B,$B$2) -> 0 | G9: =SUMIFS(productionNumbers!$C:$C,productionNumbers!$E:$E,$B9,productionNumbers!$A:$A,G$4,productionNumbers!$B:$B,$B$2) -> 268736 | H9: =SUMIFS(productionNumbers!$C:$C,productionNumbers!$E:$E,$B9,productionNumbers!$A:$A,H$4,productionNumbers!$B:$B,$B$2) -> 221312 | I9: =SUMIFS(productionNumbers!$C:$C,productionNumbers!$E:$E,$B9,productionNumbers!$A:$A,I$4,productionNumbers!$B:$B,$B$2) -> 0 | J9: 774592 | L9: =SUMIFS(planningNumbers!$H:$H,planningNumbers!$F:$F,$B9,planningNumbers!$C:$C,L$4,planningNumbers!$A:$A,$B$2) -> 211105 | M9: =SUMIFS(planningNumbers!$H:$H,planningNumbers!$F:$F,$B9,planningNumbers!$C:$C,M$4,planningNumbers!$A:$A,$B$2) -> 0 | N9: =SUMIFS(planningNumbers!$H:$H,planningNumbers!$F:$F,$B9,planningNumbers!$C:$C,N$4,planningNumbers!$A:$A,$B$2) -> 0 | O9: =SUMIFS(planningNumbers!$H:$H,planningNumbers!$F:$F,$B9,planningNumbers!$C:$C,O$4,planningNumbers!$A:$A,$B$2) -> 235244 | P9: =SUMIFS(planningNumbers!$H:$H,planningNumbers!$F:$F,$B9,planningNumbers!$C:$C,P$4,planningNumbers!$A:$A,$B$2) -> 230960 | Q9: =SUMIFS(planningNumbers!$H:$H,planningNumbers!$F:$F,$B9,planningNumbers!$C:$C,Q$4,planningNumbers!$A:$A,$B$2) -> 0 | R9: 677309 | S9: =ROUND(IF(DATE(YEAR(Forecast!$K$2),MONTH(Forecast!$K$2),1)=DATE(YEAR(B9),MONTH(B9),1),Forecast!$K$6/Forecast!$K$3,INDEX(Forecast!$D$2:$D$16,MATCH(DATE(YEAR(B9),MONTH(B9),1),Forecast!$A$2:$A$16,0))/DAY(EOMONTH(B9,0))),0) -> 910188 | T9: =IFERROR(IF((Forecast!$K$2+30)<B9,0,IF(INDEX('Truck list'!$G$6:$G$500,COUNTA('Truck list'!$G$6:$G$500))<B9,S9,IF(U9="",SUMIFS('Truck list'!H:H,'Truck list'!G:G,B9),U9))),0) -> 1043328 | U9: 1043328 | W9: 12233416 | X9: 2924480 | Y9: 395200 | Z9: 15157896 | AB9: 152 | AC9: 260 | AD9: 0 | AE9: 327 | AF9: 352 | AG9: 457 | AH9: 1548
A10: =TEXT(B10,"dddd") -> Monday | B10: 2025-01-06 | D10: =SUMIFS(productionNumbers!$C:$C,productionNumbers!$E:$E,$B10,productionNumbers!$A:$A,D$4,productionNumbers!$B:$B,$B$2) -> 268736 | E10: =SUMIFS(productionNumbers!$C:$C,productionNumbers!$E:$E,$B10,productionNumbers!$A:$A,E$4,productionNumbers!$B:$B,$B$2) -> 0 | F10: =SUMIFS(productionNumbers!$C:$C,productionNumbers!$E:$E,$B10,productionNumbers!$A:$A,F$4,productionNumbers!$B:$B,$B$2) -> 0 | G10: =SUMIFS(productionNumbers!$C:$C,productionNumbers!$E:$E,$B10,productionNumbers!$A:$A,G$4,productionNumbers!$B:$B,$B$2) -> 237120 | H10: =SUMIFS(productionNumbers!$C:$C,productionNumbers!$E:$E,$B10,productionNumbers!$A:$A,H$4,productionNumbers!$B:$B,$B$2) -> 237120 | I10: =SUMIFS(productionNumbers!$C:$C,productionNumbers!$E:$E,$B10,productionNumbers!$A:$A,I$4,productionNumbers!$B:$B,$B$2) -> 0 | J10: 742976 | L10: =SUMIFS(planningNumbers!$H:$H,planningNumbers!$F:$F,$B10,planningNumbers!$C:$C,L$4,planningNumbers!$A:$A,$B$2) -> 223246 | M10: =SUMIFS(planningNumbers!$H:$H,planningNumbers!$F:$F,$B10,planningNumbers!$C:$C,M$4,planningNumbers!$A:$A,$B$2) -> 0 | N10: =SUMIFS(planningNumbers!$H:$H,planningNumbers!$F:$F,$B10,planningNumbers!$C:$C,N$4,planningNumbers!$A:$A,$B$2) -> 0 | O10: =SUMIFS(planningNumbers!$H:$H,planningNumbers!$F:$F,$B10,planningNumbers!$C:$C,O$4,planningNumbers!$A:$A,$B$2) -> 248264 | P10: =SUMIFS(planningNumbers!$H:$H,planningNumbers!$F:$F,$B10,planningNumbers!$C:$C,P$4,planningNumbers!$A:$A,$B$2) -> 226353 | Q10: =SUMIFS(planningNumbers!$H:$H,planningNumbers!$F:$F,$B10,planningNumbers!$C:$C,Q$4,planningNumbers!$A:$A,$B$2) -> 0 | R10: 697863 | S10: =ROUND(IF(DATE(YEAR(Forecast!$K$2),MONTH(Forecast!$K$2),1)=DATE(YEAR(B10),MONTH(B10),1),Forecast!$K$6/Forecast!$K$3,INDEX(Forecast!$D$2:$D$16,MATCH(DATE(YEAR(B10),MONTH(B10),1),Forecast!$A$2:$A$16,0))/DAY(EOMONTH(B10,0))),0) -> 910188 | T10: =IFERROR(IF((Forecast!$K$2+30)<B10,0,IF(INDEX('Truck list'!$G$6:$G$500,COUNTA('Truck list'!$G$6:$G$500))<B10,S10,IF(U10="",SUMIFS('Truck list'!H:H,'Truck list'!G:G,B10),U10))),0) -> 1391104 | U10: 1391104 | W10: 10842312 | X10: 3643744 | Y10: 395200 | Z10: 14486056 | AB10: 152 | AC10: 260 | AD10: 0 | AE10: 263 | AF10: 312 | AG10: 385 | AH10: 1372
A11: Tuesday | B11: 2025-01-07 | D11: =SUMIFS(productionNumbers!$C:$C,productionNumbers!$E:$E,$B11,productionNumbers!$A:$A,D$4,productionNumbers!$B:$B,$B$2) -> 237120 | E11: =SUMIFS(productionNumbers!$C:$C,productionNumbers!$E:$E,$B11,productionNumbers!$A:$A,E$4,productionNumbers!$B:$B,$B$2) -> 0 | F11: =SUMIFS(productionNumbers!$C:$C,productionNumbers!$E:$E,$B11,productionNumbers!$A:$A,F$4,productionNumbers!$B:$B,$B$2) -> 0 | G11: =SUMIFS(productionNumbers!$C:$C,productionNumbers!$E:$E,$B11,productionNumbers!$A:$A,G$4,productionNumbers!$B:$B,$B$2) -> 229216 | H11: =SUMIFS(productionNumbers!$C:$C,productionNumbers!$E:$E,$B11,productionNumbers!$A:$A,H$4,productionNumbers!$B:$B,$B$2) -> 221312 | I11: =SUMIFS(productionNumbers!$C:$C,productionNumbers!$E:$E,$B11,productionNumbers!$A:$A,I$4,productionNumbers!$B:$B,$B$2) -> 0 | J11: 687648 | L11: =SUMIFS(planningNumbers!$H:$H,planningNumbers!$F:$F,$B11,planningNumbers!$C:$C,L$4,planningNumbers!$A:$A,$B$2) -> 259535 | M11: =SUMIFS(planningNumbers!$H:$H,planningNumbers!$F:$F,$B11,planningNumbers!$C:$C,M$4,planningNumbers!$A:$A,$B$2) -> 0 | N11: =SUMIFS(planningNumbers!$H:$H,planningNumbers!$F:$F,$B11,planningNumbers!$C:$C,N$4,planningNumbers!$A:$A,$B$2) -> 0 | O11: =SUMIFS(planningNumbers!$H:$H,planningNumbers!$F:$F,$B11,planningNumbers!$C:$C,O$4,planningNumbers!$A:$A,$B$2) -> 253780 | P11: =SUMIFS(planningNumbers!$H:$H,planningNumbers!$F:$F,$B11,planningNumbers!$C:$C,P$4,planningNumbers!$A:$A,$B$2) -> 201174 | Q11: =SUMIFS(planningNumbers!$H:$H,planningNumbers!$F:$F,$B11,planningNumbers!$C:$C,Q$4,planningNumbers!$A:$A,$B$2) -> 0 | R11: 714489 | S11: =ROUND(IF(DATE(YEAR(Forecast!$K$2),MONTH(Forecast!$K$2),1)=DATE(YEAR(B11),MONTH(B11),1),Forecast!$K$6/Forecast!$K$3,INDEX(Forecast!$D$2:$D$16,MATCH(DATE(YEAR(B11),MONTH(B11),1),Forecast!$A$2:$A$16,0))/DAY(EOMONTH(B11,0))),0) -> 910188 | T11: =IFERROR(IF((Forecast!$K$2+30)<B11,0,IF(INDEX('Truck list'!$G$6:$G$500,COUNTA('Truck list'!$G$6:$G$500))<B11,S11,IF(U11="",SUMIFS('Truck list'!H:H,'Truck list'!G:G,B11),U11))),0) -> 521664 | U11: 521664 | W11: 10328552 | X11: 4291872 | Y11: 403104 | Z11: 14620424 | AB11: 146 | AC11: 260 | AD11: 0 | AE11: 247 | AF11: 276 | AG11: 378 | AH11: 1307
A12: Wednesday | B12: 2025-01-08 | D12: =SUMIFS(productionNumbers!$C:$C,productionNumbers!$E:$E,$B12,productionNumbers!$A:$A,D$4,productionNumbers!$B:$B,$B$2) -> 0 | E12: =SUMIFS(productionNumbers!$C:$C,productionNumbers!$E:$E,$B12,productionNumbers!$A:$A,E$4,productionNumbers!$B:$B,$B$2) -> 0 | F12: =SUMIFS(productionNumbers!$C:$C,productionNumbers!$E:$E,$B12,productionNumbers!$A:$A,F$4,productionNumbers!$B:$B,$B$2) -> 0 | G12: =SUMIFS(productionNumbers!$C:$C,productionNumbers!$E:$E,$B12,productionNumbers!$A:$A,G$4,productionNumbers!$B:$B,$B$2) -> 31616 | H12: =SUMIFS(productionNumbers!$C:$C,productionNumbers!$E:$E,$B12,productionNumbers!$A:$A,H$4,productionNumbers!$B:$B,$B$2) -> 23712 | I12: =SUMIFS(productionNumbers!$C:$C,productionNumbers!$E:$E,$B12,productionNumbers!$A:$A,I$4,productionNumbers!$B:$B,$B$2) -> 0 | J12: 55328 | L12: =SUMIFS(planningNumbers!$H:$H,planningNumbers!$F:$F,$B12,planningNumbers!$C:$C,L$4,planningNumbers!$A:$A,$B$2) -> 23176 | M12: =SUMIFS(planningNumbers!$H:$H,planningNumbers!$F:$F,$B12,planningNumbers!$C:$C,M$4,planningNumbers!$A:$A,$B$2) -> 0 | N12: =SUMIFS(planningNumbers!$H:$H,planningNumbers!$F:$F,$B12,planningNumbers!$C:$C,N$4,planningNumbers!$A:$A,$B$2) -> 0 | O12: =SUMIFS(planningNumbers!$H:$H,planningNumbers!$F:$F,$B12,planningNumbers!$C:$C,O$4,planningNumbers!$A:$A,$B$2) -> 10574 | P12: =SUMIFS(planningNumbers!$H:$H,planningNumbers!$F:$F,$B12,planningNumbers!$C:$C,P$4,planningNumbers!$A:$A,$B$2) -> 0 | Q12: =SUMIFS(planningNumbers!$H:$H,planningNumbers!$F:$F,$B12,planningNumbers!$C:$C,Q$4,planningNumbers!$A:$A,$B$2) -> 0 | R12: 33750 | S12: =ROUND(IF(DATE(YEAR(Forecast!$K$2),MONTH(Forecast!$K$2),1)=DATE(YEAR(B12),MONTH(B12),1),Forecast!$K$6/Forecast!$K$3,INDEX(Forecast!$D$2:$D$16,MATCH(DATE(YEAR(B12),MONTH(B12),1),Forecast!$A$2:$A$16,0))/DAY(EOMONTH(B12,0))),0) -> 910188 | T12: =IFERROR(IF((Forecast!$K$2+30)<B12,0,IF(INDEX('Truck list'!$G$6:$G$500,COUNTA('Truck list'!$G$6:$G$500))<B12,S12,IF(U12="",SUMIFS('Truck list'!H:H,'Truck list'!G:G,B12),U12))),0) -> 173888 | U12: 173888 | W12: 14264744 | X12: 268736 | Y12: 403104 | Z12: 14533480 | AB12: 315 | AC12: 260 | AD12: 0 | AE12: 431 | AF12: 421 | AG12: 378 | AH12: 1805 | AJ12: Plant down at noon
A13: Thursday | B13: 2025-01-09 | D13: =SUMIFS(productionNumbers!$C:$C,productionNumbers!$E:$E,$B13,productionNumbers!$A:$A,D$4,productionNumbers!$B:$B,$B$2) -> 126464 | E13: =SUMIFS(productionNumbers!$C:$C,productionNumbers!$E:$E,$B13,productionNumbers!$A:$A,E$4,productionNumbers!$B:$B,$B$2) -> 0 | F13: =SUMIFS(productionNumbers!$C:$C,productionNumbers!$E:$E,$B13,productionNumbers!$A:$A,F$4,productionNumbers!$B:$B,$B$2) -> 0 | G13: =SUMIFS(productionNumbers!$C:$C,productionNumbers!$E:$E,$B13,productionNumbers!$A:$A,G$4,productionNumbers!$B:$B,$B$2) -> 150176 | H13: =SUMIFS(productionNumbers!$C:$C,productionNumbers!$E:$E,$B13,productionNumbers!$A:$A,H$4,productionNumbers!$B:$B,$B$2) -> 142272 | I13: =SUMIFS(productionNumbers!$C:$C,productionNumbers!$E:$E,$B13,productionNumbers!$A:$A,I$4,productionNumbers!$B:$B,$B$2) -> 79040 | J13: =SUM(D13:I13) -> 497952 | L13: =SUMIFS(planningNumbers!$H:$H,planningNumbers!$F:$F,$B13,planningNumbers!$C:$C,L$4,planningNumbers!$A:$A,$B$2) -> 158078 | M13: =SUMIFS(planningNumbers!$H:$H,planningNumbers!$F:$F,$B13,planningNumbers!$C:$C,M$4,planningNumbers!$A:$A,$B$2) -> 0 | N13: =SUMIFS(planningNumbers!$H:$H,planningNumbers!$F:$F,$B13,planningNumbers!$C:$C,N$4,planningNumbers!$A:$A,$B$2) -> 0 | O13: =SUMIFS(planningNumbers!$H:$H,planningNumbers!$F:$F,$B13,planningNumbers!$C:$C,O$4,planningNumbers!$A:$A,$B$2) -> 169728 | P13: =SUMIFS(planningNumbers!$H:$H,planningNumbers!$F:$F,$B13,planningNumbers!$C:$C,P$4,planningNumbers!$A:$A,$B$2) -> 142146 | Q13: =SUMIFS(planningNumbers!$H:$H,planningNumbers!$F:$F,$B13,planningNumbers!$C:$C,Q$4,planningNumbers!$A:$A,$B$2) -> 90102 | R13: 560054 | S13: =ROUND(IF(DATE(YEAR(Forecast!$K$2),MONTH(Forecast!$K$2),1)=DATE(YEAR(B13),MONTH(B13),1),Forecast!$K$6/Forecast!$K$3,INDEX(Forecast!$D$2:$D$16,MATCH(DATE(YEAR(B13),MONTH(B13),1),Forecast!$A$2:$A$16,0))/DAY(EOMONTH(B13,0))),0) -> 910188 | T13: =IFERROR(IF((Forecast!$K$2+30)<B13,0,IF(INDEX('Truck list'!$G$6:$G$500,COUNTA('Truck list'!$G$6:$G$500))<B13,S13,IF(U13="",SUMIFS('Truck list'!H:H,'Truck list'!G:G,B13),U13))),0) -> 347776 | U13: 347776 | W13: 13916968 | X13: 758784 | Y13: 284544 | Z13: 14675752 | AB13: 293 | AC13: 260 | AD13: 0 | AE13: 410 | AF13: 420 | AG13: 378 | AH13: 1761 | AJ13: Plant restart at noon
A14: Friday | B14: 2025-01-10 | D14: =SUMIFS(productionNumbers!$C:$C,productionNumbers!$E:$E,$B14,productionNumbers!$A:$A,D$4,productionNumbers!$B:$B,$B$2) -> 252928 | E14: =SUMIFS(productionNumbers!$C:$C,productionNumbers!$E:$E,$B14,productionNumbers!$A:$A,E$4,productionNumbers!$B:$B,$B$2) -> 0 | F14: =SUMIFS(productionNumbers!$C:$C,productionNumbers!$E:$E,$B14,productionNumbers!$A:$A,F$4,productionNumbers!$B:$B,$B$2) -> 0 | G14: =SUMIFS(productionNumbers!$C:$C,productionNumbers!$E:$E,$B14,productionNumbers!$A:$A,G$4,productionNumbers!$B:$B,$B$2) -> 197600 | H14: =SUMIFS(productionNumbers!$C:$C,productionNumbers!$E:$E,$B14,productionNumbers!$A:$A,H$4,productionNumbers!$B:$B,$B$2) -> 221312 | I14: =SUMIFS(productionNumbers!$C:$C,productionNumbers!$E:$E,$B14,productionNumbers!$A:$A,I$4,productionNumbers!$B:$B,$B$2) -> 158080 | J14: 829920 | L14: =SUMIFS(planningNumbers!$H:$H,planningNumbers!$F:$F,$B14,planningNumbers!$C:$C,L$4,planningNumbers!$A:$A,$B$2) -> 237117 | M14: =SUMIFS(planningNumbers!$H:$H,planningNumbers!$F:$F,$B14,planningNumbers!$C:$C,M$4,planningNumbers!$A:$A,$B$2) -> 0 | N14: =SUMIFS(planningNumbers!$H:$H,planningNumbers!$F:$F,$B14,planningNumbers!$C:$C,N$4,planningNumbers!$A:$A,$B$2) -> 0 | O14: =SUMIFS(planningNumbers!$H:$H,planningNumbers!$F:$F,$B14,planningNumbers!$C:$C,O$4,planningNumbers!$A:$A,$B$2) -> 242014 | P14: =SUMIFS(planningNumbers!$H:$H,planningNumbers!$F:$F,$B14,planningNumbers!$C:$C,P$4,planningNumbers!$A:$A,$B$2) -> 213219 | Q14: =SUMIFS(planningNumbers!$H:$H,planningNumbers!$F:$F,$B14,planningNumbers!$C:$C,Q$4,planningNumbers!$A:$A,$B$2) -> 240273 | R14: 932623 | S14: =ROUND(IF(DATE(YEAR(Forecast!$K$2),MONTH(Forecast!$K$2),1)=DATE(YEAR(B14),MONTH(B14),1),Forecast!$K$6/Forecast!$K$3,INDEX(Forecast!$D$2:$D$16,MATCH(DATE(YEAR(B14),MONTH(B14),1),Forecast!$A$2:$A$16,0))/DAY(EOMONTH(B14,0))),0) -> 910188 | T14: =IFERROR(IF((Forecast!$K$2+30)<B14,0,IF(INDEX('Truck list'!$G$6:$G$500,COUNTA('Truck list'!$G$6:$G$500))<B14,S14,IF(U14="",SUMIFS('Truck list'!H:H,'Truck list'!G:G,B14),U14))),0) -> 695552 | U14: 695552 | W14: 12178088 | X14: 3398720 | Y14: 363584 | Z14: 15576808 | AB14: 231 | AC14: 260 | AD14: 0 | AE14: 346 | AF14: 325 | AG14: 379 | AH14: 1541
A15: Saturday | B15: 2025-01-11 | D15: =SUMIFS(productionNumbers!$C:$C,productionNumbers!$E:$E,$B15,productionNumbers!$A:$A,D$4,productionNumbers!$B:$B,$B$2) -> 252928 | E15: =SUMIFS(productionNumbers!$C:$C,productionNumbers!$E:$E,$B15,productionNumbers!$A:$A,E$4,productionNumbers!$B:$B,$B$2) -> 0 | F15: =SUMIFS(productionNumbers!$C:$C,productionNumbers!$E:$E,$B15,productionNumbers!$A:$A,F$4,productionNumbers!$B:$B,$B$2) -> 0 | G15: =SUMIFS(productionNumbers!$C:$C,productionNumbers!$E:$E,$B15,productionNumbers!$A:$A,G$4,productionNumbers!$B:$B,$B$2) -> 205504 | H15: =SUMIFS(productionNumbers!$C:$C,productionNumbers!$E:$E,$B15,productionNumbers!$A:$A,H$4,productionNumbers!$B:$B,$B$2) -> 213408 | I15: =SUMIFS(productionNumbers!$C:$C,productionNumbers!$E:$E,$B15,productionNumbers!$A:$A,I$4,productionNumbers!$B:$B,$B$2) -> 213408 | J15: 885248 | L15: =SUMIFS(planningNumbers!$H:$H,planningNumbers!$F:$F,$B15,planningNumbers!$C:$C,L$4,planningNumbers!$A:$A,$B$2) -> 249768 | M15: =SUMIFS(planningNumbers!$H:$H,planningNumbers!$F:$F,$B15,planningNumbers!$C:$C,M$4,planningNumbers!$A:$A,$B$2) -> 0 | N15: =SUMIFS(planningNumbers!$H:$H,planningNumbers!$F:$F,$B15,planningNumbers!$C:$C,N$4,planningNumbers!$A:$A,$B$2) -> 0 | O15: =SUMIFS(planningNumbers!$H:$H,planningNumbers!$F:$F,$B15,planningNumbers!$C:$C,O$4,planningNumbers!$A:$A,$B$2) -> 242494 | P15: =SUMIFS(planningNumbers!$H:$H,planningNumbers!$F:$F,$B15,planningNumbers!$C:$C,P$4,planningNumbers!$A:$A,$B$2) -> 211740 | Q15: =SUMIFS(planningNumbers!$H:$H,planningNumbers!$F:$F,$B15,planningNumbers!$C:$C,Q$4,planningNumbers!$A:$A,$B$2) -> 231978 | R15: 935980 | S15: =ROUND(IF(DATE(YEAR(Forecast!$K$2),MONTH(Forecast!$K$2),1)=DATE(YEAR(B15),MONTH(B15),1),Forecast!$K$6/Forecast!$K$3,INDEX(Forecast!$D$2:$D$16,MATCH(DATE(YEAR(B15),MONTH(B15),1),Forecast!$A$2:$A$16,0))/DAY(EOMONTH(B15,0))),0) -> 910188 | T15: =IFERROR(IF((Forecast!$K$2+30)<B15,0,IF(INDEX('Truck list'!$G$6:$G$500,COUNTA('Truck list'!$G$6:$G$500))<B15,S15,IF(U15="",SUMIFS('Truck list'!H:H,'Truck list'!G:G,B15),U15))),0) -> 695552 | U15: 695552 | W15: 12178088 | X15: 3398720 | Y15: 363584 | Z15: 15576808 | AB15: 231 | AC15: 260 | AD15: 0 | AE15: 346 | AF15: 325 | AG15: 379 | AH15: 1541
A16: Sunday | B16: 2025-01-12 | D16: =SUMIFS(productionNumbers!$C:$C,productionNumbers!$E:$E,$B16,productionNumbers!$A:$A,D$4,productionNumbers!$B:$B,$B$2) -> 284544 | E16: =SUMIFS(productionNumbers!$C:$C,productionNumbers!$E:$E,$B16,productionNumbers!$A:$A,E$4,productionNumbers!$B:$B,$B$2) -> 0 | F16: =SUMIFS(productionNumbers!$C:$C,productionNumbers!$E:$E,$B16,productionNumbers!$A:$A,F$4,productionNumbers!$B:$B,$B$2) -> 0 | G16: =SUMIFS(productionNumbers!$C:$C,productionNumbers!$E:$E,$B16,productionNumbers!$A:$A,G$4,productionNumbers!$B:$B,$B$2) -> 213408 | H16: =SUMIFS(productionNumbers!$C:$C,productionNumbers!$E:$E,$B16,productionNumbers!$A:$A,H$4,productionNumbers!$B:$B,$B$2) -> 245024 | I16: =SUMIFS(productionNumbers!$C:$C,productionNumbers!$E:$E,$B16,productionNumbers!$A:$A,I$4,productionNumbers!$B:$B,$B$2) -> 284544 | J16: 1027520 | L16: =SUMIFS(planningNumbers!$H:$H,planningNumbers!$F:$F,$B16,planningNumbers!$C:$C,L$4,planningNumbers!$A:$A,$B$2) -> 256093 | M16: =SUMIFS(planningNumbers!$H:$H,planningNumbers!$F:$F,$B16,planningNumbers!$C:$C,M$4,planningNumbers!$A:$A,$B$2) -> 0 | N16: =SUMIFS(planningNumbers!$H:$H,planningNumbers!$F:$F,$B16,planningNumbers!$C:$C,N$4,planningNumbers!$A:$A,$B$2) -> 0 | O16: =SUMIFS(planningNumbers!$H:$H,planningNumbers!$F:$F,$B16,planningNumbers!$C:$C,O$4,planningNumbers!$A:$A,$B$2) -> 262628 | P16: =SUMIFS(planningNumbers!$H:$H,planningNumbers!$F:$F,$B16,planningNumbers!$C:$C,P$4,planningNumbers!$A:$A,$B$2) -> 206496 | Q16: =SUMIFS(planningNumbers!$H:$H,planningNumbers!$F:$F,$B16,planningNumbers!$C:$C,Q$4,planningNumbers!$A:$A,$B$2) -> 199586 | R16: 924803 | S16: =ROUND(IF(DATE(YEAR(Forecast!$K$2),MONTH(Forecast!$K$2),1)=DATE(YEAR(B16),MONTH(B16),1),Forecast!$K$6/Forecast!$K$3,INDEX(Forecast!$D$2:$D$16,MATCH(DATE(YEAR(B16),MONTH(B16),1),Forecast!$A$2:$A$16,0))/DAY(EOMONTH(B16,0))),0) -> 910188 | T16: =IFERROR(IF((Forecast!$K$2+30)<B16,0,IF(INDEX('Truck list'!$G$6:$G$500,COUNTA('Truck list'!$G$6:$G$500))<B16,S16,IF(U16="",SUMIFS('Truck list'!H:H,'Truck list'!G:G,B16),U16))),0) -> 347776 | U16: 347776 | W16: 12178088 | X16: 3398720 | Y16: 363584 | Z16: 15576808 | AB16: 231 | AC16: 260 | AD16: 0 | AE16: 346 | AF16: 325 | AG16: 379 | AH16: 1541
A17: Monday | B17: 2025-01-13 | D17: =SUMIFS(productionNumbers!$C:$C,productionNumbers!$E:$E,$B17,productionNumbers!$A:$A,D$4,productionNumbers!$B:$B,$B$2) -> 181792 | E17: =SUMIFS(productionNumbers!$C:$C,productionNumbers!$E:$E,$B17,productionNumbers!$A:$A,E$4,productionNumbers!$B:$B,$B$2) -> 0 | F17: =SUMIFS(productionNumbers!$C:$C,productionNumbers!$E:$E,$B17,productionNumbers!$A:$A,F$4,productionNumbers!$B:$B,$B$2) -> 0 | G17: =SUMIFS(productionNumbers!$C:$C,productionNumbers!$E:$E,$B17,productionNumbers!$A:$A,G$4,productionNumbers!$B:$B,$B$2) -> 173888 | H17: =SUMIFS(productionNumbers!$C:$C,productionNumbers!$E:$E,$B17,productionNumbers!$A:$A,H$4,productionNumbers!$B:$B,$B$2) -> 205504 | I17: =SUMIFS(productionNumbers!$C:$C,productionNumbers!$E:$E,$B17,productionNumbers!$A:$A,I$4,productionNumbers!$B:$B,$B$2) -> 197600 | J17: 758784 | L17: =SUMIFS(planningNumbers!$H:$H,planningNumbers!$F:$F,$B17,planningNumbers!$C:$C,L$4,planningNumbers!$A:$A,$B$2) -> 189793 | M17: =SUMIFS(planningNumbers!$H:$H,planningNumbers!$F:$F,$B17,planningNumbers!$C:$C,M$4,planningNumbers!$A:$A,$B$2) -> 135238 | N17: =SUMIFS(planningNumbers!$H:$H,planningNumbers!$F:$F,$B17,planningNumbers!$C:$C,N$4,planningNumbers!$A:$A,$B$2) -> 0 | O17: =SUMIFS(planningNumbers!$H:$H,planningNumbers!$F:$F,$B17,planningNumbers!$C:$C,O$4,planningNumbers!$A:$A,$B$2) -> 180662 | P17: =SUMIFS(planningNumbers!$H:$H,planningNumbers!$F:$F,$B17,planningNumbers!$C:$C,P$4,planningNumbers!$A:$A,$B$2) -> 206496 | Q17: =SUMIFS(planningNumbers!$H:$H,planningNumbers!$F:$F,$B17,planningNumbers!$C:$C,Q$4,planningNumbers!$A:$A,$B$2) -> 199586 | R17: 911775 | S17: =ROUND(IF(DATE(YEAR(Forecast!$K$2),MONTH(Forecast!$K$2),1)=DATE(YEAR(B17),MONTH(B17),1),Forecast!$K$6/Forecast!$K$3,INDEX(Forecast!$D$2:$D$16,MATCH(DATE(YEAR(B17),MONTH(B17),1),Forecast!$A$2:$A$16,0))/DAY(EOMONTH(B17,0))),0) -> 910188 | T17: =IFERROR(IF((Forecast!$K$2+30)<B17,0,IF(INDEX('Truck list'!$G$6:$G$500,COUNTA('Truck list'!$G$6:$G$500))<B17,S17,IF(U17="",SUMIFS('Truck list'!H:H,'Truck list'!G:G,B17),U17))),0) -> 1391104 | U17: 1391104 | W17: 12020008 | X17: 3185312 | Y17: 395200 | Z17: 15205320 | AB17: 265 | AC17: 238 | AD17: 0 | AE17: 305 | AF17: 275 | AG17: 438 | AH17: 1521 | AJ17: Line 3 down for complete refurb. Estimated restart 01/27/2025
A18: Tuesday | B18: 2025-01-14 | D18: =SUMIFS(productionNumbers!$C:$C,productionNumbers!$E:$E,$B18,productionNumbers!$A:$A,D$4,productionNumbers!$B:$B,$B$2) -> 197600 | E18: =SUMIFS(productionNumbers!$C:$C,productionNumbers!$E:$E,$B18,productionNumbers!$A:$A,E$4,productionNumbers!$B:$B,$B$2) -> 126464 | F18: =SUMIFS(productionNumbers!$C:$C,productionNumbers!$E:$E,$B18,productionNumbers!$A:$A,F$4,productionNumbers!$B:$B,$B$2) -> 0 | G18: =SUMIFS(productionNumbers!$C:$C,productionNumbers!$E:$E,$B18,productionNumbers!$A:$A,G$4,productionNumbers!$B:$B,$B$2) -> 205504 | H18: =SUMIFS(productionNumbers!$C:$C,productionNumbers!$E:$E,$B18,productionNumbers!$A:$A,H$4,productionNumbers!$B:$B,$B$2) -> 142272 | I18: =SUMIFS(productionNumbers!$C:$C,productionNumbers!$E:$E,$B18,productionNumbers!$A:$A,I$4,productionNumbers!$B:$B,$B$2) -> 181792 | J18: 853632 | L18: =SUMIFS(planningNumbers!$H:$H,planningNumbers!$F:$F,$B18,planningNumbers!$C:$C,L$4,planningNumbers!$A:$A,$B$2) -> 216907 | M18: =SUMIFS(planningNumbers!$H:$H,planningNumbers!$F:$F,$B18,planningNumbers!$C:$C,M$4,planningNumbers!$A:$A,$B$2) -> 193213 | N18: =SUMIFS(planningNumbers!$H:$H,planningNumbers!$F:$F,$B18,planningNumbers!$C:$C,N$4,planningNumbers!$A:$A,$B$2) -> 0 | O18: =SUMIFS(planningNumbers!$H:$H,planningNumbers!$F:$F,$B18,planningNumbers!$C:$C,O$4,planningNumbers!$A:$A,$B$2) -> 206471 | P18: =SUMIFS(planningNumbers!$H:$H,planningNumbers!$F:$F,$B18,planningNumbers!$C:$C,P$4,planningNumbers!$A:$A,$B$2) -> 173888 | Q18: =SUMIFS(planningNumbers!$H:$H,planningNumbers!$F:$F,$B18,planningNumbers!$C:$C,Q$4,planningNumbers!$A:$A,$B$2) -> 208820 | R18: 999299 | S18: =ROUND(IF(DATE(YEAR(Forecast!$K$2),MONTH(Forecast!$K$2),1)=DATE(YEAR(B18),MONTH(B18),1),Forecast!$K$6/Forecast!$K$3,INDEX(Forecast!$D$2:$D$16,MATCH(DATE(YEAR(B18),MONTH(B18),1),Forecast!$A$2:$A$16,0))/DAY(EOMONTH(B18,0))),0) -> 910188 | T18: =IFERROR(IF((Forecast!$K$2+30)<B18,0,IF(INDEX('Truck list'!$G$6:$G$500,COUNTA('Truck list'!$G$6:$G$500))<B18,S18,IF(U18="",SUMIFS('Truck list'!H:H,'Truck list'!G:G,B18),U18))),0) -> 1391104 | U18: 1391104 | W18: 12376676 | X18: 2592512 | Y18: 292448 | Z18: 14969188 | AB18: 298 | AC18: 225 | AD18: 0 | AE18: 362 | AF18: 261 | AG18: 420 | AH18: 1566
A19: Wednesday | B19: 2025-01-15 | D19: =SUMIFS(productionNumbers!$C:$C,productionNumbers!$E:$E,$B19,productionNumbers!$A:$A,D$4,productionNumbers!$B:$B,$B$2) -> 221312 | E19: =SUMIFS(productionNumbers!$C:$C,productionNumbers!$E:$E,$B19,productionNumbers!$A:$A,E$4,productionNumbers!$B:$B,$B$2) -> 197600 | F19: =SUMIFS(productionNumbers!$C:$C,productionNumbers!$E:$E,$B19,productionNumbers!$A:$A,F$4,productionNumbers!$B:$B,$B$2) -> 0 | G19: =SUMIFS(productionNumbers!$C:$C,productionNumbers!$E:$E,$B19,productionNumbers!$A:$A,G$4,productionNumbers!$B:$B,$B$2) -> 268736 | H19: =SUMIFS(productionNumbers!$C:$C,productionNumbers!$E:$E,$B19,productionNumbers!$A:$A,H$4,productionNumbers!$B:$B,$B$2) -> 0 | I19: =SUMIFS(productionNumbers!$C:$C,productionNumbers!$E:$E,$B19,productionNumbers!$A:$A,I$4,productionNumbers!$B:$B,$B$2) -> 245024 | J19: 932672 | L19: =SUMIFS(planningNumbers!$H:$H,planningNumbers!$F:$F,$B19,planningNumbers!$C:$C,L$4,planningNumbers!$A:$A,$B$2) -> 224872 | M19: =SUMIFS(planningNumbers!$H:$H,planningNumbers!$F:$F,$B19,planningNumbers!$C:$C,M$4,planningNumbers!$A:$A,$B$2) -> 193213 | N19: =SUMIFS(planningNumbers!$H:$H,planningNumbers!$F:$F,$B19,planningNumbers!$C:$C,N$4,planningNumbers!$A:$A,$B$2) -> 0 | O19: =SUMIFS(planningNumbers!$H:$H,planningNumbers!$F:$F,$B19,planningNumbers!$C:$C,O$4,planningNumbers!$A:$A,$B$2) -> 223886 | P19: =SUMIFS(planningNumbers!$H:$H,planningNumbers!$F:$F,$B19,planningNumbers!$C:$C,P$4,planningNumbers!$A:$A,$B$2) -> 0 | Q19: =SUMIFS(planningNumbers!$H:$H,planningNumbers!$F:$F,$B19,planningNumbers!$C:$C,Q$4,planningNumbers!$A:$A,$B$2) -> 215234 | R19: 857205 | S19: =ROUND(IF(DATE(YEAR(Forecast!$K$2),MONTH(Forecast!$K$2),1)=DATE(YEAR(B19),MONTH(B19),1),Forecast!$K$6/Forecast!$K$3,INDEX(Forecast!$D$2:$D$16,MATCH(DATE(YEAR(B19),MONTH(B19),1),Forecast!$A$2:$A$16,0))/DAY(EOMONTH(B19,0))),0) -> 910188 | T19: =IFERROR(IF((Forecast!$K$2+30)<B19,0,IF(INDEX('Truck list'!$G$6:$G$500,COUNTA('Truck list'!$G$6:$G$500))<B19,S19,IF(U19="",SUMIFS('Truck list'!H:H,'Truck list'!G:G,B19),U19))),0) -> 1391104 | U19: 1391104 | W19: 11712740 | X19: 2892864 | Y19: 292448 | Z19: 14605604 | AB19: 261 | AC19: 197 | AD19: 0 | AE19: 334 | AF19: 304 | AG19: 386 | AH19: 1482
A20: Thursday | B20: 2025-01-16 | D20: =SUMIFS(productionNumbers!$C:$C,productionNumbers!$E:$E,$B20,productionNumbers!$A:$A,D$4,productionNumbers!$B:$B,$B$2) -> 260832 | E20: =SUMIFS(productionNumbers!$C:$C,productionNumbers!$E:$E,$B20,productionNumbers!$A:$A,E$4,productionNumbers!$B:$B,$B$2) -> 189696 | F20: =SUMIFS(productionNumbers!$C:$C,productionNumbers!$E:$E,$B20,productionNumbers!$A:$A,F$4,productionNumbers!$B:$B,$B$2) -> 0 | G20: =SUMIFS(productionNumbers!$C:$C,productionNumbers!$E:$E,$B20,productionNumbers!$A:$A,G$4,productionNumbers!$B:$B,$B$2) -> 260832 | H20: =SUMIFS(productionNumbers!$C:$C,productionNumbers!$E:$E,$B20,productionNumbers!$A:$A,H$4,productionNumbers!$B:$B,$B$2) -> 0 | I20: =SUMIFS(productionNumbers!$C:$C,productionNumbers!$E:$E,$B20,productionNumbers!$A:$A,I$4,productionNumbers!$B:$B,$B$2) -> 260832 | J20: 972192 | L20: =SUMIFS(planningNumbers!$H:$H,planningNumbers!$F:$F,$B20,planningNumbers!$C:$C,L$4,planningNumbers!$A:$A,$B$2) -> 267813 | M20: =SUMIFS(planningNumbers!$H:$H,planningNumbers!$F:$F,$B20,planningNumbers!$C:$C,M$4,planningNumbers!$A:$A,$B$2) -> 173184 | N20: =SUMIFS(planningNumbers!$H:$H,planningNumbers!$F:$F,$B20,planningNumbers!$C:$C,N$4,planningNumbers!$A:$A,$B$2) -> 0 | O20: =SUMIFS(planningNumbers!$H:$H,planningNumbers!$F:$F,$B20,planningNumbers!$C:$C,O$4,planningNumbers!$A:$A,$B$2) -> 256454 | P20: =SUMIFS(planningNumbers!$H:$H,planningNumbers!$F:$F,$B20,planningNumbers!$C:$C,P$4,planningNumbers!$A:$A,$B$2) -> 0 | Q20: =SUMIFS(planningNumbers!$H:$H,planningNumbers!$F:$F,$B20,planningNumbers!$C:$C,Q$4,planningNumbers!$A:$A,$B$2) -> 258451 | R20: 955902 | S20: =ROUND(IF(DATE(YEAR(Forecast!$K$2),MONTH(Forecast!$K$2),1)=DATE(YEAR(B20),MONTH(B20),1),Forecast!$K$6/Forecast!$K$3,INDEX(Forecast!$D$2:$D$16,MATCH(DATE(YEAR(B20),MONTH(B20),1),Forecast!$A$2:$A$16,0))/DAY(EOMONTH(B20,0))),0) -> 910188 | T20: =IFERROR(IF((Forecast!$K$2+30)<B20,0,IF(INDEX('Truck list'!$G$6:$G$500,COUNTA('Truck list'!$G$6:$G$500))<B20,S20,IF(U20="",SUMIFS('Truck list'!H:H,'Truck list'!G:G,B20),U20))),0) -> 521664 | U20: 521664 | W20: 13190788 | X20: 1857440 | Y20: 237120 | Z20: 15048228 | AB20: 325 | AC20: 244 | AD20: 0 | AE20: 349 | AF20: 321 | AG20: 430 | AH20: 1669
A21: Friday | B21: 2025-01-17 | D21: =SUMIFS(productionNumbers!$C:$C,productionNumbers!$E:$E,$B21,productionNumbers!$A:$A,D$4,productionNumbers!$B:$B,$B$2) -> 276640 | E21: =SUMIFS(productionNumbers!$C:$C,productionNumbers!$E:$E,$B21,productionNumbers!$A:$A,E$4,productionNumbers!$B:$B,$B$2) -> 158080 | F21: =SUMIFS(productionNumbers!$C:$C,productionNumbers!$E:$E,$B21,productionNumbers!$A:$A,F$4,productionNumbers!$B:$B,$B$2) -> 0 | G21: =SUMIFS(productionNumbers!$C:$C,productionNumbers!$E:$E,$B21,productionNumbers!$A:$A,G$4,productionNumbers!$B:$B,$B$2) -> 205504 | H21: =SUMIFS(productionNumbers!$C:$C,productionNumbers!$E:$E,$B21,productionNumbers!$A:$A,H$4,productionNumbers!$B:$B,$B$2) -> 0 | I21: =SUMIFS(productionNumbers!$C:$C,productionNumbers!$E:$E,$B21,productionNumbers!$A:$A,I$4,productionNumbers!$B:$B,$B$2) -> 181792 | J21: 822016 | L21: =SUMIFS(planningNumbers!$H:$H,planningNumbers!$F:$F,$B21,planningNumbers!$C:$C,L$4,planningNumbers!$A:$A,$B$2) -> 270400 | M21: =SUMIFS(planningNumbers!$H:$H,planningNumbers!$F:$F,$B21,planningNumbers!$C:$C,M$4,planningNumbers!$A:$A,$B$2) -> 197925 | N21: =SUMIFS(planningNumbers!$H:$H,planningNumbers!$F:$F,$B21,planningNumbers!$C:$C,N$4,planningNumbers!$A:$A,$B$2) -> 0 | O21: =SUMIFS(planningNumbers!$H:$H,planningNumbers!$F:$F,$B21,planningNumbers!$C:$C,O$4,planningNumbers!$A:$A,$B$2) -> 243154 | P21: =SUMIFS(planningNumbers!$H:$H,planningNumbers!$F:$F,$B21,planningNumbers!$C:$C,P$4,planningNumbers!$A:$A,$B$2) -> 0 | Q21: =SUMIFS(planningNumbers!$H:$H,planningNumbers!$F:$F,$B21,planningNumbers!$C:$C,Q$4,planningNumbers!$A:$A,$B$2) -> 226800 | R21: 938279 | S21: =ROUND(IF(DATE(YEAR(Forecast!$K$2),MONTH(Forecast!$K$2),1)=DATE(YEAR(B21),MONTH(B21),1),Forecast!$K$6/Forecast!$K$3,INDEX(Forecast!$D$2:$D$16,MATCH(DATE(YEAR(B21),MONTH(B21),1),Forecast!$A$2:$A$16,0))/DAY(EOMONTH(B21,0))),0) -> 910188 | T21: =IFERROR(IF((Forecast!$K$2+30)<B21,0,IF(INDEX('Truck list'!$G$6:$G$500,COUNTA('Truck list'!$G$6:$G$500))<B21,S21,IF(U21="",SUMIFS('Truck list'!H:H,'Truck list'!G:G,B21),U21))),0) -> 1043328 | U21: 1043328 | W21: 11436100 | X21: 3801824 | Y21: 189696 | Z21: 15237924 | AB21: 282 | AC21: 235 | AD21: 0 | AE21: 285 | AF21: 218 | AG21: 427 | AH21: 1447
A22: Saturday | B22: 2025-01-18 | D22: =SUMIFS(productionNumbers!$C:$C,productionNumbers!$E:$E,$B22,productionNumbers!$A:$A,D$4,productionNumbers!$B:$B,$B$2) -> 268736 | E22: =SUMIFS(productionNumbers!$C:$C,productionNumbers!$E:$E,$B22,productionNumbers!$A:$A,E$4,productionNumbers!$B:$B,$B$2) -> 173888 | F22: =SUMIFS(productionNumbers!$C:$C,productionNumbers!$E:$E,$B22,productionNumbers!$A:$A,F$4,productionNumbers!$B:$B,$B$2) -> 0 | G22: =SUMIFS(productionNumbers!$C:$C,productionNumbers!$E:$E,$B22,productionNumbers!$A:$A,G$4,productionNumbers!$B:$B,$B$2) -> 237120 | H22: =SUMIFS(productionNumbers!$C:$C,productionNumbers!$E:$E,$B22,productionNumbers!$A:$A,H$4,productionNumbers!$B:$B,$B$2) -> 0 | I22: =SUMIFS(productionNumbers!$C:$C,productionNumbers!$E:$E,$B22,productionNumbers!$A:$A,I$4,productionNumbers!$B:$B,$B$2) -> 221312 | J22: 901056 | L22: =SUMIFS(planningNumbers!$H:$H,planningNumbers!$F:$F,$B22,planningNumbers!$C:$C,L$4,planningNumbers!$A:$A,$B$2) -> 259201 | M22: =SUMIFS(planningNumbers!$H:$H,planningNumbers!$F:$F,$B22,planningNumbers!$C:$C,M$4,planningNumbers!$A:$A,$B$2) -> 182393 | N22: =SUMIFS(planningNumbers!$H:$H,planningNumbers!$F:$F,$B22,planningNumbers!$C:$C,N$4,planningNumbers!$A:$A,$B$2) -> 0 | O22: =SUMIFS(planningNumbers!$H:$H,planningNumbers!$F:$F,$B22,planningNumbers!$C:$C,O$4,planningNumbers!$A:$A,$B$2) -> 214137 | P22: =SUMIFS(planningNumbers!$H:$H,planningNumbers!$F:$F,$B22,planningNumbers!$C:$C,P$4,planningNumbers!$A:$A,$B$2) -> 0 | Q22: =SUMIFS(planningNumbers!$H:$H,planningNumbers!$F:$F,$B22,planningNumbers!$C:$C,Q$4,planningNumbers!$A:$A,$B$2) -> 259200 | R22: 914931 | S22: =ROUND(IF(DATE(YEAR(Forecast!$K$2),MONTH(Forecast!$K$2),1)=DATE(YEAR(B22),MONTH(B22),1),Forecast!$K$6/Forecast!$K$3,INDEX(Forecast!$D$2:$D$16,MATCH(DATE(YEAR(B22),MONTH(B22),1),Forecast!$A$2:$A$16,0))/DAY(EOMONTH(B22,0))),0) -> 910188 | T22: =IFERROR(IF((Forecast!$K$2+30)<B22,0,IF(INDEX('Truck list'!$G$6:$G$500,COUNTA('Truck list'!$G$6:$G$500))<B22,S22,IF(U22="",SUMIFS('Truck list'!H:H,'Truck list'!G:G,B22),U22))),0) -> 347776 | U22: 347776 | W22: 11436100 | X22: 3801824 | Y22: 189696 | Z22: 15237924 | AB22: 282 | AC22: 235 | AD22: 0 | AE22: 285 | AF22: 218 | AG22: 427 | AH22: 1447
A23: Sunday | B23: 2025-01-19 | D23: =SUMIFS(productionNumbers!$C:$C,productionNumbers!$E:$E,$B23,productionNumbers!$A:$A,D$4,productionNumbers!$B:$B,$B$2) -> 221312 | E23: =SUMIFS(productionNumbers!$C:$C,productionNumbers!$E:$E,$B23,productionNumbers!$A:$A,E$4,productionNumbers!$B:$B,$B$2) -> 150176 | F23: =SUMIFS(productionNumbers!$C:$C,productionNumbers!$E:$E,$B23,productionNumbers!$A:$A,F$4,productionNumbers!$B:$B,$B$2) -> 0 | G23: =SUMIFS(productionNumbers!$C:$C,productionNumbers!$E:$E,$B23,productionNumbers!$A:$A,G$4,productionNumbers!$B:$B,$B$2) -> 197600 | H23: =SUMIFS(productionNumbers!$C:$C,productionNumbers!$E:$E,$B23,productionNumbers!$A:$A,H$4,productionNumbers!$B:$B,$B$2) -> 0 | I23: =SUMIFS(productionNumbers!$C:$C,productionNumbers!$E:$E,$B23,productionNumbers!$A:$A,I$4,productionNumbers!$B:$B,$B$2) -> 189696 | J23: 758784 | L23: =SUMIFS(planningNumbers!$H:$H,planningNumbers!$F:$F,$B23,planningNumbers!$C:$C,L$4,planningNumbers!$A:$A,$B$2) -> 259200 | M23: =SUMIFS(planningNumbers!$H:$H,planningNumbers!$F:$F,$B23,planningNumbers!$C:$C,M$4,planningNumbers!$A:$A,$B$2) -> 133030 | N23: =SUMIFS(planningNumbers!$H:$H,planningNumbers!$F:$F,$B23,planningNumbers!$C:$C,N$4,planningNumbers!$A:$A,$B$2) -> 0 | O23: =SUMIFS(planningNumbers!$H:$H,planningNumbers!$F:$F,$B23,planningNumbers!$C:$C,O$4,planningNumbers!$A:$A,$B$2) -> 214137 | P23: =SUMIFS(planningNumbers!$H:$H,planningNumbers!$F:$F,$B23,planningNumbers!$C:$C,P$4,planningNumbers!$A:$A,$B$2) -> 0 | Q23: =SUMIFS(planningNumbers!$H:$H,planningNumbers!$F:$F,$B23,planningNumbers!$C:$C,Q$4,planningNumbers!$A:$A,$B$2) -> 211043 | R23: 817410 | S23: =ROUND(IF(DATE(YEAR(Forecast!$K$2),MONTH(Forecast!$K$2),1)=DATE(YEAR(B23),MONTH(B23),1),Forecast!$K$6/Forecast!$K$3,INDEX(Forecast!$D$2:$D$16,MATCH(DATE(YEAR(B23),MONTH(B23),1),Forecast!$A$2:$A$16,0))/DAY(EOMONTH(B23,0))),0) -> 910188 | T23: =IFERROR(IF((Forecast!$K$2+30)<B23,0,IF(INDEX('Truck list'!$G$6:$G$500,COUNTA('Truck list'!$G$6:$G$500))<B23,S23,IF(U23="",SUMIFS('Truck list'!H:H,'Truck list'!G:G,B23),U23))),0) -> 1217216 | U23: 1217216 | W23: 11436100 | X23: 3801824 | Y23: 189696 | Z23: 15237924 | AB23: 282 | AC23: 235 | AD23: 0 | AE23: 285 | AF23: 218 | AG23: 427 | AH23: 1447
A24: Monday | B24: 2025-01-20 | D24: =SUMIFS(productionNumbers!$C:$C,productionNumbers!$E:$E,$B24,productionNumbers!$A:$A,D$4,productionNumbers!$B:$B,$B$2) -> 284544 | E24: =SUMIFS(productionNumbers!$C:$C,productionNumbers!$E:$E,$B24,productionNumbers!$A:$A,E$4,productionNumbers!$B:$B,$B$2) -> 142272 | F24: =SUMIFS(productionNumbers!$C:$C,productionNumbers!$E:$E,$B24,productionNumbers!$A:$A,F$4,productionNumbers!$B:$B,$B$2) -> 0 | G24: =SUMIFS(productionNumbers!$C:$C,productionNumbers!$E:$E,$B24,productionNumbers!$A:$A,G$4,productionNumbers!$B:$B,$B$2) -> 237120 | H24: =SUMIFS(productionNumbers!$C:$C,productionNumbers!$E:$E,$B24,productionNumbers!$A:$A,H$4,productionNumbers!$B:$B,$B$2) -> 0 | I24: =SUMIFS(productionNumbers!$C:$C,productionNumbers!$E:$E,$B24,productionNumbers!$A:$A,I$4,productionNumbers!$B:$B,$B$2) -> 252928 | J24: 916864 | L24: =SUMIFS(planningNumbers!$H:$H,planningNumbers!$F:$F,$B24,planningNumbers!$C:$C,L$4,planningNumbers!$A:$A,$B$2) -> 256199 | M24: =SUMIFS(planningNumbers!$H:$H,planningNumbers!$F:$F,$B24,planningNumbers!$C:$C,M$4,planningNumbers!$A:$A,$B$2) -> 167487 | N24: =SUMIFS(planningNumbers!$H:$H,planningNumbers!$F:$F,$B24,planningNumbers!$C:$C,N$4,planningNumbers!$A:$A,$B$2) -> 0 | O24: =SUMIFS(planningNumbers!$H:$H,planningNumbers!$F:$F,$B24,planningNumbers!$C:$C,O$4,planningNumbers!$A:$A,$B$2) -> 247403 | P24: =SUMIFS(planningNumbers!$H:$H,planningNumbers!$F:$F,$B24,planningNumbers!$C:$C,P$4,planningNumbers!$A:$A,$B$2) -> 0 | Q24: =SUMIFS(planningNumbers!$H:$H,planningNumbers!$F:$F,$B24,planningNumbers!$C:$C,Q$4,planningNumbers!$A:$A,$B$2) -> 203360 | R24: 874449 | S24: =ROUND(IF(DATE(YEAR(Forecast!$K$2),MONTH(Forecast!$K$2),1)=DATE(YEAR(B24),MONTH(B24),1),Forecast!$K$6/Forecast!$K$3,INDEX(Forecast!$D$2:$D$16,MATCH(DATE(YEAR(B24),MONTH(B24),1),Forecast!$A$2:$A$16,0))/DAY(EOMONTH(B24,0))),0) -> 910188 | T24: =IFERROR(IF((Forecast!$K$2+30)<B24,0,IF(INDEX('Truck list'!$G$6:$G$500,COUNTA('Truck list'!$G$6:$G$500))<B24,S24,IF(U24="",SUMIFS('Truck list'!H:H,'Truck list'!G:G,B24),U24))),0) -> 347776 | U24: 347776 | W24: 12487332 | X24: 3224832 | Y24: 252928 | Z24: 15712164 | AB24: 395 | AC24: 235 | AD24: 0 | AE24: 258 | AF24: 218 | AG24: 474 | AH24: 1580
A25: Tuesday | B25: 2025-01-21 | D25: =SUMIFS(productionNumbers!$C:$C,productionNumbers!$E:$E,$B25,productionNumbers!$A:$A,D$4,productionNumbers!$B:$B,$B$2) -> 158080 | E25: =SUMIFS(productionNumbers!$C:$C,productionNumbers!$E:$E,$B25,productionNumbers!$A:$A,E$4,productionNumbers!$B:$B,$B$2) -> 173888 | F25: =SUMIFS(productionNumbers!$C:$C,productionNumbers!$E:$E,$B25,productionNumbers!$A:$A,F$4,productionNumbers!$B:$B,$B$2) -> 0 | G25: =SUMIFS(productionNumbers!$C:$C,productionNumbers!$E:$E,$B25,productionNumbers!$A:$A,G$4,productionNumbers!$B:$B,$B$2) -> 197600 | H25: =SUMIFS(productionNumbers!$C:$C,productionNumbers!$E:$E,$B25,productionNumbers!$A:$A,H$4,productionNumbers!$B:$B,$B$2) -> 0 | I25: =SUMIFS(productionNumbers!$C:$C,productionNumbers!$E:$E,$B25,productionNumbers!$A:$A,I$4,productionNumbers!$B:$B,$B$2) -> 245024 | J25: 774592 | L25: =SUMIFS(planningNumbers!$H:$H,planningNumbers!$F:$F,$B25,planningNumbers!$C:$C,L$4,planningNumbers!$A:$A,$B$2) -> 200135 | M25: =SUMIFS(planningNumbers!$H:$H,planningNumbers!$F:$F,$B25,planningNumbers!$C:$C,M$4,planningNumbers!$A:$A,$B$2) -> 169993 | N25: =SUMIFS(planningNumbers!$H:$H,planningNumbers!$F:$F,$B25,planningNumbers!$C:$C,N$4,planningNumbers!$A:$A,$B$2) -> 0 | O25: =SUMIFS(planningNumbers!$H:$H,planningNumbers!$F:$F,$B25,planningNumbers!$C:$C,O$4,planningNumbers!$A:$A,$B$2) -> 183594 | P25: =SUMIFS(planningNumbers!$H:$H,planningNumbers!$F:$F,$B25,planningNumbers!$C:$C,P$4,planningNumbers!$A:$A,$B$2) -> 0 | Q25: =SUMIFS(planningNumbers!$H:$H,planningNumbers!$F:$F,$B25,planningNumbers!$C:$C,Q$4,planningNumbers!$A:$A,$B$2) -> 218978 | R25: 772700 | S25: =ROUND(IF(DATE(YEAR(Forecast!$K$2),MONTH(Forecast!$K$2),1)=DATE(YEAR(B25),MONTH(B25),1),Forecast!$K$6/Forecast!$K$3,INDEX(Forecast!$D$2:$D$16,MATCH(DATE(YEAR(B25),MONTH(B25),1),Forecast!$A$2:$A$16,0))/DAY(EOMONTH(B25,0))),0) -> 910188 | T25: =IFERROR(IF((Forecast!$K$2+30)<B25,0,IF(INDEX('Truck list'!$G$6:$G$500,COUNTA('Truck list'!$G$6:$G$500))<B25,S25,IF(U25="",SUMIFS('Truck list'!H:H,'Truck list'!G:G,B25),U25))),0) -> 869440 | U25: 869440 | W25: 11768068 | X25: 3786016 | Y25: 735072 | Z25: 15554084 | AB25: 385 | AC25: 196 | AD25: 0 | AE25: 238 | AF25: 218 | AG25: 452 | AH25: 1489
A26: Wednesday | B26: 2025-01-22 | D26: =SUMIFS(productionNumbers!$C:$C,productionNumbers!$E:$E,$B26,productionNumbers!$A:$A,D$4,productionNumbers!$B:$B,$B$2) -> 300352 | E26: =SUMIFS(productionNumbers!$C:$C,productionNumbers!$E:$E,$B26,productionNumbers!$A:$A,E$4,productionNumbers!$B:$B,$B$2) -> 142272 | F26: =SUMIFS(productionNumbers!$C:$C,productionNumbers!$E:$E,$B26,productionNumbers!$A:$A,F$4,productionNumbers!$B:$B,$B$2) -> 0 | G26: =SUMIFS(productionNumbers!$C:$C,productionNumbers!$E:$E,$B26,productionNumbers!$A:$A,G$4,productionNumbers!$B:$B,$B$2) -> 213408 | H26: =SUMIFS(productionNumbers!$C:$C,productionNumbers!$E:$E,$B26,productionNumbers!$A:$A,H$4,productionNumbers!$B:$B,$B$2) -> 0 | I26: =SUMIFS(productionNumbers!$C:$C,productionNumbers!$E:$E,$B26,productionNumbers!$A:$A,I$4,productionNumbers!$B:$B,$B$2) -> 213408 | J26: 869440 | L26: =SUMIFS(planningNumbers!$H:$H,planningNumbers!$F:$F,$B26,planningNumbers!$C:$C,L$4,planningNumbers!$A:$A,$B$2) -> 228726 | M26: =SUMIFS(planningNumbers!$H:$H,planningNumbers!$F:$F,$B26,planningNumbers!$C:$C,M$4,planningNumbers!$A:$A,$B$2) -> 193204 | N26: =SUMIFS(planningNumbers!$H:$H,planningNumbers!$F:$F,$B26,planningNumbers!$C:$C,N$4,planningNumbers!$A:$A,$B$2) -> 0 | O26: =SUMIFS(planningNumbers!$H:$H,planningNumbers!$F:$F,$B26,planningNumbers!$C:$C,O$4,planningNumbers!$A:$A,$B$2) -> 209822 | P26: =SUMIFS(planningNumbers!$H:$H,planningNumbers!$F:$F,$B26,planningNumbers!$C:$C,P$4,planningNumbers!$A:$A,$B$2) -> 0 | Q26: =SUMIFS(planningNumbers!$H:$H,planningNumbers!$F:$F,$B26,planningNumbers!$C:$C,Q$4,planningNumbers!$A:$A,$B$2) -> 255916 | R26: 887668 | S26: =ROUND(IF(DATE(YEAR(Forecast!$K$2),MONTH(Forecast!$K$2),1)=DATE(YEAR(B26),MONTH(B26),1),Forecast!$K$6/Forecast!$K$3,INDEX(Forecast!$D$2:$D$16,MATCH(DATE(YEAR(B26),MONTH(B26),1),Forecast!$A$2:$A$16,0))/DAY(EOMONTH(B26,0))),0) -> 910188 | T26: =IFERROR(IF((Forecast!$K$2+30)<B26,0,IF(INDEX('Truck list'!$G$6:$G$500,COUNTA('Truck list'!$G$6:$G$500))<B26,S26,IF(U26="",SUMIFS('Truck list'!H:H,'Truck list'!G:G,B26),U26))),0) -> 1391104 | U26: 1391104 | W26: 12621700 | X26: 2513472 | Y26: 616512 | Z26: 15135172 | AB26: 358 | AC26: 212 | AD26: 0 | AE26: 298 | AF26: 212 | AG26: 517 | AH26: 1597
A27: Thursday | B27: 2025-01-23 | D27: =SUMIFS(productionNumbers!$C:$C,productionNumbers!$E:$E,$B27,productionNumbers!$A:$A,D$4,productionNumbers!$B:$B,$B$2) -> 292448 | E27: =SUMIFS(productionNumbers!$C:$C,productionNumbers!$E:$E,$B27,productionNumbers!$A:$A,E$4,productionNumbers!$B:$B,$B$2) -> 94848 | F27: =SUMIFS(productionNumbers!$C:$C,productionNumbers!$E:$E,$B27,productionNumbers!$A:$A,F$4,productionNumbers!$B:$B,$B$2) -> 0 | G27: =SUMIFS(productionNumbers!$C:$C,productionNumbers!$E:$E,$B27,productionNumbers!$A:$A,G$4,productionNumbers!$B:$B,$B$2) -> 237120 | H27: =SUMIFS(productionNumbers!$C:$C,productionNumbers!$E:$E,$B27,productionNumbers!$A:$A,H$4,productionNumbers!$B:$B,$B$2) -> 0 | I27: =SUMIFS(productionNumbers!$C:$C,productionNumbers!$E:$E,$B27,productionNumbers!$A:$A,I$4,productionNumbers!$B:$B,$B$2) -> 221312 | J27: 845728 | L27: =SUMIFS(planningNumbers!$H:$H,planningNumbers!$F:$F,$B27,planningNumbers!$C:$C,L$4,planningNumbers!$A:$A,$B$2) -> 260387 | M27: =SUMIFS(planningNumbers!$H:$H,planningNumbers!$F:$F,$B27,planningNumbers!$C:$C,M$4,planningNumbers!$A:$A,$B$2) -> 64594 | N27: =SUMIFS(planningNumbers!$H:$H,planningNumbers!$F:$F,$B27,planningNumbers!$C:$C,N$4,planningNumbers!$A:$A,$B$2) -> 0 | O27: =SUMIFS(planningNumbers!$H:$H,planningNumbers!$F:$F,$B27,planningNumbers!$C:$C,O$4,planningNumbers!$A:$A,$B$2) -> 222455 | P27: =SUMIFS(planningNumbers!$H:$H,planningNumbers!$F:$F,$B27,planningNumbers!$C:$C,P$4,planningNumbers!$A:$A,$B$2) -> 0 | Q27: =SUMIFS(planningNumbers!$H:$H,planningNumbers!$F:$F,$B27,planningNumbers!$C:$C,Q$4,planningNumbers!$A:$A,$B$2) -> 203770 | R27: 751206 | S27: =ROUND(IF(DATE(YEAR(Forecast!$K$2),MONTH(Forecast!$K$2),1)=DATE(YEAR(B27),MONTH(B27),1),Forecast!$K$6/Forecast!$K$3,INDEX(Forecast!$D$2:$D$16,MATCH(DATE(YEAR(B27),MONTH(B27),1),Forecast!$A$2:$A$16,0))/DAY(EOMONTH(B27,0))),0) -> 910188 | T27: =IFERROR(IF((Forecast!$K$2+30)<B27,0,IF(INDEX('Truck list'!$G$6:$G$500,COUNTA('Truck list'!$G$6:$G$500))<B27,S27,IF(U27="",SUMIFS('Truck list'!H:H,'Truck list'!G:G,B27),U27))),0) -> 1391104 | U27: 1391104 | W27: 11112036 | X27: 2379104 | Y27: 1596608 | Z27: 13491140 | AB27: 292 | AC27: 197 | AD27: 0 | AE27: 241 | AF27: 206 | AG27: 470 | AH27: 1406
A28: Friday | B28: 2025-01-24 | D28: =SUMIFS(productionNumbers!$C:$C,productionNumbers!$E:$E,$B28,productionNumbers!$A:$A,D$4,productionNumbers!$B:$B,$B$2) -> 292448 | E28: =SUMIFS(productionNumbers!$C:$C,productionNumbers!$E:$E,$B28,productionNumbers!$A:$A,E$4,productionNumbers!$B:$B,$B$2) -> 189696 | F28: =SUMIFS(productionNumbers!$C:$C,productionNumbers!$E:$E,$B28,productionNumbers!$A:$A,F$4,productionNumbers!$B:$B,$B$2) -> 0 | G28: =SUMIFS(productionNumbers!$C:$C,productionNumbers!$E:$E,$B28,productionNumbers!$A:$A,G$4,productionNumbers!$B:$B,$B$2) -> 221312 | H28: =SUMIFS(productionNumbers!$C:$C,productionNumbers!$E:$E,$B28,productionNumbers!$A:$A,H$4,productionNumbers!$B:$B,$B$2) -> 0 | I28: =SUMIFS(productionNumbers!$C:$C,productionNumbers!$E:$E,$B28,productionNumbers!$A:$A,I$4,productionNumbers!$B:$B,$B$2) -> 268736 | J28: 972192 | L28: =SUMIFS(planningNumbers!$H:$H,planningNumbers!$F:$F,$B28,planningNumbers!$C:$C,L$4,planningNumbers!$A:$A,$B$2) -> 282003 | M28: =SUMIFS(planningNumbers!$H:$H,planningNumbers!$F:$F,$B28,planningNumbers!$C:$C,M$4,planningNumbers!$A:$A,$B$2) -> 222382 | N28: =SUMIFS(planningNumbers!$H:$H,planningNumbers!$F:$F,$B28,planningNumbers!$C:$C,N$4,planningNumbers!$A:$A,$B$2) -> 0 | O28: =SUMIFS(planningNumbers!$H:$H,planningNumbers!$F:$F,$B28,planningNumbers!$C:$C,O$4,planningNumbers!$A:$A,$B$2) -> 242315 | P28: =SUMIFS(planningNumbers!$H:$H,planningNumbers!$F:$F,$B28,planningNumbers!$C:$C,P$4,planningNumbers!$A:$A,$B$2) -> 0 | Q28: =SUMIFS(planningNumbers!$H:$H,planningNumbers!$F:$F,$B28,planningNumbers!$C:$C,Q$4,planningNumbers!$A:$A,$B$2) -> 232880 | R28: 979580 | S28: =ROUND(IF(DATE(YEAR(Forecast!$K$2),MONTH(Forecast!$K$2),1)=DATE(YEAR(B28),MONTH(B28),1),Forecast!$K$6/Forecast!$K$3,INDEX(Forecast!$D$2:$D$16,MATCH(DATE(YEAR(B28),MONTH(B28),1),Forecast!$A$2:$A$16,0))/DAY(EOMONTH(B28,0))),0) -> 910188 | T28: =IFERROR(IF((Forecast!$K$2+30)<B28,0,IF(INDEX('Truck list'!$G$6:$G$500,COUNTA('Truck list'!$G$6:$G$500))<B28,S28,IF(U28="",SUMIFS('Truck list'!H:H,'Truck list'!G:G,B28),U28))),0) -> 1217216 | U28: 1217216 | W28: 11364964 | X28: 1833728 | Y28: 1288352 | Z28: 13198692 | AB28: 276 | AC28: 194 | AD28: 0 | AE28: 338 | AF28: 159 | AG28: 471 | AH28: 1438
A29: Saturday | B29: 2025-01-25 | D29: =SUMIFS(productionNumbers!$C:$C,productionNumbers!$E:$E,$B29,productionNumbers!$A:$A,D$4,productionNumbers!$B:$B,$B$2) -> 245024 | E29: =SUMIFS(productionNumbers!$C:$C,productionNumbers!$E:$E,$B29,productionNumbers!$A:$A,E$4,productionNumbers!$B:$B,$B$2) -> 221312 | F29: =SUMIFS(productionNumbers!$C:$C,productionNumbers!$E:$E,$B29,productionNumbers!$A:$A,F$4,productionNumbers!$B:$B,$B$2) -> 0 | G29: =SUMIFS(productionNumbers!$C:$C,productionNumbers!$E:$E,$B29,productionNumbers!$A:$A,G$4,productionNumbers!$B:$B,$B$2) -> 197600 | H29: =SUMIFS(productionNumbers!$C:$C,productionNumbers!$E:$E,$B29,productionNumbers!$A:$A,H$4,productionNumbers!$B:$B,$B$2) -> 0 | I29: =SUMIFS(productionNumbers!$C:$C,productionNumbers!$E:$E,$B29,productionNumbers!$A:$A,I$4,productionNumbers!$B:$B,$B$2) -> 245024 | J29: 908960 | L29: =SUMIFS(planningNumbers!$H:$H,planningNumbers!$F:$F,$B29,planningNumbers!$C:$C,L$4,planningNumbers!$A:$A,$B$2) -> 257270 | M29: =SUMIFS(planningNumbers!$H:$H,planningNumbers!$F:$F,$B29,planningNumbers!$C:$C,M$4,planningNumbers!$A:$A,$B$2) -> 222382 | N29: =SUMIFS(planningNumbers!$H:$H,planningNumbers!$F:$F,$B29,planningNumbers!$C:$C,N$4,planningNumbers!$A:$A,$B$2) -> 0 | O29: =SUMIFS(planningNumbers!$H:$H,planningNumbers!$F:$F,$B29,planningNumbers!$C:$C,O$4,planningNumbers!$A:$A,$B$2) -> 237184 | P29: =SUMIFS(planningNumbers!$H:$H,planningNumbers!$F:$F,$B29,planningNumbers!$C:$C,P$4,planningNumbers!$A:$A,$B$2) -> 0 | Q29: =SUMIFS(planningNumbers!$H:$H,planningNumbers!$F:$F,$B29,planningNumbers!$C:$C,Q$4,planningNumbers!$A:$A,$B$2) -> 251095 | R29: 967931 | S29: =ROUND(IF(DATE(YEAR(Forecast!$K$2),MONTH(Forecast!$K$2),1)=DATE(YEAR(B29),MONTH(B29),1),Forecast!$K$6/Forecast!$K$3,INDEX(Forecast!$D$2:$D$16,MATCH(DATE(YEAR(B29),MONTH(B29),1),Forecast!$A$2:$A$16,0))/DAY(EOMONTH(B29,0))),0) -> 910188 | T29: =IFERROR(IF((Forecast!$K$2+30)<B29,0,IF(INDEX('Truck list'!$G$6:$G$500,COUNTA('Truck list'!$G$6:$G$500))<B29,S29,IF(U29="",SUMIFS('Truck list'!H:H,'Truck list'!G:G,B29),U29))),0) -> 1043328 | U29: 1043328 | W29: 11364964 | X29: 1833728 | Y29: 1288352 | Z29: 13198692 | AB29: 276 | AC29: 194 | AD29: 0 | AE29: 338 | AF29: 159 | AG29: 471 | AH29: 1438
A30: Sunday | B30: 2025-01-26 | D30: =SUMIFS(productionNumbers!$C:$C,productionNumbers!$E:$E,$B30,productionNumbers!$A:$A,D$4,productionNumbers!$B:$B,$B$2) -> 213408 | E30: =SUMIFS(productionNumbers!$C:$C,productionNumbers!$E:$E,$B30,productionNumbers!$A:$A,E$4,productionNumbers!$B:$B,$B$2) -> 173888 | F30: =SUMIFS(productionNumbers!$C:$C,productionNumbers!$E:$E,$B30,productionNumbers!$A:$A,F$4,productionNumbers!$B:$B,$B$2) -> 0 | G30: =SUMIFS(productionNumbers!$C:$C,productionNumbers!$E:$E,$B30,productionNumbers!$A:$A,G$4,productionNumbers!$B:$B,$B$2) -> 245024 | H30: =SUMIFS(productionNumbers!$C:$C,productionNumbers!$E:$E,$B30,productionNumbers!$A:$A,H$4,productionNumbers!$B:$B,$B$2) -> 0 | I30: =SUMIFS(productionNumbers!$C:$C,productionNumbers!$E:$E,$B30,productionNumbers!$A:$A,I$4,productionNumbers!$B:$B,$B$2) -> 252928 | J30: 885248 | L30: =SUMIFS(planningNumbers!$H:$H,planningNumbers!$F:$F,$B30,planningNumbers!$C:$C,L$4,planningNumbers!$A:$A,$B$2) -> 248777 | M30: =SUMIFS(planningNumbers!$H:$H,planningNumbers!$F:$F,$B30,planningNumbers!$C:$C,M$4,planningNumbers!$A:$A,$B$2) -> 196606 | N30: =SUMIFS(planningNumbers!$H:$H,planningNumbers!$F:$F,$B30,planningNumbers!$C:$C,N$4,planningNumbers!$A:$A,$B$2) -> 0 | O30: =SUMIFS(planningNumbers!$H:$H,planningNumbers!$F:$F,$B30,planningNumbers!$C:$C,O$4,planningNumbers!$A:$A,$B$2) -> 220567 | P30: =SUMIFS(planningNumbers!$H:$H,planningNumbers!$F:$F,$B30,planningNumbers!$C:$C,P$4,planningNumbers!$A:$A,$B$2) -> 0 | Q30: =SUMIFS(planningNumbers!$H:$H,planningNumbers!$F:$F,$B30,planningNumbers!$C:$C,Q$4,planningNumbers!$A:$A,$B$2) -> 261568 | R30: 927518 | S30: =ROUND(IF(DATE(YEAR(Forecast!$K$2),MONTH(Forecast!$K$2),1)=DATE(YEAR(B30),MONTH(B30),1),Forecast!$K$6/Forecast!$K$3,INDEX(Forecast!$D$2:$D$16,MATCH(DATE(YEAR(B30),MONTH(B30),1),Forecast!$A$2:$A$16,0))/DAY(EOMONTH(B30,0))),0) -> 910188 | T30: =IFERROR(IF((Forecast!$K$2+30)<B30,0,IF(INDEX('Truck list'!$G$6:$G$500,COUNTA('Truck list'!$G$6:$G$500))<B30,S30,IF(U30="",SUMIFS('Truck list'!H:H,'Truck list'!G:G,B30),U30))),0) -> 1217216 | U30: 1217216 | W30: 11364964 | X30: 1833728 | Y30: 1288352 | Z30: 13198692 | AB30: 276 | AC30: 194 | AD30: 0 | AE30: 338 | AF30: 159 | AG30: 471 | AH30: 1438
A31: Monday | B31: 2025-01-27 | D31: =SUMIFS(productionNumbers!$C:$C,productionNumbers!$E:$E,$B31,productionNumbers!$A:$A,D$4,productionNumbers!$B:$B,$B$2) -> 237120 | E31: =SUMIFS(productionNumbers!$C:$C,productionNumbers!$E:$E,$B31,productionNumbers!$A:$A,E$4,productionNumbers!$B:$B,$B$2) -> 245024 | F31: =SUMIFS(productionNumbers!$C:$C,productionNumbers!$E:$E,$B31,productionNumbers!$A:$A,F$4,productionNumbers!$B:$B,$B$2) -> 0 | G31: =SUMIFS(productionNumbers!$C:$C,productionNumbers!$E:$E,$B31,productionNumbers!$A:$A,G$4,productionNumbers!$B:$B,$B$2) -> 268736 | H31: =SUMIFS(productionNumbers!$C:$C,productionNumbers!$E:$E,$B31,productionNumbers!$A:$A,H$4,productionNumbers!$B:$B,$B$2) -> 0 | I31: =SUMIFS(productionNumbers!$C:$C,productionNumbers!$E:$E,$B31,productionNumbers!$A:$A,I$4,productionNumbers!$B:$B,$B$2) -> 276640 | J31: 1027520 | L31: =SUMIFS(planningNumbers!$H:$H,planningNumbers!$F:$F,$B31,planningNumbers!$C:$C,L$4,planningNumbers!$A:$A,$B$2) -> 255441 | M31: =SUMIFS(planningNumbers!$H:$H,planningNumbers!$F:$F,$B31,planningNumbers!$C:$C,M$4,planningNumbers!$A:$A,$B$2) -> 213318 | N31: =SUMIFS(planningNumbers!$H:$H,planningNumbers!$F:$F,$B31,planningNumbers!$C:$C,N$4,planningNumbers!$A:$A,$B$2) -> 0 | O31: =SUMIFS(planningNumbers!$H:$H,planningNumbers!$F:$F,$B31,planningNumbers!$C:$C,O$4,planningNumbers!$A:$A,$B$2) -> 220567 | P31: =SUMIFS(planningNumbers!$H:$H,planningNumbers!$F:$F,$B31,planningNumbers!$C:$C,P$4,planningNumbers!$A:$A,$B$2) -> 0 | Q31: =SUMIFS(planningNumbers!$H:$H,planningNumbers!$F:$F,$B31,planningNumbers!$C:$C,Q$4,planningNumbers!$A:$A,$B$2) -> 262681 | R31: 952007 | S31: =ROUND(IF(DATE(YEAR(Forecast!$K$2),MONTH(Forecast!$K$2),1)=DATE(YEAR(B31),MONTH(B31),1),Forecast!$K$6/Forecast!$K$3,INDEX(Forecast!$D$2:$D$16,MATCH(DATE(YEAR(B31),MONTH(B31),1),Forecast!$A$2:$A$16,0))/DAY(EOMONTH(B31,0))),0) -> 910188 | T31: =IFERROR(IF((Forecast!$K$2+30)<B31,0,IF(INDEX('Truck list'!$G$6:$G$500,COUNTA('Truck list'!$G$6:$G$500))<B31,S31,IF(U31="",SUMIFS('Truck list'!H:H,'Truck list'!G:G,B31),U31))),0) -> 1738880 | U31: 1738880 | W31: 10147748 | X31: 2774304 | Y31: 1296256 | Z31: 12922052 | AB31: 232 | AC31: 194 | AD31: 0 | AE31: 262 | AF31: 158 | AG31: 438 | AH31: 1284 | AJ31: 10 oz 15 cavity AQP trial. 1 week blocked on line 3
A32: Tuesday | B32: 2025-01-28 | D32: =SUMIFS(productionNumbers!$C:$C,productionNumbers!$E:$E,$B32,productionNumbers!$A:$A,D$4,productionNumbers!$B:$B,$B$2) -> 245024 | E32: =SUMIFS(productionNumbers!$C:$C,productionNumbers!$E:$E,$B32,productionNumbers!$A:$A,E$4,productionNumbers!$B:$B,$B$2) -> 221312 | F32: =SUMIFS(productionNumbers!$C:$C,productionNumbers!$E:$E,$B32,productionNumbers!$A:$A,F$4,productionNumbers!$B:$B,$B$2) -> 0 | G32: =SUMIFS(productionNumbers!$C:$C,productionNumbers!$E:$E,$B32,productionNumbers!$A:$A,G$4,productionNumbers!$B:$B,$B$2) -> 237120 | H32: =SUMIFS(productionNumbers!$C:$C,productionNumbers!$E:$E,$B32,productionNumbers!$A:$A,H$4,productionNumbers!$B:$B,$B$2) -> 0 | I32: =SUMIFS(productionNumbers!$C:$C,productionNumbers!$E:$E,$B32,productionNumbers!$A:$A,I$4,productionNumbers!$B:$B,$B$2) -> 237120 | J32: 940576 | L32: =SUMIFS(planningNumbers!$H:$H,planningNumbers!$F:$F,$B32,planningNumbers!$C:$C,L$4,planningNumbers!$A:$A,$B$2) -> 259068 | M32: =SUMIFS(planningNumbers!$H:$H,planningNumbers!$F:$F,$B32,planningNumbers!$C:$C,M$4,planningNumbers!$A:$A,$B$2) -> 210517 | N32: =SUMIFS(planningNumbers!$H:$H,planningNumbers!$F:$F,$B32,planningNumbers!$C:$C,N$4,planningNumbers!$A:$A,$B$2) -> 0 | O32: =SUMIFS(planningNumbers!$H:$H,planningNumbers!$F:$F,$B32,planningNumbers!$C:$C,O$4,planningNumbers!$A:$A,$B$2) -> 249802 | P32: =SUMIFS(planningNumbers!$H:$H,planningNumbers!$F:$F,$B32,planningNumbers!$C:$C,P$4,planningNumbers!$A:$A,$B$2) -> 0 | Q32: =SUMIFS(planningNumbers!$H:$H,planningNumbers!$F:$F,$B32,planningNumbers!$C:$C,Q$4,planningNumbers!$A:$A,$B$2) -> 259542 | R32: 978929 | S32: =ROUND(IF(DATE(YEAR(Forecast!$K$2),MONTH(Forecast!$K$2),1)=DATE(YEAR(B32),MONTH(B32),1),Forecast!$K$6/Forecast!$K$3,INDEX(Forecast!$D$2:$D$16,MATCH(DATE(YEAR(B32),MONTH(B32),1),Forecast!$A$2:$A$16,0))/DAY(EOMONTH(B32,0))),0) -> 910188 | T32: =IFERROR(IF((Forecast!$K$2+30)<B32,0,IF(INDEX('Truck list'!$G$6:$G$500,COUNTA('Truck list'!$G$6:$G$500))<B32,S32,IF(U32="",SUMIFS('Truck list'!H:H,'Truck list'!G:G,B32),U32))),0) -> 1912768 | U32: 1912768 | W32: 8590660 | X32: 3770208 | Y32: 1288352 | Z32: 12360868 | AB32: 207 | AC32: 177 | AD32: 0 | AE32: 224 | AF32: 135 | AG32: 344 | AH32: 1087
A33: Wednesday | B33: 2025-01-29 | D33: =SUMIFS(productionNumbers!$C:$C,productionNumbers!$E:$E,$B33,productionNumbers!$A:$A,D$4,productionNumbers!$B:$B,$B$2) -> 229216 | E33: =SUMIFS(productionNumbers!$C:$C,productionNumbers!$E:$E,$B33,productionNumbers!$A:$A,E$4,productionNumbers!$B:$B,$B$2) -> 205504 | F33: =SUMIFS(productionNumbers!$C:$C,productionNumbers!$E:$E,$B33,productionNumbers!$A:$A,F$4,productionNumbers!$B:$B,$B$2) -> 0 | G33: =SUMIFS(productionNumbers!$C:$C,productionNumbers!$E:$E,$B33,productionNumbers!$A:$A,G$4,productionNumbers!$B:$B,$B$2) -> 102752 | H33: =SUMIFS(productionNumbers!$C:$C,productionNumbers!$E:$E,$B33,productionNumbers!$A:$A,H$4,productionNumbers!$B:$B,$B$2) -> 0 | I33: =SUMIFS(productionNumbers!$C:$C,productionNumbers!$E:$E,$B33,productionNumbers!$A:$A,I$4,productionNumbers!$B:$B,$B$2) -> 268736 | J33: 806208 | L33: =SUMIFS(planningNumbers!$H:$H,planningNumbers!$F:$F,$B33,planningNumbers!$C:$C,L$4,planningNumbers!$A:$A,$B$2) -> 192357 | M33: =SUMIFS(planningNumbers!$H:$H,planningNumbers!$F:$F,$B33,planningNumbers!$C:$C,M$4,planningNumbers!$A:$A,$B$2) -> 205976 | N33: =SUMIFS(planningNumbers!$H:$H,planningNumbers!$F:$F,$B33,planningNumbers!$C:$C,N$4,planningNumbers!$A:$A,$B$2) -> 0 | O33: =SUMIFS(planningNumbers!$H:$H,planningNumbers!$F:$F,$B33,planningNumbers!$C:$C,O$4,planningNumbers!$A:$A,$B$2) -> 163361 | P33: =SUMIFS(planningNumbers!$H:$H,planningNumbers!$F:$F,$B33,planningNumbers!$C:$C,P$4,planningNumbers!$A:$A,$B$2) -> 0 | Q33: =SUMIFS(planningNumbers!$H:$H,planningNumbers!$F:$F,$B33,planningNumbers!$C:$C,Q$4,planningNumbers!$A:$A,$B$2) -> 251537 | R33: 813231 | S33: =ROUND(IF(DATE(YEAR(Forecast!$K$2),MONTH(Forecast!$K$2),1)=DATE(YEAR(B33),MONTH(B33),1),Forecast!$K$6/Forecast!$K$3,INDEX(Forecast!$D$2:$D$16,MATCH(DATE(YEAR(B33),MONTH(B33),1),Forecast!$A$2:$A$16,0))/DAY(EOMONTH(B33,0))),0) -> 910188 | T33: =IFERROR(IF((Forecast!$K$2+30)<B33,0,IF(INDEX('Truck list'!$G$6:$G$500,COUNTA('Truck list'!$G$6:$G$500))<B33,S33,IF(U33="",SUMIFS('Truck list'!H:H,'Truck list'!G:G,B33),U33))),0) -> 1391104 | U33: 1391104 | W33: 8915218 | X33: 2718976 | Y33: 1359488 | Z33: 11634194 | AB33: 240 | AC33: 177 | AD33: 0 | AE33: 209 | AF33: 117 | AG33: 385 | AH33: 1128
A34: Thursday | B34: 2025-01-30 | D34: =SUMIFS(productionNumbers!$C:$C,productionNumbers!$E:$E,$B34,productionNumbers!$A:$A,D$4,productionNumbers!$B:$B,$B$2) -> 284544 | E34: =SUMIFS(productionNumbers!$C:$C,productionNumbers!$E:$E,$B34,productionNumbers!$A:$A,E$4,productionNumbers!$B:$B,$B$2) -> 197600 | F34: =SUMIFS(productionNumbers!$C:$C,productionNumbers!$E:$E,$B34,productionNumbers!$A:$A,F$4,productionNumbers!$B:$B,$B$2) -> 0 | G34: =SUMIFS(productionNumbers!$C:$C,productionNumbers!$E:$E,$B34,productionNumbers!$A:$A,G$4,productionNumbers!$B:$B,$B$2) -> 205504 | H34: =SUMIFS(productionNumbers!$C:$C,productionNumbers!$E:$E,$B34,productionNumbers!$A:$A,H$4,productionNumbers!$B:$B,$B$2) -> 0 | I34: =SUMIFS(productionNumbers!$C:$C,productionNumbers!$E:$E,$B34,productionNumbers!$A:$A,I$4,productionNumbers!$B:$B,$B$2) -> 213408 | J34: 901056 | L34: =SUMIFS(planningNumbers!$H:$H,planningNumbers!$F:$F,$B34,planningNumbers!$C:$C,L$4,planningNumbers!$A:$A,$B$2) -> 220003 | M34: =SUMIFS(planningNumbers!$H:$H,planningNumbers!$F:$F,$B34,planningNumbers!$C:$C,M$4,planningNumbers!$A:$A,$B$2) -> 176327 | N34: =SUMIFS(planningNumbers!$H:$H,planningNumbers!$F:$F,$B34,planningNumbers!$C:$C,N$4,planningNumbers!$A:$A,$B$2) -> 0 | O34: =SUMIFS(planningNumbers!$H:$H,planningNumbers!$F:$F,$B34,planningNumbers!$C:$C,O$4,planningNumbers!$A:$A,$B$2) -> 186699 | P34: =SUMIFS(planningNumbers!$H:$H,planningNumbers!$F:$F,$B34,planningNumbers!$C:$C,P$4,planningNumbers!$A:$A,$B$2) -> 0 | Q34: =SUMIFS(planningNumbers!$H:$H,planningNumbers!$F:$F,$B34,planningNumbers!$C:$C,Q$4,planningNumbers!$A:$A,$B$2) -> 214099 | R34: 797128 | S34: =ROUND(IF(DATE(YEAR(Forecast!$K$2),MONTH(Forecast!$K$2),1)=DATE(YEAR(B34),MONTH(B34),1),Forecast!$K$6/Forecast!$K$3,INDEX(Forecast!$D$2:$D$16,MATCH(DATE(YEAR(B34),MONTH(B34),1),Forecast!$A$2:$A$16,0))/DAY(EOMONTH(B34,0))),0) -> 910188 | T34: =IFERROR(IF((Forecast!$K$2+30)<B34,0,IF(INDEX('Truck list'!$G$6:$G$500,COUNTA('Truck list'!$G$6:$G$500))<B34,S34,IF(U34="",SUMIFS('Truck list'!H:H,'Truck list'!G:G,B34),U34))),0) -> 1043328 | U34: 1043328 | W34: 9641892 | X34: 1896960 | Y34: 1383200 | Z34: 11538852 | AB34: 273 | AC34: 201 | AD34: 0 | AE34: 227 | AF34: 116 | AG34: 403 | AH34: 1220
A35: Friday | B35: 2025-01-31 | D35: =SUMIFS(productionNumbers!$C:$C,productionNumbers!$E:$E,$B35,productionNumbers!$A:$A,D$4,productionNumbers!$B:$B,$B$2) -> 189696 | E35: =SUMIFS(productionNumbers!$C:$C,productionNumbers!$E:$E,$B35,productionNumbers!$A:$A,E$4,productionNumbers!$B:$B,$B$2) -> 181792 | F35: =SUMIFS(productionNumbers!$C:$C,productionNumbers!$E:$E,$B35,productionNumbers!$A:$A,F$4,productionNumbers!$B:$B,$B$2) -> 0 | G35: =SUMIFS(productionNumbers!$C:$C,productionNumbers!$E:$E,$B35,productionNumbers!$A:$A,G$4,productionNumbers!$B:$B,$B$2) -> 189696 | H35: =SUMIFS(productionNumbers!$C:$C,productionNumbers!$E:$E,$B35,productionNumbers!$A:$A,H$4,productionNumbers!$B:$B,$B$2) -> 0 | I35: =SUMIFS(productionNumbers!$C:$C,productionNumbers!$E:$E,$B35,productionNumbers!$A:$A,I$4,productionNumbers!$B:$B,$B$2) -> 237120 | J35: 798304 | L35: =SUMIFS(planningNumbers!$H:$H,planningNumbers!$F:$F,$B35,planningNumbers!$C:$C,L$4,planningNumbers!$A:$A,$B$2) -> 239725 | M35: =SUMIFS(planningNumbers!$H:$H,planningNumbers!$F:$F,$B35,planningNumbers!$C:$C,M$4,planningNumbers!$A:$A,$B$2) -> 201517 | N35: =SUMIFS(planningNumbers!$H:$H,planningNumbers!$F:$F,$B35,planningNumbers!$C:$C,N$4,planningNumbers!$A:$A,$B$2) -> 0 | O35: =SUMIFS(planningNumbers!$H:$H,planningNumbers!$F:$F,$B35,planningNumbers!$C:$C,O$4,planningNumbers!$A:$A,$B$2) -> 189519 | P35: =SUMIFS(planningNumbers!$H:$H,planningNumbers!$F:$F,$B35,planningNumbers!$C:$C,P$4,planningNumbers!$A:$A,$B$2) -> 0 | Q35: =SUMIFS(planningNumbers!$H:$H,planningNumbers!$F:$F,$B35,planningNumbers!$C:$C,Q$4,planningNumbers!$A:$A,$B$2) -> 226390 | R35: 857151 | S35: =ROUND(IF(DATE(YEAR(Forecast!$K$2),MONTH(Forecast!$K$2),1)=DATE(YEAR(B35),MONTH(B35),1),Forecast!$K$6/Forecast!$K$3,INDEX(Forecast!$D$2:$D$16,MATCH(DATE(YEAR(B35),MONTH(B35),1),Forecast!$A$2:$A$16,0))/DAY(EOMONTH(B35,0))),0) -> 910188 | T35: =IFERROR(IF((Forecast!$K$2+30)<B35,0,IF(INDEX('Truck list'!$G$6:$G$500,COUNTA('Truck list'!$G$6:$G$500))<B35,S35,IF(U35="",SUMIFS('Truck list'!H:H,'Truck list'!G:G,B35),U35))),0) -> 869440 | U35: 869440 | W35: 8369348 | X35: 3651648 | Y35: 1430624 | Z35: 12020996 | AB35: 245 | AC35: 147 | AD35: 0 | AE35: 242 | AF35: 116 | AG35: 309 | AH35: 1059
A36: Month totals | J36: =SUM(J5:J35) -> 24051872 | R36: =SUM(R5:R35) -> 24465262 | T36: =SUM(T5:T35) -> 30952064
A38: Saturday | B38: =+B35+1 -> 2025-02-01 | D38: =SUMIFS(productionNumbers!$C:$C,productionNumbers!$E:$E,$B38,productionNumbers!$A:$A,D$4,productionNumbers!$B:$B,$B$2) -> 308256 | E38: =SUMIFS(productionNumbers!$C:$C,productionNumbers!$E:$E,$B38,productionNumbers!$A:$A,E$4,productionNumbers!$B:$B,$B$2) -> 229216 | F38: =SUMIFS(productionNumbers!$C:$C,productionNumbers!$E:$E,$B38,productionNumbers!$A:$A,F$4,productionNumbers!$B:$B,$B$2) -> 0 | G38: =SUMIFS(productionNumbers!$C:$C,productionNumbers!$E:$E,$B38,productionNumbers!$A:$A,G$4,productionNumbers!$B:$B,$B$2) -> 221312 | H38: =SUMIFS(productionNumbers!$C:$C,productionNumbers!$E:$E,$B38,productionNumbers!$A:$A,H$4,productionNumbers!$B:$B,$B$2) -> 0 | I38: =SUMIFS(productionNumbers!$C:$C,productionNumbers!$E:$E,$B38,productionNumbers!$A:$A,I$4,productionNumbers!$B:$B,$B$2) -> 221312 | J38: 980096 | L38: =SUMIFS(planningNumbers!$H:$H,planningNumbers!$F:$F,$B38,planningNumbers!$C:$C,L$4,planningNumbers!$A:$A,$B$2) -> 259200 | M38: =SUMIFS(planningNumbers!$H:$H,planningNumbers!$F:$F,$B38,planningNumbers!$C:$C,M$4,planningNumbers!$A:$A,$B$2) -> 217306 | N38: =SUMIFS(planningNumbers!$H:$H,planningNumbers!$F:$F,$B38,planningNumbers!$C:$C,N$4,planningNumbers!$A:$A,$B$2) -> 0 | O38: =SUMIFS(planningNumbers!$H:$H,planningNumbers!$F:$F,$B38,planningNumbers!$C:$C,O$4,planningNumbers!$A:$A,$B$2) -> 221585 | P38: =SUMIFS(planningNumbers!$H:$H,planningNumbers!$F:$F,$B38,planningNumbers!$C:$C,P$4,planningNumbers!$A:$A,$B$2) -> 0 | Q38: =SUMIFS(planningNumbers!$H:$H,planningNumbers!$F:$F,$B38,planningNumbers!$C:$C,Q$4,planningNumbers!$A:$A,$B$2) -> 227735 | R38: 925826 | S38: =ROUND(IF(DATE(YEAR(Forecast!$K$2),MONTH(Forecast!$K$2),1)=DATE(YEAR(B38),MONTH(B38),1),Forecast!$K$6/Forecast!$K$3,INDEX(Forecast!$D$2:$D$16,MATCH(DATE(YEAR(B38),MONTH(B38),1),Forecast!$A$2:$A$16,0))/DAY(EOMONTH(B38,0))),0) -> 759022 | T38: =IFERROR(IF((Forecast!$K$2+30)<B38,0,IF(INDEX('Truck list'!$G$6:$G$500,COUNTA('Truck list'!$G$6:$G$500))<B38,S38,IF(U38="",SUMIFS('Truck list'!H:H,'Truck list'!G:G,B38),U38))),0) -> 901056 | U38: 901056 | W38: 8369348 | X38: 3651648 | Y38: 1430624 | Z38: =IF(W38="",IF(J38=0,Z35+R38-IF(U38=0,T38,U38),Z37+J38-IF(U38=0,T38,U38)),SUM(W38:X38)) -> 12020996 | AB38: 245 | AC38: 147 | AD38: 0 | AE38: 242 | AF38: 116 | AG38: 309 | AH38: 1059
A39: Sunday | B39: =+B38+1 -> 2025-02-02 | D39: =SUMIFS(productionNumbers!$C:$C,productionNumbers!$E:$E,$B39,productionNumbers!$A:$A,D$4,productionNumbers!$B:$B,$B$2) -> 268736 | E39: =SUMIFS(productionNumbers!$C:$C,productionNumbers!$E:$E,$B39,productionNumbers!$A:$A,E$4,productionNumbers!$B:$B,$B$2) -> 252928 | F39: =SUMIFS(productionNumbers!$C:$C,productionNumbers!$E:$E,$B39,productionNumbers!$A:$A,F$4,productionNumbers!$B:$B,$B$2) -> 0 | G39: =SUMIFS(productionNumbers!$C:$C,productionNumbers!$E:$E,$B39,productionNumbers!$A:$A,G$4,productionNumbers!$B:$B,$B$2) -> 252928 | H39: =SUMIFS(productionNumbers!$C:$C,productionNumbers!$E:$E,$B39,productionNumbers!$A:$A,H$4,productionNumbers!$B:$B,$B$2) -> 0 | I39: =SUMIFS(productionNumbers!$C:$C,productionNumbers!$E:$E,$B39,productionNumbers!$A:$A,I$4,productionNumbers!$B:$B,$B$2) -> 221312 | J39: 995904 | L39: =SUMIFS(planningNumbers!$H:$H,planningNumbers!$F:$F,$B39,planningNumbers!$C:$C,L$4,planningNumbers!$A:$A,$B$2) -> 268321 | M39: =SUMIFS(planningNumbers!$H:$H,planningNumbers!$F:$F,$B39,planningNumbers!$C:$C,M$4,planningNumbers!$A:$A,$B$2) -> 256663 | N39: =SUMIFS(planningNumbers!$H:$H,planningNumbers!$F:$F,$B39,planningNumbers!$C:$C,N$4,planningNumbers!$A:$A,$B$2) -> 0 | O39: =SUMIFS(planningNumbers!$H:$H,planningNumbers!$F:$F,$B39,planningNumbers!$C:$C,O$4,planningNumbers!$A:$A,$B$2) -> 221585 | P39: =SUMIFS(planningNumbers!$H:$H,planningNumbers!$F:$F,$B39,planningNumbers!$C:$C,P$4,planningNumbers!$A:$A,$B$2) -> 0 | Q39: =SUMIFS(planningNumbers!$H:$H,planningNumbers!$F:$F,$B39,planningNumbers!$C:$C,Q$4,planningNumbers!$A:$A,$B$2) -> 250725 | R39: 997294 | S39: =ROUND(IF(DATE(YEAR(Forecast!$K$2),MONTH(Forecast!$K$2),1)=DATE(YEAR(B39),MONTH(B39),1),Forecast!$K$6/Forecast!$K$3,INDEX(Forecast!$D$2:$D$16,MATCH(DATE(YEAR(B39),MONTH(B39),1),Forecast!$A$2:$A$16,0))/DAY(EOMONTH(B39,0))),0) -> 759022 | T39: =IFERROR(IF((Forecast!$K$2+30)<B39,0,IF(INDEX('Truck list'!$G$6:$G$500,COUNTA('Truck list'!$G$6:$G$500))<B39,S39,IF(U39="",SUMIFS('Truck list'!H:H,'Truck list'!G:G,B39),U39))),0) -> 521664 | U39: 521664 | W39: 8369348 | X39: 3651648 | Y39: 1430624 | Z39: =IF(W39="",IF(J39=0,Z38+R39-IF(U39=0,T39,U39),Z38+J39-IF(U39=0,T39,U39)),SUM(W39:X39)) -> 12020996 | AB39: 245 | AC39: 147 | AD39: 0 | AE39: 242 | AF39: 116 | AG39: 309 | AH39: 1059
A40: Monday | B40: =+B39+1 -> 2025-02-03 | D40: =SUMIFS(productionNumbers!$C:$C,productionNumbers!$E:$E,$B40,productionNumbers!$A:$A,D$4,productionNumbers!$B:$B,$B$2) -> 284544 | E40: =SUMIFS(productionNumbers!$C:$C,productionNumbers!$E:$E,$B40,productionNumbers!$A:$A,E$4,productionNumbers!$B:$B,$B$2) -> 197600 | F40: =SUMIFS(productionNumbers!$C:$C,productionNumbers!$E:$E,$B40,productionNumbers!$A:$A,F$4,productionNumbers!$B:$B,$B$2) -> 0 | G40: =SUMIFS(productionNumbers!$C:$C,productionNumbers!$E:$E,$B40,productionNumbers!$A:$A,G$4,productionNumbers!$B:$B,$B$2) -> 268736 | H40: =SUMIFS(productionNumbers!$C:$C,productionNumbers!$E:$E,$B40,productionNumbers!$A:$A,H$4,productionNumbers!$B:$B,$B$2) -> 0 | I40: =SUMIFS(productionNumbers!$C:$C,productionNumbers!$E:$E,$B40,productionNumbers!$A:$A,I$4,productionNumbers!$B:$B,$B$2) -> 229216 | J40: 980096 | L40: =SUMIFS(planningNumbers!$H:$H,planningNumbers!$F:$F,$B40,planningNumbers!$C:$C,L$4,planningNumbers!$A:$A,$B$2) -> 282193 | M40: =SUMIFS(planningNumbers!$H:$H,planningNumbers!$F:$F,$B40,planningNumbers!$C:$C,M$4,planningNumbers!$A:$A,$B$2) -> 247182 | N40: =SUMIFS(planningNumbers!$H:$H,planningNumbers!$F:$F,$B40,planningNumbers!$C:$C,N$4,planningNumbers!$A:$A,$B$2) -> 0 | O40: =SUMIFS(planningNumbers!$H:$H,planningNumbers!$F:$F,$B40,planningNumbers!$C:$C,O$4,planningNumbers!$A:$A,$B$2) -> 250275 | P40: =SUMIFS(planningNumbers!$H:$H,planningNumbers!$F:$F,$B40,planningNumbers!$C:$C,P$4,planningNumbers!$A:$A,$B$2) -> 0 | Q40: =SUMIFS(planningNumbers!$H:$H,planningNumbers!$F:$F,$B40,planningNumbers!$C:$C,Q$4,planningNumbers!$A:$A,$B$2) -> 250725 | R40: 1030375 | S40: =ROUND(IF(DATE(YEAR(Forecast!$K$2),MONTH(Forecast!$K$2),1)=DATE(YEAR(B40),MONTH(B40),1),Forecast!$K$6/Forecast!$K$3,INDEX(Forecast!$D$2:$D$16,MATCH(DATE(YEAR(B40),MONTH(B40),1),Forecast!$A$2:$A$16,0))/DAY(EOMONTH(B40,0))),0) -> 759022 | T40: =IFERROR(IF((Forecast!$K$2+30)<B40,0,IF(INDEX('Truck list'!$G$6:$G$500,COUNTA('Truck list'!$G$6:$G$500))<B40,S40,IF(U40="",SUMIFS('Truck list'!H:H,'Truck list'!G:G,B40),U40))),0) -> 347776 | U40: 347776 | W40: 8503716 | X40: 2924480 | Y40: 2663648 | Z40: 11428196 | AB40: 246 | AC40: 166 | AD40: 0 | AE40: 239 | AF40: 116 | AG40: 309 | AH40: 1076 | AJ40: Line 5 1500 hr PM Blocked 02/03/2025-02/04/2025
A41: Tuesday | B41: 2025-02-04 | D41: =SUMIFS(productionNumbers!$C:$C,productionNumbers!$E:$E,$B41,productionNumbers!$A:$A,D$4,productionNumbers!$B:$B,$B$2) -> 237120 | E41: =SUMIFS(productionNumbers!$C:$C,productionNumbers!$E:$E,$B41,productionNumbers!$A:$A,E$4,productionNumbers!$B:$B,$B$2) -> 197600 | F41: =SUMIFS(productionNumbers!$C:$C,productionNumbers!$E:$E,$B41,productionNumbers!$A:$A,F$4,productionNumbers!$B:$B,$B$2) -> 0 | G41: =SUMIFS(productionNumbers!$C:$C,productionNumbers!$E:$E,$B41,productionNumbers!$A:$A,G$4,productionNumbers!$B:$B,$B$2) -> 245024 | H41: =SUMIFS(productionNumbers!$C:$C,productionNumbers!$E:$E,$B41,productionNumbers!$A:$A,H$4,productionNumbers!$B:$B,$B$2) -> 102752 | I41: =SUMIFS(productionNumbers!$C:$C,productionNumbers!$E:$E,$B41,productionNumbers!$A:$A,I$4,productionNumbers!$B:$B,$B$2) -> 229216 | J41: 1011712 | L41: =SUMIFS(planningNumbers!$H:$H,planningNumbers!$F:$F,$B41,planningNumbers!$C:$C,L$4,planningNumbers!$A:$A,$B$2) -> 261273 | M41: =SUMIFS(planningNumbers!$H:$H,planningNumbers!$F:$F,$B41,planningNumbers!$C:$C,M$4,planningNumbers!$A:$A,$B$2) -> 219316 | N41: =SUMIFS(planningNumbers!$H:$H,planningNumbers!$F:$F,$B41,planningNumbers!$C:$C,N$4,planningNumbers!$A:$A,$B$2) -> 0 | O41: =SUMIFS(planningNumbers!$H:$H,planningNumbers!$F:$F,$B41,planningNumbers!$C:$C,O$4,planningNumbers!$A:$A,$B$2) -> 226614 | P41: =SUMIFS(planningNumbers!$H:$H,planningNumbers!$F:$F,$B41,planningNumbers!$C:$C,P$4,planningNumbers!$A:$A,$B$2) -> 78531 | Q41: =SUMIFS(planningNumbers!$H:$H,planningNumbers!$F:$F,$B41,planningNumbers!$C:$C,Q$4,planningNumbers!$A:$A,$B$2) -> 197420 | R41: 983154 | S41: =ROUND(IF(DATE(YEAR(Forecast!$K$2),MONTH(Forecast!$K$2),1)=DATE(YEAR(B41),MONTH(B41),1),Forecast!$K$6/Forecast!$K$3,INDEX(Forecast!$D$2:$D$16,MATCH(DATE(YEAR(B41),MONTH(B41),1),Forecast!$A$2:$A$16,0))/DAY(EOMONTH(B41,0))),0) -> 759022 | T41: =IFERROR(IF((Forecast!$K$2+30)<B41,0,IF(INDEX('Truck list'!$G$6:$G$500,COUNTA('Truck list'!$G$6:$G$500))<B41,S41,IF(U41="",SUMIFS('Truck list'!H:H,'Truck list'!G:G,B41),U41))),0) -> 347776 | U41: 347776 | W41: 9641892 | X41: 2552992 | Y41: 2655744 | Z41: =IF(W41="",IF(J41=0,Z40+R41-IF(U41=0,T41,U41),Z40+J41-IF(U41=0,T41,U41)),SUM(W41:X41)) -> 12194884 | AB41: 269 | AC41: 230 | AD41: 0 | AE41: 290 | AF41: 118 | AG41: 313 | AH41: 1220
A42: Wednesday | B42: 2025-02-05 | D42: =SUMIFS(productionNumbers!$C:$C,productionNumbers!$E:$E,$B42,productionNumbers!$A:$A,D$4,productionNumbers!$B:$B,$B$2) -> 0 | E42: =SUMIFS(productionNumbers!$C:$C,productionNumbers!$E:$E,$B42,productionNumbers!$A:$A,E$4,productionNumbers!$B:$B,$B$2) -> 205504 | F42: =SUMIFS(productionNumbers!$C:$C,productionNumbers!$E:$E,$B42,productionNumbers!$A:$A,F$4,productionNumbers!$B:$B,$B$2) -> 0 | G42: =SUMIFS(productionNumbers!$C:$C,productionNumbers!$E:$E,$B42,productionNumbers!$A:$A,G$4,productionNumbers!$B:$B,$B$2) -> 268736 | H42: =SUMIFS(productionNumbers!$C:$C,productionNumbers!$E:$E,$B42,productionNumbers!$A:$A,H$4,productionNumbers!$B:$B,$B$2) -> 94848 | I42: =SUMIFS(productionNumbers!$C:$C,productionNumbers!$E:$E,$B42,productionNumbers!$A:$A,I$4,productionNumbers!$B:$B,$B$2) -> 245024 | J42: 814112 | L42: =SUMIFS(planningNumbers!$H:$H,planningNumbers!$F:$F,$B42,planningNumbers!$C:$C,L$4,planningNumbers!$A:$A,$B$2) -> 0 | M42: =SUMIFS(planningNumbers!$H:$H,planningNumbers!$F:$F,$B42,planningNumbers!$C:$C,M$4,planningNumbers!$A:$A,$B$2) -> 211431 | N42: =SUMIFS(planningNumbers!$H:$H,planningNumbers!$F:$F,$B42,planningNumbers!$C:$C,N$4,planningNumbers!$A:$A,$B$2) -> 0 | O42: =SUMIFS(planningNumbers!$H:$H,planningNumbers!$F:$F,$B42,planningNumbers!$C:$C,O$4,planningNumbers!$A:$A,$B$2) -> 258987 | P42: =SUMIFS(planningNumbers!$H:$H,planningNumbers!$F:$F,$B42,planningNumbers!$C:$C,P$4,planningNumbers!$A:$A,$B$2) -> 110867 | Q42: =SUMIFS(planningNumbers!$H:$H,planningNumbers!$F:$F,$B42,planningNumbers!$C:$C,Q$4,planningNumbers!$A:$A,$B$2) -> 225487 | R42: 806772 | S42: =ROUND(IF(DATE(YEAR(Forecast!$K$2),MONTH(Forecast!$K$2),1)=DATE(YEAR(B42),MONTH(B42),1),Forecast!$K$6/Forecast!$K$3,INDEX(Forecast!$D$2:$D$16,MATCH(DATE(YEAR(B42),MONTH(B42),1),Forecast!$A$2:$A$16,0))/DAY(EOMONTH(B42,0))),0) -> 759022 | T42: =IFERROR(IF((Forecast!$K$2+30)<B42,0,IF(INDEX('Truck list'!$G$6:$G$500,COUNTA('Truck list'!$G$6:$G$500))<B42,S42,IF(U42="",SUMIFS('Truck list'!H:H,'Truck list'!G:G,B42),U42))),0) -> 347776 | U42: 347776 | W42: 9720932 | X42: 3359200 | Y42: 2157792 | Z42: =IF(W42="",IF(J42=0,Z41+R42-IF(U42=0,T42,U42),Z41+J42-IF(U42=0,T42,U42)),SUM(W42:X42)) -> 13080132 | AB42: 283 | AC42: 230 | AD42: 0 | AE42: 288 | AF42: 117 | AG42: 312 | AH42: 1230 | AJ42: Line 1 1500 hr PM Blocked 02/05/2025-02/07/2025
A43: Thursday | B43: 2025-02-06 | D43: =SUMIFS(productionNumbers!$C:$C,productionNumbers!$E:$E,$B43,productionNumbers!$A:$A,D$4,productionNumbers!$B:$B,$B$2) -> 0 | E43: =SUMIFS(productionNumbers!$C:$C,productionNumbers!$E:$E,$B43,productionNumbers!$A:$A,E$4,productionNumbers!$B:$B,$B$2) -> 221312 | F43: =SUMIFS(productionNumbers!$C:$C,productionNumbers!$E:$E,$B43,productionNumbers!$A:$A,F$4,productionNumbers!$B:$B,$B$2) -> 0 | G43: =SUMIFS(productionNumbers!$C:$C,productionNumbers!$E:$E,$B43,productionNumbers!$A:$A,G$4,productionNumbers!$B:$B,$B$2) -> 284544 | H43: =SUMIFS(productionNumbers!$C:$C,productionNumbers!$E:$E,$B43,productionNumbers!$A:$A,H$4,productionNumbers!$B:$B,$B$2) -> 94848 | I43: =SUMIFS(productionNumbers!$C:$C,productionNumbers!$E:$E,$B43,productionNumbers!$A:$A,I$4,productionNumbers!$B:$B,$B$2) -> 252928 | J43: 853632 | L43: =SUMIFS(planningNumbers!$H:$H,planningNumbers!$F:$F,$B43,planningNumbers!$C:$C,L$4,planningNumbers!$A:$A,$B$2) -> 0 | M43: =SUMIFS(planningNumbers!$H:$H,planningNumbers!$F:$F,$B43,planningNumbers!$C:$C,M$4,planningNumbers!$A:$A,$B$2) -> 209137 | N43: =SUMIFS(planningNumbers!$H:$H,planningNumbers!$F:$F,$B43,planningNumbers!$C:$C,N$4,planningNumbers!$A:$A,$B$2) -> 0 | O43: =SUMIFS(planningNumbers!$H:$H,planningNumbers!$F:$F,$B43,planningNumbers!$C:$C,O$4,planningNumbers!$A:$A,$B$2) -> 266530 | P43: =SUMIFS(planningNumbers!$H:$H,planningNumbers!$F:$F,$B43,planningNumbers!$C:$C,P$4,planningNumbers!$A:$A,$B$2) -> 110867 | Q43: =SUMIFS(planningNumbers!$H:$H,planningNumbers!$F:$F,$B43,planningNumbers!$C:$C,Q$4,planningNumbers!$A:$A,$B$2) -> 244398 | R43: 830932 | S43: =ROUND(IF(DATE(YEAR(Forecast!$K$2),MONTH(Forecast!$K$2),1)=DATE(YEAR(B43),MONTH(B43),1),Forecast!$K$6/Forecast!$K$3,INDEX(Forecast!$D$2:$D$16,MATCH(DATE(YEAR(B43),MONTH(B43),1),Forecast!$A$2:$A$16,0))/DAY(EOMONTH(B43,0))),0) -> 759022 | T43: =IFERROR(IF((Forecast!$K$2+30)<B43,0,IF(INDEX('Truck list'!$G$6:$G$500,COUNTA('Truck list'!$G$6:$G$500))<B43,S43,IF(U43="",SUMIFS('Truck list'!H:H,'Truck list'!G:G,B43),U43))),0) -> 695552 | U43: 695552 | W43: 9262500 | X43: 3975712 | Y43: 2157792 | Z43: 13238212 | AB43: 234 | AC43: 230 | AD43: 0 | AE43: 279 | AF43: 117 | AG43: 312 | AH43: 1172
A44: Friday | B44: 2025-02-07 | D44: =SUMIFS(productionNumbers!$C:$C,productionNumbers!$E:$E,$B44,productionNumbers!$A:$A,D$4,productionNumbers!$B:$B,$B$2) -> 94848 | E44: =SUMIFS(productionNumbers!$C:$C,productionNumbers!$E:$E,$B44,productionNumbers!$A:$A,E$4,productionNumbers!$B:$B,$B$2) -> 181792 | F44: =SUMIFS(productionNumbers!$C:$C,productionNumbers!$E:$E,$B44,productionNumbers!$A:$A,F$4,productionNumbers!$B:$B,$B$2) -> 0 | G44: =SUMIFS(productionNumbers!$C:$C,productionNumbers!$E:$E,$B44,productionNumbers!$A:$A,G$4,productionNumbers!$B:$B,$B$2) -> 252928 | H44: =SUMIFS(productionNumbers!$C:$C,productionNumbers!$E:$E,$B44,productionNumbers!$A:$A,H$4,productionNumbers!$B:$B,$B$2) -> 118560 | I44: =SUMIFS(productionNumbers!$C:$C,productionNumbers!$E:$E,$B44,productionNumbers!$A:$A,I$4,productionNumbers!$B:$B,$B$2) -> 284544 | J44: 932672 | L44: =SUMIFS(planningNumbers!$H:$H,planningNumbers!$F:$F,$B44,planningNumbers!$C:$C,L$4,planningNumbers!$A:$A,$B$2) -> 200192 | M44: =SUMIFS(planningNumbers!$H:$H,planningNumbers!$F:$F,$B44,planningNumbers!$C:$C,M$4,planningNumbers!$A:$A,$B$2) -> 180708 | N44: =SUMIFS(planningNumbers!$H:$H,planningNumbers!$F:$F,$B44,planningNumbers!$C:$C,N$4,planningNumbers!$A:$A,$B$2) -> 0 | O44: =SUMIFS(planningNumbers!$H:$H,planningNumbers!$F:$F,$B44,planningNumbers!$C:$C,O$4,planningNumbers!$A:$A,$B$2) -> 267750 | P44: =SUMIFS(planningNumbers!$H:$H,planningNumbers!$F:$F,$B44,planningNumbers!$C:$C,P$4,planningNumbers!$A:$A,$B$2) -> 110867 | Q44: =SUMIFS(planningNumbers!$H:$H,planningNumbers!$F:$F,$B44,planningNumbers!$C:$C,Q$4,planningNumbers!$A:$A,$B$2) -> 259166 | R44: 1018683 | S44: =ROUND(IF(DATE(YEAR(Forecast!$K$2),MONTH(Forecast!$K$2),1)=DATE(YEAR(B44),MONTH(B44),1),Forecast!$K$6/Forecast!$K$3,INDEX(Forecast!$D$2:$D$16,MATCH(DATE(YEAR(B44),MONTH(B44),1),Forecast!$A$2:$A$16,0))/DAY(EOMONTH(B44,0))),0) -> 759022 | T44: =IFERROR(IF((Forecast!$K$2+30)<B44,0,IF(INDEX('Truck list'!$G$6:$G$500,COUNTA('Truck list'!$G$6:$G$500))<B44,S44,IF(U44="",SUMIFS('Truck list'!H:H,'Truck list'!G:G,B44),U44))),0) -> 173888 | U44: 173888 | W44: 9444292 | X44: 6370624 | Y44: 1517568 | Z44: 15814916 | AB44: 226 | AC44: 272 | AD44: 0 | AE44: 220 | AF44: 118 | AG44: 359 | AH44: 1195
A45: Saturday | B45: 2025-02-08 | D45: =SUMIFS(productionNumbers!$C:$C,productionNumbers!$E:$E,$B45,productionNumbers!$A:$A,D$4,productionNumbers!$B:$B,$B$2) -> 221312 | E45: =SUMIFS(productionNumbers!$C:$C,productionNumbers!$E:$E,$B45,productionNumbers!$A:$A,E$4,productionNumbers!$B:$B,$B$2) -> 213408 | F45: =SUMIFS(productionNumbers!$C:$C,productionNumbers!$E:$E,$B45,productionNumbers!$A:$A,F$4,productionNumbers!$B:$B,$B$2) -> 0 | G45: =SUMIFS(productionNumbers!$C:$C,productionNumbers!$E:$E,$B45,productionNumbers!$A:$A,G$4,productionNumbers!$B:$B,$B$2) -> 284544 | H45: =SUMIFS(productionNumbers!$C:$C,productionNumbers!$E:$E,$B45,productionNumbers!$A:$A,H$4,productionNumbers!$B:$B,$B$2) -> 110656 | I45: =SUMIFS(productionNumbers!$C:$C,productionNumbers!$E:$E,$B45,productionNumbers!$A:$A,I$4,productionNumbers!$B:$B,$B$2) -> 284544 | J45: 1114464 | L45: =SUMIFS(planningNumbers!$H:$H,planningNumbers!$F:$F,$B45,planningNumbers!$C:$C,L$4,planningNumbers!$A:$A,$B$2) -> 259200 | M45: =SUMIFS(planningNumbers!$H:$H,planningNumbers!$F:$F,$B45,planningNumbers!$C:$C,M$4,planningNumbers!$A:$A,$B$2) -> 207360 | N45: =SUMIFS(planningNumbers!$H:$H,planningNumbers!$F:$F,$B45,planningNumbers!$C:$C,N$4,planningNumbers!$A:$A,$B$2) -> 0 | O45: =SUMIFS(planningNumbers!$H:$H,planningNumbers!$F:$F,$B45,planningNumbers!$C:$C,O$4,planningNumbers!$A:$A,$B$2) -> 257251 | P45: =SUMIFS(planningNumbers!$H:$H,planningNumbers!$F:$F,$B45,planningNumbers!$C:$C,P$4,planningNumbers!$A:$A,$B$2) -> 110532 | Q45: =SUMIFS(planningNumbers!$H:$H,planningNumbers!$F:$F,$B45,planningNumbers!$C:$C,Q$4,planningNumbers!$A:$A,$B$2) -> 259185 | R45: 1093528 | S45: =ROUND(IF(DATE(YEAR(Forecast!$K$2),MONTH(Forecast!$K$2),1)=DATE(YEAR(B45),MONTH(B45),1),Forecast!$K$6/Forecast!$K$3,INDEX(Forecast!$D$2:$D$16,MATCH(DATE(YEAR(B45),MONTH(B45),1),Forecast!$A$2:$A$16,0))/DAY(EOMONTH(B45,0))),0) -> 759022 | T45: =IFERROR(IF((Forecast!$K$2+30)<B45,0,IF(INDEX('Truck list'!$G$6:$G$500,COUNTA('Truck list'!$G$6:$G$500))<B45,S45,IF(U45="",SUMIFS('Truck list'!H:H,'Truck list'!G:G,B45),U45))),0) -> 521664 | U45: 521664 | W45: 9444292 | X45: 6370624 | Y45: 1517568 | Z45: 15814916 | AB45: 226 | AC45: 272 | AD45: 0 | AE45: 220 | AF45: 118 | AG45: 359 | AH45: 1195
A46: Sunday | B46: 2025-02-09 | D46: =SUMIFS(productionNumbers!$C:$C,productionNumbers!$E:$E,$B46,productionNumbers!$A:$A,D$4,productionNumbers!$B:$B,$B$2) -> 197600 | E46: =SUMIFS(productionNumbers!$C:$C,productionNumbers!$E:$E,$B46,productionNumbers!$A:$A,E$4,productionNumbers!$B:$B,$B$2) -> 221312 | F46: =SUMIFS(productionNumbers!$C:$C,productionNumbers!$E:$E,$B46,productionNumbers!$A:$A,F$4,productionNumbers!$B:$B,$B$2) -> 0 | G46: =SUMIFS(productionNumbers!$C:$C,productionNumbers!$E:$E,$B46,productionNumbers!$A:$A,G$4,productionNumbers!$B:$B,$B$2) -> 245024 | H46: =SUMIFS(productionNumbers!$C:$C,productionNumbers!$E:$E,$B46,productionNumbers!$A:$A,H$4,productionNumbers!$B:$B,$B$2) -> 94848 | I46: =SUMIFS(productionNumbers!$C:$C,productionNumbers!$E:$E,$B46,productionNumbers!$A:$A,I$4,productionNumbers!$B:$B,$B$2) -> 268736 | J46: 1027520 | L46: =SUMIFS(planningNumbers!$H:$H,planningNumbers!$F:$F,$B46,planningNumbers!$C:$C,L$4,planningNumbers!$A:$A,$B$2) -> 203791 | M46: =SUMIFS(planningNumbers!$H:$H,planningNumbers!$F:$F,$B46,planningNumbers!$C:$C,M$4,planningNumbers!$A:$A,$B$2) -> 207791 | N46: =SUMIFS(planningNumbers!$H:$H,planningNumbers!$F:$F,$B46,planningNumbers!$C:$C,N$4,planningNumbers!$A:$A,$B$2) -> 0 | O46: =SUMIFS(planningNumbers!$H:$H,planningNumbers!$F:$F,$B46,planningNumbers!$C:$C,O$4,planningNumbers!$A:$A,$B$2) -> 256244 | P46: =SUMIFS(planningNumbers!$H:$H,planningNumbers!$F:$F,$B46,planningNumbers!$C:$C,P$4,planningNumbers!$A:$A,$B$2) -> 103178 | Q46: =SUMIFS(planningNumbers!$H:$H,planningNumbers!$F:$F,$B46,planningNumbers!$C:$C,Q$4,planningNumbers!$A:$A,$B$2) -> 259770 | R46: 1030774 | S46: =ROUND(IF(DATE(YEAR(Forecast!$K$2),MONTH(Forecast!$K$2),1)=DATE(YEAR(B46),MONTH(B46),1),Forecast!$K$6/Forecast!$K$3,INDEX(Forecast!$D$2:$D$16,MATCH(DATE(YEAR(B46),MONTH(B46),1),Forecast!$A$2:$A$16,0))/DAY(EOMONTH(B46,0))),0) -> 759022 | T46: =IFERROR(IF((Forecast!$K$2+30)<B46,0,IF(INDEX('Truck list'!$G$6:$G$500,COUNTA('Truck list'!$G$6:$G$500))<B46,S46,IF(U46="",SUMIFS('Truck list'!H:H,'Truck list'!G:G,B46),U46))),0) -> 521664 | U46: 521664 | W46: 9444292 | X46: 6370624 | Y46: 1517568 | Z46: 15814916 | AB46: 226 | AC46: 272 | AD46: 0 | AE46: 220 | AF46: 118 | AG46: 359 | AH46: 1195
A47: Monday | B47: 2025-02-10 | D47: =SUMIFS(productionNumbers!$C:$C,productionNumbers!$E:$E,$B47,productionNumbers!$A:$A,D$4,productionNumbers!$B:$B,$B$2) -> 268736 | E47: =SUMIFS(productionNumbers!$C:$C,productionNumbers!$E:$E,$B47,productionNumbers!$A:$A,E$4,productionNumbers!$B:$B,$B$2) -> 221312 | F47: =SUMIFS(productionNumbers!$C:$C,productionNumbers!$E:$E,$B47,productionNumbers!$A:$A,F$4,productionNumbers!$B:$B,$B$2) -> 0 | G47: =SUMIFS(productionNumbers!$C:$C,productionNumbers!$E:$E,$B47,productionNumbers!$A:$A,G$4,productionNumbers!$B:$B,$B$2) -> 221312 | H47: =SUMIFS(productionNumbers!$C:$C,productionNumbers!$E:$E,$B47,productionNumbers!$A:$A,H$4,productionNumbers!$B:$B,$B$2) -> 110656 | I47: =SUMIFS(productionNumbers!$C:$C,productionNumbers!$E:$E,$B47,productionNumbers!$A:$A,I$4,productionNumbers!$B:$B,$B$2) -> 213408 | J47: 1035424 | L47: =SUMIFS(planningNumbers!$H:$H,planningNumbers!$F:$F,$B47,planningNumbers!$C:$C,L$4,planningNumbers!$A:$A,$B$2) -> 186270 | M47: =SUMIFS(planningNumbers!$H:$H,planningNumbers!$F:$F,$B47,planningNumbers!$C:$C,M$4,planningNumbers!$A:$A,$B$2) -> 208571 | N47: =SUMIFS(planningNumbers!$H:$H,planningNumbers!$F:$F,$B47,planningNumbers!$C:$C,N$4,planningNumbers!$A:$A,$B$2) -> 0 | O47: =SUMIFS(planningNumbers!$H:$H,planningNumbers!$F:$F,$B47,planningNumbers!$C:$C,O$4,planningNumbers!$A:$A,$B$2) -> 216140 | P47: =SUMIFS(planningNumbers!$H:$H,planningNumbers!$F:$F,$B47,planningNumbers!$C:$C,P$4,planningNumbers!$A:$A,$B$2) -> 103603 | Q47: =SUMIFS(planningNumbers!$H:$H,planningNumbers!$F:$F,$B47,planningNumbers!$C:$C,Q$4,planningNumbers!$A:$A,$B$2) -> 261956 | R47: 976540 | S47: =ROUND(IF(DATE(YEAR(Forecast!$K$2),MONTH(Forecast!$K$2),1)=DATE(YEAR(B47),MONTH(B47),1),Forecast!$K$6/Forecast!$K$3,INDEX(Forecast!$D$2:$D$16,MATCH(DATE(YEAR(B47),MONTH(B47),1),Forecast!$A$2:$A$16,0))/DAY(EOMONTH(B47,0))),0) -> 759022 | T47: =IFERROR(IF((Forecast!$K$2+30)<B47,0,IF(INDEX('Truck list'!$G$6:$G$500,COUNTA('Truck list'!$G$6:$G$500))<B47,S47,IF(U47="",SUMIFS('Truck list'!H:H,'Truck list'!G:G,B47),U47))),0) -> 0 | U47: 0 | W47: 13745056 | X47: 2964000 | Y47: 1335282 | Z47: 16709056 | AB47: 291 | AC47: 372 | AD47: 0 | AE47: 423 | AF47: 184 | AG47: 469 | AH47: 1739 | AJ47: Line 3 1500 PM down stream only Blocked 02/10/2025-02/11/2025
A48: Tuesday | B48: 2025-02-11 | D48: =SUMIFS(productionNumbers!$C:$C,productionNumbers!$E:$E,$B48,productionNumbers!$A:$A,D$4,productionNumbers!$B:$B,$B$2) -> 245024 | E48: =SUMIFS(productionNumbers!$C:$C,productionNumbers!$E:$E,$B48,productionNumbers!$A:$A,E$4,productionNumbers!$B:$B,$B$2) -> 213408 | F48: =SUMIFS(productionNumbers!$C:$C,productionNumbers!$E:$E,$B48,productionNumbers!$A:$A,F$4,productionNumbers!$B:$B,$B$2) -> 0 | G48: =SUMIFS(productionNumbers!$C:$C,productionNumbers!$E:$E,$B48,productionNumbers!$A:$A,G$4,productionNumbers!$B:$B,$B$2) -> 276640 | H48: =SUMIFS(productionNumbers!$C:$C,productionNumbers!$E:$E,$B48,productionNumbers!$A:$A,H$4,productionNumbers!$B:$B,$B$2) -> 110656 | I48: =SUMIFS(productionNumbers!$C:$C,productionNumbers!$E:$E,$B48,productionNumbers!$A:$A,I$4,productionNumbers!$B:$B,$B$2) -> 0 | J48: 845728 | L48: =SUMIFS(planningNumbers!$H:$H,planningNumbers!$F:$F,$B48,planningNumbers!$C:$C,L$4,planningNumbers!$A:$A,$B$2) -> 186270 | M48: =SUMIFS(planningNumbers!$H:$H,planningNumbers!$F:$F,$B48,planningNumbers!$C:$C,M$4,planningNumbers!$A:$A,$B$2) -> 208571 | N48: =SUMIFS(planningNumbers!$H:$H,planningNumbers!$F:$F,$B48,planningNumbers!$C:$C,N$4,planningNumbers!$A:$A,$B$2) -> 0 | O48: =SUMIFS(planningNumbers!$H:$H,planningNumbers!$F:$F,$B48,planningNumbers!$C:$C,O$4,planningNumbers!$A:$A,$B$2) -> 231663 | P48: =SUMIFS(planningNumbers!$H:$H,planningNumbers!$F:$F,$B48,planningNumbers!$C:$C,P$4,planningNumbers!$A:$A,$B$2) -> 103603 | Q48: =SUMIFS(planningNumbers!$H:$H,planningNumbers!$F:$F,$B48,planningNumbers!$C:$C,Q$4,planningNumbers!$A:$A,$B$2) -> 0 | R48: 730107 | S48: =ROUND(IF(DATE(YEAR(Forecast!$K$2),MONTH(Forecast!$K$2),1)=DATE(YEAR(B48),MONTH(B48),1),Forecast!$K$6/Forecast!$K$3,INDEX(Forecast!$D$2:$D$16,MATCH(DATE(YEAR(B48),MONTH(B48),1),Forecast!$A$2:$A$16,0))/DAY(EOMONTH(B48,0))),0) -> 759022 | T48: =IFERROR(IF((Forecast!$K$2+30)<B48,0,IF(INDEX('Truck list'!$G$6:$G$500,COUNTA('Truck list'!$G$6:$G$500))<B48,S48,IF(U48="",SUMIFS('Truck list'!H:H,'Truck list'!G:G,B48),U48))),0) -> 695552 | U48: 695552 | W48: 13049504 | X48: 3809728 | Y48: 1335776 | Z48: 16859232 | AB48: 289 | AC48: 361 | AD48: 0 | AE48: 375 | AF48: 184 | AG48: 442 | AH48: 1651 | AJ48: Line 6 3000 hr PM Blocked 02/11/2025-02/13/2025
A49: Wednesday | B49: 2025-02-12 | D49: =SUMIFS(productionNumbers!$C:$C,productionNumbers!$E:$E,$B49,productionNumbers!$A:$A,D$4,productionNumbers!$B:$B,$B$2) -> 268736 | E49: =SUMIFS(productionNumbers!$C:$C,productionNumbers!$E:$E,$B49,productionNumbers!$A:$A,E$4,productionNumbers!$B:$B,$B$2) -> 213408 | F49: =SUMIFS(productionNumbers!$C:$C,productionNumbers!$E:$E,$B49,productionNumbers!$A:$A,F$4,productionNumbers!$B:$B,$B$2) -> 0 | G49: =SUMIFS(productionNumbers!$C:$C,productionNumbers!$E:$E,$B49,productionNumbers!$A:$A,G$4,productionNumbers!$B:$B,$B$2) -> 284544 | H49: =SUMIFS(productionNumbers!$C:$C,productionNumbers!$E:$E,$B49,productionNumbers!$A:$A,H$4,productionNumbers!$B:$B,$B$2) -> 102752 | I49: =SUMIFS(productionNumbers!$C:$C,productionNumbers!$E:$E,$B49,productionNumbers!$A:$A,I$4,productionNumbers!$B:$B,$B$2) -> 0 | J49: 869440 | L49: =SUMIFS(planningNumbers!$H:$H,planningNumbers!$F:$F,$B49,planningNumbers!$C:$C,L$4,planningNumbers!$A:$A,$B$2) -> 260533 | M49: =SUMIFS(planningNumbers!$H:$H,planningNumbers!$F:$F,$B49,planningNumbers!$C:$C,M$4,planningNumbers!$A:$A,$B$2) -> 205150 | N49: =SUMIFS(planningNumbers!$H:$H,planningNumbers!$F:$F,$B49,planningNumbers!$C:$C,N$4,planningNumbers!$A:$A,$B$2) -> 0 | O49: =SUMIFS(planningNumbers!$H:$H,planningNumbers!$F:$F,$B49,planningNumbers!$C:$C,O$4,planningNumbers!$A:$A,$B$2) -> 236523 | P49: =SUMIFS(planningNumbers!$H:$H,planningNumbers!$F:$F,$B49,planningNumbers!$C:$C,P$4,planningNumbers!$A:$A,$B$2) -> 108359 | Q49: =SUMIFS(planningNumbers!$H:$H,planningNumbers!$F:$F,$B49,planningNumbers!$C:$C,Q$4,planningNumbers!$A:$A,$B$2) -> 0 | R49: 810565 | S49: =ROUND(IF(DATE(YEAR(Forecast!$K$2),MONTH(Forecast!$K$2),1)=DATE(YEAR(B49),MONTH(B49),1),Forecast!$K$6/Forecast!$K$3,INDEX(Forecast!$D$2:$D$16,MATCH(DATE(YEAR(B49),MONTH(B49),1),Forecast!$A$2:$A$16,0))/DAY(EOMONTH(B49,0))),0) -> 759022 | T49: =IFERROR(IF((Forecast!$K$2+30)<B49,0,IF(INDEX('Truck list'!$G$6:$G$500,COUNTA('Truck list'!$G$6:$G$500))<B49,S49,IF(U49="",SUMIFS('Truck list'!H:H,'Truck list'!G:G,B49),U49))),0) -> 347776 | U49: 347776 | W49: 13863616 | X49: 2924480 | Y49: 1588704 | Z49: 16788096 | AB49: 354 | AC49: 402 | AD49: 0 | AE49: 350 | AF49: 182 | AG49: 466 | AH49: 1754
A50: Thursday | B50: 2025-02-13 | D50: =SUMIFS(productionNumbers!$C:$C,productionNumbers!$E:$E,$B50,productionNumbers!$A:$A,D$4,productionNumbers!$B:$B,$B$2) -> 229216 | E50: =SUMIFS(productionNumbers!$C:$C,productionNumbers!$E:$E,$B50,productionNumbers!$A:$A,E$4,productionNumbers!$B:$B,$B$2) -> 197600 | F50: =SUMIFS(productionNumbers!$C:$C,productionNumbers!$E:$E,$B50,productionNumbers!$A:$A,F$4,productionNumbers!$B:$B,$B$2) -> 0 | G50: =SUMIFS(productionNumbers!$C:$C,productionNumbers!$E:$E,$B50,productionNumbers!$A:$A,G$4,productionNumbers!$B:$B,$B$2) -> 237120 | H50: =SUMIFS(productionNumbers!$C:$C,productionNumbers!$E:$E,$B50,productionNumbers!$A:$A,H$4,productionNumbers!$B:$B,$B$2) -> 110656 | I50: =SUMIFS(productionNumbers!$C:$C,productionNumbers!$E:$E,$B50,productionNumbers!$A:$A,I$4,productionNumbers!$B:$B,$B$2) -> 150176 | J50: 924768 | L50: =SUMIFS(planningNumbers!$H:$H,planningNumbers!$F:$F,$B50,planningNumbers!$C:$C,L$4,planningNumbers!$A:$A,$B$2) -> 217299 | M50: =SUMIFS(planningNumbers!$H:$H,planningNumbers!$F:$F,$B50,planningNumbers!$C:$C,M$4,planningNumbers!$A:$A,$B$2) -> 204568 | N50: =SUMIFS(planningNumbers!$H:$H,planningNumbers!$F:$F,$B50,planningNumbers!$C:$C,N$4,planningNumbers!$A:$A,$B$2) -> 0 | O50: =SUMIFS(planningNumbers!$H:$H,planningNumbers!$F:$F,$B50,planningNumbers!$C:$C,O$4,planningNumbers!$A:$A,$B$2) -> 267591 | P50: =SUMIFS(planningNumbers!$H:$H,planningNumbers!$F:$F,$B50,planningNumbers!$C:$C,P$4,planningNumbers!$A:$A,$B$2) -> 117364 | Q50: =SUMIFS(planningNumbers!$H:$H,planningNumbers!$F:$F,$B50,planningNumbers!$C:$C,Q$4,planningNumbers!$A:$A,$B$2) -> 194959 | R50: 1001781 | S50: =ROUND(IF(DATE(YEAR(Forecast!$K$2),MONTH(Forecast!$K$2),1)=DATE(YEAR(B50),MONTH(B50),1),Forecast!$K$6/Forecast!$K$3,INDEX(Forecast!$D$2:$D$16,MATCH(DATE(YEAR(B50),MONTH(B50),1),Forecast!$A$2:$A$16,0))/DAY(EOMONTH(B50,0))),0) -> 759022 | T50: =IFERROR(IF((Forecast!$K$2+30)<B50,0,IF(INDEX('Truck list'!$G$6:$G$500,COUNTA('Truck list'!$G$6:$G$500))<B50,S50,IF(U50="",SUMIFS('Truck list'!H:H,'Truck list'!G:G,B50),U50))),0) -> 1738880 | U50: 1738880 | W50: 12448800 | X50: 3857152 | Y50: 1596608 | Z50: 16305952 | AB50: 327 | AC50: 378 | AD50: 0 | AE50: 320 | AF50: 130 | AG50: 420 | AH50: 1575
A51: Friday | B51: 2025-02-14 | D51: =SUMIFS(productionNumbers!$C:$C,productionNumbers!$E:$E,$B51,productionNumbers!$A:$A,D$4,productionNumbers!$B:$B,$B$2) -> 268736 | E51: =SUMIFS(productionNumbers!$C:$C,productionNumbers!$E:$E,$B51,productionNumbers!$A:$A,E$4,productionNumbers!$B:$B,$B$2) -> 197600 | F51: =SUMIFS(productionNumbers!$C:$C,productionNumbers!$E:$E,$B51,productionNumbers!$A:$A,F$4,productionNumbers!$B:$B,$B$2) -> 0 | G51: =SUMIFS(productionNumbers!$C:$C,productionNumbers!$E:$E,$B51,productionNumbers!$A:$A,G$4,productionNumbers!$B:$B,$B$2) -> 268736 | H51: =SUMIFS(productionNumbers!$C:$C,productionNumbers!$E:$E,$B51,productionNumbers!$A:$A,H$4,productionNumbers!$B:$B,$B$2) -> 102752 | I51: =SUMIFS(productionNumbers!$C:$C,productionNumbers!$E:$E,$B51,productionNumbers!$A:$A,I$4,productionNumbers!$B:$B,$B$2) -> 260832 | J51: 1098656 | L51: =SUMIFS(planningNumbers!$H:$H,planningNumbers!$F:$F,$B51,planningNumbers!$C:$C,L$4,planningNumbers!$A:$A,$B$2) -> 248342 | M51: =SUMIFS(planningNumbers!$H:$H,planningNumbers!$F:$F,$B51,planningNumbers!$C:$C,M$4,planningNumbers!$A:$A,$B$2) -> 181440 | N51: =SUMIFS(planningNumbers!$H:$H,planningNumbers!$F:$F,$B51,planningNumbers!$C:$C,N$4,planningNumbers!$A:$A,$B$2) -> 0 | O51: =SUMIFS(planningNumbers!$H:$H,planningNumbers!$F:$F,$B51,planningNumbers!$C:$C,O$4,planningNumbers!$A:$A,$B$2) -> 266032 | P51: =SUMIFS(planningNumbers!$H:$H,planningNumbers!$F:$F,$B51,planningNumbers!$C:$C,P$4,planningNumbers!$A:$A,$B$2) -> 108767 | Q51: =SUMIFS(planningNumbers!$H:$H,planningNumbers!$F:$F,$B51,planningNumbers!$C:$C,Q$4,planningNumbers!$A:$A,$B$2) -> 233951 | R51: 1038532 | S51: =ROUND(IF(DATE(YEAR(Forecast!$K$2),MONTH(Forecast!$K$2),1)=DATE(YEAR(B51),MONTH(B51),1),Forecast!$K$6/Forecast!$K$3,INDEX(Forecast!$D$2:$D$16,MATCH(DATE(YEAR(B51),MONTH(B51),1),Forecast!$A$2:$A$16,0))/DAY(EOMONTH(B51,0))),0) -> 759022 | T51: =IFERROR(IF((Forecast!$K$2+30)<B51,0,IF(INDEX('Truck list'!$G$6:$G$500,COUNTA('Truck list'!$G$6:$G$500))<B51,S51,IF(U51="",SUMIFS('Truck list'!H:H,'Truck list'!G:G,B51),U51))),0) -> 1564992 | U51: 1564992 | W51: 10804768 | X51: 5414240 | Y51: 1462240 | Z51: 16219008 | AB51: 324 | AC51: 383 | AD51: 0 | AE51: 261 | AF51: 109 | AG51: 290 | AH51: 1367
A52: Saturday | B52: 2025-02-15 | D52: =SUMIFS(productionNumbers!$C:$C,productionNumbers!$E:$E,$B52,productionNumbers!$A:$A,D$4,productionNumbers!$B:$B,$B$2) -> 260832 | E52: =SUMIFS(productionNumbers!$C:$C,productionNumbers!$E:$E,$B52,productionNumbers!$A:$A,E$4,productionNumbers!$B:$B,$B$2) -> 237120 | F52: =SUMIFS(productionNumbers!$C:$C,productionNumbers!$E:$E,$B52,productionNumbers!$A:$A,F$4,productionNumbers!$B:$B,$B$2) -> 0 | G52: =SUMIFS(productionNumbers!$C:$C,productionNumbers!$E:$E,$B52,productionNumbers!$A:$A,G$4,productionNumbers!$B:$B,$B$2) -> 237120 | H52: =SUMIFS(productionNumbers!$C:$C,productionNumbers!$E:$E,$B52,productionNumbers!$A:$A,H$4,productionNumbers!$B:$B,$B$2) -> 110656 | I52: =SUMIFS(productionNumbers!$C:$C,productionNumbers!$E:$E,$B52,productionNumbers!$A:$A,I$4,productionNumbers!$B:$B,$B$2) -> 245024 | J52: 1090752 | L52: =SUMIFS(planningNumbers!$H:$H,planningNumbers!$F:$F,$B52,planningNumbers!$C:$C,L$4,planningNumbers!$A:$A,$B$2) -> 283001 | M52: =SUMIFS(planningNumbers!$H:$H,planningNumbers!$F:$F,$B52,planningNumbers!$C:$C,M$4,planningNumbers!$A:$A,$B$2) -> 207360 | N52: =SUMIFS(planningNumbers!$H:$H,planningNumbers!$F:$F,$B52,planningNumbers!$C:$C,N$4,planningNumbers!$A:$A,$B$2) -> 0 | O52: =SUMIFS(planningNumbers!$H:$H,planningNumbers!$F:$F,$B52,planningNumbers!$C:$C,O$4,planningNumbers!$A:$A,$B$2) -> 259200 | P52: =SUMIFS(planningNumbers!$H:$H,planningNumbers!$F:$F,$B52,planningNumbers!$C:$C,P$4,planningNumbers!$A:$A,$B$2) -> 108767 | Q52: =SUMIFS(planningNumbers!$H:$H,planningNumbers!$F:$F,$B52,planningNumbers!$C:$C,Q$4,planningNumbers!$A:$A,$B$2) -> 247448 | R52: 1105776 | S52: =ROUND(IF(DATE(YEAR(Forecast!$K$2),MONTH(Forecast!$K$2),1)=DATE(YEAR(B52),MONTH(B52),1),Forecast!$K$6/Forecast!$K$3,INDEX(Forecast!$D$2:$D$16,MATCH(DATE(YEAR(B52),MONTH(B52),1),Forecast!$A$2:$A$16,0))/DAY(EOMONTH(B52,0))),0) -> 759022 | T52: =IFERROR(IF((Forecast!$K$2+30)<B52,0,IF(INDEX('Truck list'!$G$6:$G$500,COUNTA('Truck list'!$G$6:$G$500))<B52,S52,IF(U52="",SUMIFS('Truck list'!H:H,'Truck list'!G:G,B52),U52))),0) -> 1256736 | U52: 1256736 | W52: 10804768 | X52: 5414240 | Y52: 1462240 | Z52: 16219008 | AB52: 324 | AC52: 383 | AD52: 0 | AE52: 261 | AF52: 109 | AG52: 290 | AH52: 1367
A53: Sunday | B53: 2025-02-16 | D53: =SUMIFS(productionNumbers!$C:$C,productionNumbers!$E:$E,$B53,productionNumbers!$A:$A,D$4,productionNumbers!$B:$B,$B$2) -> 276640 | E53: =SUMIFS(productionNumbers!$C:$C,productionNumbers!$E:$E,$B53,productionNumbers!$A:$A,E$4,productionNumbers!$B:$B,$B$2) -> 229216 | F53: =SUMIFS(productionNumbers!$C:$C,productionNumbers!$E:$E,$B53,productionNumbers!$A:$A,F$4,productionNumbers!$B:$B,$B$2) -> 0 | G53: =SUMIFS(productionNumbers!$C:$C,productionNumbers!$E:$E,$B53,productionNumbers!$A:$A,G$4,productionNumbers!$B:$B,$B$2) -> 260832 | H53: =SUMIFS(productionNumbers!$C:$C,productionNumbers!$E:$E,$B53,productionNumbers!$A:$A,H$4,productionNumbers!$B:$B,$B$2) -> 110656 | I53: =SUMIFS(productionNumbers!$C:$C,productionNumbers!$E:$E,$B53,productionNumbers!$A:$A,I$4,productionNumbers!$B:$B,$B$2) -> 260832 | J53: 1138176 | L53: =SUMIFS(planningNumbers!$H:$H,planningNumbers!$F:$F,$B53,planningNumbers!$C:$C,L$4,planningNumbers!$A:$A,$B$2) -> 293097 | M53: =SUMIFS(planningNumbers!$H:$H,planningNumbers!$F:$F,$B53,planningNumbers!$C:$C,M$4,planningNumbers!$A:$A,$B$2) -> 256425 | N53: =SUMIFS(planningNumbers!$H:$H,planningNumbers!$F:$F,$B53,planningNumbers!$C:$C,N$4,planningNumbers!$A:$A,$B$2) -> 0 | O53: =SUMIFS(planningNumbers!$H:$H,planningNumbers!$F:$F,$B53,planningNumbers!$C:$C,O$4,planningNumbers!$A:$A,$B$2) -> 259200 | P53: =SUMIFS(planningNumbers!$H:$H,planningNumbers!$F:$F,$B53,planningNumbers!$C:$C,P$4,planningNumbers!$A:$A,$B$2) -> 105988 | Q53: =SUMIFS(planningNumbers!$H:$H,planningNumbers!$F:$F,$B53,planningNumbers!$C:$C,Q$4,planningNumbers!$A:$A,$B$2) -> 256315 | R53: 1171025 | S53: =ROUND(IF(DATE(YEAR(Forecast!$K$2),MONTH(Forecast!$K$2),1)=DATE(YEAR(B53),MONTH(B53),1),Forecast!$K$6/Forecast!$K$3,INDEX(Forecast!$D$2:$D$16,MATCH(DATE(YEAR(B53),MONTH(B53),1),Forecast!$A$2:$A$16,0))/DAY(EOMONTH(B53,0))),0) -> 759022 | T53: =IFERROR(IF((Forecast!$K$2+30)<B53,0,IF(INDEX('Truck list'!$G$6:$G$500,COUNTA('Truck list'!$G$6:$G$500))<B53,S53,IF(U53="",SUMIFS('Truck list'!H:H,'Truck list'!G:G,B53),U53))),0) -> 869440 | U53: 869440 | W53: 10804768 | X53: 5414240 | Y53: 1462240 | Z53: 16219008 | AB53: 324 | AC53: 383 | AD53: 0 | AE53: 261 | AF53: 109 | AG53: 290 | AH53: 1367
A54: Monday | B54: 2025-02-17 | D54: =SUMIFS(productionNumbers!$C:$C,productionNumbers!$E:$E,$B54,productionNumbers!$A:$A,D$4,productionNumbers!$B:$B,$B$2) -> 268736 | E54: =SUMIFS(productionNumbers!$C:$C,productionNumbers!$E:$E,$B54,productionNumbers!$A:$A,E$4,productionNumbers!$B:$B,$B$2) -> 237120 | F54: =SUMIFS(productionNumbers!$C:$C,productionNumbers!$E:$E,$B54,productionNumbers!$A:$A,F$4,productionNumbers!$B:$B,$B$2) -> 0 | G54: =SUMIFS(productionNumbers!$C:$C,productionNumbers!$E:$E,$B54,productionNumbers!$A:$A,G$4,productionNumbers!$B:$B,$B$2) -> 237120 | H54: =SUMIFS(productionNumbers!$C:$C,productionNumbers!$E:$E,$B54,productionNumbers!$A:$A,H$4,productionNumbers!$B:$B,$B$2) -> 110656 | I54: =SUMIFS(productionNumbers!$C:$C,productionNumbers!$E:$E,$B54,productionNumbers!$A:$A,I$4,productionNumbers!$B:$B,$B$2) -> 252928 | J54: 1106560 | L54: =SUMIFS(planningNumbers!$H:$H,planningNumbers!$F:$F,$B54,planningNumbers!$C:$C,L$4,planningNumbers!$A:$A,$B$2) -> 236224 | M54: =SUMIFS(planningNumbers!$H:$H,planningNumbers!$F:$F,$B54,planningNumbers!$C:$C,M$4,planningNumbers!$A:$A,$B$2) -> 343934 | N54: =SUMIFS(planningNumbers!$H:$H,planningNumbers!$F:$F,$B54,planningNumbers!$C:$C,N$4,planningNumbers!$A:$A,$B$2) -> 0 | O54: =SUMIFS(planningNumbers!$H:$H,planningNumbers!$F:$F,$B54,planningNumbers!$C:$C,O$4,planningNumbers!$A:$A,$B$2) -> 255459 | P54: =SUMIFS(planningNumbers!$H:$H,planningNumbers!$F:$F,$B54,planningNumbers!$C:$C,P$4,planningNumbers!$A:$A,$B$2) -> 103388 | Q54: =SUMIFS(planningNumbers!$H:$H,planningNumbers!$F:$F,$B54,planningNumbers!$C:$C,Q$4,planningNumbers!$A:$A,$B$2) -> 205618 | R54: 1144623 | S54: =ROUND(IF(DATE(YEAR(Forecast!$K$2),MONTH(Forecast!$K$2),1)=DATE(YEAR(B54),MONTH(B54),1),Forecast!$K$6/Forecast!$K$3,INDEX(Forecast!$D$2:$D$16,MATCH(DATE(YEAR(B54),MONTH(B54),1),Forecast!$A$2:$A$16,0))/DAY(EOMONTH(B54,0))),0) -> 759022 | T54: =IFERROR(IF((Forecast!$K$2+30)<B54,0,IF(INDEX('Truck list'!$G$6:$G$500,COUNTA('Truck list'!$G$6:$G$500))<B54,S54,IF(U54="",SUMIFS('Truck list'!H:H,'Truck list'!G:G,B54),U54))),0) -> 521664 | U54: 521664 | W54: 14472224 | X54: 2252640 | Y54: 1304160 | Z54: 16724864 | AB54: 420 | AC54: 444 | AD54: 0 | AE54: 363 | AF54: 195 | AG54: 409 | AH54: 1831
A55: Tuesday | B55: 2025-02-18 | D55: =SUMIFS(productionNumbers!$C:$C,productionNumbers!$E:$E,$B55,productionNumbers!$A:$A,D$4,productionNumbers!$B:$B,$B$2) -> 213408 | E55: =SUMIFS(productionNumbers!$C:$C,productionNumbers!$E:$E,$B55,productionNumbers!$A:$A,E$4,productionNumbers!$B:$B,$B$2) -> 197600 | F55: =SUMIFS(productionNumbers!$C:$C,productionNumbers!$E:$E,$B55,productionNumbers!$A:$A,F$4,productionNumbers!$B:$B,$B$2) -> 0 | G55: =SUMIFS(productionNumbers!$C:$C,productionNumbers!$E:$E,$B55,productionNumbers!$A:$A,G$4,productionNumbers!$B:$B,$B$2) -> 0 | H55: =SUMIFS(productionNumbers!$C:$C,productionNumbers!$E:$E,$B55,productionNumbers!$A:$A,H$4,productionNumbers!$B:$B,$B$2) -> 94848 | I55: =SUMIFS(productionNumbers!$C:$C,productionNumbers!$E:$E,$B55,productionNumbers!$A:$A,I$4,productionNumbers!$B:$B,$B$2) -> 260832 | J55: 766688 | L55: =SUMIFS(planningNumbers!$H:$H,planningNumbers!$F:$F,$B55,planningNumbers!$C:$C,L$4,planningNumbers!$A:$A,$B$2) -> 235915 | M55: =SUMIFS(planningNumbers!$H:$H,planningNumbers!$F:$F,$B55,planningNumbers!$C:$C,M$4,planningNumbers!$A:$A,$B$2) -> 212249 | N55: =SUMIFS(planningNumbers!$H:$H,planningNumbers!$F:$F,$B55,planningNumbers!$C:$C,N$4,planningNumbers!$A:$A,$B$2) -> 0 | O55: =SUMIFS(planningNumbers!$H:$H,planningNumbers!$F:$F,$B55,planningNumbers!$C:$C,O$4,planningNumbers!$A:$A,$B$2) -> 0 | P55: =SUMIFS(planningNumbers!$H:$H,planningNumbers!$F:$F,$B55,planningNumbers!$C:$C,P$4,planningNumbers!$A:$A,$B$2) -> 103388 | Q55: =SUMIFS(planningNumbers!$H:$H,planningNumbers!$F:$F,$B55,planningNumbers!$C:$C,Q$4,planningNumbers!$A:$A,$B$2) -> 204481 | R55: 756033 | S55: =ROUND(IF(DATE(YEAR(Forecast!$K$2),MONTH(Forecast!$K$2),1)=DATE(YEAR(B55),MONTH(B55),1),Forecast!$K$6/Forecast!$K$3,INDEX(Forecast!$D$2:$D$16,MATCH(DATE(YEAR(B55),MONTH(B55),1),Forecast!$A$2:$A$16,0))/DAY(EOMONTH(B55,0))),0) -> 759022 | T55: =IFERROR(IF((Forecast!$K$2+30)<B55,0,IF(INDEX('Truck list'!$G$6:$G$500,COUNTA('Truck list'!$G$6:$G$500))<B55,S55,IF(U55="",SUMIFS('Truck list'!H:H,'Truck list'!G:G,B55),U55))),0) -> 2086656 | U55: 2086656 | W55: 12938848 | X55: 3027232 | Y55: 1272544 | Z55: 15966080 | AB55: 359 | AC55: 414 | AD55: 0 | AE55: 269 | AF55: 192 | AG55: 403 | AH55: 1637
A56: Wednesday | B56: 2025-02-19 | D56: =SUMIFS(productionNumbers!$C:$C,productionNumbers!$E:$E,$B56,productionNumbers!$A:$A,D$4,productionNumbers!$B:$B,$B$2) -> 213408 | E56: =SUMIFS(productionNumbers!$C:$C,productionNumbers!$E:$E,$B56,productionNumbers!$A:$A,E$4,productionNumbers!$B:$B,$B$2) -> 134368 | F56: =SUMIFS(productionNumbers!$C:$C,productionNumbers!$E:$E,$B56,productionNumbers!$A:$A,F$4,productionNumbers!$B:$B,$B$2) -> 0 | G56: =SUMIFS(productionNumbers!$C:$C,productionNumbers!$E:$E,$B56,productionNumbers!$A:$A,G$4,productionNumbers!$B:$B,$B$2) -> 0 | H56: =SUMIFS(productionNumbers!$C:$C,productionNumbers!$E:$E,$B56,productionNumbers!$A:$A,H$4,productionNumbers!$B:$B,$B$2) -> 110656 | I56: =SUMIFS(productionNumbers!$C:$C,productionNumbers!$E:$E,$B56,productionNumbers!$A:$A,I$4,productionNumbers!$B:$B,$B$2) -> 126464 | J56: 584896 | L56: =SUMIFS(planningNumbers!$H:$H,planningNumbers!$F:$F,$B56,planningNumbers!$C:$C,L$4,planningNumbers!$A:$A,$B$2) -> 252481 | M56: =SUMIFS(planningNumbers!$H:$H,planningNumbers!$F:$F,$B56,planningNumbers!$C:$C,M$4,planningNumbers!$A:$A,$B$2) -> 160210 | N56: =SUMIFS(planningNumbers!$H:$H,planningNumbers!$F:$F,$B56,planningNumbers!$C:$C,N$4,planningNumbers!$A:$A,$B$2) -> 0 | O56: =SUMIFS(planningNumbers!$H:$H,planningNumbers!$F:$F,$B56,planningNumbers!$C:$C,O$4,planningNumbers!$A:$A,$B$2) -> 0 | P56: =SUMIFS(planningNumbers!$H:$H,planningNumbers!$F:$F,$B56,planningNumbers!$C:$C,P$4,planningNumbers!$A:$A,$B$2) -> 103388 | Q56: =SUMIFS(planningNumbers!$H:$H,planningNumbers!$F:$F,$B56,planningNumbers!$C:$C,Q$4,planningNumbers!$A:$A,$B$2) -> 204481 | R56: 720560 | S56: =ROUND(IF(DATE(YEAR(Forecast!$K$2),MONTH(Forecast!$K$2),1)=DATE(YEAR(B56),MONTH(B56),1),Forecast!$K$6/Forecast!$K$3,INDEX(Forecast!$D$2:$D$16,MATCH(DATE(YEAR(B56),MONTH(B56),1),Forecast!$A$2:$A$16,0))/DAY(EOMONTH(B56,0))),0) -> 759022 | T56: =IFERROR(IF((Forecast!$K$2+30)<B56,0,IF(INDEX('Truck list'!$G$6:$G$500,COUNTA('Truck list'!$G$6:$G$500))<B56,S56,IF(U56="",SUMIFS('Truck list'!H:H,'Truck list'!G:G,B56),U56))),0) -> 1391104 | U56: 1391104 | W56: 11903424 | X56: 3272256 | Y56: 1225120 | Z56: 15175680 | AB56: 299 | AC56: 374 | AD56: 0 | AE56: 239 | AF56: 187 | AG56: 407 | AH56: 1506 | AJ56: Line 4 1500 hr PM Blocked 02/19/2025-02/21/2025
A57: Thursday | B57: 2025-02-20 | D57: =SUMIFS(productionNumbers!$C:$C,productionNumbers!$E:$E,$B57,productionNumbers!$A:$A,D$4,productionNumbers!$B:$B,$B$2) -> 260832 | E57: =SUMIFS(productionNumbers!$C:$C,productionNumbers!$E:$E,$B57,productionNumbers!$A:$A,E$4,productionNumbers!$B:$B,$B$2) -> 213408 | F57: =SUMIFS(productionNumbers!$C:$C,productionNumbers!$E:$E,$B57,productionNumbers!$A:$A,F$4,productionNumbers!$B:$B,$B$2) -> 0 | G57: =SUMIFS(productionNumbers!$C:$C,productionNumbers!$E:$E,$B57,productionNumbers!$A:$A,G$4,productionNumbers!$B:$B,$B$2) -> 0 | H57: =SUMIFS(productionNumbers!$C:$C,productionNumbers!$E:$E,$B57,productionNumbers!$A:$A,H$4,productionNumbers!$B:$B,$B$2) -> 86944 | I57: =SUMIFS(productionNumbers!$C:$C,productionNumbers!$E:$E,$B57,productionNumbers!$A:$A,I$4,productionNumbers!$B:$B,$B$2) -> 237120 | J57: 798304 | L57: =SUMIFS(planningNumbers!$H:$H,planningNumbers!$F:$F,$B57,planningNumbers!$C:$C,L$4,planningNumbers!$A:$A,$B$2) -> 257064 | M57: =SUMIFS(planningNumbers!$H:$H,planningNumbers!$F:$F,$B57,planningNumbers!$C:$C,M$4,planningNumbers!$A:$A,$B$2) -> 183235 | N57: =SUMIFS(planningNumbers!$H:$H,planningNumbers!$F:$F,$B57,planningNumbers!$C:$C,N$4,planningNumbers!$A:$A,$B$2) -> 0 | O57: =SUMIFS(planningNumbers!$H:$H,planningNumbers!$F:$F,$B57,planningNumbers!$C:$C,O$4,planningNumbers!$A:$A,$B$2) -> 216000 | P57: =SUMIFS(planningNumbers!$H:$H,planningNumbers!$F:$F,$B57,planningNumbers!$C:$C,P$4,planningNumbers!$A:$A,$B$2) -> 86213 | Q57: =SUMIFS(planningNumbers!$H:$H,planningNumbers!$F:$F,$B57,planningNumbers!$C:$C,Q$4,planningNumbers!$A:$A,$B$2) -> 239314 | R57: 981826 | S57: =ROUND(IF(DATE(YEAR(Forecast!$K$2),MONTH(Forecast!$K$2),1)=DATE(YEAR(B57),MONTH(B57),1),Forecast!$K$6/Forecast!$K$3,INDEX(Forecast!$D$2:$D$16,MATCH(DATE(YEAR(B57),MONTH(B57),1),Forecast!$A$2:$A$16,0))/DAY(EOMONTH(B57,0))),0) -> 759022 | T57: =IFERROR(IF((Forecast!$K$2+30)<B57,0,IF(INDEX('Truck list'!$G$6:$G$500,COUNTA('Truck list'!$G$6:$G$500))<B57,S57,IF(U57="",SUMIFS('Truck list'!H:H,'Truck list'!G:G,B57),U57))),0) -> 1217216 | U57: 1217216 | W57: 10954944 | X57: 3809728 | Y57: 1225120 | Z57: 14764672 | AB57: 268 | AC57: 370 | AD57: 0 | AE57: 230 | AF57: 143 | AG57: 375 | AH57: 1386
A58: Friday | B58: 2025-02-21 | D58: =SUMIFS(productionNumbers!$C:$C,productionNumbers!$E:$E,$B58,productionNumbers!$A:$A,D$4,productionNumbers!$B:$B,$B$2) -> 229216 | E58: =SUMIFS(productionNumbers!$C:$C,productionNumbers!$E:$E,$B58,productionNumbers!$A:$A,E$4,productionNumbers!$B:$B,$B$2) -> 197600 | F58: =SUMIFS(productionNumbers!$C:$C,productionNumbers!$E:$E,$B58,productionNumbers!$A:$A,F$4,productionNumbers!$B:$B,$B$2) -> 0 | G58: =SUMIFS(productionNumbers!$C:$C,productionNumbers!$E:$E,$B58,productionNumbers!$A:$A,G$4,productionNumbers!$B:$B,$B$2) -> 118560 | H58: =SUMIFS(productionNumbers!$C:$C,productionNumbers!$E:$E,$B58,productionNumbers!$A:$A,H$4,productionNumbers!$B:$B,$B$2) -> 110656 | I58: =SUMIFS(productionNumbers!$C:$C,productionNumbers!$E:$E,$B58,productionNumbers!$A:$A,I$4,productionNumbers!$B:$B,$B$2) -> 260832 | J58: 916864 | L58: =SUMIFS(planningNumbers!$H:$H,planningNumbers!$F:$F,$B58,planningNumbers!$C:$C,L$4,planningNumbers!$A:$A,$B$2) -> 226800 | M58: =SUMIFS(planningNumbers!$H:$H,planningNumbers!$F:$F,$B58,planningNumbers!$C:$C,M$4,planningNumbers!$A:$A,$B$2) -> 183983 | N58: =SUMIFS(planningNumbers!$H:$H,planningNumbers!$F:$F,$B58,planningNumbers!$C:$C,N$4,planningNumbers!$A:$A,$B$2) -> 0 | O58: =SUMIFS(planningNumbers!$H:$H,planningNumbers!$F:$F,$B58,planningNumbers!$C:$C,O$4,planningNumbers!$A:$A,$B$2) -> 259200 | P58: =SUMIFS(planningNumbers!$H:$H,planningNumbers!$F:$F,$B58,planningNumbers!$C:$C,P$4,planningNumbers!$A:$A,$B$2) -> 98529 | Q58: =SUMIFS(planningNumbers!$H:$H,planningNumbers!$F:$F,$B58,planningNumbers!$C:$C,Q$4,planningNumbers!$A:$A,$B$2) -> 246150 | R58: 1014662 | S58: =ROUND(IF(DATE(YEAR(Forecast!$K$2),MONTH(Forecast!$K$2),1)=DATE(YEAR(B58),MONTH(B58),1),Forecast!$K$6/Forecast!$K$3,INDEX(Forecast!$D$2:$D$16,MATCH(DATE(YEAR(B58),MONTH(B58),1),Forecast!$A$2:$A$16,0))/DAY(EOMONTH(B58,0))),0) -> 759022 | T58: =IFERROR(IF((Forecast!$K$2+30)<B58,0,IF(INDEX('Truck list'!$G$6:$G$500,COUNTA('Truck list'!$G$6:$G$500))<B58,S58,IF(U58="",SUMIFS('Truck list'!H:H,'Truck list'!G:G,B58),U58))),0) -> 869440 | U58: 869440 | W58: 9500608 | X58: 6149312 | Y58: 1153984 | Z58: 15649920 | AB58: 298 | AC58: 276 | AD58: 0 | AE58: 189 | AF58: 120 | AG58: 319 | AH58: 1202
A59: Saturday | B59: 2025-02-22 | D59: =SUMIFS(productionNumbers!$C:$C,productionNumbers!$E:$E,$B59,productionNumbers!$A:$A,D$4,productionNumbers!$B:$B,$B$2) -> 292448 | E59: =SUMIFS(productionNumbers!$C:$C,productionNumbers!$E:$E,$B59,productionNumbers!$A:$A,E$4,productionNumbers!$B:$B,$B$2) -> 213408 | F59: =SUMIFS(productionNumbers!$C:$C,productionNumbers!$E:$E,$B59,productionNumbers!$A:$A,F$4,productionNumbers!$B:$B,$B$2) -> 0 | G59: =SUMIFS(productionNumbers!$C:$C,productionNumbers!$E:$E,$B59,productionNumbers!$A:$A,G$4,productionNumbers!$B:$B,$B$2) -> 229216 | H59: =SUMIFS(productionNumbers!$C:$C,productionNumbers!$E:$E,$B59,productionNumbers!$A:$A,H$4,productionNumbers!$B:$B,$B$2) -> 102752 | I59: =SUMIFS(productionNumbers!$C:$C,productionNumbers!$E:$E,$B59,productionNumbers!$A:$A,I$4,productionNumbers!$B:$B,$B$2) -> 245024 | J59: 1082848 | L59: =SUMIFS(planningNumbers!$H:$H,planningNumbers!$F:$F,$B59,planningNumbers!$C:$C,L$4,planningNumbers!$A:$A,$B$2) -> 259200 | M59: =SUMIFS(planningNumbers!$H:$H,planningNumbers!$F:$F,$B59,planningNumbers!$C:$C,M$4,planningNumbers!$A:$A,$B$2) -> 210526 | N59: =SUMIFS(planningNumbers!$H:$H,planningNumbers!$F:$F,$B59,planningNumbers!$C:$C,N$4,planningNumbers!$A:$A,$B$2) -> 0 | O59: =SUMIFS(planningNumbers!$H:$H,planningNumbers!$F:$F,$B59,planningNumbers!$C:$C,O$4,planningNumbers!$A:$A,$B$2) -> 189783 | P59: =SUMIFS(planningNumbers!$H:$H,planningNumbers!$F:$F,$B59,planningNumbers!$C:$C,P$4,planningNumbers!$A:$A,$B$2) -> 98529 | Q59: =SUMIFS(planningNumbers!$H:$H,planningNumbers!$F:$F,$B59,planningNumbers!$C:$C,Q$4,planningNumbers!$A:$A,$B$2) -> 255502 | R59: 1013540 | S59: =ROUND(IF(DATE(YEAR(Forecast!$K$2),MONTH(Forecast!$K$2),1)=DATE(YEAR(B59),MONTH(B59),1),Forecast!$K$6/Forecast!$K$3,INDEX(Forecast!$D$2:$D$16,MATCH(DATE(YEAR(B59),MONTH(B59),1),Forecast!$A$2:$A$16,0))/DAY(EOMONTH(B59,0))),0) -> 759022 | T59: =IFERROR(IF((Forecast!$K$2+30)<B59,0,IF(INDEX('Truck list'!$G$6:$G$500,COUNTA('Truck list'!$G$6:$G$500))<B59,S59,IF(U59="",SUMIFS('Truck list'!H:H,'Truck list'!G:G,B59),U59))),0) -> 521664 | U59: 521664 | W59: 9500608 | X59: 6149312 | Y59: 1153984 | Z59: 15649920 | AB59: 298 | AC59: 276 | AD59: 0 | AE59: 189 | AF59: 120 | AG59: 319 | AH59: 1202
A60: Sunday | B60: 2025-02-23 | D60: =SUMIFS(productionNumbers!$C:$C,productionNumbers!$E:$E,$B60,productionNumbers!$A:$A,D$4,productionNumbers!$B:$B,$B$2) -> 245024 | E60: =SUMIFS(productionNumbers!$C:$C,productionNumbers!$E:$E,$B60,productionNumbers!$A:$A,E$4,productionNumbers!$B:$B,$B$2) -> 237120 | F60: =SUMIFS(productionNumbers!$C:$C,productionNumbers!$E:$E,$B60,productionNumbers!$A:$A,F$4,productionNumbers!$B:$B,$B$2) -> 0 | G60: =SUMIFS(productionNumbers!$C:$C,productionNumbers!$E:$E,$B60,productionNumbers!$A:$A,G$4,productionNumbers!$B:$B,$B$2) -> 268736 | H60: =SUMIFS(productionNumbers!$C:$C,productionNumbers!$E:$E,$B60,productionNumbers!$A:$A,H$4,productionNumbers!$B:$B,$B$2) -> 86944 | I60: =SUMIFS(productionNumbers!$C:$C,productionNumbers!$E:$E,$B60,productionNumbers!$A:$A,I$4,productionNumbers!$B:$B,$B$2) -> 213408 | J60: 1051232 | L60: =SUMIFS(planningNumbers!$H:$H,planningNumbers!$F:$F,$B60,planningNumbers!$C:$C,L$4,planningNumbers!$A:$A,$B$2) -> 259827 | M60: =SUMIFS(planningNumbers!$H:$H,planningNumbers!$F:$F,$B60,planningNumbers!$C:$C,M$4,planningNumbers!$A:$A,$B$2) -> 210526 | N60: =SUMIFS(planningNumbers!$H:$H,planningNumbers!$F:$F,$B60,planningNumbers!$C:$C,N$4,planningNumbers!$A:$A,$B$2) -> 0 | O60: =SUMIFS(planningNumbers!$H:$H,planningNumbers!$F:$F,$B60,planningNumbers!$C:$C,O$4,planningNumbers!$A:$A,$B$2) -> 174621 | P60: =SUMIFS(planningNumbers!$H:$H,planningNumbers!$F:$F,$B60,planningNumbers!$C:$C,P$4,planningNumbers!$A:$A,$B$2) -> 98529 | Q60: =SUMIFS(planningNumbers!$H:$H,planningNumbers!$F:$F,$B60,planningNumbers!$C:$C,Q$4,planningNumbers!$A:$A,$B$2) -> 256855 | R60: 1000358 | S60: =ROUND(IF(DATE(YEAR(Forecast!$K$2),MONTH(Forecast!$K$2),1)=DATE(YEAR(B60),MONTH(B60),1),Forecast!$K$6/Forecast!$K$3,INDEX(Forecast!$D$2:$D$16,MATCH(DATE(YEAR(B60),MONTH(B60),1),Forecast!$A$2:$A$16,0))/DAY(EOMONTH(B60,0))),0) -> 759022 | T60: =IFERROR(IF((Forecast!$K$2+30)<B60,0,IF(INDEX('Truck list'!$G$6:$G$500,COUNTA('Truck list'!$G$6:$G$500))<B60,S60,IF(U60="",SUMIFS('Truck list'!H:H,'Truck list'!G:G,B60),U60))),0) -> 695552 | U60: 695552 | W60: 9500608 | X60: 6157216 | Y60: 1153984 | Z60: 15657824 | AB60: 298 | AC60: 276 | AD60: 0 | AE60: 189 | AF60: 120 | AG60: 319 | AH60: 1202
A61: Monday | B61: 2025-02-24 | D61: =SUMIFS(productionNumbers!$C:$C,productionNumbers!$E:$E,$B61,productionNumbers!$A:$A,D$4,productionNumbers!$B:$B,$B$2) -> 260832 | E61: =SUMIFS(productionNumbers!$C:$C,productionNumbers!$E:$E,$B61,productionNumbers!$A:$A,E$4,productionNumbers!$B:$B,$B$2) -> 165984 | F61: =SUMIFS(productionNumbers!$C:$C,productionNumbers!$E:$E,$B61,productionNumbers!$A:$A,F$4,productionNumbers!$B:$B,$B$2) -> 0 | G61: =SUMIFS(productionNumbers!$C:$C,productionNumbers!$E:$E,$B61,productionNumbers!$A:$A,G$4,productionNumbers!$B:$B,$B$2) -> 252928 | H61: =SUMIFS(productionNumbers!$C:$C,productionNumbers!$E:$E,$B61,productionNumbers!$A:$A,H$4,productionNumbers!$B:$B,$B$2) -> 94848 | I61: =SUMIFS(productionNumbers!$C:$C,productionNumbers!$E:$E,$B61,productionNumbers!$A:$A,I$4,productionNumbers!$B:$B,$B$2) -> 260832 | J61: 1035424 | L61: =SUMIFS(planningNumbers!$H:$H,planningNumbers!$F:$F,$B61,planningNumbers!$C:$C,L$4,planningNumbers!$A:$A,$B$2) -> 259927 | M61: =SUMIFS(planningNumbers!$H:$H,planningNumbers!$F:$F,$B61,planningNumbers!$C:$C,M$4,planningNumbers!$A:$A,$B$2) -> 177901 | N61: =SUMIFS(planningNumbers!$H:$H,planningNumbers!$F:$F,$B61,planningNumbers!$C:$C,N$4,planningNumbers!$A:$A,$B$2) -> 0 | O61: =SUMIFS(planningNumbers!$H:$H,planningNumbers!$F:$F,$B61,planningNumbers!$C:$C,O$4,planningNumbers!$A:$A,$B$2) -> 174621 | P61: =SUMIFS(planningNumbers!$H:$H,planningNumbers!$F:$F,$B61,planningNumbers!$C:$C,P$4,planningNumbers!$A:$A,$B$2) -> 98529 | Q61: =SUMIFS(planningNumbers!$H:$H,planningNumbers!$F:$F,$B61,planningNumbers!$C:$C,Q$4,planningNumbers!$A:$A,$B$2) -> 252943 | R61: 963921 | S61: =ROUND(IF(DATE(YEAR(Forecast!$K$2),MONTH(Forecast!$K$2),1)=DATE(YEAR(B61),MONTH(B61),1),Forecast!$K$6/Forecast!$K$3,INDEX(Forecast!$D$2:$D$16,MATCH(DATE(YEAR(B61),MONTH(B61),1),Forecast!$A$2:$A$16,0))/DAY(EOMONTH(B61,0))),0) -> 759022 | T61: =IFERROR(IF((Forecast!$K$2+30)<B61,0,IF(INDEX('Truck list'!$G$6:$G$500,COUNTA('Truck list'!$G$6:$G$500))<B61,S61,IF(U61="",SUMIFS('Truck list'!H:H,'Truck list'!G:G,B61),U61))),0) -> 1564992 | U61: 1564992 | W61: 8536320 | X61: 7200544 | Y61: 1067040 | Z61: 15736864 | AB61: 276 | AC61: 276 | AD61: 0 | AE61: 162 | AF61: 120 | AG61: 246 | AH61: 1080
A62: Tuesday | B62: 2025-02-25 | D62: =SUMIFS(productionNumbers!$C:$C,productionNumbers!$E:$E,$B62,productionNumbers!$A:$A,D$4,productionNumbers!$B:$B,$B$2) -> 245024 | E62: =SUMIFS(productionNumbers!$C:$C,productionNumbers!$E:$E,$B62,productionNumbers!$A:$A,E$4,productionNumbers!$B:$B,$B$2) -> 229216 | F62: =SUMIFS(productionNumbers!$C:$C,productionNumbers!$E:$E,$B62,productionNumbers!$A:$A,F$4,productionNumbers!$B:$B,$B$2) -> 0 | G62: =SUMIFS(productionNumbers!$C:$C,productionNumbers!$E:$E,$B62,productionNumbers!$A:$A,G$4,productionNumbers!$B:$B,$B$2) -> 252928 | H62: =SUMIFS(productionNumbers!$C:$C,productionNumbers!$E:$E,$B62,productionNumbers!$A:$A,H$4,productionNumbers!$B:$B,$B$2) -> 86944 | I62: =SUMIFS(productionNumbers!$C:$C,productionNumbers!$E:$E,$B62,productionNumbers!$A:$A,I$4,productionNumbers!$B:$B,$B$2) -> 229216 | J62: 1043328 | L62: =SUMIFS(planningNumbers!$H:$H,planningNumbers!$F:$F,$B62,planningNumbers!$C:$C,L$4,planningNumbers!$A:$A,$B$2) -> 256220 | M62: =SUMIFS(planningNumbers!$H:$H,planningNumbers!$F:$F,$B62,planningNumbers!$C:$C,M$4,planningNumbers!$A:$A,$B$2) -> 203316 | N62: =SUMIFS(planningNumbers!$H:$H,planningNumbers!$F:$F,$B62,planningNumbers!$C:$C,N$4,planningNumbers!$A:$A,$B$2) -> 0 | O62: =SUMIFS(planningNumbers!$H:$H,planningNumbers!$F:$F,$B62,planningNumbers!$C:$C,O$4,planningNumbers!$A:$A,$B$2) -> 250415 | P62: =SUMIFS(planningNumbers!$H:$H,planningNumbers!$F:$F,$B62,planningNumbers!$C:$C,P$4,planningNumbers!$A:$A,$B$2) -> 101787 | Q62: =SUMIFS(planningNumbers!$H:$H,planningNumbers!$F:$F,$B62,planningNumbers!$C:$C,Q$4,planningNumbers!$A:$A,$B$2) -> 200014 | R62: 1011752 | S62: =ROUND(IF(DATE(YEAR(Forecast!$K$2),MONTH(Forecast!$K$2),1)=DATE(YEAR(B62),MONTH(B62),1),Forecast!$K$6/Forecast!$K$3,INDEX(Forecast!$D$2:$D$16,MATCH(DATE(YEAR(B62),MONTH(B62),1),Forecast!$A$2:$A$16,0))/DAY(EOMONTH(B62,0))),0) -> 759022 | T62: =IFERROR(IF((Forecast!$K$2+30)<B62,0,IF(INDEX('Truck list'!$G$6:$G$500,COUNTA('Truck list'!$G$6:$G$500))<B62,S62,IF(U62="",SUMIFS('Truck list'!H:H,'Truck list'!G:G,B62),U62))),0) -> 2086656 | U62: 2086656 | W62: 10014368 | X62: 5319392 | Y62: 1051232 | Z62: 15333760 | AB62: 348 | AC62: 246 | AD62: 0 | AE62: 181 | AF62: 103 | AG62: 389 | AH62: 1267
A63: Wednesday | B63: 2025-02-26 | D63: =SUMIFS(productionNumbers!$C:$C,productionNumbers!$E:$E,$B63,productionNumbers!$A:$A,D$4,productionNumbers!$B:$B,$B$2) -> 276640 | E63: =SUMIFS(productionNumbers!$C:$C,productionNumbers!$E:$E,$B63,productionNumbers!$A:$A,E$4,productionNumbers!$B:$B,$B$2) -> 221312 | F63: =SUMIFS(productionNumbers!$C:$C,productionNumbers!$E:$E,$B63,productionNumbers!$A:$A,F$4,productionNumbers!$B:$B,$B$2) -> 0 | G63: =SUMIFS(productionNumbers!$C:$C,productionNumbers!$E:$E,$B63,productionNumbers!$A:$A,G$4,productionNumbers!$B:$B,$B$2) -> 213408 | H63: =SUMIFS(productionNumbers!$C:$C,productionNumbers!$E:$E,$B63,productionNumbers!$A:$A,H$4,productionNumbers!$B:$B,$B$2) -> 94848 | I63: =SUMIFS(productionNumbers!$C:$C,productionNumbers!$E:$E,$B63,productionNumbers!$A:$A,I$4,productionNumbers!$B:$B,$B$2) -> 237120 | J63: 1043328 | L63: =SUMIFS(planningNumbers!$H:$H,planningNumbers!$F:$F,$B63,planningNumbers!$C:$C,L$4,planningNumbers!$A:$A,$B$2) -> 255594 | M63: =SUMIFS(planningNumbers!$H:$H,planningNumbers!$F:$F,$B63,planningNumbers!$C:$C,M$4,planningNumbers!$A:$A,$B$2) -> 211896 | N63: =SUMIFS(planningNumbers!$H:$H,planningNumbers!$F:$F,$B63,planningNumbers!$C:$C,N$4,planningNumbers!$A:$A,$B$2) -> 0 | O63: =SUMIFS(planningNumbers!$H:$H,planningNumbers!$F:$F,$B63,planningNumbers!$C:$C,O$4,planningNumbers!$A:$A,$B$2) -> 208643 | P63: =SUMIFS(planningNumbers!$H:$H,planningNumbers!$F:$F,$B63,planningNumbers!$C:$C,P$4,planningNumbers!$A:$A,$B$2) -> 104142 | Q63: =SUMIFS(planningNumbers!$H:$H,planningNumbers!$F:$F,$B63,planningNumbers!$C:$C,Q$4,planningNumbers!$A:$A,$B$2) -> 228588 | R63: 1008863 | S63: =ROUND(IF(DATE(YEAR(Forecast!$K$2),MONTH(Forecast!$K$2),1)=DATE(YEAR(B63),MONTH(B63),1),Forecast!$K$6/Forecast!$K$3,INDEX(Forecast!$D$2:$D$16,MATCH(DATE(YEAR(B63),MONTH(B63),1),Forecast!$A$2:$A$16,0))/DAY(EOMONTH(B63,0))),0) -> 759022 | T63: =IFERROR(IF((Forecast!$K$2+30)<B63,0,IF(INDEX('Truck list'!$G$6:$G$500,COUNTA('Truck list'!$G$6:$G$500))<B63,S63,IF(U63="",SUMIFS('Truck list'!H:H,'Truck list'!G:G,B63),U63))),0) -> 1043328 | U63: 1043328 | W63: 9666592 | X63: 5619744 | Y63: 1082848 | Z63: 15286336 | AB63: 325 | AC63: 283 | AD63: 0 | AE63: 164 | AF63: 91 | AG63: 360 | AH63: 1223
A64: Thursday | B64: 2025-02-27 | D64: =SUMIFS(productionNumbers!$C:$C,productionNumbers!$E:$E,$B64,productionNumbers!$A:$A,D$4,productionNumbers!$B:$B,$B$2) -> 237120 | E64: =SUMIFS(productionNumbers!$C:$C,productionNumbers!$E:$E,$B64,productionNumbers!$A:$A,E$4,productionNumbers!$B:$B,$B$2) -> 237120 | F64: =SUMIFS(productionNumbers!$C:$C,productionNumbers!$E:$E,$B64,productionNumbers!$A:$A,F$4,productionNumbers!$B:$B,$B$2) -> 0 | G64: =SUMIFS(productionNumbers!$C:$C,productionNumbers!$E:$E,$B64,productionNumbers!$A:$A,G$4,productionNumbers!$B:$B,$B$2) -> 229216 | H64: =SUMIFS(productionNumbers!$C:$C,productionNumbers!$E:$E,$B64,productionNumbers!$A:$A,H$4,productionNumbers!$B:$B,$B$2) -> 118560 | I64: =SUMIFS(productionNumbers!$C:$C,productionNumbers!$E:$E,$B64,productionNumbers!$A:$A,I$4,productionNumbers!$B:$B,$B$2) -> 229216 | J64: 1051232 | L64: =SUMIFS(planningNumbers!$H:$H,planningNumbers!$F:$F,$B64,planningNumbers!$C:$C,L$4,planningNumbers!$A:$A,$B$2) -> 226987 | M64: =SUMIFS(planningNumbers!$H:$H,planningNumbers!$F:$F,$B64,planningNumbers!$C:$C,M$4,planningNumbers!$A:$A,$B$2) -> 231064 | N64: =SUMIFS(planningNumbers!$H:$H,planningNumbers!$F:$F,$B64,planningNumbers!$C:$C,N$4,planningNumbers!$A:$A,$B$2) -> 0 | O64: =SUMIFS(planningNumbers!$H:$H,planningNumbers!$F:$F,$B64,planningNumbers!$C:$C,O$4,planningNumbers!$A:$A,$B$2) -> 238449 | P64: =SUMIFS(planningNumbers!$H:$H,planningNumbers!$F:$F,$B64,planningNumbers!$C:$C,P$4,planningNumbers!$A:$A,$B$2) -> 104142 | Q64: =SUMIFS(planningNumbers!$H:$H,planningNumbers!$F:$F,$B64,planningNumbers!$C:$C,Q$4,planningNumbers!$A:$A,$B$2) -> 245039 | R64: 1045681 | S64: =ROUND(IF(DATE(YEAR(Forecast!$K$2),MONTH(Forecast!$K$2),1)=DATE(YEAR(B64),MONTH(B64),1),Forecast!$K$6/Forecast!$K$3,INDEX(Forecast!$D$2:$D$16,MATCH(DATE(YEAR(B64),MONTH(B64),1),Forecast!$A$2:$A$16,0))/DAY(EOMONTH(B64,0))),0) -> 759022 | T64: =IFERROR(IF((Forecast!$K$2+30)<B64,0,IF(INDEX('Truck list'!$G$6:$G$500,COUNTA('Truck list'!$G$6:$G$500))<B64,S64,IF(U64="",SUMIFS('Truck list'!H:H,'Truck list'!G:G,B64),U64))),0) -> 1391104 | U64: 1391104 | W64: 11105120 | X64: 3872960 | Y64: 1106560 | Z64: 14978080 | AB64: 302 | AC64: 402 | AD64: 0 | AE64: 188 | AF64: 103 | AG64: 410 | AH64: 1405
A65: Friday | B65: 2025-02-28 | D65: =SUMIFS(productionNumbers!$C:$C,productionNumbers!$E:$E,$B65,productionNumbers!$A:$A,D$4,productionNumbers!$B:$B,$B$2) -> 237120 | E65: =SUMIFS(productionNumbers!$C:$C,productionNumbers!$E:$E,$B65,productionNumbers!$A:$A,E$4,productionNumbers!$B:$B,$B$2) -> 189696 | F65: =SUMIFS(productionNumbers!$C:$C,productionNumbers!$E:$E,$B65,productionNumbers!$A:$A,F$4,productionNumbers!$B:$B,$B$2) -> 0 | G65: =SUMIFS(productionNumbers!$C:$C,productionNumbers!$E:$E,$B65,productionNumbers!$A:$A,G$4,productionNumbers!$B:$B,$B$2) -> 189696 | H65: =SUMIFS(productionNumbers!$C:$C,productionNumbers!$E:$E,$B65,productionNumbers!$A:$A,H$4,productionNumbers!$B:$B,$B$2) -> 79040 | I65: =SUMIFS(productionNumbers!$C:$C,productionNumbers!$E:$E,$B65,productionNumbers!$A:$A,I$4,productionNumbers!$B:$B,$B$2) -> 252928 | J65: 948480 | L65: =SUMIFS(planningNumbers!$H:$H,planningNumbers!$F:$F,$B65,planningNumbers!$C:$C,L$4,planningNumbers!$A:$A,$B$2) -> 259414 | M65: =SUMIFS(planningNumbers!$H:$H,planningNumbers!$F:$F,$B65,planningNumbers!$C:$C,M$4,planningNumbers!$A:$A,$B$2) -> 230171 | N65: =SUMIFS(planningNumbers!$H:$H,planningNumbers!$F:$F,$B65,planningNumbers!$C:$C,N$4,planningNumbers!$A:$A,$B$2) -> 0 | O65: =SUMIFS(planningNumbers!$H:$H,planningNumbers!$F:$F,$B65,planningNumbers!$C:$C,O$4,planningNumbers!$A:$A,$B$2) -> 252710 | P65: =SUMIFS(planningNumbers!$H:$H,planningNumbers!$F:$F,$B65,planningNumbers!$C:$C,P$4,planningNumbers!$A:$A,$B$2) -> 89239 | Q65: =SUMIFS(planningNumbers!$H:$H,planningNumbers!$F:$F,$B65,planningNumbers!$C:$C,Q$4,planningNumbers!$A:$A,$B$2) -> 256335 | R65: 1087869 | S65: =ROUND(IF(DATE(YEAR(Forecast!$K$2),MONTH(Forecast!$K$2),1)=DATE(YEAR(B65),MONTH(B65),1),Forecast!$K$6/Forecast!$K$3,INDEX(Forecast!$D$2:$D$16,MATCH(DATE(YEAR(B65),MONTH(B65),1),Forecast!$A$2:$A$16,0))/DAY(EOMONTH(B65,0))),0) -> 759022 | T65: =IFERROR(IF((Forecast!$K$2+30)<B65,0,IF(INDEX('Truck list'!$G$6:$G$500,COUNTA('Truck list'!$G$6:$G$500))<B65,S65,IF(U65="",SUMIFS('Truck list'!H:H,'Truck list'!G:G,B65),U65))),0) -> 869440 | U65: 869440 | W65: 10006464 | X65: 5295680 | Y65: 1177696 | Z65: 15302144 | AB65: 313 | AC65: 397 | AD65: 0 | AE65: 143 | AF65: 98 | AG65: 315 | AH65: 1266
A66: Month totals | J66: =SUM(J38:J65) -> 27142336 | R66: =SUM(R38:R65) -> 27301352 | T66: =SUM(T38:T65) -> 25111008
A68: Saturday | B68: =B65+1 -> 2025-03-01 | D68: =SUMIFS(productionNumbers!$C:$C,productionNumbers!$E:$E,$B68,productionNumbers!$A:$A,D$4,productionNumbers!$B:$B,$B$2) -> 229216 | E68: =SUMIFS(productionNumbers!$C:$C,productionNumbers!$E:$E,$B68,productionNumbers!$A:$A,E$4,productionNumbers!$B:$B,$B$2) -> 213408 | F68: =SUMIFS(productionNumbers!$C:$C,productionNumbers!$E:$E,$B68,productionNumbers!$A:$A,F$4,productionNumbers!$B:$B,$B$2) -> 0 | G68: =SUMIFS(productionNumbers!$C:$C,productionNumbers!$E:$E,$B68,productionNumbers!$A:$A,G$4,productionNumbers!$B:$B,$B$2) -> 245024 | H68: =SUMIFS(productionNumbers!$C:$C,productionNumbers!$E:$E,$B68,productionNumbers!$A:$A,H$4,productionNumbers!$B:$B,$B$2) -> 118560 | I68: =SUMIFS(productionNumbers!$C:$C,productionNumbers!$E:$E,$B68,productionNumbers!$A:$A,I$4,productionNumbers!$B:$B,$B$2) -> 245024 | J68: 1051232 | L68: =SUMIFS(planningNumbers!$H:$H,planningNumbers!$F:$F,$B68,planningNumbers!$C:$C,L$4,planningNumbers!$A:$A,$B$2) -> 255091 | M68: =SUMIFS(planningNumbers!$H:$H,planningNumbers!$F:$F,$B68,planningNumbers!$C:$C,M$4,planningNumbers!$A:$A,$B$2) -> 213760 | N68: =SUMIFS(planningNumbers!$H:$H,planningNumbers!$F:$F,$B68,planningNumbers!$C:$C,N$4,planningNumbers!$A:$A,$B$2) -> 0 | O68: =SUMIFS(planningNumbers!$H:$H,planningNumbers!$F:$F,$B68,planningNumbers!$C:$C,O$4,planningNumbers!$A:$A,$B$2) -> 259200 | P68: =SUMIFS(planningNumbers!$H:$H,planningNumbers!$F:$F,$B68,planningNumbers!$C:$C,P$4,planningNumbers!$A:$A,$B$2) -> 101987 | Q68: =SUMIFS(planningNumbers!$H:$H,planningNumbers!$F:$F,$B68,planningNumbers!$C:$C,Q$4,planningNumbers!$A:$A,$B$2) -> 254860 | R68: 1084898 | S68: =ROUND(IF(DATE(YEAR(Forecast!$K$2),MONTH(Forecast!$K$2),1)=DATE(YEAR(B68),MONTH(B68),1),Forecast!$K$6/Forecast!$K$3,INDEX(Forecast!$D$2:$D$16,MATCH(DATE(YEAR(B68),MONTH(B68),1),Forecast!$A$2:$A$16,0))/DAY(EOMONTH(B68,0))),0) -> 994743 | T68: =IFERROR(IF((Forecast!$K$2+30)<B68,0,IF(INDEX('Truck list'!$G$6:$G$500,COUNTA('Truck list'!$G$6:$G$500))<B68,S68,IF(U68="",SUMIFS('Truck list'!H:H,'Truck list'!G:G,B68),U68))),0) -> 1240928 | U68: 1240928 | W68: 10006464 | X68: 5295680 | Y68: 1177696 | Z68: =IF(W68="",IF(J68=0,Z65+R68-IF(U68=0,T68,U68),Z65+J68-IF(U68=0,T68,U68)),SUM(W68:X68)) -> 15302144 | AB68: 313 | AC68: 397 | AD68: 0 | AE68: 143 | AF68: 98 | AG68: 315 | AH68: 1266
A69: Sunday | B69: =+B68+1 -> 2025-03-02 | D69: =SUMIFS(productionNumbers!$C:$C,productionNumbers!$E:$E,$B69,productionNumbers!$A:$A,D$4,productionNumbers!$B:$B,$B$2) -> 229216 | E69: =SUMIFS(productionNumbers!$C:$C,productionNumbers!$E:$E,$B69,productionNumbers!$A:$A,E$4,productionNumbers!$B:$B,$B$2) -> 205504 | F69: =SUMIFS(productionNumbers!$C:$C,productionNumbers!$E:$E,$B69,productionNumbers!$A:$A,F$4,productionNumbers!$B:$B,$B$2) -> 0 | G69: =SUMIFS(productionNumbers!$C:$C,productionNumbers!$E:$E,$B69,productionNumbers!$A:$A,G$4,productionNumbers!$B:$B,$B$2) -> 197600 | H69: =SUMIFS(productionNumbers!$C:$C,productionNumbers!$E:$E,$B69,productionNumbers!$A:$A,H$4,productionNumbers!$B:$B,$B$2) -> 94848 | I69: =SUMIFS(productionNumbers!$C:$C,productionNumbers!$E:$E,$B69,productionNumbers!$A:$A,I$4,productionNumbers!$B:$B,$B$2) -> 252928 | J69: 980096 | L69: =SUMIFS(planningNumbers!$H:$H,planningNumbers!$F:$F,$B69,planningNumbers!$C:$C,L$4,planningNumbers!$A:$A,$B$2) -> 254412 | M69: =SUMIFS(planningNumbers!$H:$H,planningNumbers!$F:$F,$B69,planningNumbers!$C:$C,M$4,planningNumbers!$A:$A,$B$2) -> 213760 | N69: =SUMIFS(planningNumbers!$H:$H,planningNumbers!$F:$F,$B69,planningNumbers!$C:$C,N$4,planningNumbers!$A:$A,$B$2) -> 0 | O69: =SUMIFS(planningNumbers!$H:$H,planningNumbers!$F:$F,$B69,planningNumbers!$C:$C,O$4,planningNumbers!$A:$A,$B$2) -> 256276 | P69: =SUMIFS(planningNumbers!$H:$H,planningNumbers!$F:$F,$B69,planningNumbers!$C:$C,P$4,planningNumbers!$A:$A,$B$2) -> 101987 | Q69: =SUMIFS(planningNumbers!$H:$H,planningNumbers!$F:$F,$B69,planningNumbers!$C:$C,Q$4,planningNumbers!$A:$A,$B$2) -> 253692 | R69: 1080127 | S69: =ROUND(IF(DATE(YEAR(Forecast!$K$2),MONTH(Forecast!$K$2),1)=DATE(YEAR(B69),MONTH(B69),1),Forecast!$K$6/Forecast!$K$3,INDEX(Forecast!$D$2:$D$16,MATCH(DATE(YEAR(B69),MONTH(B69),1),Forecast!$A$2:$A$16,0))/DAY(EOMONTH(B69,0))),0) -> 994743 | T69: =IFERROR(IF((Forecast!$K$2+30)<B69,0,IF(INDEX('Truck list'!$G$6:$G$500,COUNTA('Truck list'!$G$6:$G$500))<B69,S69,IF(U69="",SUMIFS('Truck list'!H:H,'Truck list'!G:G,B69),U69))),0) -> 521664 | U69: 521664 | W69: 10006464 | X69: 5295680 | Y69: 1177696 | Z69: =IF(W69="",IF(J69=0,Z68+R69-IF(U69=0,T69,U69),Z68+J69-IF(U69=0,T69,U69)),SUM(W69:X69)) -> 15302144 | AB69: 313 | AC69: 397 | AD69: 0 | AE69: 143 | AF69: 98 | AG69: 315 | AH69: 1266
A70: Monday | B70: =+B69+1 -> 2025-03-03 | D70: =SUMIFS(productionNumbers!$C:$C,productionNumbers!$E:$E,$B70,productionNumbers!$A:$A,D$4,productionNumbers!$B:$B,$B$2) -> 0 | E70: =SUMIFS(productionNumbers!$C:$C,productionNumbers!$E:$E,$B70,productionNumbers!$A:$A,E$4,productionNumbers!$B:$B,$B$2) -> 165984 | F70: =SUMIFS(productionNumbers!$C:$C,productionNumbers!$E:$E,$B70,productionNumbers!$A:$A,F$4,productionNumbers!$B:$B,$B$2) -> 0 | G70: =SUMIFS(productionNumbers!$C:$C,productionNumbers!$E:$E,$B70,productionNumbers!$A:$A,G$4,productionNumbers!$B:$B,$B$2) -> 292448 | H70: =SUMIFS(productionNumbers!$C:$C,productionNumbers!$E:$E,$B70,productionNumbers!$A:$A,H$4,productionNumbers!$B:$B,$B$2) -> 134368 | I70: =SUMIFS(productionNumbers!$C:$C,productionNumbers!$E:$E,$B70,productionNumbers!$A:$A,I$4,productionNumbers!$B:$B,$B$2) -> 260832 | J70: 853632 | L70: =SUMIFS(planningNumbers!$H:$H,planningNumbers!$F:$F,$B70,planningNumbers!$C:$C,L$4,planningNumbers!$A:$A,$B$2) -> 20700 | M70: =SUMIFS(planningNumbers!$H:$H,planningNumbers!$F:$F,$B70,planningNumbers!$C:$C,M$4,planningNumbers!$A:$A,$B$2) -> 205219 | N70: =SUMIFS(planningNumbers!$H:$H,planningNumbers!$F:$F,$B70,planningNumbers!$C:$C,N$4,planningNumbers!$A:$A,$B$2) -> 0 | O70: =SUMIFS(planningNumbers!$H:$H,planningNumbers!$F:$F,$B70,planningNumbers!$C:$C,O$4,planningNumbers!$A:$A,$B$2) -> 254866 | P70: =SUMIFS(planningNumbers!$H:$H,planningNumbers!$F:$F,$B70,planningNumbers!$C:$C,P$4,planningNumbers!$A:$A,$B$2) -> 101987 | Q70: =SUMIFS(planningNumbers!$H:$H,planningNumbers!$F:$F,$B70,planningNumbers!$C:$C,Q$4,planningNumbers!$A:$A,$B$2) -> 235651 | R70: 818423 | S70: =ROUND(IF(DATE(YEAR(Forecast!$K$2),MONTH(Forecast!$K$2),1)=DATE(YEAR(B70),MONTH(B70),1),Forecast!$K$6/Forecast!$K$3,INDEX(Forecast!$D$2:$D$16,MATCH(DATE(YEAR(B70),MONTH(B70),1),Forecast!$A$2:$A$16,0))/DAY(EOMONTH(B70,0))),0) -> 994743 | T70: =IFERROR(IF((Forecast!$K$2+30)<B70,0,IF(INDEX('Truck list'!$G$6:$G$500,COUNTA('Truck list'!$G$6:$G$500))<B70,S70,IF(U70="",SUMIFS('Truck list'!H:H,'Truck list'!G:G,B70),U70))),0) -> 347776 | U70: 347776 | W70: 12061504 | X70: 2940288 | Y70: 1067040 | Z70: 15001792 | AB70: 352 | AC70: 443 | AD70: 0 | AE70: 183 | AF70: 130 | AG70: 418 | AH70: 1526
A71: Tuesday | B71: 2025-03-04 | D71: =SUMIFS(productionNumbers!$C:$C,productionNumbers!$E:$E,$B71,productionNumbers!$A:$A,D$4,productionNumbers!$B:$B,$B$2) -> 0 | E71: =SUMIFS(productionNumbers!$C:$C,productionNumbers!$E:$E,$B71,productionNumbers!$A:$A,E$4,productionNumbers!$B:$B,$B$2) -> 245024 | F71: =SUMIFS(productionNumbers!$C:$C,productionNumbers!$E:$E,$B71,productionNumbers!$A:$A,F$4,productionNumbers!$B:$B,$B$2) -> 0 | G71: =SUMIFS(productionNumbers!$C:$C,productionNumbers!$E:$E,$B71,productionNumbers!$A:$A,G$4,productionNumbers!$B:$B,$B$2) -> 237120 | H71: =SUMIFS(productionNumbers!$C:$C,productionNumbers!$E:$E,$B71,productionNumbers!$A:$A,H$4,productionNumbers!$B:$B,$B$2) -> 0 | I71: =SUMIFS(productionNumbers!$C:$C,productionNumbers!$E:$E,$B71,productionNumbers!$A:$A,I$4,productionNumbers!$B:$B,$B$2) -> 260832 | J71: 742976 | L71: =SUMIFS(planningNumbers!$H:$H,planningNumbers!$F:$F,$B71,planningNumbers!$C:$C,L$4,planningNumbers!$A:$A,$B$2) -> 0 | M71: =SUMIFS(planningNumbers!$H:$H,planningNumbers!$F:$F,$B71,planningNumbers!$C:$C,M$4,planningNumbers!$A:$A,$B$2) -> 199784 | N71: =SUMIFS(planningNumbers!$H:$H,planningNumbers!$F:$F,$B71,planningNumbers!$C:$C,N$4,planningNumbers!$A:$A,$B$2) -> 0 | O71: =SUMIFS(planningNumbers!$H:$H,planningNumbers!$F:$F,$B71,planningNumbers!$C:$C,O$4,planningNumbers!$A:$A,$B$2) -> 224199 | P71: =SUMIFS(planningNumbers!$H:$H,planningNumbers!$F:$F,$B71,planningNumbers!$C:$C,P$4,planningNumbers!$A:$A,$B$2) -> 0 | Q71: =SUMIFS(planningNumbers!$H:$H,planningNumbers!$F:$F,$B71,planningNumbers!$C:$C,Q$4,planningNumbers!$A:$A,$B$2) -> 269315 | R71: 693298 | S71: =ROUND(IF(DATE(YEAR(Forecast!$K$2),MONTH(Forecast!$K$2),1)=DATE(YEAR(B71),MONTH(B71),1),Forecast!$K$6/Forecast!$K$3,INDEX(Forecast!$D$2:$D$16,MATCH(DATE(YEAR(B71),MONTH(B71),1),Forecast!$A$2:$A$16,0))/DAY(EOMONTH(B71,0))),0) -> 994743 | T71: =IFERROR(IF((Forecast!$K$2+30)<B71,0,IF(INDEX('Truck list'!$G$6:$G$500,COUNTA('Truck list'!$G$6:$G$500))<B71,S71,IF(U71="",SUMIFS('Truck list'!H:H,'Truck list'!G:G,B71),U71))),0) -> 521664 | U71: 521664 | W71: 11555648 | X71: 3659552 | Y71: 1067040 | Z71: 15215200 | AB71: 351 | AC71: 419 | AD71: 0 | AE71: 184 | AF71: 94 | AG71: 414 | AH71: 1462
A72: Wednesday | B72: 2025-03-05 | D72: =SUMIFS(productionNumbers!$C:$C,productionNumbers!$E:$E,$B72,productionNumbers!$A:$A,D$4,productionNumbers!$B:$B,$B$2) -> 0 | E72: =SUMIFS(productionNumbers!$C:$C,productionNumbers!$E:$E,$B72,productionNumbers!$A:$A,E$4,productionNumbers!$B:$B,$B$2) -> 221312 | F72: =SUMIFS(productionNumbers!$C:$C,productionNumbers!$E:$E,$B72,productionNumbers!$A:$A,F$4,productionNumbers!$B:$B,$B$2) -> 0 | G72: =SUMIFS(productionNumbers!$C:$C,productionNumbers!$E:$E,$B72,productionNumbers!$A:$A,G$4,productionNumbers!$B:$B,$B$2) -> 260832 | H72: =SUMIFS(productionNumbers!$C:$C,productionNumbers!$E:$E,$B72,productionNumbers!$A:$A,H$4,productionNumbers!$B:$B,$B$2) -> 0 | I72: =SUMIFS(productionNumbers!$C:$C,productionNumbers!$E:$E,$B72,productionNumbers!$A:$A,I$4,productionNumbers!$B:$B,$B$2) -> 252928 | J72: 735072 | L72: =SUMIFS(planningNumbers!$H:$H,planningNumbers!$F:$F,$B72,planningNumbers!$C:$C,L$4,planningNumbers!$A:$A,$B$2) -> 0 | M72: =SUMIFS(planningNumbers!$H:$H,planningNumbers!$F:$F,$B72,planningNumbers!$C:$C,M$4,planningNumbers!$A:$A,$B$2) -> 199784 | N72: =SUMIFS(planningNumbers!$H:$H,planningNumbers!$F:$F,$B72,planningNumbers!$C:$C,N$4,planningNumbers!$A:$A,$B$2) -> 0 | O72: =SUMIFS(planningNumbers!$H:$H,planningNumbers!$F:$F,$B72,planningNumbers!$C:$C,O$4,planningNumbers!$A:$A,$B$2) -> 252482 | P72: =SUMIFS(planningNumbers!$H:$H,planningNumbers!$F:$F,$B72,planningNumbers!$C:$C,P$4,planningNumbers!$A:$A,$B$2) -> 0 | Q72: =SUMIFS(planningNumbers!$H:$H,planningNumbers!$F:$F,$B72,planningNumbers!$C:$C,Q$4,planningNumbers!$A:$A,$B$2) -> 253015 | R72: 705281 | S72: =ROUND(IF(DATE(YEAR(Forecast!$K$2),MONTH(Forecast!$K$2),1)=DATE(YEAR(B72),MONTH(B72),1),Forecast!$K$6/Forecast!$K$3,INDEX(Forecast!$D$2:$D$16,MATCH(DATE(YEAR(B72),MONTH(B72),1),Forecast!$A$2:$A$16,0))/DAY(EOMONTH(B72,0))),0) -> 994743 | T72: =IFERROR(IF((Forecast!$K$2+30)<B72,0,IF(INDEX('Truck list'!$G$6:$G$500,COUNTA('Truck list'!$G$6:$G$500))<B72,S72,IF(U72="",SUMIFS('Truck list'!H:H,'Truck list'!G:G,B72),U72))),0) -> 521664 | U72: 521664 | W72: 9097504 | X72: 4038944 | Y72: 3359200 | Z72: 13136448 | AB72: 108 | AC72: 397 | AD72: 0 | AE72: 183 | AF72: 94 | AG72: 369 | AH72: 1151
A73: =TEXT(B73,"dddd") -> Thursday | B73: 2025-03-06 | D73: =SUMIFS(productionNumbers!$C:$C,productionNumbers!$E:$E,$B73,productionNumbers!$A:$A,D$4,productionNumbers!$B:$B,$B$2) -> 0 | E73: =SUMIFS(productionNumbers!$C:$C,productionNumbers!$E:$E,$B73,productionNumbers!$A:$A,E$4,productionNumbers!$B:$B,$B$2) -> 197600 | F73: =SUMIFS(productionNumbers!$C:$C,productionNumbers!$E:$E,$B73,productionNumbers!$A:$A,F$4,productionNumbers!$B:$B,$B$2) -> 0 | G73: =SUMIFS(productionNumbers!$C:$C,productionNumbers!$E:$E,$B73,productionNumbers!$A:$A,G$4,productionNumbers!$B:$B,$B$2) -> 268736 | H73: =SUMIFS(productionNumbers!$C:$C,productionNumbers!$E:$E,$B73,productionNumbers!$A:$A,H$4,productionNumbers!$B:$B,$B$2) -> 0 | I73: =SUMIFS(productionNumbers!$C:$C,productionNumbers!$E:$E,$B73,productionNumbers!$A:$A,I$4,productionNumbers!$B:$B,$B$2) -> 252928 | J73: =SUM(D73:I73) -> 719264 | L73: =SUMIFS(planningNumbers!$H:$H,planningNumbers!$F:$F,$B73,planningNumbers!$C:$C,L$4,planningNumbers!$A:$A,$B$2) -> 0 | M73: =SUMIFS(planningNumbers!$H:$H,planningNumbers!$F:$F,$B73,planningNumbers!$C:$C,M$4,planningNumbers!$A:$A,$B$2) -> 183382 | N73: =SUMIFS(planningNumbers!$H:$H,planningNumbers!$F:$F,$B73,planningNumbers!$C:$C,N$4,planningNumbers!$A:$A,$B$2) -> 0 | O73: =SUMIFS(planningNumbers!$H:$H,planningNumbers!$F:$F,$B73,planningNumbers!$C:$C,O$4,planningNumbers!$A:$A,$B$2) -> 258293 | P73: =SUMIFS(planningNumbers!$H:$H,planningNumbers!$F:$F,$B73,planningNumbers!$C:$C,P$4,planningNumbers!$A:$A,$B$2) -> 0 | Q73: =SUMIFS(planningNumbers!$H:$H,planningNumbers!$F:$F,$B73,planningNumbers!$C:$C,Q$4,planningNumbers!$A:$A,$B$2) -> 251937 | R73: =SUM(L73:Q73) -> 693612 | S73: =ROUND(IF(DATE(YEAR(Forecast!$K$2),MONTH(Forecast!$K$2),1)=DATE(YEAR(B73),MONTH(B73),1),Forecast!$K$6/Forecast!$K$3,INDEX(Forecast!$D$2:$D$16,MATCH(DATE(YEAR(B73),MONTH(B73),1),Forecast!$A$2:$A$16,0))/DAY(EOMONTH(B73,0))),0) -> 994743 | T73: =IFERROR(IF((Forecast!$K$2+30)<B73,0,IF(INDEX('Truck list'!$G$6:$G$500,COUNTA('Truck list'!$G$6:$G$500))<B73,S73,IF(U73="",SUMIFS('Truck list'!H:H,'Truck list'!G:G,B73),U73))),0) -> 0 | U73: 0 | W73: 11697920 | X73: 1983904 | Y73: 3564704 | Z73: 13681824 | AB73: 98 | AC73: 463 | AD73: 0 | AE73: 290 | AF73: 143 | AG73: 486 | AH73: =SUM(AB73:AG73) -> 1480
A74: Friday | B74: 2025-03-07 | D74: =SUMIFS(productionNumbers!$C:$C,productionNumbers!$E:$E,$B74,productionNumbers!$A:$A,D$4,productionNumbers!$B:$B,$B$2) -> 0 | E74: =SUMIFS(productionNumbers!$C:$C,productionNumbers!$E:$E,$B74,productionNumbers!$A:$A,E$4,productionNumbers!$B:$B,$B$2) -> 197600 | F74: =SUMIFS(productionNumbers!$C:$C,productionNumbers!$E:$E,$B74,productionNumbers!$A:$A,F$4,productionNumbers!$B:$B,$B$2) -> 0 | G74: =SUMIFS(productionNumbers!$C:$C,productionNumbers!$E:$E,$B74,productionNumbers!$A:$A,G$4,productionNumbers!$B:$B,$B$2) -> 237120 | H74: =SUMIFS(productionNumbers!$C:$C,productionNumbers!$E:$E,$B74,productionNumbers!$A:$A,H$4,productionNumbers!$B:$B,$B$2) -> 31616 | I74: =SUMIFS(productionNumbers!$C:$C,productionNumbers!$E:$E,$B74,productionNumbers!$A:$A,I$4,productionNumbers!$B:$B,$B$2) -> 260832 | J74: 727168 | L74: =SUMIFS(planningNumbers!$H:$H,planningNumbers!$F:$F,$B74,planningNumbers!$C:$C,L$4,planningNumbers!$A:$A,$B$2) -> 0 | M74: =SUMIFS(planningNumbers!$H:$H,planningNumbers!$F:$F,$B74,planningNumbers!$C:$C,M$4,planningNumbers!$A:$A,$B$2) -> 214684 | N74: =SUMIFS(planningNumbers!$H:$H,planningNumbers!$F:$F,$B74,planningNumbers!$C:$C,N$4,planningNumbers!$A:$A,$B$2) -> 0 | O74: =SUMIFS(planningNumbers!$H:$H,planningNumbers!$F:$F,$B74,planningNumbers!$C:$C,O$4,planningNumbers!$A:$A,$B$2) -> 270587 | P74: =SUMIFS(planningNumbers!$H:$H,planningNumbers!$F:$F,$B74,planningNumbers!$C:$C,P$4,planningNumbers!$A:$A,$B$2) -> 178440 | Q74: =SUMIFS(planningNumbers!$H:$H,planningNumbers!$F:$F,$B74,planningNumbers!$C:$C,Q$4,planningNumbers!$A:$A,$B$2) -> 256405 | R74: 920116 | S74: =ROUND(IF(DATE(YEAR(Forecast!$K$2),MONTH(Forecast!$K$2),1)=DATE(YEAR(B74),MONTH(B74),1),Forecast!$K$6/Forecast!$K$3,INDEX(Forecast!$D$2:$D$16,MATCH(DATE(YEAR(B74),MONTH(B74),1),Forecast!$A$2:$A$16,0))/DAY(EOMONTH(B74,0))),0) -> 994743 | T74: =IFERROR(IF((Forecast!$K$2+30)<B74,0,IF(INDEX('Truck list'!$G$6:$G$500,COUNTA('Truck list'!$G$6:$G$500))<B74,S74,IF(U74="",SUMIFS('Truck list'!H:H,'Truck list'!G:G,B74),U74))),0) -> 521664 | U74: 521664 | W74: 10188256 | X74: 4157504 | Y74: 3793920 | Z74: 14345760 | AB74: 71 | AC74: 415 | AD74: 0 | AE74: 246 | AF74: 116 | AG74: 441 | AH74: 1289
A75: Saturday | B75: 2025-03-08 | D75: =SUMIFS(productionNumbers!$C:$C,productionNumbers!$E:$E,$B75,productionNumbers!$A:$A,D$4,productionNumbers!$B:$B,$B$2) -> 0 | E75: =SUMIFS(productionNumbers!$C:$C,productionNumbers!$E:$E,$B75,productionNumbers!$A:$A,E$4,productionNumbers!$B:$B,$B$2) -> 181792 | F75: =SUMIFS(productionNumbers!$C:$C,productionNumbers!$E:$E,$B75,productionNumbers!$A:$A,F$4,productionNumbers!$B:$B,$B$2) -> 0 | G75: =SUMIFS(productionNumbers!$C:$C,productionNumbers!$E:$E,$B75,productionNumbers!$A:$A,G$4,productionNumbers!$B:$B,$B$2) -> 221312 | H75: =SUMIFS(productionNumbers!$C:$C,productionNumbers!$E:$E,$B75,productionNumbers!$A:$A,H$4,productionNumbers!$B:$B,$B$2) -> 15808 | I75: =SUMIFS(productionNumbers!$C:$C,productionNumbers!$E:$E,$B75,productionNumbers!$A:$A,I$4,productionNumbers!$B:$B,$B$2) -> 284544 | J75: 703456 | L75: =SUMIFS(planningNumbers!$H:$H,planningNumbers!$F:$F,$B75,planningNumbers!$C:$C,L$4,planningNumbers!$A:$A,$B$2) -> 0 | M75: =SUMIFS(planningNumbers!$H:$H,planningNumbers!$F:$F,$B75,planningNumbers!$C:$C,M$4,planningNumbers!$A:$A,$B$2) -> 214684 | N75: =SUMIFS(planningNumbers!$H:$H,planningNumbers!$F:$F,$B75,planningNumbers!$C:$C,N$4,planningNumbers!$A:$A,$B$2) -> 0 | O75: =SUMIFS(planningNumbers!$H:$H,planningNumbers!$F:$F,$B75,planningNumbers!$C:$C,O$4,planningNumbers!$A:$A,$B$2) -> 251432 | P75: =SUMIFS(planningNumbers!$H:$H,planningNumbers!$F:$F,$B75,planningNumbers!$C:$C,P$4,planningNumbers!$A:$A,$B$2) -> 21600 | Q75: =SUMIFS(planningNumbers!$H:$H,planningNumbers!$F:$F,$B75,planningNumbers!$C:$C,Q$4,planningNumbers!$A:$A,$B$2) -> 259200 | R75: 746916 | S75: =ROUND(IF(DATE(YEAR(Forecast!$K$2),MONTH(Forecast!$K$2),1)=DATE(YEAR(B75),MONTH(B75),1),Forecast!$K$6/Forecast!$K$3,INDEX(Forecast!$D$2:$D$16,MATCH(DATE(YEAR(B75),MONTH(B75),1),Forecast!$A$2:$A$16,0))/DAY(EOMONTH(B75,0))),0) -> 994743 | T75: =IFERROR(IF((Forecast!$K$2+30)<B75,0,IF(INDEX('Truck list'!$G$6:$G$500,COUNTA('Truck list'!$G$6:$G$500))<B75,S75,IF(U75="",SUMIFS('Truck list'!H:H,'Truck list'!G:G,B75),U75))),0) -> 347776 | U75: 347776 | W75: 10188256 | X75: 4157504 | Y75: 3793920 | Z75: 14345760 | AB75: 71 | AC75: 415 | AD75: 0 | AE75: 246 | AF75: 116 | AG75: 441 | AH75: 1289
A76: Sunday | B76: 2025-03-09 | D76: =SUMIFS(productionNumbers!$C:$C,productionNumbers!$E:$E,$B76,productionNumbers!$A:$A,D$4,productionNumbers!$B:$B,$B$2) -> 0 | E76: =SUMIFS(productionNumbers!$C:$C,productionNumbers!$E:$E,$B76,productionNumbers!$A:$A,E$4,productionNumbers!$B:$B,$B$2) -> 197600 | F76: =SUMIFS(productionNumbers!$C:$C,productionNumbers!$E:$E,$B76,productionNumbers!$A:$A,F$4,productionNumbers!$B:$B,$B$2) -> 0 | G76: =SUMIFS(productionNumbers!$C:$C,productionNumbers!$E:$E,$B76,productionNumbers!$A:$A,G$4,productionNumbers!$B:$B,$B$2) -> 252928 | H76: =SUMIFS(productionNumbers!$C:$C,productionNumbers!$E:$E,$B76,productionNumbers!$A:$A,H$4,productionNumbers!$B:$B,$B$2) -> 0 | I76: =SUMIFS(productionNumbers!$C:$C,productionNumbers!$E:$E,$B76,productionNumbers!$A:$A,I$4,productionNumbers!$B:$B,$B$2) -> 252928 | J76: 703456 | L76: =SUMIFS(planningNumbers!$H:$H,planningNumbers!$F:$F,$B76,planningNumbers!$C:$C,L$4,planningNumbers!$A:$A,$B$2) -> 0 | M76: =SUMIFS(planningNumbers!$H:$H,planningNumbers!$F:$F,$B76,planningNumbers!$C:$C,M$4,planningNumbers!$A:$A,$B$2) -> 181671 | N76: =SUMIFS(planningNumbers!$H:$H,planningNumbers!$F:$F,$B76,planningNumbers!$C:$C,N$4,planningNumbers!$A:$A,$B$2) -> 0 | O76: =SUMIFS(planningNumbers!$H:$H,planningNumbers!$F:$F,$B76,planningNumbers!$C:$C,O$4,planningNumbers!$A:$A,$B$2) -> 221853 | P76: =SUMIFS(planningNumbers!$H:$H,planningNumbers!$F:$F,$B76,planningNumbers!$C:$C,P$4,planningNumbers!$A:$A,$B$2) -> 0 | Q76: =SUMIFS(planningNumbers!$H:$H,planningNumbers!$F:$F,$B76,planningNumbers!$C:$C,Q$4,planningNumbers!$A:$A,$B$2) -> 251154 | R76: 654678 | S76: =ROUND(IF(DATE(YEAR(Forecast!$K$2),MONTH(Forecast!$K$2),1)=DATE(YEAR(B76),MONTH(B76),1),Forecast!$K$6/Forecast!$K$3,INDEX(Forecast!$D$2:$D$16,MATCH(DATE(YEAR(B76),MONTH(B76),1),Forecast!$A$2:$A$16,0))/DAY(EOMONTH(B76,0))),0) -> 994743 | T76: =IFERROR(IF((Forecast!$K$2+30)<B76,0,IF(INDEX('Truck list'!$G$6:$G$500,COUNTA('Truck list'!$G$6:$G$500))<B76,S76,IF(U76="",SUMIFS('Truck list'!H:H,'Truck list'!G:G,B76),U76))),0) -> 347776 | U76: 347776 | W76: 10188256 | X76: 4157504 | Y76: 3793920 | Z76: 14345760 | AB76: 71 | AC76: 415 | AD76: 0 | AE76: 246 | AF76: 116 | AG76: 441 | AH76: 1289
A77: Monday | B77: 2025-03-10 | D77: =SUMIFS(productionNumbers!$C:$C,productionNumbers!$E:$E,$B77,productionNumbers!$A:$A,D$4,productionNumbers!$B:$B,$B$2) -> 0 | E77: =SUMIFS(productionNumbers!$C:$C,productionNumbers!$E:$E,$B77,productionNumbers!$A:$A,E$4,productionNumbers!$B:$B,$B$2) -> 165984 | F77: =SUMIFS(productionNumbers!$C:$C,productionNumbers!$E:$E,$B77,productionNumbers!$A:$A,F$4,productionNumbers!$B:$B,$B$2) -> 0 | G77: =SUMIFS(productionNumbers!$C:$C,productionNumbers!$E:$E,$B77,productionNumbers!$A:$A,G$4,productionNumbers!$B:$B,$B$2) -> 237120 | H77: =SUMIFS(productionNumbers!$C:$C,productionNumbers!$E:$E,$B77,productionNumbers!$A:$A,H$4,productionNumbers!$B:$B,$B$2) -> 0 | I77: =SUMIFS(productionNumbers!$C:$C,productionNumbers!$E:$E,$B77,productionNumbers!$A:$A,I$4,productionNumbers!$B:$B,$B$2) -> 260832 | J77: 663936 | L77: =SUMIFS(planningNumbers!$H:$H,planningNumbers!$F:$F,$B77,planningNumbers!$C:$C,L$4,planningNumbers!$A:$A,$B$2) -> 0 | M77: =SUMIFS(planningNumbers!$H:$H,planningNumbers!$F:$F,$B77,planningNumbers!$C:$C,M$4,planningNumbers!$A:$A,$B$2) -> 190128 | N77: =SUMIFS(planningNumbers!$H:$H,planningNumbers!$F:$F,$B77,planningNumbers!$C:$C,N$4,planningNumbers!$A:$A,$B$2) -> 0 | O77: =SUMIFS(planningNumbers!$H:$H,planningNumbers!$F:$F,$B77,planningNumbers!$C:$C,O$4,planningNumbers!$A:$A,$B$2) -> 212609 | P77: =SUMIFS(planningNumbers!$H:$H,planningNumbers!$F:$F,$B77,planningNumbers!$C:$C,P$4,planningNumbers!$A:$A,$B$2) -> 0 | Q77: =SUMIFS(planningNumbers!$H:$H,planningNumbers!$F:$F,$B77,planningNumbers!$C:$C,Q$4,planningNumbers!$A:$A,$B$2) -> 262555 | R77: 665292 | S77: =ROUND(IF(DATE(YEAR(Forecast!$K$2),MONTH(Forecast!$K$2),1)=DATE(YEAR(B77),MONTH(B77),1),Forecast!$K$6/Forecast!$K$3,INDEX(Forecast!$D$2:$D$16,MATCH(DATE(YEAR(B77),MONTH(B77),1),Forecast!$A$2:$A$16,0))/DAY(EOMONTH(B77,0))),0) -> 994743 | T77: =IFERROR(IF((Forecast!$K$2+30)<B77,0,IF(INDEX('Truck list'!$G$6:$G$500,COUNTA('Truck list'!$G$6:$G$500))<B77,S77,IF(U77="",SUMIFS('Truck list'!H:H,'Truck list'!G:G,B77),U77))),0) -> 1043328 | U77: 1043328 | W77: 10140832 | X77: 3770208 | Y77: 3706976 | Z77: 13911040 | AB77: 71 | AC77: 484 | AD77: 0 | AE77: 256 | AF77: 99 | AG77: 373 | AH77: 1283
A78: Tuesday | B78: 2025-03-11 | D78: =SUMIFS(productionNumbers!$C:$C,productionNumbers!$E:$E,$B78,productionNumbers!$A:$A,D$4,productionNumbers!$B:$B,$B$2) -> 0 | E78: =SUMIFS(productionNumbers!$C:$C,productionNumbers!$E:$E,$B78,productionNumbers!$A:$A,E$4,productionNumbers!$B:$B,$B$2) -> 181792 | F78: =SUMIFS(productionNumbers!$C:$C,productionNumbers!$E:$E,$B78,productionNumbers!$A:$A,F$4,productionNumbers!$B:$B,$B$2) -> 0 | G78: =SUMIFS(productionNumbers!$C:$C,productionNumbers!$E:$E,$B78,productionNumbers!$A:$A,G$4,productionNumbers!$B:$B,$B$2) -> 158080 | H78: =SUMIFS(productionNumbers!$C:$C,productionNumbers!$E:$E,$B78,productionNumbers!$A:$A,H$4,productionNumbers!$B:$B,$B$2) -> 55328 | I78: =SUMIFS(productionNumbers!$C:$C,productionNumbers!$E:$E,$B78,productionNumbers!$A:$A,I$4,productionNumbers!$B:$B,$B$2) -> 252928 | J78: 648128 | L78: =SUMIFS(planningNumbers!$H:$H,planningNumbers!$F:$F,$B78,planningNumbers!$C:$C,L$4,planningNumbers!$A:$A,$B$2) -> 0 | M78: =SUMIFS(planningNumbers!$H:$H,planningNumbers!$F:$F,$B78,planningNumbers!$C:$C,M$4,planningNumbers!$A:$A,$B$2) -> 201051 | N78: =SUMIFS(planningNumbers!$H:$H,planningNumbers!$F:$F,$B78,planningNumbers!$C:$C,N$4,planningNumbers!$A:$A,$B$2) -> 0 | O78: =SUMIFS(planningNumbers!$H:$H,planningNumbers!$F:$F,$B78,planningNumbers!$C:$C,O$4,planningNumbers!$A:$A,$B$2) -> 205449 | P78: =SUMIFS(planningNumbers!$H:$H,planningNumbers!$F:$F,$B78,planningNumbers!$C:$C,P$4,planningNumbers!$A:$A,$B$2) -> 67184 | Q78: =SUMIFS(planningNumbers!$H:$H,planningNumbers!$F:$F,$B78,planningNumbers!$C:$C,Q$4,planningNumbers!$A:$A,$B$2) -> 232870 | R78: 706554 | S78: =ROUND(IF(DATE(YEAR(Forecast!$K$2),MONTH(Forecast!$K$2),1)=DATE(YEAR(B78),MONTH(B78),1),Forecast!$K$6/Forecast!$K$3,INDEX(Forecast!$D$2:$D$16,MATCH(DATE(YEAR(B78),MONTH(B78),1),Forecast!$A$2:$A$16,0))/DAY(EOMONTH(B78,0))),0) -> 994743 | T78: =IFERROR(IF((Forecast!$K$2+30)<B78,0,IF(INDEX('Truck list'!$G$6:$G$500,COUNTA('Truck list'!$G$6:$G$500))<B78,S78,IF(U78="",SUMIFS('Truck list'!H:H,'Truck list'!G:G,B78),U78))),0) -> 695552 | U78: 695552 | W78: 8836672 | X78: 4600128 | Y78: 3714880 | Z78: 13436800 | AB78: 80 | AC78: 412 | AD78: 0 | AE78: 229 | AF78: 95 | AG78: 302 | AH78: 1118
A79: Wednesday | B79: 2025-03-12 | D79: =SUMIFS(productionNumbers!$C:$C,productionNumbers!$E:$E,$B79,productionNumbers!$A:$A,D$4,productionNumbers!$B:$B,$B$2) -> 0 | E79: =SUMIFS(productionNumbers!$C:$C,productionNumbers!$E:$E,$B79,productionNumbers!$A:$A,E$4,productionNumbers!$B:$B,$B$2) -> 165984 | F79: =SUMIFS(productionNumbers!$C:$C,productionNumbers!$E:$E,$B79,productionNumbers!$A:$A,F$4,productionNumbers!$B:$B,$B$2) -> 0 | G79: =SUMIFS(productionNumbers!$C:$C,productionNumbers!$E:$E,$B79,productionNumbers!$A:$A,G$4,productionNumbers!$B:$B,$B$2) -> 252928 | H79: =SUMIFS(productionNumbers!$C:$C,productionNumbers!$E:$E,$B79,productionNumbers!$A:$A,H$4,productionNumbers!$B:$B,$B$2) -> 71136 | I79: =SUMIFS(productionNumbers!$C:$C,productionNumbers!$E:$E,$B79,productionNumbers!$A:$A,I$4,productionNumbers!$B:$B,$B$2) -> 260832 | J79: 750880 | L79: =SUMIFS(planningNumbers!$H:$H,planningNumbers!$F:$F,$B79,planningNumbers!$C:$C,L$4,planningNumbers!$A:$A,$B$2) -> 0 | M79: =SUMIFS(planningNumbers!$H:$H,planningNumbers!$F:$F,$B79,planningNumbers!$C:$C,M$4,planningNumbers!$A:$A,$B$2) -> 185011 | N79: =SUMIFS(planningNumbers!$H:$H,planningNumbers!$F:$F,$B79,planningNumbers!$C:$C,N$4,planningNumbers!$A:$A,$B$2) -> 0 | O79: =SUMIFS(planningNumbers!$H:$H,planningNumbers!$F:$F,$B79,planningNumbers!$C:$C,O$4,planningNumbers!$A:$A,$B$2) -> 234799 | P79: =SUMIFS(planningNumbers!$H:$H,planningNumbers!$F:$F,$B79,planningNumbers!$C:$C,P$4,planningNumbers!$A:$A,$B$2) -> 100776 | Q79: =SUMIFS(planningNumbers!$H:$H,planningNumbers!$F:$F,$B79,planningNumbers!$C:$C,Q$4,planningNumbers!$A:$A,$B$2) -> 274880 | R79: 795466 | S79: =ROUND(IF(DATE(YEAR(Forecast!$K$2),MONTH(Forecast!$K$2),1)=DATE(YEAR(B79),MONTH(B79),1),Forecast!$K$6/Forecast!$K$3,INDEX(Forecast!$D$2:$D$16,MATCH(DATE(YEAR(B79),MONTH(B79),1),Forecast!$A$2:$A$16,0))/DAY(EOMONTH(B79,0))),0) -> 994743 | T79: =IFERROR(IF((Forecast!$K$2+30)<B79,0,IF(INDEX('Truck list'!$G$6:$G$500,COUNTA('Truck list'!$G$6:$G$500))<B79,S79,IF(U79="",SUMIFS('Truck list'!H:H,'Truck list'!G:G,B79),U79))),0) -> 2086656 | U79: 2086656 | W79: 10986560 | X79: 1509664 | Y79: 4117984 | Z79: 12496224 | AB79: 33 | AC79: 485 | AD79: 0 | AE79: 313 | AF79: 95 | AG79: 464 | AH79: 1390
A80: Thursday | B80: 2025-03-13 | D80: =SUMIFS(productionNumbers!$C:$C,productionNumbers!$E:$E,$B80,productionNumbers!$A:$A,D$4,productionNumbers!$B:$B,$B$2) -> 0 | E80: =SUMIFS(productionNumbers!$C:$C,productionNumbers!$E:$E,$B80,productionNumbers!$A:$A,E$4,productionNumbers!$B:$B,$B$2) -> 245024 | F80: =SUMIFS(productionNumbers!$C:$C,productionNumbers!$E:$E,$B80,productionNumbers!$A:$A,F$4,productionNumbers!$B:$B,$B$2) -> 0 | G80: =SUMIFS(productionNumbers!$C:$C,productionNumbers!$E:$E,$B80,productionNumbers!$A:$A,G$4,productionNumbers!$B:$B,$B$2) -> 252928 | H80: =SUMIFS(productionNumbers!$C:$C,productionNumbers!$E:$E,$B80,productionNumbers!$A:$A,H$4,productionNumbers!$B:$B,$B$2) -> 79040 | I80: =SUMIFS(productionNumbers!$C:$C,productionNumbers!$E:$E,$B80,productionNumbers!$A:$A,I$4,productionNumbers!$B:$B,$B$2) -> 268736 | J80: 845728 | L80: =SUMIFS(planningNumbers!$H:$H,planningNumbers!$F:$F,$B80,planningNumbers!$C:$C,L$4,planningNumbers!$A:$A,$B$2) -> 0 | M80: =SUMIFS(planningNumbers!$H:$H,planningNumbers!$F:$F,$B80,planningNumbers!$C:$C,M$4,planningNumbers!$A:$A,$B$2) -> 211441 | N80: =SUMIFS(planningNumbers!$H:$H,planningNumbers!$F:$F,$B80,planningNumbers!$C:$C,N$4,planningNumbers!$A:$A,$B$2) -> 0 | O80: =SUMIFS(planningNumbers!$H:$H,planningNumbers!$F:$F,$B80,planningNumbers!$C:$C,O$4,planningNumbers!$A:$A,$B$2) -> 245294 | P80: =SUMIFS(planningNumbers!$H:$H,planningNumbers!$F:$F,$B80,planningNumbers!$C:$C,P$4,planningNumbers!$A:$A,$B$2) -> 100776 | Q80: =SUMIFS(planningNumbers!$H:$H,planningNumbers!$F:$F,$B80,planningNumbers!$C:$C,Q$4,planningNumbers!$A:$A,$B$2) -> 268513 | R80: 826024 | S80: =ROUND(IF(DATE(YEAR(Forecast!$K$2),MONTH(Forecast!$K$2),1)=DATE(YEAR(B80),MONTH(B80),1),Forecast!$K$6/Forecast!$K$3,INDEX(Forecast!$D$2:$D$16,MATCH(DATE(YEAR(B80),MONTH(B80),1),Forecast!$A$2:$A$16,0))/DAY(EOMONTH(B80,0))),0) -> 994743 | T80: =IFERROR(IF((Forecast!$K$2+30)<B80,0,IF(INDEX('Truck list'!$G$6:$G$500,COUNTA('Truck list'!$G$6:$G$500))<B80,S80,IF(U80="",SUMIFS('Truck list'!H:H,'Truck list'!G:G,B80),U80))),0) -> 1043328 | U80: 1043328 | W80: 10219872 | X80: 2213120 | Y80: 4046848 | Z80: 12432992 | AB80: 33 | AC80: 496 | AD80: 0 | AE80: 276 | AF80: 66 | AG80: 422 | AH80: 1293
A81: Friday | B81: 2025-03-14 | D81: =SUMIFS(productionNumbers!$C:$C,productionNumbers!$E:$E,$B81,productionNumbers!$A:$A,D$4,productionNumbers!$B:$B,$B$2) -> 0 | E81: =SUMIFS(productionNumbers!$C:$C,productionNumbers!$E:$E,$B81,productionNumbers!$A:$A,E$4,productionNumbers!$B:$B,$B$2) -> 237120 | F81: =SUMIFS(productionNumbers!$C:$C,productionNumbers!$E:$E,$B81,productionNumbers!$A:$A,F$4,productionNumbers!$B:$B,$B$2) -> 0 | G81: =SUMIFS(productionNumbers!$C:$C,productionNumbers!$E:$E,$B81,productionNumbers!$A:$A,G$4,productionNumbers!$B:$B,$B$2) -> 276640 | H81: =SUMIFS(productionNumbers!$C:$C,productionNumbers!$E:$E,$B81,productionNumbers!$A:$A,H$4,productionNumbers!$B:$B,$B$2) -> 71136 | I81: =SUMIFS(productionNumbers!$C:$C,productionNumbers!$E:$E,$B81,productionNumbers!$A:$A,I$4,productionNumbers!$B:$B,$B$2) -> 260832 | J81: 845728 | L81: =SUMIFS(planningNumbers!$H:$H,planningNumbers!$F:$F,$B81,planningNumbers!$C:$C,L$4,planningNumbers!$A:$A,$B$2) -> 0 | M81: =SUMIFS(planningNumbers!$H:$H,planningNumbers!$F:$F,$B81,planningNumbers!$C:$C,M$4,planningNumbers!$A:$A,$B$2) -> 209777 | N81: =SUMIFS(planningNumbers!$H:$H,planningNumbers!$F:$F,$B81,planningNumbers!$C:$C,N$4,planningNumbers!$A:$A,$B$2) -> 0 | O81: =SUMIFS(planningNumbers!$H:$H,planningNumbers!$F:$F,$B81,planningNumbers!$C:$C,O$4,planningNumbers!$A:$A,$B$2) -> 250864 | P81: =SUMIFS(planningNumbers!$H:$H,planningNumbers!$F:$F,$B81,planningNumbers!$C:$C,P$4,planningNumbers!$A:$A,$B$2) -> 88920 | Q81: =SUMIFS(planningNumbers!$H:$H,planningNumbers!$F:$F,$B81,planningNumbers!$C:$C,Q$4,planningNumbers!$A:$A,$B$2) -> 261868 | R81: 811429 | S81: =ROUND(IF(DATE(YEAR(Forecast!$K$2),MONTH(Forecast!$K$2),1)=DATE(YEAR(B81),MONTH(B81),1),Forecast!$K$6/Forecast!$K$3,INDEX(Forecast!$D$2:$D$16,MATCH(DATE(YEAR(B81),MONTH(B81),1),Forecast!$A$2:$A$16,0))/DAY(EOMONTH(B81,0))),0) -> 994743 | T81: =IFERROR(IF((Forecast!$K$2+30)<B81,0,IF(INDEX('Truck list'!$G$6:$G$500,COUNTA('Truck list'!$G$6:$G$500))<B81,S81,IF(U81="",SUMIFS('Truck list'!H:H,'Truck list'!G:G,B81),U81))),0) -> 869440 | U81: 869440 | W81: 8046272 | X81: 3548896 | Y81: 4054752 | Z81: 11595168 | AB81: 33 | AC81: 367 | AD81: 0 | AE81: 211 | AF81: 42 | AG81: 365 | AH81: 1018
A82: Saturday | B82: 2025-03-15 | D82: =SUMIFS(productionNumbers!$C:$C,productionNumbers!$E:$E,$B82,productionNumbers!$A:$A,D$4,productionNumbers!$B:$B,$B$2) -> 0 | E82: =SUMIFS(productionNumbers!$C:$C,productionNumbers!$E:$E,$B82,productionNumbers!$A:$A,E$4,productionNumbers!$B:$B,$B$2) -> 229216 | F82: =SUMIFS(productionNumbers!$C:$C,productionNumbers!$E:$E,$B82,productionNumbers!$A:$A,F$4,productionNumbers!$B:$B,$B$2) -> 0 | G82: =SUMIFS(productionNumbers!$C:$C,productionNumbers!$E:$E,$B82,productionNumbers!$A:$A,G$4,productionNumbers!$B:$B,$B$2) -> 221312 | H82: =SUMIFS(productionNumbers!$C:$C,productionNumbers!$E:$E,$B82,productionNumbers!$A:$A,H$4,productionNumbers!$B:$B,$B$2) -> 94848 | I82: =SUMIFS(productionNumbers!$C:$C,productionNumbers!$E:$E,$B82,productionNumbers!$A:$A,I$4,productionNumbers!$B:$B,$B$2) -> 268736 | J82: 814112 | L82: =SUMIFS(planningNumbers!$H:$H,planningNumbers!$F:$F,$B82,planningNumbers!$C:$C,L$4,planningNumbers!$A:$A,$B$2) -> 0 | M82: =SUMIFS(planningNumbers!$H:$H,planningNumbers!$F:$F,$B82,planningNumbers!$C:$C,M$4,planningNumbers!$A:$A,$B$2) -> 207360 | N82: =SUMIFS(planningNumbers!$H:$H,planningNumbers!$F:$F,$B82,planningNumbers!$C:$C,N$4,planningNumbers!$A:$A,$B$2) -> 0 | O82: =SUMIFS(planningNumbers!$H:$H,planningNumbers!$F:$F,$B82,planningNumbers!$C:$C,O$4,planningNumbers!$A:$A,$B$2) -> 249429 | P82: =SUMIFS(planningNumbers!$H:$H,planningNumbers!$F:$F,$B82,planningNumbers!$C:$C,P$4,planningNumbers!$A:$A,$B$2) -> 102666 | Q82: =SUMIFS(planningNumbers!$H:$H,planningNumbers!$F:$F,$B82,planningNumbers!$C:$C,Q$4,planningNumbers!$A:$A,$B$2) -> 278964 | R82: 838419 | S82: =ROUND(IF(DATE(YEAR(Forecast!$K$2),MONTH(Forecast!$K$2),1)=DATE(YEAR(B82),MONTH(B82),1),Forecast!$K$6/Forecast!$K$3,INDEX(Forecast!$D$2:$D$16,MATCH(DATE(YEAR(B82),MONTH(B82),1),Forecast!$A$2:$A$16,0))/DAY(EOMONTH(B82,0))),0) -> 994743 | T82: =IFERROR(IF((Forecast!$K$2+30)<B82,0,IF(INDEX('Truck list'!$G$6:$G$500,COUNTA('Truck list'!$G$6:$G$500))<B82,S82,IF(U82="",SUMIFS('Truck list'!H:H,'Truck list'!G:G,B82),U82))),0) -> 1391104 | U82: 1391104 | W82: 8046272 | X82: 3548896 | Y82: 4054752 | Z82: 11595168 | AB82: 33 | AC82: 367 | AD82: 0 | AE82: 211 | AF82: 42 | AG82: 365 | AH82: 1018
A83: Sunday | B83: 2025-03-16 | D83: =SUMIFS(productionNumbers!$C:$C,productionNumbers!$E:$E,$B83,productionNumbers!$A:$A,D$4,productionNumbers!$B:$B,$B$2) -> 0 | E83: =SUMIFS(productionNumbers!$C:$C,productionNumbers!$E:$E,$B83,productionNumbers!$A:$A,E$4,productionNumbers!$B:$B,$B$2) -> 197600 | F83: =SUMIFS(productionNumbers!$C:$C,productionNumbers!$E:$E,$B83,productionNumbers!$A:$A,F$4,productionNumbers!$B:$B,$B$2) -> 0 | G83: =SUMIFS(productionNumbers!$C:$C,productionNumbers!$E:$E,$B83,productionNumbers!$A:$A,G$4,productionNumbers!$B:$B,$B$2) -> 260832 | H83: =SUMIFS(productionNumbers!$C:$C,productionNumbers!$E:$E,$B83,productionNumbers!$A:$A,H$4,productionNumbers!$B:$B,$B$2) -> 94848 | I83: =SUMIFS(productionNumbers!$C:$C,productionNumbers!$E:$E,$B83,productionNumbers!$A:$A,I$4,productionNumbers!$B:$B,$B$2) -> 284544 | J83: 837824 | L83: =SUMIFS(planningNumbers!$H:$H,planningNumbers!$F:$F,$B83,planningNumbers!$C:$C,L$4,planningNumbers!$A:$A,$B$2) -> 0 | M83: =SUMIFS(planningNumbers!$H:$H,planningNumbers!$F:$F,$B83,planningNumbers!$C:$C,M$4,planningNumbers!$A:$A,$B$2) -> 221635 | N83: =SUMIFS(planningNumbers!$H:$H,planningNumbers!$F:$F,$B83,planningNumbers!$C:$C,N$4,planningNumbers!$A:$A,$B$2) -> 0 | O83: =SUMIFS(planningNumbers!$H:$H,planningNumbers!$F:$F,$B83,planningNumbers!$C:$C,O$4,planningNumbers!$A:$A,$B$2) -> 248361 | P83: =SUMIFS(planningNumbers!$H:$H,planningNumbers!$F:$F,$B83,planningNumbers!$C:$C,P$4,planningNumbers!$A:$A,$B$2) -> 103096 | Q83: =SUMIFS(planningNumbers!$H:$H,planningNumbers!$F:$F,$B83,planningNumbers!$C:$C,Q$4,planningNumbers!$A:$A,$B$2) -> 296249 | R83: 869341 | S83: =ROUND(IF(DATE(YEAR(Forecast!$K$2),MONTH(Forecast!$K$2),1)=DATE(YEAR(B83),MONTH(B83),1),Forecast!$K$6/Forecast!$K$3,INDEX(Forecast!$D$2:$D$16,MATCH(DATE(YEAR(B83),MONTH(B83),1),Forecast!$A$2:$A$16,0))/DAY(EOMONTH(B83,0))),0) -> 994743 | T83: =IFERROR(IF((Forecast!$K$2+30)<B83,0,IF(INDEX('Truck list'!$G$6:$G$500,COUNTA('Truck list'!$G$6:$G$500))<B83,S83,IF(U83="",SUMIFS('Truck list'!H:H,'Truck list'!G:G,B83),U83))),0) -> 1043328 | U83: 1043328 | W83: 8046272 | X83: 3548896 | Y83: 4054752 | Z83: 11595168 | AB83: 33 | AC83: 367 | AD83: 0 | AE83: 211 | AF83: 42 | AG83: 365 | AH83: 1018
A84: Monday | B84: 2025-03-17 | D84: =SUMIFS(productionNumbers!$C:$C,productionNumbers!$E:$E,$B84,productionNumbers!$A:$A,D$4,productionNumbers!$B:$B,$B$2) -> 0 | E84: =SUMIFS(productionNumbers!$C:$C,productionNumbers!$E:$E,$B84,productionNumbers!$A:$A,E$4,productionNumbers!$B:$B,$B$2) -> 229216 | F84: =SUMIFS(productionNumbers!$C:$C,productionNumbers!$E:$E,$B84,productionNumbers!$A:$A,F$4,productionNumbers!$B:$B,$B$2) -> 0 | G84: =SUMIFS(productionNumbers!$C:$C,productionNumbers!$E:$E,$B84,productionNumbers!$A:$A,G$4,productionNumbers!$B:$B,$B$2) -> 260832 | H84: =SUMIFS(productionNumbers!$C:$C,productionNumbers!$E:$E,$B84,productionNumbers!$A:$A,H$4,productionNumbers!$B:$B,$B$2) -> 15808 | I84: =SUMIFS(productionNumbers!$C:$C,productionNumbers!$E:$E,$B84,productionNumbers!$A:$A,I$4,productionNumbers!$B:$B,$B$2) -> 284544 | J84: 790400 | L84: =SUMIFS(planningNumbers!$H:$H,planningNumbers!$F:$F,$B84,planningNumbers!$C:$C,L$4,planningNumbers!$A:$A,$B$2) -> 0 | M84: =SUMIFS(planningNumbers!$H:$H,planningNumbers!$F:$F,$B84,planningNumbers!$C:$C,M$4,planningNumbers!$A:$A,$B$2) -> 228635 | N84: =SUMIFS(planningNumbers!$H:$H,planningNumbers!$F:$F,$B84,planningNumbers!$C:$C,N$4,planningNumbers!$A:$A,$B$2) -> 0 | O84: =SUMIFS(planningNumbers!$H:$H,planningNumbers!$F:$F,$B84,planningNumbers!$C:$C,O$4,planningNumbers!$A:$A,$B$2) -> 252687 | P84: =SUMIFS(planningNumbers!$H:$H,planningNumbers!$F:$F,$B84,planningNumbers!$C:$C,P$4,planningNumbers!$A:$A,$B$2) -> 21478 | Q84: =SUMIFS(planningNumbers!$H:$H,planningNumbers!$F:$F,$B84,planningNumbers!$C:$C,Q$4,planningNumbers!$A:$A,$B$2) -> 270892 | R84: 773692 | S84: =ROUND(IF(DATE(YEAR(Forecast!$K$2),MONTH(Forecast!$K$2),1)=DATE(YEAR(B84),MONTH(B84),1),Forecast!$K$6/Forecast!$K$3,INDEX(Forecast!$D$2:$D$16,MATCH(DATE(YEAR(B84),MONTH(B84),1),Forecast!$A$2:$A$16,0))/DAY(EOMONTH(B84,0))),0) -> 994743 | T84: =IFERROR(IF((Forecast!$K$2+30)<B84,0,IF(INDEX('Truck list'!$G$6:$G$500,COUNTA('Truck list'!$G$6:$G$500))<B84,S84,IF(U84="",SUMIFS('Truck list'!H:H,'Truck list'!G:G,B84),U84))),0) -> 521664 | U84: 521664 | W84: 9500608 | X84: 2339584 | Y84: 4046848 | Z84: 11840192 | AB84: 38 | AC84: 433 | AD84: 0 | AE84: 256 | AF84: 90 | AG84: 385 | AH84: 1202 | AJ84: 3.3 MM units on hold due to line 1 sealing surface
A85: Tuesday | B85: 2025-03-18 | D85: =SUMIFS(productionNumbers!$C:$C,productionNumbers!$E:$E,$B85,productionNumbers!$A:$A,D$4,productionNumbers!$B:$B,$B$2) -> 0 | E85: =SUMIFS(productionNumbers!$C:$C,productionNumbers!$E:$E,$B85,productionNumbers!$A:$A,E$4,productionNumbers!$B:$B,$B$2) -> 213408 | F85: =SUMIFS(productionNumbers!$C:$C,productionNumbers!$E:$E,$B85,productionNumbers!$A:$A,F$4,productionNumbers!$B:$B,$B$2) -> 0 | G85: =SUMIFS(productionNumbers!$C:$C,productionNumbers!$E:$E,$B85,productionNumbers!$A:$A,G$4,productionNumbers!$B:$B,$B$2) -> 260832 | H85: =SUMIFS(productionNumbers!$C:$C,productionNumbers!$E:$E,$B85,productionNumbers!$A:$A,H$4,productionNumbers!$B:$B,$B$2) -> 47424 | I85: =SUMIFS(productionNumbers!$C:$C,productionNumbers!$E:$E,$B85,productionNumbers!$A:$A,I$4,productionNumbers!$B:$B,$B$2) -> 252928 | J85: 774592 | L85: =SUMIFS(planningNumbers!$H:$H,planningNumbers!$F:$F,$B85,planningNumbers!$C:$C,L$4,planningNumbers!$A:$A,$B$2) -> 0 | M85: =SUMIFS(planningNumbers!$H:$H,planningNumbers!$F:$F,$B85,planningNumbers!$C:$C,M$4,planningNumbers!$A:$A,$B$2) -> 205895 | N85: =SUMIFS(planningNumbers!$H:$H,planningNumbers!$F:$F,$B85,planningNumbers!$C:$C,N$4,planningNumbers!$A:$A,$B$2) -> 0 | O85: =SUMIFS(planningNumbers!$H:$H,planningNumbers!$F:$F,$B85,planningNumbers!$C:$C,O$4,planningNumbers!$A:$A,$B$2) -> 257501 | P85: =SUMIFS(planningNumbers!$H:$H,planningNumbers!$F:$F,$B85,planningNumbers!$C:$C,P$4,planningNumbers!$A:$A,$B$2) -> 63232 | Q85: =SUMIFS(planningNumbers!$H:$H,planningNumbers!$F:$F,$B85,planningNumbers!$C:$C,Q$4,planningNumbers!$A:$A,$B$2) -> 261812 | R85: 788440 | S85: =ROUND(IF(DATE(YEAR(Forecast!$K$2),MONTH(Forecast!$K$2),1)=DATE(YEAR(B85),MONTH(B85),1),Forecast!$K$6/Forecast!$K$3,INDEX(Forecast!$D$2:$D$16,MATCH(DATE(YEAR(B85),MONTH(B85),1),Forecast!$A$2:$A$16,0))/DAY(EOMONTH(B85,0))),0) -> 994743 | T85: =IFERROR(IF((Forecast!$K$2+30)<B85,0,IF(INDEX('Truck list'!$G$6:$G$500,COUNTA('Truck list'!$G$6:$G$500))<B85,S85,IF(U85="",SUMIFS('Truck list'!H:H,'Truck list'!G:G,B85),U85))),0) -> 521664 | U85: 521664 | W85: 10860096 | X85: 1288352 | Y85: 4007328 | Z85: 12148448 | AB85: 40 | AC85: 518 | AD85: 0 | AE85: 286 | AF85: 98 | AG85: 432 | AH85: 1374 | AJ85: 3.3 MM units on hold due to line 1 sealing surface
A86: Wednesday | B86: 2025-03-19 | D86: =SUMIFS(productionNumbers!$C:$C,productionNumbers!$E:$E,$B86,productionNumbers!$A:$A,D$4,productionNumbers!$B:$B,$B$2) -> 0 | E86: =SUMIFS(productionNumbers!$C:$C,productionNumbers!$E:$E,$B86,productionNumbers!$A:$A,E$4,productionNumbers!$B:$B,$B$2) -> 221312 | F86: =SUMIFS(productionNumbers!$C:$C,productionNumbers!$E:$E,$B86,productionNumbers!$A:$A,F$4,productionNumbers!$B:$B,$B$2) -> 0 | G86: =SUMIFS(productionNumbers!$C:$C,productionNumbers!$E:$E,$B86,productionNumbers!$A:$A,G$4,productionNumbers!$B:$B,$B$2) -> 213408 | H86: =SUMIFS(productionNumbers!$C:$C,productionNumbers!$E:$E,$B86,productionNumbers!$A:$A,H$4,productionNumbers!$B:$B,$B$2) -> 86944 | I86: =SUMIFS(productionNumbers!$C:$C,productionNumbers!$E:$E,$B86,productionNumbers!$A:$A,I$4,productionNumbers!$B:$B,$B$2) -> 252928 | J86: 774592 | L86: =SUMIFS(planningNumbers!$H:$H,planningNumbers!$F:$F,$B86,planningNumbers!$C:$C,L$4,planningNumbers!$A:$A,$B$2) -> 0 | M86: =SUMIFS(planningNumbers!$H:$H,planningNumbers!$F:$F,$B86,planningNumbers!$C:$C,M$4,planningNumbers!$A:$A,$B$2) -> 205895 | N86: =SUMIFS(planningNumbers!$H:$H,planningNumbers!$F:$F,$B86,planningNumbers!$C:$C,N$4,planningNumbers!$A:$A,$B$2) -> 0 | O86: =SUMIFS(planningNumbers!$H:$H,planningNumbers!$F:$F,$B86,planningNumbers!$C:$C,O$4,planningNumbers!$A:$A,$B$2) -> 227638 | P86: =SUMIFS(planningNumbers!$H:$H,planningNumbers!$F:$F,$B86,planningNumbers!$C:$C,P$4,planningNumbers!$A:$A,$B$2) -> 161302 | Q86: =SUMIFS(planningNumbers!$H:$H,planningNumbers!$F:$F,$B86,planningNumbers!$C:$C,Q$4,planningNumbers!$A:$A,$B$2) -> 256538 | R86: 851373 | S86: =ROUND(IF(DATE(YEAR(Forecast!$K$2),MONTH(Forecast!$K$2),1)=DATE(YEAR(B86),MONTH(B86),1),Forecast!$K$6/Forecast!$K$3,INDEX(Forecast!$D$2:$D$16,MATCH(DATE(YEAR(B86),MONTH(B86),1),Forecast!$A$2:$A$16,0))/DAY(EOMONTH(B86,0))),0) -> 994743 | T86: =IFERROR(IF((Forecast!$K$2+30)<B86,0,IF(INDEX('Truck list'!$G$6:$G$500,COUNTA('Truck list'!$G$6:$G$500))<B86,S86,IF(U86="",SUMIFS('Truck list'!H:H,'Truck list'!G:G,B86),U86))),0) -> 521664 | U86: 521664 | W86: 10346336 | X86: 2062944 | Y86: 3817632 | Z86: 12409280 | AB86: 40 | AC86: 496 | AD86: 0 | AE86: 287 | AF86: 75 | AG86: 411 | AH86: 1309 | AJ86: 3.3 MM units on hold due to line 1 sealing surface
A87: Thursday | B87: 2025-03-20 | D87: =SUMIFS(productionNumbers!$C:$C,productionNumbers!$E:$E,$B87,productionNumbers!$A:$A,D$4,productionNumbers!$B:$B,$B$2) -> 0 | E87: =SUMIFS(productionNumbers!$C:$C,productionNumbers!$E:$E,$B87,productionNumbers!$A:$A,E$4,productionNumbers!$B:$B,$B$2) -> 181792 | F87: =SUMIFS(productionNumbers!$C:$C,productionNumbers!$E:$E,$B87,productionNumbers!$A:$A,F$4,productionNumbers!$B:$B,$B$2) -> 0 | G87: =SUMIFS(productionNumbers!$C:$C,productionNumbers!$E:$E,$B87,productionNumbers!$A:$A,G$4,productionNumbers!$B:$B,$B$2) -> 260832 | H87: =SUMIFS(productionNumbers!$C:$C,productionNumbers!$E:$E,$B87,productionNumbers!$A:$A,H$4,productionNumbers!$B:$B,$B$2) -> 165984 | I87: =SUMIFS(productionNumbers!$C:$C,productionNumbers!$E:$E,$B87,productionNumbers!$A:$A,I$4,productionNumbers!$B:$B,$B$2) -> 252928 | J87: 861536 | L87: =SUMIFS(planningNumbers!$H:$H,planningNumbers!$F:$F,$B87,planningNumbers!$C:$C,L$4,planningNumbers!$A:$A,$B$2) -> 0 | M87: =SUMIFS(planningNumbers!$H:$H,planningNumbers!$F:$F,$B87,planningNumbers!$C:$C,M$4,planningNumbers!$A:$A,$B$2) -> 176406 | N87: =SUMIFS(planningNumbers!$H:$H,planningNumbers!$F:$F,$B87,planningNumbers!$C:$C,N$4,planningNumbers!$A:$A,$B$2) -> 0 | O87: =SUMIFS(planningNumbers!$H:$H,planningNumbers!$F:$F,$B87,planningNumbers!$C:$C,O$4,planningNumbers!$A:$A,$B$2) -> 260158 | P87: =SUMIFS(planningNumbers!$H:$H,planningNumbers!$F:$F,$B87,planningNumbers!$C:$C,P$4,planningNumbers!$A:$A,$B$2) -> 161302 | Q87: =SUMIFS(planningNumbers!$H:$H,planningNumbers!$F:$F,$B87,planningNumbers!$C:$C,Q$4,planningNumbers!$A:$A,$B$2) -> 253159 | R87: 851025 | S87: =ROUND(IF(DATE(YEAR(Forecast!$K$2),MONTH(Forecast!$K$2),1)=DATE(YEAR(B87),MONTH(B87),1),Forecast!$K$6/Forecast!$K$3,INDEX(Forecast!$D$2:$D$16,MATCH(DATE(YEAR(B87),MONTH(B87),1),Forecast!$A$2:$A$16,0))/DAY(EOMONTH(B87,0))),0) -> 994743 | T87: =IFERROR(IF((Forecast!$K$2+30)<B87,0,IF(INDEX('Truck list'!$G$6:$G$500,COUNTA('Truck list'!$G$6:$G$500))<B87,S87,IF(U87="",SUMIFS('Truck list'!H:H,'Truck list'!G:G,B87),U87))),0) -> 521664 | U87: 521664 | W87: 9816768 | X87: 2971904 | Y87: 3825536 | Z87: 12788672 | AB87: 40 | AC87: 495 | AD87: 0 | AE87: 265 | AF87: 54 | AG87: 388 | AH87: 1242 | AJ87: 3.3 MM units on hold due to line 1 sealing surface
A88: Friday | B88: 2025-03-21 | D88: =SUMIFS(productionNumbers!$C:$C,productionNumbers!$E:$E,$B88,productionNumbers!$A:$A,D$4,productionNumbers!$B:$B,$B$2) -> 0 | E88: =SUMIFS(productionNumbers!$C:$C,productionNumbers!$E:$E,$B88,productionNumbers!$A:$A,E$4,productionNumbers!$B:$B,$B$2) -> 229216 | F88: =SUMIFS(productionNumbers!$C:$C,productionNumbers!$E:$E,$B88,productionNumbers!$A:$A,F$4,productionNumbers!$B:$B,$B$2) -> 0 | G88: =SUMIFS(productionNumbers!$C:$C,productionNumbers!$E:$E,$B88,productionNumbers!$A:$A,G$4,productionNumbers!$B:$B,$B$2) -> 292448 | H88: =SUMIFS(productionNumbers!$C:$C,productionNumbers!$E:$E,$B88,productionNumbers!$A:$A,H$4,productionNumbers!$B:$B,$B$2) -> 165984 | I88: =SUMIFS(productionNumbers!$C:$C,productionNumbers!$E:$E,$B88,productionNumbers!$A:$A,I$4,productionNumbers!$B:$B,$B$2) -> 197600 | J88: 885248 | L88: =SUMIFS(planningNumbers!$H:$H,planningNumbers!$F:$F,$B88,planningNumbers!$C:$C,L$4,planningNumbers!$A:$A,$B$2) -> 0 | M88: =SUMIFS(planningNumbers!$H:$H,planningNumbers!$F:$F,$B88,planningNumbers!$C:$C,M$4,planningNumbers!$A:$A,$B$2) -> 201607 | N88: =SUMIFS(planningNumbers!$H:$H,planningNumbers!$F:$F,$B88,planningNumbers!$C:$C,N$4,planningNumbers!$A:$A,$B$2) -> 0 | O88: =SUMIFS(planningNumbers!$H:$H,planningNumbers!$F:$F,$B88,planningNumbers!$C:$C,O$4,planningNumbers!$A:$A,$B$2) -> 259324 | P88: =SUMIFS(planningNumbers!$H:$H,planningNumbers!$F:$F,$B88,planningNumbers!$C:$C,P$4,planningNumbers!$A:$A,$B$2) -> 161302 | Q88: =SUMIFS(planningNumbers!$H:$H,planningNumbers!$F:$F,$B88,planningNumbers!$C:$C,Q$4,planningNumbers!$A:$A,$B$2) -> 226800 | R88: 849033 | S88: =ROUND(IF(DATE(YEAR(Forecast!$K$2),MONTH(Forecast!$K$2),1)=DATE(YEAR(B88),MONTH(B88),1),Forecast!$K$6/Forecast!$K$3,INDEX(Forecast!$D$2:$D$16,MATCH(DATE(YEAR(B88),MONTH(B88),1),Forecast!$A$2:$A$16,0))/DAY(EOMONTH(B88,0))),0) -> 994743 | T88: =IFERROR(IF((Forecast!$K$2+30)<B88,0,IF(INDEX('Truck list'!$G$6:$G$500,COUNTA('Truck list'!$G$6:$G$500))<B88,S88,IF(U88="",SUMIFS('Truck list'!H:H,'Truck list'!G:G,B88),U88))),0) -> 1391104 | U88: 1391104 | W88: 8599552 | X88: 3098368 | Y88: 3722784 | Z88: 11697920 | AB88: 38 | AC88: 467 | AD88: 0 | AE88: 191 | AF88: 53 | AG88: 339 | AH88: 1088 | AJ88: 3.3 MM units on hold due to line 1 sealing surface
A89: Saturday | B89: 2025-03-22 | D89: =SUMIFS(productionNumbers!$C:$C,productionNumbers!$E:$E,$B89,productionNumbers!$A:$A,D$4,productionNumbers!$B:$B,$B$2) -> 0 | E89: =SUMIFS(productionNumbers!$C:$C,productionNumbers!$E:$E,$B89,productionNumbers!$A:$A,E$4,productionNumbers!$B:$B,$B$2) -> 221312 | F89: =SUMIFS(productionNumbers!$C:$C,productionNumbers!$E:$E,$B89,productionNumbers!$A:$A,F$4,productionNumbers!$B:$B,$B$2) -> 0 | G89: =SUMIFS(productionNumbers!$C:$C,productionNumbers!$E:$E,$B89,productionNumbers!$A:$A,G$4,productionNumbers!$B:$B,$B$2) -> 221312 | H89: =SUMIFS(productionNumbers!$C:$C,productionNumbers!$E:$E,$B89,productionNumbers!$A:$A,H$4,productionNumbers!$B:$B,$B$2) -> 173888 | I89: =SUMIFS(productionNumbers!$C:$C,productionNumbers!$E:$E,$B89,productionNumbers!$A:$A,I$4,productionNumbers!$B:$B,$B$2) -> 260832 | J89: 877344 | L89: =SUMIFS(planningNumbers!$H:$H,planningNumbers!$F:$F,$B89,planningNumbers!$C:$C,L$4,planningNumbers!$A:$A,$B$2) -> 0 | M89: =SUMIFS(planningNumbers!$H:$H,planningNumbers!$F:$F,$B89,planningNumbers!$C:$C,M$4,planningNumbers!$A:$A,$B$2) -> 200125 | N89: =SUMIFS(planningNumbers!$H:$H,planningNumbers!$F:$F,$B89,planningNumbers!$C:$C,N$4,planningNumbers!$A:$A,$B$2) -> 0 | O89: =SUMIFS(planningNumbers!$H:$H,planningNumbers!$F:$F,$B89,planningNumbers!$C:$C,O$4,planningNumbers!$A:$A,$B$2) -> 259200 | P89: =SUMIFS(planningNumbers!$H:$H,planningNumbers!$F:$F,$B89,planningNumbers!$C:$C,P$4,planningNumbers!$A:$A,$B$2) -> 195453 | Q89: =SUMIFS(planningNumbers!$H:$H,planningNumbers!$F:$F,$B89,planningNumbers!$C:$C,Q$4,planningNumbers!$A:$A,$B$2) -> 259200 | R89: 913978 | S89: =ROUND(IF(DATE(YEAR(Forecast!$K$2),MONTH(Forecast!$K$2),1)=DATE(YEAR(B89),MONTH(B89),1),Forecast!$K$6/Forecast!$K$3,INDEX(Forecast!$D$2:$D$16,MATCH(DATE(YEAR(B89),MONTH(B89),1),Forecast!$A$2:$A$16,0))/DAY(EOMONTH(B89,0))),0) -> 994743 | T89: =IFERROR(IF((Forecast!$K$2+30)<B89,0,IF(INDEX('Truck list'!$G$6:$G$500,COUNTA('Truck list'!$G$6:$G$500))<B89,S89,IF(U89="",SUMIFS('Truck list'!H:H,'Truck list'!G:G,B89),U89))),0) -> 1217216 | U89: 1217216 | W89: 8599552 | X89: 3098368 | Y89: 3722784 | Z89: 11697920 | AB89: 38 | AC89: 467 | AD89: 0 | AE89: 191 | AF89: 53 | AG89: 339 | AH89: 1088 | AJ89: 3.3 MM units on hold due to line 1 sealing surface
A90: Sunday | B90: 2025-03-23 | D90: =SUMIFS(productionNumbers!$C:$C,productionNumbers!$E:$E,$B90,productionNumbers!$A:$A,D$4,productionNumbers!$B:$B,$B$2) -> 0 | E90: =SUMIFS(productionNumbers!$C:$C,productionNumbers!$E:$E,$B90,productionNumbers!$A:$A,E$4,productionNumbers!$B:$B,$B$2) -> 142272 | F90: =SUMIFS(productionNumbers!$C:$C,productionNumbers!$E:$E,$B90,productionNumbers!$A:$A,F$4,productionNumbers!$B:$B,$B$2) -> 0 | G90: =SUMIFS(productionNumbers!$C:$C,productionNumbers!$E:$E,$B90,productionNumbers!$A:$A,G$4,productionNumbers!$B:$B,$B$2) -> 237120 | H90: =SUMIFS(productionNumbers!$C:$C,productionNumbers!$E:$E,$B90,productionNumbers!$A:$A,H$4,productionNumbers!$B:$B,$B$2) -> 173888 | I90: =SUMIFS(productionNumbers!$C:$C,productionNumbers!$E:$E,$B90,productionNumbers!$A:$A,I$4,productionNumbers!$B:$B,$B$2) -> 276640 | J90: 829920 | L90: =SUMIFS(planningNumbers!$H:$H,planningNumbers!$F:$F,$B90,planningNumbers!$C:$C,L$4,planningNumbers!$A:$A,$B$2) -> 0 | M90: =SUMIFS(planningNumbers!$H:$H,planningNumbers!$F:$F,$B90,planningNumbers!$C:$C,M$4,planningNumbers!$A:$A,$B$2) -> 196454 | N90: =SUMIFS(planningNumbers!$H:$H,planningNumbers!$F:$F,$B90,planningNumbers!$C:$C,N$4,planningNumbers!$A:$A,$B$2) -> 0 | O90: =SUMIFS(planningNumbers!$H:$H,planningNumbers!$F:$F,$B90,planningNumbers!$C:$C,O$4,planningNumbers!$A:$A,$B$2) -> 233241 | P90: =SUMIFS(planningNumbers!$H:$H,planningNumbers!$F:$F,$B90,planningNumbers!$C:$C,P$4,planningNumbers!$A:$A,$B$2) -> 205889 | Q90: =SUMIFS(planningNumbers!$H:$H,planningNumbers!$F:$F,$B90,planningNumbers!$C:$C,Q$4,planningNumbers!$A:$A,$B$2) -> 234296 | R90: 869880 | S90: =ROUND(IF(DATE(YEAR(Forecast!$K$2),MONTH(Forecast!$K$2),1)=DATE(YEAR(B90),MONTH(B90),1),Forecast!$K$6/Forecast!$K$3,INDEX(Forecast!$D$2:$D$16,MATCH(DATE(YEAR(B90),MONTH(B90),1),Forecast!$A$2:$A$16,0))/DAY(EOMONTH(B90,0))),0) -> 994743 | T90: =IFERROR(IF((Forecast!$K$2+30)<B90,0,IF(INDEX('Truck list'!$G$6:$G$500,COUNTA('Truck list'!$G$6:$G$500))<B90,S90,IF(U90="",SUMIFS('Truck list'!H:H,'Truck list'!G:G,B90),U90))),0) -> 1043328 | U90: 1043328 | W90: 8599552 | X90: 3098368 | Y90: 3722784 | Z90: 11697920 | AB90: 38 | AC90: 467 | AD90: 0 | AE90: 191 | AF90: 53 | AG90: 339 | AH90: 1088 | AJ90: 3.3 MM units on hold due to line 1 sealing surface
A91: Monday | B91: 2025-03-24 | D91: =SUMIFS(productionNumbers!$C:$C,productionNumbers!$E:$E,$B91,productionNumbers!$A:$A,D$4,productionNumbers!$B:$B,$B$2) -> 102752 | E91: =SUMIFS(productionNumbers!$C:$C,productionNumbers!$E:$E,$B91,productionNumbers!$A:$A,E$4,productionNumbers!$B:$B,$B$2) -> 0 | F91: =SUMIFS(productionNumbers!$C:$C,productionNumbers!$E:$E,$B91,productionNumbers!$A:$A,F$4,productionNumbers!$B:$B,$B$2) -> 0 | G91: =SUMIFS(productionNumbers!$C:$C,productionNumbers!$E:$E,$B91,productionNumbers!$A:$A,G$4,productionNumbers!$B:$B,$B$2) -> 260832 | H91: =SUMIFS(productionNumbers!$C:$C,productionNumbers!$E:$E,$B91,productionNumbers!$A:$A,H$4,productionNumbers!$B:$B,$B$2) -> 150176 | I91: =SUMIFS(productionNumbers!$C:$C,productionNumbers!$E:$E,$B91,productionNumbers!$A:$A,I$4,productionNumbers!$B:$B,$B$2) -> 237120 | J91: 750880 | L91: =SUMIFS(planningNumbers!$H:$H,planningNumbers!$F:$F,$B91,planningNumbers!$C:$C,L$4,planningNumbers!$A:$A,$B$2) -> 116812 | M91: =SUMIFS(planningNumbers!$H:$H,planningNumbers!$F:$F,$B91,planningNumbers!$C:$C,M$4,planningNumbers!$A:$A,$B$2) -> 0 | N91: =SUMIFS(planningNumbers!$H:$H,planningNumbers!$F:$F,$B91,planningNumbers!$C:$C,N$4,planningNumbers!$A:$A,$B$2) -> 0 | O91: =SUMIFS(planningNumbers!$H:$H,planningNumbers!$F:$F,$B91,planningNumbers!$C:$C,O$4,planningNumbers!$A:$A,$B$2) -> 228917 | P91: =SUMIFS(planningNumbers!$H:$H,planningNumbers!$F:$F,$B91,planningNumbers!$C:$C,P$4,planningNumbers!$A:$A,$B$2) -> 151439 | Q91: =SUMIFS(planningNumbers!$H:$H,planningNumbers!$F:$F,$B91,planningNumbers!$C:$C,Q$4,planningNumbers!$A:$A,$B$2) -> 230322 | R91: 727490 | S91: =ROUND(IF(DATE(YEAR(Forecast!$K$2),MONTH(Forecast!$K$2),1)=DATE(YEAR(B91),MONTH(B91),1),Forecast!$K$6/Forecast!$K$3,INDEX(Forecast!$D$2:$D$16,MATCH(DATE(YEAR(B91),MONTH(B91),1),Forecast!$A$2:$A$16,0))/DAY(EOMONTH(B91,0))),0) -> 994743 | T91: =IFERROR(IF((Forecast!$K$2+30)<B91,0,IF(INDEX('Truck list'!$G$6:$G$500,COUNTA('Truck list'!$G$6:$G$500))<B91,S91,IF(U91="",SUMIFS('Truck list'!H:H,'Truck list'!G:G,B91),U91))),0) -> 1043328 | U91: 1043328 | W91: 10196160 | X91: 1541280 | Y91: 3722784 | Z91: 11737440 | AB91: 38 | AC91: 526 | AD91: 0 | AE91: 254 | AF91: 116 | AG91: 356 | AH91: 1290 | AJ91: 3.3 MM units on hold due to line 1 sealing surface
A92: Tuesday | B92: 2025-03-25 | D92: =SUMIFS(productionNumbers!$C:$C,productionNumbers!$E:$E,$B92,productionNumbers!$A:$A,D$4,productionNumbers!$B:$B,$B$2) -> 181792 | E92: =SUMIFS(productionNumbers!$C:$C,productionNumbers!$E:$E,$B92,productionNumbers!$A:$A,E$4,productionNumbers!$B:$B,$B$2) -> 237120 | F92: =SUMIFS(productionNumbers!$C:$C,productionNumbers!$E:$E,$B92,productionNumbers!$A:$A,F$4,productionNumbers!$B:$B,$B$2) -> 0 | G92: =SUMIFS(productionNumbers!$C:$C,productionNumbers!$E:$E,$B92,productionNumbers!$A:$A,G$4,productionNumbers!$B:$B,$B$2) -> 213408 | H92: =SUMIFS(productionNumbers!$C:$C,productionNumbers!$E:$E,$B92,productionNumbers!$A:$A,H$4,productionNumbers!$B:$B,$B$2) -> 165984 | I92: =SUMIFS(productionNumbers!$C:$C,productionNumbers!$E:$E,$B92,productionNumbers!$A:$A,I$4,productionNumbers!$B:$B,$B$2) -> 237120 | J92: 1035424 | L92: =SUMIFS(planningNumbers!$H:$H,planningNumbers!$F:$F,$B92,planningNumbers!$C:$C,L$4,planningNumbers!$A:$A,$B$2) -> 180744 | M92: =SUMIFS(planningNumbers!$H:$H,planningNumbers!$F:$F,$B92,planningNumbers!$C:$C,M$4,planningNumbers!$A:$A,$B$2) -> 194872 | N92: =SUMIFS(planningNumbers!$H:$H,planningNumbers!$F:$F,$B92,planningNumbers!$C:$C,N$4,planningNumbers!$A:$A,$B$2) -> 0 | O92: =SUMIFS(planningNumbers!$H:$H,planningNumbers!$F:$F,$B92,planningNumbers!$C:$C,O$4,planningNumbers!$A:$A,$B$2) -> 247124 | P92: =SUMIFS(planningNumbers!$H:$H,planningNumbers!$F:$F,$B92,planningNumbers!$C:$C,P$4,planningNumbers!$A:$A,$B$2) -> 173073 | Q92: =SUMIFS(planningNumbers!$H:$H,planningNumbers!$F:$F,$B92,planningNumbers!$C:$C,Q$4,planningNumbers!$A:$A,$B$2) -> 246433 | R92: 1042246 | S92: =ROUND(IF(DATE(YEAR(Forecast!$K$2),MONTH(Forecast!$K$2),1)=DATE(YEAR(B92),MONTH(B92),1),Forecast!$K$6/Forecast!$K$3,INDEX(Forecast!$D$2:$D$16,MATCH(DATE(YEAR(B92),MONTH(B92),1),Forecast!$A$2:$A$16,0))/DAY(EOMONTH(B92,0))),0) -> 994743 | T92: =IFERROR(IF((Forecast!$K$2+30)<B92,0,IF(INDEX('Truck list'!$G$6:$G$500,COUNTA('Truck list'!$G$6:$G$500))<B92,S92,IF(U92="",SUMIFS('Truck list'!H:H,'Truck list'!G:G,B92),U92))),0) -> 1391104 | U92: 1391104 | W92: 8923616 | X92: 2592512 | Y92: 3722784 | Z92: 11516128 | AB92: 38 | AC92: 502 | AD92: 0 | AE92: 163 | AF92: 105 | AG92: 321 | AH92: 1129 | AJ92: 3.3 MM units on hold due to line 1 sealing surface
A93: Wednesday | B93: 2025-03-26 | D93: =SUMIFS(productionNumbers!$C:$C,productionNumbers!$E:$E,$B93,productionNumbers!$A:$A,D$4,productionNumbers!$B:$B,$B$2) -> 142272 | E93: =SUMIFS(productionNumbers!$C:$C,productionNumbers!$E:$E,$B93,productionNumbers!$A:$A,E$4,productionNumbers!$B:$B,$B$2) -> 252928 | F93: =SUMIFS(productionNumbers!$C:$C,productionNumbers!$E:$E,$B93,productionNumbers!$A:$A,F$4,productionNumbers!$B:$B,$B$2) -> 0 | G93: =SUMIFS(productionNumbers!$C:$C,productionNumbers!$E:$E,$B93,productionNumbers!$A:$A,G$4,productionNumbers!$B:$B,$B$2) -> 268736 | H93: =SUMIFS(productionNumbers!$C:$C,productionNumbers!$E:$E,$B93,productionNumbers!$A:$A,H$4,productionNumbers!$B:$B,$B$2) -> 205504 | I93: =SUMIFS(productionNumbers!$C:$C,productionNumbers!$E:$E,$B93,productionNumbers!$A:$A,I$4,productionNumbers!$B:$B,$B$2) -> 252928 | J93: 1122368 | L93: =SUMIFS(planningNumbers!$H:$H,planningNumbers!$F:$F,$B93,planningNumbers!$C:$C,L$4,planningNumbers!$A:$A,$B$2) -> 181729 | M93: =SUMIFS(planningNumbers!$H:$H,planningNumbers!$F:$F,$B93,planningNumbers!$C:$C,M$4,planningNumbers!$A:$A,$B$2) -> 275114 | N93: =SUMIFS(planningNumbers!$H:$H,planningNumbers!$F:$F,$B93,planningNumbers!$C:$C,N$4,planningNumbers!$A:$A,$B$2) -> 0 | O93: =SUMIFS(planningNumbers!$H:$H,planningNumbers!$F:$F,$B93,planningNumbers!$C:$C,O$4,planningNumbers!$A:$A,$B$2) -> 260397 | P93: =SUMIFS(planningNumbers!$H:$H,planningNumbers!$F:$F,$B93,planningNumbers!$C:$C,P$4,planningNumbers!$A:$A,$B$2) -> 173073 | Q93: =SUMIFS(planningNumbers!$H:$H,planningNumbers!$F:$F,$B93,planningNumbers!$C:$C,Q$4,planningNumbers!$A:$A,$B$2) -> 257285 | R93: 1147598 | S93: =ROUND(IF(DATE(YEAR(Forecast!$K$2),MONTH(Forecast!$K$2),1)=DATE(YEAR(B93),MONTH(B93),1),Forecast!$K$6/Forecast!$K$3,INDEX(Forecast!$D$2:$D$16,MATCH(DATE(YEAR(B93),MONTH(B93),1),Forecast!$A$2:$A$16,0))/DAY(EOMONTH(B93,0))),0) -> 994743 | T93: =IFERROR(IF((Forecast!$K$2+30)<B93,0,IF(INDEX('Truck list'!$G$6:$G$500,COUNTA('Truck list'!$G$6:$G$500))<B93,S93,IF(U93="",SUMIFS('Truck list'!H:H,'Truck list'!G:G,B93),U93))),0) -> 1391104 | U93: 1391104 | W93: 7666880 | X93: 3675360 | Y93: 3722784 | Z93: 11342240 | AB93: 38 | AC93: 473 | AD93: 0 | AE93: 131 | AF93: 85 | AG93: 243 | AH93: 970 | AJ93: 3.3MM units on hold due to line 1 sealing surface
A94: Thursday | B94: 2025-03-27 | D94: =SUMIFS(productionNumbers!$C:$C,productionNumbers!$E:$E,$B94,productionNumbers!$A:$A,D$4,productionNumbers!$B:$B,$B$2) -> 197600 | E94: =SUMIFS(productionNumbers!$C:$C,productionNumbers!$E:$E,$B94,productionNumbers!$A:$A,E$4,productionNumbers!$B:$B,$B$2) -> 221312 | F94: =SUMIFS(productionNumbers!$C:$C,productionNumbers!$E:$E,$B94,productionNumbers!$A:$A,F$4,productionNumbers!$B:$B,$B$2) -> 0 | G94: =SUMIFS(productionNumbers!$C:$C,productionNumbers!$E:$E,$B94,productionNumbers!$A:$A,G$4,productionNumbers!$B:$B,$B$2) -> 213408 | H94: =SUMIFS(productionNumbers!$C:$C,productionNumbers!$E:$E,$B94,productionNumbers!$A:$A,H$4,productionNumbers!$B:$B,$B$2) -> 197600 | I94: =SUMIFS(productionNumbers!$C:$C,productionNumbers!$E:$E,$B94,productionNumbers!$A:$A,I$4,productionNumbers!$B:$B,$B$2) -> 205504 | J94: 1035424 | L94: =SUMIFS(planningNumbers!$H:$H,planningNumbers!$F:$F,$B94,planningNumbers!$C:$C,L$4,planningNumbers!$A:$A,$B$2) -> 183858 | M94: =SUMIFS(planningNumbers!$H:$H,planningNumbers!$F:$F,$B94,planningNumbers!$C:$C,M$4,planningNumbers!$A:$A,$B$2) -> 253838 | N94: =SUMIFS(planningNumbers!$H:$H,planningNumbers!$F:$F,$B94,planningNumbers!$C:$C,N$4,planningNumbers!$A:$A,$B$2) -> 0 | O94: =SUMIFS(planningNumbers!$H:$H,planningNumbers!$F:$F,$B94,planningNumbers!$C:$C,O$4,planningNumbers!$A:$A,$B$2) -> 201239 | P94: =SUMIFS(planningNumbers!$H:$H,planningNumbers!$F:$F,$B94,planningNumbers!$C:$C,P$4,planningNumbers!$A:$A,$B$2) -> 205901 | Q94: =SUMIFS(planningNumbers!$H:$H,planningNumbers!$F:$F,$B94,planningNumbers!$C:$C,Q$4,planningNumbers!$A:$A,$B$2) -> 209080 | R94: 1053916 | S94: =ROUND(IF(DATE(YEAR(Forecast!$K$2),MONTH(Forecast!$K$2),1)=DATE(YEAR(B94),MONTH(B94),1),Forecast!$K$6/Forecast!$K$3,INDEX(Forecast!$D$2:$D$16,MATCH(DATE(YEAR(B94),MONTH(B94),1),Forecast!$A$2:$A$16,0))/DAY(EOMONTH(B94,0))),0) -> 994743 | T94: =IFERROR(IF((Forecast!$K$2+30)<B94,0,IF(INDEX('Truck list'!$G$6:$G$500,COUNTA('Truck list'!$G$6:$G$500))<B94,S94,IF(U94="",SUMIFS('Truck list'!H:H,'Truck list'!G:G,B94),U94))),0) -> 1043328 | U94: 1043328 | W94: 8370336 | X94: 3216928 | Y94: 3841344 | Z94: 11587264 | AB94: 51 | AC94: 451 | AD94: 0 | AE94: 163 | AF94: 120 | AG94: 274 | AH94: 1059 | AJ94: 3.3 MM units on hold due to line 1 sealing surface
A95: Friday | B95: 2025-03-28 | D95: =SUMIFS(productionNumbers!$C:$C,productionNumbers!$E:$E,$B95,productionNumbers!$A:$A,D$4,productionNumbers!$B:$B,$B$2) -> 197600 | E95: =SUMIFS(productionNumbers!$C:$C,productionNumbers!$E:$E,$B95,productionNumbers!$A:$A,E$4,productionNumbers!$B:$B,$B$2) -> 237120 | F95: =SUMIFS(productionNumbers!$C:$C,productionNumbers!$E:$E,$B95,productionNumbers!$A:$A,F$4,productionNumbers!$B:$B,$B$2) -> 0 | G95: =SUMIFS(productionNumbers!$C:$C,productionNumbers!$E:$E,$B95,productionNumbers!$A:$A,G$4,productionNumbers!$B:$B,$B$2) -> 276640 | H95: =SUMIFS(productionNumbers!$C:$C,productionNumbers!$E:$E,$B95,productionNumbers!$A:$A,H$4,productionNumbers!$B:$B,$B$2) -> 205504 | I95: =SUMIFS(productionNumbers!$C:$C,productionNumbers!$E:$E,$B95,productionNumbers!$A:$A,I$4,productionNumbers!$B:$B,$B$2) -> 284544 | J95: 1201408 | L95: =SUMIFS(planningNumbers!$H:$H,planningNumbers!$F:$F,$B95,planningNumbers!$C:$C,L$4,planningNumbers!$A:$A,$B$2) -> 211753 | M95: =SUMIFS(planningNumbers!$H:$H,planningNumbers!$F:$F,$B95,planningNumbers!$C:$C,M$4,planningNumbers!$A:$A,$B$2) -> 248917 | N95: =SUMIFS(planningNumbers!$H:$H,planningNumbers!$F:$F,$B95,planningNumbers!$C:$C,N$4,planningNumbers!$A:$A,$B$2) -> 0 | O95: =SUMIFS(planningNumbers!$H:$H,planningNumbers!$F:$F,$B95,planningNumbers!$C:$C,O$4,planningNumbers!$A:$A,$B$2) -> 229988 | P95: =SUMIFS(planningNumbers!$H:$H,planningNumbers!$F:$F,$B95,planningNumbers!$C:$C,P$4,planningNumbers!$A:$A,$B$2) -> 211206 | Q95: =SUMIFS(planningNumbers!$H:$H,planningNumbers!$F:$F,$B95,planningNumbers!$C:$C,Q$4,planningNumbers!$A:$A,$B$2) -> 238949 | R95: 1140813 | S95: =ROUND(IF(DATE(YEAR(Forecast!$K$2),MONTH(Forecast!$K$2),1)=DATE(YEAR(B95),MONTH(B95),1),Forecast!$K$6/Forecast!$K$3,INDEX(Forecast!$D$2:$D$16,MATCH(DATE(YEAR(B95),MONTH(B95),1),Forecast!$A$2:$A$16,0))/DAY(EOMONTH(B95,0))),0) -> 994743 | T95: =IFERROR(IF((Forecast!$K$2+30)<B95,0,IF(INDEX('Truck list'!$G$6:$G$500,COUNTA('Truck list'!$G$6:$G$500))<B95,S95,IF(U95="",SUMIFS('Truck list'!H:H,'Truck list'!G:G,B95),U95))),0) -> 1043328 | U95: 1043328 | W95: 7089888 | X95: 4884672 | Y95: 3849248 | Z95: 11974560 | AB95: 51 | AC95: 392 | AD95: 0 | AE95: 135 | AF95: 129 | AG95: 190 | AH95: 897 | AJ95: 3.3 MM units on hold due to line 1 sealing surface
A96: Saturday | B96: 2025-03-29 | D96: =SUMIFS(productionNumbers!$C:$C,productionNumbers!$E:$E,$B96,productionNumbers!$A:$A,D$4,productionNumbers!$B:$B,$B$2) -> 205504 | E96: =SUMIFS(productionNumbers!$C:$C,productionNumbers!$E:$E,$B96,productionNumbers!$A:$A,E$4,productionNumbers!$B:$B,$B$2) -> 197600 | F96: =SUMIFS(productionNumbers!$C:$C,productionNumbers!$E:$E,$B96,productionNumbers!$A:$A,F$4,productionNumbers!$B:$B,$B$2) -> 0 | G96: =SUMIFS(productionNumbers!$C:$C,productionNumbers!$E:$E,$B96,productionNumbers!$A:$A,G$4,productionNumbers!$B:$B,$B$2) -> 237120 | H96: =SUMIFS(productionNumbers!$C:$C,productionNumbers!$E:$E,$B96,productionNumbers!$A:$A,H$4,productionNumbers!$B:$B,$B$2) -> 158080 | I96: =SUMIFS(productionNumbers!$C:$C,productionNumbers!$E:$E,$B96,productionNumbers!$A:$A,I$4,productionNumbers!$B:$B,$B$2) -> 245024 | J96: 1043328 | L96: =SUMIFS(planningNumbers!$H:$H,planningNumbers!$F:$F,$B96,planningNumbers!$C:$C,L$4,planningNumbers!$A:$A,$B$2) -> 211753 | M96: =SUMIFS(planningNumbers!$H:$H,planningNumbers!$F:$F,$B96,planningNumbers!$C:$C,M$4,planningNumbers!$A:$A,$B$2) -> 234949 | N96: =SUMIFS(planningNumbers!$H:$H,planningNumbers!$F:$F,$B96,planningNumbers!$C:$C,N$4,planningNumbers!$A:$A,$B$2) -> 0 | O96: =SUMIFS(planningNumbers!$H:$H,planningNumbers!$F:$F,$B96,planningNumbers!$C:$C,O$4,planningNumbers!$A:$A,$B$2) -> 254393 | P96: =SUMIFS(planningNumbers!$H:$H,planningNumbers!$F:$F,$B96,planningNumbers!$C:$C,P$4,planningNumbers!$A:$A,$B$2) -> 209702 | Q96: =SUMIFS(planningNumbers!$H:$H,planningNumbers!$F:$F,$B96,planningNumbers!$C:$C,Q$4,planningNumbers!$A:$A,$B$2) -> 263064 | R96: 1173861 | S96: =ROUND(IF(DATE(YEAR(Forecast!$K$2),MONTH(Forecast!$K$2),1)=DATE(YEAR(B96),MONTH(B96),1),Forecast!$K$6/Forecast!$K$3,INDEX(Forecast!$D$2:$D$16,MATCH(DATE(YEAR(B96),MONTH(B96),1),Forecast!$A$2:$A$16,0))/DAY(EOMONTH(B96,0))),0) -> 994743 | T96: =IFERROR(IF((Forecast!$K$2+30)<B96,0,IF(INDEX('Truck list'!$G$6:$G$500,COUNTA('Truck list'!$G$6:$G$500))<B96,S96,IF(U96="",SUMIFS('Truck list'!H:H,'Truck list'!G:G,B96),U96))),0) -> 1217216 | U96: 1217216 | W96: 7089888 | X96: 4884672 | Y96: 3849248 | Z96: 11974560 | AB96: 51 | AC96: 392 | AD96: 0 | AE96: 135 | AF96: 129 | AG96: 190 | AH96: 897 | AJ96: 3.3 MM units on hold due to line 1 sealing surface
A97: Sunday | B97: 2025-03-30 | D97: =SUMIFS(productionNumbers!$C:$C,productionNumbers!$E:$E,$B97,productionNumbers!$A:$A,D$4,productionNumbers!$B:$B,$B$2) -> 221312 | E97: =SUMIFS(productionNumbers!$C:$C,productionNumbers!$E:$E,$B97,productionNumbers!$A:$A,E$4,productionNumbers!$B:$B,$B$2) -> 276640 | F97: =SUMIFS(productionNumbers!$C:$C,productionNumbers!$E:$E,$B97,productionNumbers!$A:$A,F$4,productionNumbers!$B:$B,$B$2) -> 0 | G97: =SUMIFS(productionNumbers!$C:$C,productionNumbers!$E:$E,$B97,productionNumbers!$A:$A,G$4,productionNumbers!$B:$B,$B$2) -> 284544 | H97: =SUMIFS(productionNumbers!$C:$C,productionNumbers!$E:$E,$B97,productionNumbers!$A:$A,H$4,productionNumbers!$B:$B,$B$2) -> 181792 | I97: =SUMIFS(productionNumbers!$C:$C,productionNumbers!$E:$E,$B97,productionNumbers!$A:$A,I$4,productionNumbers!$B:$B,$B$2) -> 284544 | J97: 1248832 | L97: =SUMIFS(planningNumbers!$H:$H,planningNumbers!$F:$F,$B97,planningNumbers!$C:$C,L$4,planningNumbers!$A:$A,$B$2) -> 208580 | M97: =SUMIFS(planningNumbers!$H:$H,planningNumbers!$F:$F,$B97,planningNumbers!$C:$C,M$4,planningNumbers!$A:$A,$B$2) -> 229421 | N97: =SUMIFS(planningNumbers!$H:$H,planningNumbers!$F:$F,$B97,planningNumbers!$C:$C,N$4,planningNumbers!$A:$A,$B$2) -> 0 | O97: =SUMIFS(planningNumbers!$H:$H,planningNumbers!$F:$F,$B97,planningNumbers!$C:$C,O$4,planningNumbers!$A:$A,$B$2) -> 270208 | P97: =SUMIFS(planningNumbers!$H:$H,planningNumbers!$F:$F,$B97,planningNumbers!$C:$C,P$4,planningNumbers!$A:$A,$B$2) -> 207360 | Q97: =SUMIFS(planningNumbers!$H:$H,planningNumbers!$F:$F,$B97,planningNumbers!$C:$C,Q$4,planningNumbers!$A:$A,$B$2) -> 273807 | R97: 1189376 | S97: =ROUND(IF(DATE(YEAR(Forecast!$K$2),MONTH(Forecast!$K$2),1)=DATE(YEAR(B97),MONTH(B97),1),Forecast!$K$6/Forecast!$K$3,INDEX(Forecast!$D$2:$D$16,MATCH(DATE(YEAR(B97),MONTH(B97),1),Forecast!$A$2:$A$16,0))/DAY(EOMONTH(B97,0))),0) -> 994743 | T97: =IFERROR(IF((Forecast!$K$2+30)<B97,0,IF(INDEX('Truck list'!$G$6:$G$500,COUNTA('Truck list'!$G$6:$G$500))<B97,S97,IF(U97="",SUMIFS('Truck list'!H:H,'Truck list'!G:G,B97),U97))),0) -> 1043328 | U97: 1043328 | W97: 7089888 | X97: 4884672 | Y97: 3849248 | Z97: 11974560 | AB97: 51 | AC97: 392 | AD97: 0 | AE97: 135 | AF97: 129 | AG97: 190 | AH97: 897 | AJ97: 3.3 MM units on hold due to line 1 sealing surface
A98: Monday | B98: 2025-03-31 | D98: =SUMIFS(productionNumbers!$C:$C,productionNumbers!$E:$E,$B98,productionNumbers!$A:$A,D$4,productionNumbers!$B:$B,$B$2) -> 229216 | E98: =SUMIFS(productionNumbers!$C:$C,productionNumbers!$E:$E,$B98,productionNumbers!$A:$A,E$4,productionNumbers!$B:$B,$B$2) -> 197600 | F98: =SUMIFS(productionNumbers!$C:$C,productionNumbers!$E:$E,$B98,productionNumbers!$A:$A,F$4,productionNumbers!$B:$B,$B$2) -> 0 | G98: =SUMIFS(productionNumbers!$C:$C,productionNumbers!$E:$E,$B98,productionNumbers!$A:$A,G$4,productionNumbers!$B:$B,$B$2) -> 229216 | H98: =SUMIFS(productionNumbers!$C:$C,productionNumbers!$E:$E,$B98,productionNumbers!$A:$A,H$4,productionNumbers!$B:$B,$B$2) -> 165984 | I98: =SUMIFS(productionNumbers!$C:$C,productionNumbers!$E:$E,$B98,productionNumbers!$A:$A,I$4,productionNumbers!$B:$B,$B$2) -> 276640 | J98: 1098656 | L98: =SUMIFS(planningNumbers!$H:$H,planningNumbers!$F:$F,$B98,planningNumbers!$C:$C,L$4,planningNumbers!$A:$A,$B$2) -> 206530 | M98: =SUMIFS(planningNumbers!$H:$H,planningNumbers!$F:$F,$B98,planningNumbers!$C:$C,M$4,planningNumbers!$A:$A,$B$2) -> 239430 | N98: =SUMIFS(planningNumbers!$H:$H,planningNumbers!$F:$F,$B98,planningNumbers!$C:$C,N$4,planningNumbers!$A:$A,$B$2) -> 0 | O98: =SUMIFS(planningNumbers!$H:$H,planningNumbers!$F:$F,$B98,planningNumbers!$C:$C,O$4,planningNumbers!$A:$A,$B$2) -> 259679 | P98: =SUMIFS(planningNumbers!$H:$H,planningNumbers!$F:$F,$B98,planningNumbers!$C:$C,P$4,planningNumbers!$A:$A,$B$2) -> 207360 | Q98: =SUMIFS(planningNumbers!$H:$H,planningNumbers!$F:$F,$B98,planningNumbers!$C:$C,Q$4,planningNumbers!$A:$A,$B$2) -> 258037 | R98: 1171036 | S98: =ROUND(IF(DATE(YEAR(Forecast!$K$2),MONTH(Forecast!$K$2),1)=DATE(YEAR(B98),MONTH(B98),1),Forecast!$K$6/Forecast!$K$3,INDEX(Forecast!$D$2:$D$16,MATCH(DATE(YEAR(B98),MONTH(B98),1),Forecast!$A$2:$A$16,0))/DAY(EOMONTH(B98,0))),0) -> 994743 | T98: =IFERROR(IF((Forecast!$K$2+30)<B98,0,IF(INDEX('Truck list'!$G$6:$G$500,COUNTA('Truck list'!$G$6:$G$500))<B98,S98,IF(U98="",SUMIFS('Truck list'!H:H,'Truck list'!G:G,B98),U98))),0) -> 869440 | U98: 869440 | W98: 6259968 | X98: 5817344 | Y98: 3849248 | Z98: 12077312 | AB98: 52 | AC98: 308 | AD98: 0 | AE98: 133 | AF98: 116 | AG98: 183 | AH98: 792 | AJ98: 3.3 MM units on hold due to line 1 sealing surface
A99: Month totals | J99: =SUM(J68:J98) -> 26952640 | R99: =SUM(R68:R98) -> 27453631 | T99: =SUM(T68:T98) -> 27324128
A101: Tuesday | B101: =B98+1 -> 2025-04-01 | D101: =SUMIFS(productionNumbers!$C:$C,productionNumbers!$E:$E,$B101,productionNumbers!$A:$A,D$4,productionNumbers!$B:$B,$B$2) -> 94848 | E101: =SUMIFS(productionNumbers!$C:$C,productionNumbers!$E:$E,$B101,productionNumbers!$A:$A,E$4,productionNumbers!$B:$B,$B$2) -> 260832 | F101: =SUMIFS(productionNumbers!$C:$C,productionNumbers!$E:$E,$B101,productionNumbers!$A:$A,F$4,productionNumbers!$B:$B,$B$2) -> 0 | G101: =SUMIFS(productionNumbers!$C:$C,productionNumbers!$E:$E,$B101,productionNumbers!$A:$A,G$4,productionNumbers!$B:$B,$B$2) -> 221312 | H101: =SUMIFS(productionNumbers!$C:$C,productionNumbers!$E:$E,$B101,productionNumbers!$A:$A,H$4,productionNumbers!$B:$B,$B$2) -> 181792 | I101: =SUMIFS(productionNumbers!$C:$C,productionNumbers!$E:$E,$B101,productionNumbers!$A:$A,I$4,productionNumbers!$B:$B,$B$2) -> 213408 | J101: 972192 | L101: =SUMIFS(planningNumbers!$H:$H,planningNumbers!$F:$F,$B101,planningNumbers!$C:$C,L$4,planningNumbers!$A:$A,$B$2) -> 135980 | M101: =SUMIFS(planningNumbers!$H:$H,planningNumbers!$F:$F,$B101,planningNumbers!$C:$C,M$4,planningNumbers!$A:$A,$B$2) -> 252035 | N101: =SUMIFS(planningNumbers!$H:$H,planningNumbers!$F:$F,$B101,planningNumbers!$C:$C,N$4,planningNumbers!$A:$A,$B$2) -> 0 | O101: =SUMIFS(planningNumbers!$H:$H,planningNumbers!$F:$F,$B101,planningNumbers!$C:$C,O$4,planningNumbers!$A:$A,$B$2) -> 254637 | P101: =SUMIFS(planningNumbers!$H:$H,planningNumbers!$F:$F,$B101,planningNumbers!$C:$C,P$4,planningNumbers!$A:$A,$B$2) -> 210328 | Q101: =SUMIFS(planningNumbers!$H:$H,planningNumbers!$F:$F,$B101,planningNumbers!$C:$C,Q$4,planningNumbers!$A:$A,$B$2) -> 253758 | R101: 1106738 | S101: =ROUND(IF(DATE(YEAR(Forecast!$K$2),MONTH(Forecast!$K$2),1)=DATE(YEAR(B101),MONTH(B101),1),Forecast!$K$6/Forecast!$K$3,INDEX(Forecast!$D$2:$D$16,MATCH(DATE(YEAR(B101),MONTH(B101),1),Forecast!$A$2:$A$16,0))/DAY(EOMONTH(B101,0))),0) -> 939777 | T101: =IFERROR(IF((Forecast!$K$2+30)<B101,0,IF(INDEX('Truck list'!$G$6:$G$500,COUNTA('Truck list'!$G$6:$G$500))<B101,S101,IF(U101="",SUMIFS('Truck list'!H:H,'Truck list'!G:G,B101),U101))),0) -> 1564992 | U101: 1564992 | W101: 7469280 | X101: 4220736 | Y101: 3849248 | Z101: =IF(W101="",IF(J101=0,Z98+R101-IF(U101=0,T101,U101),Z98+J101-IF(U101=0,T101,U101)),SUM(W101:X101)) -> 11690016 | AB101: 115 | AC101: 334 | AD101: 0 | AE101: 155 | AF101: 143 | AG101: 198 | AH101: 945 | AJ101: 3.3 MM units on hold due to line 1 sealing surface
A102: Wednesday | B102: =B101+1 -> 2025-04-02 | D102: =SUMIFS(productionNumbers!$C:$C,productionNumbers!$E:$E,$B102,productionNumbers!$A:$A,D$4,productionNumbers!$B:$B,$B$2) -> 165984 | E102: =SUMIFS(productionNumbers!$C:$C,productionNumbers!$E:$E,$B102,productionNumbers!$A:$A,E$4,productionNumbers!$B:$B,$B$2) -> 55328 | F102: =SUMIFS(productionNumbers!$C:$C,productionNumbers!$E:$E,$B102,productionNumbers!$A:$A,F$4,productionNumbers!$B:$B,$B$2) -> 0 | G102: =SUMIFS(productionNumbers!$C:$C,productionNumbers!$E:$E,$B102,productionNumbers!$A:$A,G$4,productionNumbers!$B:$B,$B$2) -> 189696 | H102: =SUMIFS(productionNumbers!$C:$C,productionNumbers!$E:$E,$B102,productionNumbers!$A:$A,H$4,productionNumbers!$B:$B,$B$2) -> 165984 | I102: =SUMIFS(productionNumbers!$C:$C,productionNumbers!$E:$E,$B102,productionNumbers!$A:$A,I$4,productionNumbers!$B:$B,$B$2) -> 276640 | J102: 853632 | L102: =SUMIFS(planningNumbers!$H:$H,planningNumbers!$F:$F,$B102,planningNumbers!$C:$C,L$4,planningNumbers!$A:$A,$B$2) -> 155406 | M102: =SUMIFS(planningNumbers!$H:$H,planningNumbers!$F:$F,$B102,planningNumbers!$C:$C,M$4,planningNumbers!$A:$A,$B$2) -> 162295 | N102: =SUMIFS(planningNumbers!$H:$H,planningNumbers!$F:$F,$B102,planningNumbers!$C:$C,N$4,planningNumbers!$A:$A,$B$2) -> 0 | O102: =SUMIFS(planningNumbers!$H:$H,planningNumbers!$F:$F,$B102,planningNumbers!$C:$C,O$4,planningNumbers!$A:$A,$B$2) -> 198568 | P102: =SUMIFS(planningNumbers!$H:$H,planningNumbers!$F:$F,$B102,planningNumbers!$C:$C,P$4,planningNumbers!$A:$A,$B$2) -> 210750 | Q102: =SUMIFS(planningNumbers!$H:$H,planningNumbers!$F:$F,$B102,planningNumbers!$C:$C,Q$4,planningNumbers!$A:$A,$B$2) -> 255196 | R102: 982215 | S102: =ROUND(IF(DATE(YEAR(Forecast!$K$2),MONTH(Forecast!$K$2),1)=DATE(YEAR(B102),MONTH(B102),1),Forecast!$K$6/Forecast!$K$3,INDEX(Forecast!$D$2:$D$16,MATCH(DATE(YEAR(B102),MONTH(B102),1),Forecast!$A$2:$A$16,0))/DAY(EOMONTH(B102,0))),0) -> 939777 | T102: =IFERROR(IF((Forecast!$K$2+30)<B102,0,IF(INDEX('Truck list'!$G$6:$G$500,COUNTA('Truck list'!$G$6:$G$500))<B102,S102,IF(U102="",SUMIFS('Truck list'!H:H,'Truck list'!G:G,B102),U102))),0) -> 1564992 | U102: 1564992 | W102: 6599840 | X102: 2758496 | Y102: 5358912 | Z102: =IF(W102="",IF(J102=0,Z101+R102-IF(U102=0,T102,U102),Z101+J102-IF(U102=0,T102,U102)),SUM(W102:X102)) -> 9358336 | AB102: 153 | AC102: 208 | AD102: 0 | AE102: 154 | AF102: 134 | AG102: 186 | AH102: 835 | AJ102: 3.3 MM units on hold due to line 1 sealing surface
A103: Thursday | B103: =B102+1 -> 2025-04-03 | D103: =SUMIFS(productionNumbers!$C:$C,productionNumbers!$E:$E,$B103,productionNumbers!$A:$A,D$4,productionNumbers!$B:$B,$B$2) -> 189696 | E103: =SUMIFS(productionNumbers!$C:$C,productionNumbers!$E:$E,$B103,productionNumbers!$A:$A,E$4,productionNumbers!$B:$B,$B$2) -> 0 | F103: =SUMIFS(productionNumbers!$C:$C,productionNumbers!$E:$E,$B103,productionNumbers!$A:$A,F$4,productionNumbers!$B:$B,$B$2) -> 0 | G103: =SUMIFS(productionNumbers!$C:$C,productionNumbers!$E:$E,$B103,productionNumbers!$A:$A,G$4,productionNumbers!$B:$B,$B$2) -> 268736 | H103: =SUMIFS(productionNumbers!$C:$C,productionNumbers!$E:$E,$B103,productionNumbers!$A:$A,H$4,productionNumbers!$B:$B,$B$2) -> 189696 | I103: =SUMIFS(productionNumbers!$C:$C,productionNumbers!$E:$E,$B103,productionNumbers!$A:$A,I$4,productionNumbers!$B:$B,$B$2) -> 284544 | J103: 932672 | L103: =SUMIFS(planningNumbers!$H:$H,planningNumbers!$F:$F,$B103,planningNumbers!$C:$C,L$4,planningNumbers!$A:$A,$B$2) -> 155406 | M103: =SUMIFS(planningNumbers!$H:$H,planningNumbers!$F:$F,$B103,planningNumbers!$C:$C,M$4,planningNumbers!$A:$A,$B$2) -> 185481 | N103: =SUMIFS(planningNumbers!$H:$H,planningNumbers!$F:$F,$B103,planningNumbers!$C:$C,N$4,planningNumbers!$A:$A,$B$2) -> 0 | O103: =SUMIFS(planningNumbers!$H:$H,planningNumbers!$F:$F,$B103,planningNumbers!$C:$C,O$4,planningNumbers!$A:$A,$B$2) -> 226935 | P103: =SUMIFS(planningNumbers!$H:$H,planningNumbers!$F:$F,$B103,planningNumbers!$C:$C,P$4,planningNumbers!$A:$A,$B$2) -> 178291 | Q103: =SUMIFS(planningNumbers!$H:$H,planningNumbers!$F:$F,$B103,planningNumbers!$C:$C,Q$4,planningNumbers!$A:$A,$B$2) -> 255725 | R103: 1001838 | S103: =ROUND(IF(DATE(YEAR(Forecast!$K$2),MONTH(Forecast!$K$2),1)=DATE(YEAR(B103),MONTH(B103),1),Forecast!$K$6/Forecast!$K$3,INDEX(Forecast!$D$2:$D$16,MATCH(DATE(YEAR(B103),MONTH(B103),1),Forecast!$A$2:$A$16,0))/DAY(EOMONTH(B103,0))),0) -> 939777 | T103: =IFERROR(IF((Forecast!$K$2+30)<B103,0,IF(INDEX('Truck list'!$G$6:$G$500,COUNTA('Truck list'!$G$6:$G$500))<B103,S103,IF(U103="",SUMIFS('Truck list'!H:H,'Truck list'!G:G,B103),U103))),0) -> 695552 | U103: 695552 | W103: 7477184 | X103: 2260544 | Y103: 5358912 | Z103: 9737728 | AB103: 131 | AC103: 198 | AD103: 0 | AE103: 209 | AF103: 170 | AG103: 238 | AH103: 946 | AJ103: 3.3 MM units on hold due to line 1 sealing surface
A104: Friday | B104: 2025-04-04 | D104: =SUMIFS(productionNumbers!$C:$C,productionNumbers!$E:$E,$B104,productionNumbers!$A:$A,D$4,productionNumbers!$B:$B,$B$2) -> 189696 | E104: =SUMIFS(productionNumbers!$C:$C,productionNumbers!$E:$E,$B104,productionNumbers!$A:$A,E$4,productionNumbers!$B:$B,$B$2) -> 118560 | F104: =SUMIFS(productionNumbers!$C:$C,productionNumbers!$E:$E,$B104,productionNumbers!$A:$A,F$4,productionNumbers!$B:$B,$B$2) -> 0 | G104: =SUMIFS(productionNumbers!$C:$C,productionNumbers!$E:$E,$B104,productionNumbers!$A:$A,G$4,productionNumbers!$B:$B,$B$2) -> 252928 | H104: =SUMIFS(productionNumbers!$C:$C,productionNumbers!$E:$E,$B104,productionNumbers!$A:$A,H$4,productionNumbers!$B:$B,$B$2) -> 189696 | I104: =SUMIFS(productionNumbers!$C:$C,productionNumbers!$E:$E,$B104,productionNumbers!$A:$A,I$4,productionNumbers!$B:$B,$B$2) -> 213408 | J104: 964288 | L104: =SUMIFS(planningNumbers!$H:$H,planningNumbers!$F:$F,$B104,planningNumbers!$C:$C,L$4,planningNumbers!$A:$A,$B$2) -> 182330 | M104: =SUMIFS(planningNumbers!$H:$H,planningNumbers!$F:$F,$B104,planningNumbers!$C:$C,M$4,planningNumbers!$A:$A,$B$2) -> 98550 | N104: =SUMIFS(planningNumbers!$H:$H,planningNumbers!$F:$F,$B104,planningNumbers!$C:$C,N$4,planningNumbers!$A:$A,$B$2) -> 0 | O104: =SUMIFS(planningNumbers!$H:$H,planningNumbers!$F:$F,$B104,planningNumbers!$C:$C,O$4,planningNumbers!$A:$A,$B$2) -> 245528 | P104: =SUMIFS(planningNumbers!$H:$H,planningNumbers!$F:$F,$B104,planningNumbers!$C:$C,P$4,planningNumbers!$A:$A,$B$2) -> 203761 | Q104: =SUMIFS(planningNumbers!$H:$H,planningNumbers!$F:$F,$B104,planningNumbers!$C:$C,Q$4,planningNumbers!$A:$A,$B$2) -> 226800 | R104: 956969 | S104: =ROUND(IF(DATE(YEAR(Forecast!$K$2),MONTH(Forecast!$K$2),1)=DATE(YEAR(B104),MONTH(B104),1),Forecast!$K$6/Forecast!$K$3,INDEX(Forecast!$D$2:$D$16,MATCH(DATE(YEAR(B104),MONTH(B104),1),Forecast!$A$2:$A$16,0))/DAY(EOMONTH(B104,0))),0) -> 939777 | T104: =IFERROR(IF((Forecast!$K$2+30)<B104,0,IF(INDEX('Truck list'!$G$6:$G$500,COUNTA('Truck list'!$G$6:$G$500))<B104,S104,IF(U104="",SUMIFS('Truck list'!H:H,'Truck list'!G:G,B104),U104))),0) -> 173888 | U104: 173888 | W104: 6647264 | X104: 5161312 | Y104: 5358912 | Z104: 11808576 | AB104: 92 | AC104: 198 | AD104: 0 | AE104: 193 | AF104: 137 | AG104: 221 | AH104: 841 | AJ104: 3.3 MM units on hold due to line 1 sealing surface
A105: Saturday | B105: 2025-04-05 | D105: =SUMIFS(productionNumbers!$C:$C,productionNumbers!$E:$E,$B105,productionNumbers!$A:$A,D$4,productionNumbers!$B:$B,$B$2) -> 102752 | E105: =SUMIFS(productionNumbers!$C:$C,productionNumbers!$E:$E,$B105,productionNumbers!$A:$A,E$4,productionNumbers!$B:$B,$B$2) -> 126464 | F105: =SUMIFS(productionNumbers!$C:$C,productionNumbers!$E:$E,$B105,productionNumbers!$A:$A,F$4,productionNumbers!$B:$B,$B$2) -> 0 | G105: =SUMIFS(productionNumbers!$C:$C,productionNumbers!$E:$E,$B105,productionNumbers!$A:$A,G$4,productionNumbers!$B:$B,$B$2) -> 229216 | H105: =SUMIFS(productionNumbers!$C:$C,productionNumbers!$E:$E,$B105,productionNumbers!$A:$A,H$4,productionNumbers!$B:$B,$B$2) -> 158080 | I105: =SUMIFS(productionNumbers!$C:$C,productionNumbers!$E:$E,$B105,productionNumbers!$A:$A,I$4,productionNumbers!$B:$B,$B$2) -> 229216 | J105: 845728 | L105: =SUMIFS(planningNumbers!$H:$H,planningNumbers!$F:$F,$B105,planningNumbers!$C:$C,L$4,planningNumbers!$A:$A,$B$2) -> 207360 | M105: =SUMIFS(planningNumbers!$H:$H,planningNumbers!$F:$F,$B105,planningNumbers!$C:$C,M$4,planningNumbers!$A:$A,$B$2) -> 129600 | N105: =SUMIFS(planningNumbers!$H:$H,planningNumbers!$F:$F,$B105,planningNumbers!$C:$C,N$4,planningNumbers!$A:$A,$B$2) -> 0 | O105: =SUMIFS(planningNumbers!$H:$H,planningNumbers!$F:$F,$B105,planningNumbers!$C:$C,O$4,planningNumbers!$A:$A,$B$2) -> 259200 | P105: =SUMIFS(planningNumbers!$H:$H,planningNumbers!$F:$F,$B105,planningNumbers!$C:$C,P$4,planningNumbers!$A:$A,$B$2) -> 195982 | Q105: =SUMIFS(planningNumbers!$H:$H,planningNumbers!$F:$F,$B105,planningNumbers!$C:$C,Q$4,planningNumbers!$A:$A,$B$2) -> 259200 | R105: 1051342 | S105: =ROUND(IF(DATE(YEAR(Forecast!$K$2),MONTH(Forecast!$K$2),1)=DATE(YEAR(B105),MONTH(B105),1),Forecast!$K$6/Forecast!$K$3,INDEX(Forecast!$D$2:$D$16,MATCH(DATE(YEAR(B105),MONTH(B105),1),Forecast!$A$2:$A$16,0))/DAY(EOMONTH(B105,0))),0) -> 939777 | T105: =IFERROR(IF((Forecast!$K$2+30)<B105,0,IF(INDEX('Truck list'!$G$6:$G$500,COUNTA('Truck list'!$G$6:$G$500))<B105,S105,IF(U105="",SUMIFS('Truck list'!H:H,'Truck list'!G:G,B105),U105))),0) -> 347776 | U105: 347776 | W105: 6647264 | X105: 5161312 | Y105: 5358912 | Z105: 11808576 | AB105: 92 | AC105: 198 | AD105: 0 | AE105: 193 | AF105: 137 | AG105: 221 | AH105: 841 | AJ105: 3.3 MM units on hold due to line 1 sealing surface
A106: Sunday | B106: 2025-04-06 | D106: =SUMIFS(productionNumbers!$C:$C,productionNumbers!$E:$E,$B106,productionNumbers!$A:$A,D$4,productionNumbers!$B:$B,$B$2) -> 173888 | E106: =SUMIFS(productionNumbers!$C:$C,productionNumbers!$E:$E,$B106,productionNumbers!$A:$A,E$4,productionNumbers!$B:$B,$B$2) -> 150176 | F106: =SUMIFS(productionNumbers!$C:$C,productionNumbers!$E:$E,$B106,productionNumbers!$A:$A,F$4,productionNumbers!$B:$B,$B$2) -> 0 | G106: =SUMIFS(productionNumbers!$C:$C,productionNumbers!$E:$E,$B106,productionNumbers!$A:$A,G$4,productionNumbers!$B:$B,$B$2) -> 237120 | H106: =SUMIFS(productionNumbers!$C:$C,productionNumbers!$E:$E,$B106,productionNumbers!$A:$A,H$4,productionNumbers!$B:$B,$B$2) -> 205504 | I106: =SUMIFS(productionNumbers!$C:$C,productionNumbers!$E:$E,$B106,productionNumbers!$A:$A,I$4,productionNumbers!$B:$B,$B$2) -> 276640 | J106: 1043328 | L106: =SUMIFS(planningNumbers!$H:$H,planningNumbers!$F:$F,$B106,planningNumbers!$C:$C,L$4,planningNumbers!$A:$A,$B$2) -> 206277 | M106: =SUMIFS(planningNumbers!$H:$H,planningNumbers!$F:$F,$B106,planningNumbers!$C:$C,M$4,planningNumbers!$A:$A,$B$2) -> 129228 | N106: =SUMIFS(planningNumbers!$H:$H,planningNumbers!$F:$F,$B106,planningNumbers!$C:$C,N$4,planningNumbers!$A:$A,$B$2) -> 0 | O106: =SUMIFS(planningNumbers!$H:$H,planningNumbers!$F:$F,$B106,planningNumbers!$C:$C,O$4,planningNumbers!$A:$A,$B$2) -> 241864 | P106: =SUMIFS(planningNumbers!$H:$H,planningNumbers!$F:$F,$B106,planningNumbers!$C:$C,P$4,planningNumbers!$A:$A,$B$2) -> 179052 | Q106: =SUMIFS(planningNumbers!$H:$H,planningNumbers!$F:$F,$B106,planningNumbers!$C:$C,Q$4,planningNumbers!$A:$A,$B$2) -> 252789 | R106: 1009210 | S106: =ROUND(IF(DATE(YEAR(Forecast!$K$2),MONTH(Forecast!$K$2),1)=DATE(YEAR(B106),MONTH(B106),1),Forecast!$K$6/Forecast!$K$3,INDEX(Forecast!$D$2:$D$16,MATCH(DATE(YEAR(B106),MONTH(B106),1),Forecast!$A$2:$A$16,0))/DAY(EOMONTH(B106,0))),0) -> 939777 | T106: =IFERROR(IF((Forecast!$K$2+30)<B106,0,IF(INDEX('Truck list'!$G$6:$G$500,COUNTA('Truck list'!$G$6:$G$500))<B106,S106,IF(U106="",SUMIFS('Truck list'!H:H,'Truck list'!G:G,B106),U106))),0) -> 521664 | U106: 521664 | W106: 7374432 | X106: 4442048 | Y106: 5358912 | Z106: 11816480 | AB106: 92 | AC106: 198 | AD106: 0 | AE106: 193 | AF106: 165 | AG106: 285 | AH106: 933 | AJ106: 3.3 MM units on hold due to line 1 sealing surface
A107: Monday | B107: 2025-04-07 | D107: =SUMIFS(productionNumbers!$C:$C,productionNumbers!$E:$E,$B107,productionNumbers!$A:$A,D$4,productionNumbers!$B:$B,$B$2) -> 173888 | E107: =SUMIFS(productionNumbers!$C:$C,productionNumbers!$E:$E,$B107,productionNumbers!$A:$A,E$4,productionNumbers!$B:$B,$B$2) -> 102752 | F107: =SUMIFS(productionNumbers!$C:$C,productionNumbers!$E:$E,$B107,productionNumbers!$A:$A,F$4,productionNumbers!$B:$B,$B$2) -> 0 | G107: =SUMIFS(productionNumbers!$C:$C,productionNumbers!$E:$E,$B107,productionNumbers!$A:$A,G$4,productionNumbers!$B:$B,$B$2) -> 221312 | H107: =SUMIFS(productionNumbers!$C:$C,productionNumbers!$E:$E,$B107,productionNumbers!$A:$A,H$4,productionNumbers!$B:$B,$B$2) -> 158080 | I107: =SUMIFS(productionNumbers!$C:$C,productionNumbers!$E:$E,$B107,productionNumbers!$A:$A,I$4,productionNumbers!$B:$B,$B$2) -> 260832 | J107: 916864 | L107: =SUMIFS(planningNumbers!$H:$H,planningNumbers!$F:$F,$B107,planningNumbers!$C:$C,L$4,planningNumbers!$A:$A,$B$2) -> 206072 | M107: =SUMIFS(planningNumbers!$H:$H,planningNumbers!$F:$F,$B107,planningNumbers!$C:$C,M$4,planningNumbers!$A:$A,$B$2) -> 124766 | N107: =SUMIFS(planningNumbers!$H:$H,planningNumbers!$F:$F,$B107,planningNumbers!$C:$C,N$4,planningNumbers!$A:$A,$B$2) -> 0 | O107: =SUMIFS(planningNumbers!$H:$H,planningNumbers!$F:$F,$B107,planningNumbers!$C:$C,O$4,planningNumbers!$A:$A,$B$2) -> 228445 | P107: =SUMIFS(planningNumbers!$H:$H,planningNumbers!$F:$F,$B107,planningNumbers!$C:$C,P$4,planningNumbers!$A:$A,$B$2) -> 189581 | Q107: =SUMIFS(planningNumbers!$H:$H,planningNumbers!$F:$F,$B107,planningNumbers!$C:$C,Q$4,planningNumbers!$A:$A,$B$2) -> 251766 | R107: 1000630 | S107: =ROUND(IF(DATE(YEAR(Forecast!$K$2),MONTH(Forecast!$K$2),1)=DATE(YEAR(B107),MONTH(B107),1),Forecast!$K$6/Forecast!$K$3,INDEX(Forecast!$D$2:$D$16,MATCH(DATE(YEAR(B107),MONTH(B107),1),Forecast!$A$2:$A$16,0))/DAY(EOMONTH(B107,0))),0) -> 939777 | T107: =IFERROR(IF((Forecast!$K$2+30)<B107,0,IF(INDEX('Truck list'!$G$6:$G$500,COUNTA('Truck list'!$G$6:$G$500))<B107,S107,IF(U107="",SUMIFS('Truck list'!H:H,'Truck list'!G:G,B107),U107))),0) -> 521664 | U107: 521664 | W107: 11508224 | X107: 1564992 | Y107: 4442048 | Z107: 13073216 | AB107: 260 | AC107: 311 | AD107: 0 | AE107: 324 | AF107: 212 | AG107: 349 | AH107: 1456 | AJ107: 3.3 MM units on hold due to line 1 sealing surface
A108: Tuesday | B108: 2025-04-08 | D108: =SUMIFS(productionNumbers!$C:$C,productionNumbers!$E:$E,$B108,productionNumbers!$A:$A,D$4,productionNumbers!$B:$B,$B$2) -> 102752 | E108: =SUMIFS(productionNumbers!$C:$C,productionNumbers!$E:$E,$B108,productionNumbers!$A:$A,E$4,productionNumbers!$B:$B,$B$2) -> 110656 | F108: =SUMIFS(productionNumbers!$C:$C,productionNumbers!$E:$E,$B108,productionNumbers!$A:$A,F$4,productionNumbers!$B:$B,$B$2) -> 0 | G108: =SUMIFS(productionNumbers!$C:$C,productionNumbers!$E:$E,$B108,productionNumbers!$A:$A,G$4,productionNumbers!$B:$B,$B$2) -> 245024 | H108: =SUMIFS(productionNumbers!$C:$C,productionNumbers!$E:$E,$B108,productionNumbers!$A:$A,H$4,productionNumbers!$B:$B,$B$2) -> 197600 | I108: =SUMIFS(productionNumbers!$C:$C,productionNumbers!$E:$E,$B108,productionNumbers!$A:$A,I$4,productionNumbers!$B:$B,$B$2) -> 252928 | J108: 908960 | L108: =SUMIFS(planningNumbers!$H:$H,planningNumbers!$F:$F,$B108,planningNumbers!$C:$C,L$4,planningNumbers!$A:$A,$B$2) -> 141291 | M108: =SUMIFS(planningNumbers!$H:$H,planningNumbers!$F:$F,$B108,planningNumbers!$C:$C,M$4,planningNumbers!$A:$A,$B$2) -> 144200 | N108: =SUMIFS(planningNumbers!$H:$H,planningNumbers!$F:$F,$B108,planningNumbers!$C:$C,N$4,planningNumbers!$A:$A,$B$2) -> 0 | O108: =SUMIFS(planningNumbers!$H:$H,planningNumbers!$F:$F,$B108,planningNumbers!$C:$C,O$4,planningNumbers!$A:$A,$B$2) -> 231792 | P108: =SUMIFS(planningNumbers!$H:$H,planningNumbers!$F:$F,$B108,planningNumbers!$C:$C,P$4,planningNumbers!$A:$A,$B$2) -> 207318 | Q108: =SUMIFS(planningNumbers!$H:$H,planningNumbers!$F:$F,$B108,planningNumbers!$C:$C,Q$4,planningNumbers!$A:$A,$B$2) -> 255153 | R108: 979754 | S108: =ROUND(IF(DATE(YEAR(Forecast!$K$2),MONTH(Forecast!$K$2),1)=DATE(YEAR(B108),MONTH(B108),1),Forecast!$K$6/Forecast!$K$3,INDEX(Forecast!$D$2:$D$16,MATCH(DATE(YEAR(B108),MONTH(B108),1),Forecast!$A$2:$A$16,0))/DAY(EOMONTH(B108,0))),0) -> 939777 | T108: =IFERROR(IF((Forecast!$K$2+30)<B108,0,IF(INDEX('Truck list'!$G$6:$G$500,COUNTA('Truck list'!$G$6:$G$500))<B108,S108,IF(U108="",SUMIFS('Truck list'!H:H,'Truck list'!G:G,B108),U108))),0) -> 869440 | U108: 869440 | W108: 10662496 | X108: 1976000 | Y108: 4947904 | Z108: 12638496 | AB108: 173 | AC108: 301 | AD108: 0 | AE108: 287 | AF108: 256 | AG108: 332 | AH108: 1349 | AJ108: 4.2 MM units on hold due to sealing surface issues
A109: Wednesday | B109: 2025-04-09 | D109: =SUMIFS(productionNumbers!$C:$C,productionNumbers!$E:$E,$B109,productionNumbers!$A:$A,D$4,productionNumbers!$B:$B,$B$2) -> 205504 | E109: =SUMIFS(productionNumbers!$C:$C,productionNumbers!$E:$E,$B109,productionNumbers!$A:$A,E$4,productionNumbers!$B:$B,$B$2) -> 221312 | F109: =SUMIFS(productionNumbers!$C:$C,productionNumbers!$E:$E,$B109,productionNumbers!$A:$A,F$4,productionNumbers!$B:$B,$B$2) -> 0 | G109: =SUMIFS(productionNumbers!$C:$C,productionNumbers!$E:$E,$B109,productionNumbers!$A:$A,G$4,productionNumbers!$B:$B,$B$2) -> 284544 | H109: =SUMIFS(productionNumbers!$C:$C,productionNumbers!$E:$E,$B109,productionNumbers!$A:$A,H$4,productionNumbers!$B:$B,$B$2) -> 142272 | I109: =SUMIFS(productionNumbers!$C:$C,productionNumbers!$E:$E,$B109,productionNumbers!$A:$A,I$4,productionNumbers!$B:$B,$B$2) -> 292448 | J109: 1146080 | L109: =SUMIFS(planningNumbers!$H:$H,planningNumbers!$F:$F,$B109,planningNumbers!$C:$C,L$4,planningNumbers!$A:$A,$B$2) -> 161475 | M109: =SUMIFS(planningNumbers!$H:$H,planningNumbers!$F:$F,$B109,planningNumbers!$C:$C,M$4,planningNumbers!$A:$A,$B$2) -> 203576 | N109: =SUMIFS(planningNumbers!$H:$H,planningNumbers!$F:$F,$B109,planningNumbers!$C:$C,N$4,planningNumbers!$A:$A,$B$2) -> 0 | O109: =SUMIFS(planningNumbers!$H:$H,planningNumbers!$F:$F,$B109,planningNumbers!$C:$C,O$4,planningNumbers!$A:$A,$B$2) -> 240393 | P109: =SUMIFS(planningNumbers!$H:$H,planningNumbers!$F:$F,$B109,planningNumbers!$C:$C,P$4,planningNumbers!$A:$A,$B$2) -> 108473 | Q109: =SUMIFS(planningNumbers!$H:$H,planningNumbers!$F:$F,$B109,planningNumbers!$C:$C,Q$4,planningNumbers!$A:$A,$B$2) -> 256051 | R109: 969968 | S109: =ROUND(IF(DATE(YEAR(Forecast!$K$2),MONTH(Forecast!$K$2),1)=DATE(YEAR(B109),MONTH(B109),1),Forecast!$K$6/Forecast!$K$3,INDEX(Forecast!$D$2:$D$16,MATCH(DATE(YEAR(B109),MONTH(B109),1),Forecast!$A$2:$A$16,0))/DAY(EOMONTH(B109,0))),0) -> 939777 | T109: =IFERROR(IF((Forecast!$K$2+30)<B109,0,IF(INDEX('Truck list'!$G$6:$G$500,COUNTA('Truck list'!$G$6:$G$500))<B109,S109,IF(U109="",SUMIFS('Truck list'!H:H,'Truck list'!G:G,B109),U109))),0) -> 869440 | U109: 869440 | W109: 12029888 | X109: 1564992 | Y109: 4584320 | Z109: 13594880 | AB109: 193 | AC109: 338 | AD109: 0 | AE109: 308 | AF109: 285 | AG109: 398 | AH109: 1522 | AJ109: 4.2 MM units on hold due to sealing surface issues
A110: =TEXT(B110,"dddd") -> Thursday | B110: 2025-04-10 | D110: =SUMIFS(productionNumbers!$C:$C,productionNumbers!$E:$E,$B110,productionNumbers!$A:$A,D$4,productionNumbers!$B:$B,$B$2) -> 189696 | E110: =SUMIFS(productionNumbers!$C:$C,productionNumbers!$E:$E,$B110,productionNumbers!$A:$A,E$4,productionNumbers!$B:$B,$B$2) -> 165984 | F110: =SUMIFS(productionNumbers!$C:$C,productionNumbers!$E:$E,$B110,productionNumbers!$A:$A,F$4,productionNumbers!$B:$B,$B$2) -> 0 | G110: =SUMIFS(productionNumbers!$C:$C,productionNumbers!$E:$E,$B110,productionNumbers!$A:$A,G$4,productionNumbers!$B:$B,$B$2) -> 205504 | H110: =SUMIFS(productionNumbers!$C:$C,productionNumbers!$E:$E,$B110,productionNumbers!$A:$A,H$4,productionNumbers!$B:$B,$B$2) -> 142272 | I110: =SUMIFS(productionNumbers!$C:$C,productionNumbers!$E:$E,$B110,productionNumbers!$A:$A,I$4,productionNumbers!$B:$B,$B$2) -> 237120 | J110: 940576 | L110: =SUMIFS(planningNumbers!$H:$H,planningNumbers!$F:$F,$B110,planningNumbers!$C:$C,L$4,planningNumbers!$A:$A,$B$2) -> 161475 | M110: =SUMIFS(planningNumbers!$H:$H,planningNumbers!$F:$F,$B110,planningNumbers!$C:$C,M$4,planningNumbers!$A:$A,$B$2) -> 114896 | N110: =SUMIFS(planningNumbers!$H:$H,planningNumbers!$F:$F,$B110,planningNumbers!$C:$C,N$4,planningNumbers!$A:$A,$B$2) -> 0 | O110: =SUMIFS(planningNumbers!$H:$H,planningNumbers!$F:$F,$B110,planningNumbers!$C:$C,O$4,planningNumbers!$A:$A,$B$2) -> 261354 | P110: =SUMIFS(planningNumbers!$H:$H,planningNumbers!$F:$F,$B110,planningNumbers!$C:$C,P$4,planningNumbers!$A:$A,$B$2) -> 174085 | Q110: =SUMIFS(planningNumbers!$H:$H,planningNumbers!$F:$F,$B110,planningNumbers!$C:$C,Q$4,planningNumbers!$A:$A,$B$2) -> 212969 | R110: 924779 | S110: =ROUND(IF(DATE(YEAR(Forecast!$K$2),MONTH(Forecast!$K$2),1)=DATE(YEAR(B110),MONTH(B110),1),Forecast!$K$6/Forecast!$K$3,INDEX(Forecast!$D$2:$D$16,MATCH(DATE(YEAR(B110),MONTH(B110),1),Forecast!$A$2:$A$16,0))/DAY(EOMONTH(B110,0))),0) -> 939777 | T110: =IFERROR(IF((Forecast!$K$2+30)<B110,0,IF(INDEX('Truck list'!$G$6:$G$500,COUNTA('Truck list'!$G$6:$G$500))<B110,S110,IF(U110="",SUMIFS('Truck list'!H:H,'Truck list'!G:G,B110),U110))),0) -> 521664 | U110: 521664 | W110: 11508224 | X110: 2442336 | Y110: 4600128 | Z110: 13950560 | AB110: 177 | AC110: 338 | AD110: 0 | AE110: 277 | AF110: 266 | AG110: 398 | AH110: 1456 | AJ110: 4.2 MM units on hold due to sealing surface issues
A111: Friday | B111: 2025-04-11 | D111: =SUMIFS(productionNumbers!$C:$C,productionNumbers!$E:$E,$B111,productionNumbers!$A:$A,D$4,productionNumbers!$B:$B,$B$2) -> 102752 | E111: =SUMIFS(productionNumbers!$C:$C,productionNumbers!$E:$E,$B111,productionNumbers!$A:$A,E$4,productionNumbers!$B:$B,$B$2) -> 189696 | F111: =SUMIFS(productionNumbers!$C:$C,productionNumbers!$E:$E,$B111,productionNumbers!$A:$A,F$4,productionNumbers!$B:$B,$B$2) -> 0 | G111: =SUMIFS(productionNumbers!$C:$C,productionNumbers!$E:$E,$B111,productionNumbers!$A:$A,G$4,productionNumbers!$B:$B,$B$2) -> 102752 | H111: =SUMIFS(productionNumbers!$C:$C,productionNumbers!$E:$E,$B111,productionNumbers!$A:$A,H$4,productionNumbers!$B:$B,$B$2) -> 150176 | I111: =SUMIFS(productionNumbers!$C:$C,productionNumbers!$E:$E,$B111,productionNumbers!$A:$A,I$4,productionNumbers!$B:$B,$B$2) -> 229216 | J111: 774592 | L111: =SUMIFS(planningNumbers!$H:$H,planningNumbers!$F:$F,$B111,planningNumbers!$C:$C,L$4,planningNumbers!$A:$A,$B$2) -> 101763 | M111: =SUMIFS(planningNumbers!$H:$H,planningNumbers!$F:$F,$B111,planningNumbers!$C:$C,M$4,planningNumbers!$A:$A,$B$2) -> 200010 | N111: =SUMIFS(planningNumbers!$H:$H,planningNumbers!$F:$F,$B111,planningNumbers!$C:$C,N$4,planningNumbers!$A:$A,$B$2) -> 0 | O111: =SUMIFS(planningNumbers!$H:$H,planningNumbers!$F:$F,$B111,planningNumbers!$C:$C,O$4,planningNumbers!$A:$A,$B$2) -> 111448 | P111: =SUMIFS(planningNumbers!$H:$H,planningNumbers!$F:$F,$B111,planningNumbers!$C:$C,P$4,planningNumbers!$A:$A,$B$2) -> 182594 | Q111: =SUMIFS(planningNumbers!$H:$H,planningNumbers!$F:$F,$B111,planningNumbers!$C:$C,Q$4,planningNumbers!$A:$A,$B$2) -> 259032 | R111: 854847 | S111: =ROUND(IF(DATE(YEAR(Forecast!$K$2),MONTH(Forecast!$K$2),1)=DATE(YEAR(B111),MONTH(B111),1),Forecast!$K$6/Forecast!$K$3,INDEX(Forecast!$D$2:$D$16,MATCH(DATE(YEAR(B111),MONTH(B111),1),Forecast!$A$2:$A$16,0))/DAY(EOMONTH(B111,0))),0) -> 939777 | T111: =IFERROR(IF((Forecast!$K$2+30)<B111,0,IF(INDEX('Truck list'!$G$6:$G$500,COUNTA('Truck list'!$G$6:$G$500))<B111,S111,IF(U111="",SUMIFS('Truck list'!H:H,'Truck list'!G:G,B111),U111))),0) -> 173888 | U111: 173888 | W111: 10259392 | X111: 3074656 | Y111: 4671264 | Z111: 13334048 | AB111: 136 | AC111: 359 | AD111: 0 | AE111: 257 | AF111: 210 | AG111: 336 | AH111: 1298 | AJ111: 4.2 MM units on hold due to sealing surface issues
A112: Saturday | B112: 2025-04-12 | D112: =SUMIFS(productionNumbers!$C:$C,productionNumbers!$E:$E,$B112,productionNumbers!$A:$A,D$4,productionNumbers!$B:$B,$B$2) -> 0 | E112: =SUMIFS(productionNumbers!$C:$C,productionNumbers!$E:$E,$B112,productionNumbers!$A:$A,E$4,productionNumbers!$B:$B,$B$2) -> 205504 | F112: =SUMIFS(productionNumbers!$C:$C,productionNumbers!$E:$E,$B112,productionNumbers!$A:$A,F$4,productionNumbers!$B:$B,$B$2) -> 0 | G112: =SUMIFS(productionNumbers!$C:$C,productionNumbers!$E:$E,$B112,productionNumbers!$A:$A,G$4,productionNumbers!$B:$B,$B$2) -> 102752 | H112: =SUMIFS(productionNumbers!$C:$C,productionNumbers!$E:$E,$B112,productionNumbers!$A:$A,H$4,productionNumbers!$B:$B,$B$2) -> 126464 | I112: =SUMIFS(productionNumbers!$C:$C,productionNumbers!$E:$E,$B112,productionNumbers!$A:$A,I$4,productionNumbers!$B:$B,$B$2) -> 245024 | J112: 679744 | L112: =SUMIFS(planningNumbers!$H:$H,planningNumbers!$F:$F,$B112,planningNumbers!$C:$C,L$4,planningNumbers!$A:$A,$B$2) -> 0 | M112: =SUMIFS(planningNumbers!$H:$H,planningNumbers!$F:$F,$B112,planningNumbers!$C:$C,M$4,planningNumbers!$A:$A,$B$2) -> 207360 | N112: =SUMIFS(planningNumbers!$H:$H,planningNumbers!$F:$F,$B112,planningNumbers!$C:$C,N$4,planningNumbers!$A:$A,$B$2) -> 0 | O112: =SUMIFS(planningNumbers!$H:$H,planningNumbers!$F:$F,$B112,planningNumbers!$C:$C,O$4,planningNumbers!$A:$A,$B$2) -> 127369 | P112: =SUMIFS(planningNumbers!$H:$H,planningNumbers!$F:$F,$B112,planningNumbers!$C:$C,P$4,planningNumbers!$A:$A,$B$2) -> 182594 | Q112: =SUMIFS(planningNumbers!$H:$H,planningNumbers!$F:$F,$B112,planningNumbers!$C:$C,Q$4,planningNumbers!$A:$A,$B$2) -> 256615 | R112: 773938 | S112: =ROUND(IF(DATE(YEAR(Forecast!$K$2),MONTH(Forecast!$K$2),1)=DATE(YEAR(B112),MONTH(B112),1),Forecast!$K$6/Forecast!$K$3,INDEX(Forecast!$D$2:$D$16,MATCH(DATE(YEAR(B112),MONTH(B112),1),Forecast!$A$2:$A$16,0))/DAY(EOMONTH(B112,0))),0) -> 939777 | T112: =IFERROR(IF((Forecast!$K$2+30)<B112,0,IF(INDEX('Truck list'!$G$6:$G$500,COUNTA('Truck list'!$G$6:$G$500))<B112,S112,IF(U112="",SUMIFS('Truck list'!H:H,'Truck list'!G:G,B112),U112))),0) -> 1217216 | U112: 1217216 | W112: 10259392 | X112: 3074656 | Y112: 4671264 | Z112: 13334048 | AB112: 136 | AC112: 359 | AD112: 0 | AE112: 257 | AF112: 210 | AG112: 336 | AH112: 1298 | AJ112: 4.2 MM units on hold due to sealing surface issues
A113: =TEXT(B113,"dddd") -> Sunday | B113: 2025-04-13 | D113: =SUMIFS(productionNumbers!$C:$C,productionNumbers!$E:$E,$B113,productionNumbers!$A:$A,D$4,productionNumbers!$B:$B,$B$2) -> 0 | E113: =SUMIFS(productionNumbers!$C:$C,productionNumbers!$E:$E,$B113,productionNumbers!$A:$A,E$4,productionNumbers!$B:$B,$B$2) -> 205504 | F113: =SUMIFS(productionNumbers!$C:$C,productionNumbers!$E:$E,$B113,productionNumbers!$A:$A,F$4,productionNumbers!$B:$B,$B$2) -> 0 | G113: =SUMIFS(productionNumbers!$C:$C,productionNumbers!$E:$E,$B113,productionNumbers!$A:$A,G$4,productionNumbers!$B:$B,$B$2) -> 94848 | H113: =SUMIFS(productionNumbers!$C:$C,productionNumbers!$E:$E,$B113,productionNumbers!$A:$A,H$4,productionNumbers!$B:$B,$B$2) -> 158080 | I113: =SUMIFS(productionNumbers!$C:$C,productionNumbers!$E:$E,$B113,productionNumbers!$A:$A,I$4,productionNumbers!$B:$B,$B$2) -> 237120 | J113: 695552 | L113: =SUMIFS(planningNumbers!$H:$H,planningNumbers!$F:$F,$B113,planningNumbers!$C:$C,L$4,planningNumbers!$A:$A,$B$2) -> 0 | M113: =SUMIFS(planningNumbers!$H:$H,planningNumbers!$F:$F,$B113,planningNumbers!$C:$C,M$4,planningNumbers!$A:$A,$B$2) -> 201253 | N113: =SUMIFS(planningNumbers!$H:$H,planningNumbers!$F:$F,$B113,planningNumbers!$C:$C,N$4,planningNumbers!$A:$A,$B$2) -> 0 | O113: =SUMIFS(planningNumbers!$H:$H,planningNumbers!$F:$F,$B113,planningNumbers!$C:$C,O$4,planningNumbers!$A:$A,$B$2) -> 127369 | P113: =SUMIFS(planningNumbers!$H:$H,planningNumbers!$F:$F,$B113,planningNumbers!$C:$C,P$4,planningNumbers!$A:$A,$B$2) -> 205671 | Q113: =SUMIFS(planningNumbers!$H:$H,planningNumbers!$F:$F,$B113,planningNumbers!$C:$C,Q$4,planningNumbers!$A:$A,$B$2) -> 251480 | R113: 785773 | S113: =ROUND(IF(DATE(YEAR(Forecast!$K$2),MONTH(Forecast!$K$2),1)=DATE(YEAR(B113),MONTH(B113),1),Forecast!$K$6/Forecast!$K$3,INDEX(Forecast!$D$2:$D$16,MATCH(DATE(YEAR(B113),MONTH(B113),1),Forecast!$A$2:$A$16,0))/DAY(EOMONTH(B113,0))),0) -> 939777 | T113: =IFERROR(IF((Forecast!$K$2+30)<B113,0,IF(INDEX('Truck list'!$G$6:$G$500,COUNTA('Truck list'!$G$6:$G$500))<B113,S113,IF(U113="",SUMIFS('Truck list'!H:H,'Truck list'!G:G,B113),U113))),0) -> 1391104 | U113: 1391104 | W113: 10259392 | X113: 3074656 | Y113: 4671264 | Z113: 13334048 | AB113: 136 | AC113: 359 | AD113: 0 | AE113: 257 | AF113: 210 | AG113: 336 | AH113: 1298 | AJ113: 4.2 MM units on hold due to sealing surface issues
A114: Monday | B114: 2025-04-14 | D114: =SUMIFS(productionNumbers!$C:$C,productionNumbers!$E:$E,$B114,productionNumbers!$A:$A,D$4,productionNumbers!$B:$B,$B$2) -> 0 | E114: =SUMIFS(productionNumbers!$C:$C,productionNumbers!$E:$E,$B114,productionNumbers!$A:$A,E$4,productionNumbers!$B:$B,$B$2) -> 197600 | F114: =SUMIFS(productionNumbers!$C:$C,productionNumbers!$E:$E,$B114,productionNumbers!$A:$A,F$4,productionNumbers!$B:$B,$B$2) -> 0 | G114: =SUMIFS(productionNumbers!$C:$C,productionNumbers!$E:$E,$B114,productionNumbers!$A:$A,G$4,productionNumbers!$B:$B,$B$2) -> 221312 | H114: =SUMIFS(productionNumbers!$C:$C,productionNumbers!$E:$E,$B114,productionNumbers!$A:$A,H$4,productionNumbers!$B:$B,$B$2) -> 173888 | I114: =SUMIFS(productionNumbers!$C:$C,productionNumbers!$E:$E,$B114,productionNumbers!$A:$A,I$4,productionNumbers!$B:$B,$B$2) -> 0 | J114: 592800 | L114: =SUMIFS(planningNumbers!$H:$H,planningNumbers!$F:$F,$B114,planningNumbers!$C:$C,L$4,planningNumbers!$A:$A,$B$2) -> 0 | M114: =SUMIFS(planningNumbers!$H:$H,planningNumbers!$F:$F,$B114,planningNumbers!$C:$C,M$4,planningNumbers!$A:$A,$B$2) -> 191822 | N114: =SUMIFS(planningNumbers!$H:$H,planningNumbers!$F:$F,$B114,planningNumbers!$C:$C,N$4,planningNumbers!$A:$A,$B$2) -> 0 | O114: =SUMIFS(planningNumbers!$H:$H,planningNumbers!$F:$F,$B114,planningNumbers!$C:$C,O$4,planningNumbers!$A:$A,$B$2) -> 127369 | P114: =SUMIFS(planningNumbers!$H:$H,planningNumbers!$F:$F,$B114,planningNumbers!$C:$C,P$4,planningNumbers!$A:$A,$B$2) -> 205719 | Q114: =SUMIFS(planningNumbers!$H:$H,planningNumbers!$F:$F,$B114,planningNumbers!$C:$C,Q$4,planningNumbers!$A:$A,$B$2) -> 0 | R114: 524910 | S114: =ROUND(IF(DATE(YEAR(Forecast!$K$2),MONTH(Forecast!$K$2),1)=DATE(YEAR(B114),MONTH(B114),1),Forecast!$K$6/Forecast!$K$3,INDEX(Forecast!$D$2:$D$16,MATCH(DATE(YEAR(B114),MONTH(B114),1),Forecast!$A$2:$A$16,0))/DAY(EOMONTH(B114,0))),0) -> 939777 | T114: =IFERROR(IF((Forecast!$K$2+30)<B114,0,IF(INDEX('Truck list'!$G$6:$G$500,COUNTA('Truck list'!$G$6:$G$500))<B114,S114,IF(U114="",SUMIFS('Truck list'!H:H,'Truck list'!G:G,B114),U114))),0) -> 1391104 | U114: 1391104 | W114: 8820864 | X114: 3675360 | Y114: 4623840 | Z114: 12496224 | AB114: 129 | AC114: 323 | AD114: 0 | AE114: 174 | AF114: 166 | AG114: 324 | AH114: 1116 | AJ114: 4.2 MM units on hold due to sealing surface issues
A115: Tuesday | B115: 2025-04-15 | D115: =SUMIFS(productionNumbers!$C:$C,productionNumbers!$E:$E,$B115,productionNumbers!$A:$A,D$4,productionNumbers!$B:$B,$B$2) -> 0 | E115: =SUMIFS(productionNumbers!$C:$C,productionNumbers!$E:$E,$B115,productionNumbers!$A:$A,E$4,productionNumbers!$B:$B,$B$2) -> 197600 | F115: =SUMIFS(productionNumbers!$C:$C,productionNumbers!$E:$E,$B115,productionNumbers!$A:$A,F$4,productionNumbers!$B:$B,$B$2) -> 0 | G115: =SUMIFS(productionNumbers!$C:$C,productionNumbers!$E:$E,$B115,productionNumbers!$A:$A,G$4,productionNumbers!$B:$B,$B$2) -> 229216 | H115: =SUMIFS(productionNumbers!$C:$C,productionNumbers!$E:$E,$B115,productionNumbers!$A:$A,H$4,productionNumbers!$B:$B,$B$2) -> 134368 | I115: =SUMIFS(productionNumbers!$C:$C,productionNumbers!$E:$E,$B115,productionNumbers!$A:$A,I$4,productionNumbers!$B:$B,$B$2) -> 0 | J115: 561184 | L115: =SUMIFS(planningNumbers!$H:$H,planningNumbers!$F:$F,$B115,planningNumbers!$C:$C,L$4,planningNumbers!$A:$A,$B$2) -> 0 | M115: =SUMIFS(planningNumbers!$H:$H,planningNumbers!$F:$F,$B115,planningNumbers!$C:$C,M$4,planningNumbers!$A:$A,$B$2) -> 191822 | N115: =SUMIFS(planningNumbers!$H:$H,planningNumbers!$F:$F,$B115,planningNumbers!$C:$C,N$4,planningNumbers!$A:$A,$B$2) -> 0 | O115: =SUMIFS(planningNumbers!$H:$H,planningNumbers!$F:$F,$B115,planningNumbers!$C:$C,O$4,planningNumbers!$A:$A,$B$2) -> 228895 | P115: =SUMIFS(planningNumbers!$H:$H,planningNumbers!$F:$F,$B115,planningNumbers!$C:$C,P$4,planningNumbers!$A:$A,$B$2) -> 181440 | Q115: =SUMIFS(planningNumbers!$H:$H,planningNumbers!$F:$F,$B115,planningNumbers!$C:$C,Q$4,planningNumbers!$A:$A,$B$2) -> 0 | R115: 602157 | S115: =ROUND(IF(DATE(YEAR(Forecast!$K$2),MONTH(Forecast!$K$2),1)=DATE(YEAR(B115),MONTH(B115),1),Forecast!$K$6/Forecast!$K$3,INDEX(Forecast!$D$2:$D$16,MATCH(DATE(YEAR(B115),MONTH(B115),1),Forecast!$A$2:$A$16,0))/DAY(EOMONTH(B115,0))),0) -> 939777 | T115: =IFERROR(IF((Forecast!$K$2+30)<B115,0,IF(INDEX('Truck list'!$G$6:$G$500,COUNTA('Truck list'!$G$6:$G$500))<B115,S115,IF(U115="",SUMIFS('Truck list'!H:H,'Truck list'!G:G,B115),U115))),0) -> 1391104 | U115: 1391104 | W115: 9516416 | X115: 2228928 | Y115: 4647552 | Z115: 11745344 | AB115: 166 | AC115: 361 | AD115: 0 | AE115: 169 | AF115: 197 | AG115: 311 | AH115: 1204 | AJ115: 1500 hr PM 2 days allotted 4.2 MM units on hold due to sealing surface issues
A116: Wednesday | B116: 2025-04-16 | D116: =SUMIFS(productionNumbers!$C:$C,productionNumbers!$E:$E,$B116,productionNumbers!$A:$A,D$4,productionNumbers!$B:$B,$B$2) -> 79040 | E116: =SUMIFS(productionNumbers!$C:$C,productionNumbers!$E:$E,$B116,productionNumbers!$A:$A,E$4,productionNumbers!$B:$B,$B$2) -> 181792 | F116: =SUMIFS(productionNumbers!$C:$C,productionNumbers!$E:$E,$B116,productionNumbers!$A:$A,F$4,productionNumbers!$B:$B,$B$2) -> 0 | G116: =SUMIFS(productionNumbers!$C:$C,productionNumbers!$E:$E,$B116,productionNumbers!$A:$A,G$4,productionNumbers!$B:$B,$B$2) -> 221312 | H116: =SUMIFS(productionNumbers!$C:$C,productionNumbers!$E:$E,$B116,productionNumbers!$A:$A,H$4,productionNumbers!$B:$B,$B$2) -> 158080 | I116: =SUMIFS(productionNumbers!$C:$C,productionNumbers!$E:$E,$B116,productionNumbers!$A:$A,I$4,productionNumbers!$B:$B,$B$2) -> 181792 | J116: 822016 | L116: =SUMIFS(planningNumbers!$H:$H,planningNumbers!$F:$F,$B116,planningNumbers!$C:$C,L$4,planningNumbers!$A:$A,$B$2) -> 141525 | M116: =SUMIFS(planningNumbers!$H:$H,planningNumbers!$F:$F,$B116,planningNumbers!$C:$C,M$4,planningNumbers!$A:$A,$B$2) -> 202592 | N116: =SUMIFS(planningNumbers!$H:$H,planningNumbers!$F:$F,$B116,planningNumbers!$C:$C,N$4,planningNumbers!$A:$A,$B$2) -> 0 | O116: =SUMIFS(planningNumbers!$H:$H,planningNumbers!$F:$F,$B116,planningNumbers!$C:$C,O$4,planningNumbers!$A:$A,$B$2) -> 257646 | P116: =SUMIFS(planningNumbers!$H:$H,planningNumbers!$F:$F,$B116,planningNumbers!$C:$C,P$4,planningNumbers!$A:$A,$B$2) -> 207360 | Q116: =SUMIFS(planningNumbers!$H:$H,planningNumbers!$F:$F,$B116,planningNumbers!$C:$C,Q$4,planningNumbers!$A:$A,$B$2) -> 179673 | R116: 988796 | S116: =ROUND(IF(DATE(YEAR(Forecast!$K$2),MONTH(Forecast!$K$2),1)=DATE(YEAR(B116),MONTH(B116),1),Forecast!$K$6/Forecast!$K$3,INDEX(Forecast!$D$2:$D$16,MATCH(DATE(YEAR(B116),MONTH(B116),1),Forecast!$A$2:$A$16,0))/DAY(EOMONTH(B116,0))),0) -> 939777 | T116: =IFERROR(IF((Forecast!$K$2+30)<B116,0,IF(INDEX('Truck list'!$G$6:$G$500,COUNTA('Truck list'!$G$6:$G$500))<B116,S116,IF(U116="",SUMIFS('Truck list'!H:H,'Truck list'!G:G,B116),U116))),0) -> 695552 | U116: 695552 | W116: 7342816 | X116: 3027232 | Y116: 6125600 | Z116: 10370048 | AB116: 135 | AC116: 339 | AD116: 0 | AE116: 158 | AF116: 10 | AG116: 287 | AH116: 929 | AJ116: 1500 hr PM 2 days allotted 4.2 MM units on hold due to sealing surface issues
A117: Thursday | B117: 2025-04-17 | D117: =SUMIFS(productionNumbers!$C:$C,productionNumbers!$E:$E,$B117,productionNumbers!$A:$A,D$4,productionNumbers!$B:$B,$B$2) -> 197600 | E117: =SUMIFS(productionNumbers!$C:$C,productionNumbers!$E:$E,$B117,productionNumbers!$A:$A,E$4,productionNumbers!$B:$B,$B$2) -> 205504 | F117: =SUMIFS(productionNumbers!$C:$C,productionNumbers!$E:$E,$B117,productionNumbers!$A:$A,F$4,productionNumbers!$B:$B,$B$2) -> 0 | G117: =SUMIFS(productionNumbers!$C:$C,productionNumbers!$E:$E,$B117,productionNumbers!$A:$A,G$4,productionNumbers!$B:$B,$B$2) -> 229216 | H117: =SUMIFS(productionNumbers!$C:$C,productionNumbers!$E:$E,$B117,productionNumbers!$A:$A,H$4,productionNumbers!$B:$B,$B$2) -> 47424 | I117: =SUMIFS(productionNumbers!$C:$C,productionNumbers!$E:$E,$B117,productionNumbers!$A:$A,I$4,productionNumbers!$B:$B,$B$2) -> 245024 | J117: 924768 | L117: =SUMIFS(planningNumbers!$H:$H,planningNumbers!$F:$F,$B117,planningNumbers!$C:$C,L$4,planningNumbers!$A:$A,$B$2) -> 183599 | M117: =SUMIFS(planningNumbers!$H:$H,planningNumbers!$F:$F,$B117,planningNumbers!$C:$C,M$4,planningNumbers!$A:$A,$B$2) -> 207812 | N117: =SUMIFS(planningNumbers!$H:$H,planningNumbers!$F:$F,$B117,planningNumbers!$C:$C,N$4,planningNumbers!$A:$A,$B$2) -> 0 | O117: =SUMIFS(planningNumbers!$H:$H,planningNumbers!$F:$F,$B117,planningNumbers!$C:$C,O$4,planningNumbers!$A:$A,$B$2) -> 210709 | P117: =SUMIFS(planningNumbers!$H:$H,planningNumbers!$F:$F,$B117,planningNumbers!$C:$C,P$4,planningNumbers!$A:$A,$B$2) -> 103680 | Q117: =SUMIFS(planningNumbers!$H:$H,planningNumbers!$F:$F,$B117,planningNumbers!$C:$C,Q$4,planningNumbers!$A:$A,$B$2) -> 253656 | R117: 959456 | S117: =ROUND(IF(DATE(YEAR(Forecast!$K$2),MONTH(Forecast!$K$2),1)=DATE(YEAR(B117),MONTH(B117),1),Forecast!$K$6/Forecast!$K$3,INDEX(Forecast!$D$2:$D$16,MATCH(DATE(YEAR(B117),MONTH(B117),1),Forecast!$A$2:$A$16,0))/DAY(EOMONTH(B117,0))),0) -> 939777 | T117: =IFERROR(IF((Forecast!$K$2+30)<B117,0,IF(INDEX('Truck list'!$G$6:$G$500,COUNTA('Truck list'!$G$6:$G$500))<B117,S117,IF(U117="",SUMIFS('Truck list'!H:H,'Truck list'!G:G,B117),U117))),0) -> 521664 | U117: 521664 | W117: 2782208 | X117: 2600416 | Y117: 9974848 | Z117: 5382624 | AB117: 0 | AC117: 0 | AD117: 0 | AE117: 251 | AF117: 0 | AG117: 266 | AH117: 517 | AJ117: 4.2 MM units on hold due to sealing surface issues
A118: Friday | B118: 2025-04-18 | D118: =SUMIFS(productionNumbers!$C:$C,productionNumbers!$E:$E,$B118,productionNumbers!$A:$A,D$4,productionNumbers!$B:$B,$B$2) -> 173888 | E118: =SUMIFS(productionNumbers!$C:$C,productionNumbers!$E:$E,$B118,productionNumbers!$A:$A,E$4,productionNumbers!$B:$B,$B$2) -> 165984 | F118: =SUMIFS(productionNumbers!$C:$C,productionNumbers!$E:$E,$B118,productionNumbers!$A:$A,F$4,productionNumbers!$B:$B,$B$2) -> 0 | G118: =SUMIFS(productionNumbers!$C:$C,productionNumbers!$E:$E,$B118,productionNumbers!$A:$A,G$4,productionNumbers!$B:$B,$B$2) -> 245024 | H118: =SUMIFS(productionNumbers!$C:$C,productionNumbers!$E:$E,$B118,productionNumbers!$A:$A,H$4,productionNumbers!$B:$B,$B$2) -> 47424 | I118: =SUMIFS(productionNumbers!$C:$C,productionNumbers!$E:$E,$B118,productionNumbers!$A:$A,I$4,productionNumbers!$B:$B,$B$2) -> 252928 | J118: 885248 | L118: =SUMIFS(planningNumbers!$H:$H,planningNumbers!$F:$F,$B118,planningNumbers!$C:$C,L$4,planningNumbers!$A:$A,$B$2) -> 183599 | M118: =SUMIFS(planningNumbers!$H:$H,planningNumbers!$F:$F,$B118,planningNumbers!$C:$C,M$4,planningNumbers!$A:$A,$B$2) -> 161138 | N118: =SUMIFS(planningNumbers!$H:$H,planningNumbers!$F:$F,$B118,planningNumbers!$C:$C,N$4,planningNumbers!$A:$A,$B$2) -> 0 | O118: =SUMIFS(planningNumbers!$H:$H,planningNumbers!$F:$F,$B118,planningNumbers!$C:$C,O$4,planningNumbers!$A:$A,$B$2) -> 240810 | P118: =SUMIFS(planningNumbers!$H:$H,planningNumbers!$F:$F,$B118,planningNumbers!$C:$C,P$4,planningNumbers!$A:$A,$B$2) -> 103680 | Q118: =SUMIFS(planningNumbers!$H:$H,planningNumbers!$F:$F,$B118,planningNumbers!$C:$C,Q$4,planningNumbers!$A:$A,$B$2) -> 257270 | R118: 946497 | S118: =ROUND(IF(DATE(YEAR(Forecast!$K$2),MONTH(Forecast!$K$2),1)=DATE(YEAR(B118),MONTH(B118),1),Forecast!$K$6/Forecast!$K$3,INDEX(Forecast!$D$2:$D$16,MATCH(DATE(YEAR(B118),MONTH(B118),1),Forecast!$A$2:$A$16,0))/DAY(EOMONTH(B118,0))),0) -> 939777 | T118: =IFERROR(IF((Forecast!$K$2+30)<B118,0,IF(INDEX('Truck list'!$G$6:$G$500,COUNTA('Truck list'!$G$6:$G$500))<B118,S118,IF(U118="",SUMIFS('Truck list'!H:H,'Truck list'!G:G,B118),U118))),0) -> 1217216 | U118: 1217216 | W118: 3043040 | X118: 3430336 | Y118: 9974848 | Z118: 6473376 | AB118: 0 | AC118: 0 | AD118: 0 | AE118: 199 | AF118: 0 | AG118: 186 | AH118: 385 | AJ118: 4.2MM units on hold due to sealing surface issues / 5.3MM units on hold for clear spots
A119: Saturday | B119: 2025-04-19 | D119: =SUMIFS(productionNumbers!$C:$C,productionNumbers!$E:$E,$B119,productionNumbers!$A:$A,D$4,productionNumbers!$B:$B,$B$2) -> 150176 | E119: =SUMIFS(productionNumbers!$C:$C,productionNumbers!$E:$E,$B119,productionNumbers!$A:$A,E$4,productionNumbers!$B:$B,$B$2) -> 181792 | F119: =SUMIFS(productionNumbers!$C:$C,productionNumbers!$E:$E,$B119,productionNumbers!$A:$A,F$4,productionNumbers!$B:$B,$B$2) -> 0 | G119: =SUMIFS(productionNumbers!$C:$C,productionNumbers!$E:$E,$B119,productionNumbers!$A:$A,G$4,productionNumbers!$B:$B,$B$2) -> 276640 | H119: =SUMIFS(productionNumbers!$C:$C,productionNumbers!$E:$E,$B119,productionNumbers!$A:$A,H$4,productionNumbers!$B:$B,$B$2) -> 118560 | I119: =SUMIFS(productionNumbers!$C:$C,productionNumbers!$E:$E,$B119,productionNumbers!$A:$A,I$4,productionNumbers!$B:$B,$B$2) -> 245024 | J119: 972192 | L119: =SUMIFS(planningNumbers!$H:$H,planningNumbers!$F:$F,$B119,planningNumbers!$C:$C,L$4,planningNumbers!$A:$A,$B$2) -> 159261 | M119: =SUMIFS(planningNumbers!$H:$H,planningNumbers!$F:$F,$B119,planningNumbers!$C:$C,M$4,planningNumbers!$A:$A,$B$2) -> 184158 | N119: =SUMIFS(planningNumbers!$H:$H,planningNumbers!$F:$F,$B119,planningNumbers!$C:$C,N$4,planningNumbers!$A:$A,$B$2) -> 0 | O119: =SUMIFS(planningNumbers!$H:$H,planningNumbers!$F:$F,$B119,planningNumbers!$C:$C,O$4,planningNumbers!$A:$A,$B$2) -> 266344 | P119: =SUMIFS(planningNumbers!$H:$H,planningNumbers!$F:$F,$B119,planningNumbers!$C:$C,P$4,planningNumbers!$A:$A,$B$2) -> 121848 | Q119: =SUMIFS(planningNumbers!$H:$H,planningNumbers!$F:$F,$B119,planningNumbers!$C:$C,Q$4,planningNumbers!$A:$A,$B$2) -> 259200 | R119: 990811 | S119: =ROUND(IF(DATE(YEAR(Forecast!$K$2),MONTH(Forecast!$K$2),1)=DATE(YEAR(B119),MONTH(B119),1),Forecast!$K$6/Forecast!$K$3,INDEX(Forecast!$D$2:$D$16,MATCH(DATE(YEAR(B119),MONTH(B119),1),Forecast!$A$2:$A$16,0))/DAY(EOMONTH(B119,0))),0) -> 939777 | T119: =IFERROR(IF((Forecast!$K$2+30)<B119,0,IF(INDEX('Truck list'!$G$6:$G$500,COUNTA('Truck list'!$G$6:$G$500))<B119,S119,IF(U119="",SUMIFS('Truck list'!H:H,'Truck list'!G:G,B119),U119))),0) -> 1391104 | U119: 1391104 | W119: 2284256 | X119: 3841344 | Y119: 9974848 | Z119: 6125600 | AB119: 28 | AC119: 8 | AD119: 0 | AE119: 123 | AF119: 9 | AG119: 121 | AH119: 289 | AJ119: 4.2MM units on hold due to sealing surface issues / 5.3MM units on hold for clear spots
A120: Sunday | B120: 2025-04-20 | D120: =SUMIFS(productionNumbers!$C:$C,productionNumbers!$E:$E,$B120,productionNumbers!$A:$A,D$4,productionNumbers!$B:$B,$B$2) -> 189696 | E120: =SUMIFS(productionNumbers!$C:$C,productionNumbers!$E:$E,$B120,productionNumbers!$A:$A,E$4,productionNumbers!$B:$B,$B$2) -> 189696 | F120: =SUMIFS(productionNumbers!$C:$C,productionNumbers!$E:$E,$B120,productionNumbers!$A:$A,F$4,productionNumbers!$B:$B,$B$2) -> 0 | G120: =SUMIFS(productionNumbers!$C:$C,productionNumbers!$E:$E,$B120,productionNumbers!$A:$A,G$4,productionNumbers!$B:$B,$B$2) -> 276640 | H120: =SUMIFS(productionNumbers!$C:$C,productionNumbers!$E:$E,$B120,productionNumbers!$A:$A,H$4,productionNumbers!$B:$B,$B$2) -> 86944 | I120: =SUMIFS(productionNumbers!$C:$C,productionNumbers!$E:$E,$B120,productionNumbers!$A:$A,I$4,productionNumbers!$B:$B,$B$2) -> 221312 | J120: 964288 | L120: =SUMIFS(planningNumbers!$H:$H,planningNumbers!$F:$F,$B120,planningNumbers!$C:$C,L$4,planningNumbers!$A:$A,$B$2) -> 157416 | M120: =SUMIFS(planningNumbers!$H:$H,planningNumbers!$F:$F,$B120,planningNumbers!$C:$C,M$4,planningNumbers!$A:$A,$B$2) -> 185140 | N120: =SUMIFS(planningNumbers!$H:$H,planningNumbers!$F:$F,$B120,planningNumbers!$C:$C,N$4,planningNumbers!$A:$A,$B$2) -> 0 | O120: =SUMIFS(planningNumbers!$H:$H,planningNumbers!$F:$F,$B120,planningNumbers!$C:$C,O$4,planningNumbers!$A:$A,$B$2) -> 276839 | P120: =SUMIFS(planningNumbers!$H:$H,planningNumbers!$F:$F,$B120,planningNumbers!$C:$C,P$4,planningNumbers!$A:$A,$B$2) -> 103680 | Q120: =SUMIFS(planningNumbers!$H:$H,planningNumbers!$F:$F,$B120,planningNumbers!$C:$C,Q$4,planningNumbers!$A:$A,$B$2) -> 251276 | R120: 974351 | S120: =ROUND(IF(DATE(YEAR(Forecast!$K$2),MONTH(Forecast!$K$2),1)=DATE(YEAR(B120),MONTH(B120),1),Forecast!$K$6/Forecast!$K$3,INDEX(Forecast!$D$2:$D$16,MATCH(DATE(YEAR(B120),MONTH(B120),1),Forecast!$A$2:$A$16,0))/DAY(EOMONTH(B120,0))),0) -> 939777 | T120: =IFERROR(IF((Forecast!$K$2+30)<B120,0,IF(INDEX('Truck list'!$G$6:$G$500,COUNTA('Truck list'!$G$6:$G$500))<B120,S120,IF(U120="",SUMIFS('Truck list'!H:H,'Truck list'!G:G,B120),U120))),0) -> 1217216 | U120: 1217216 | W120: 2284256 | X120: 3920384 | Y120: 9974848 | Z120: 6204640 | AB120: 28 | AC120: 8 | AD120: 0 | AE120: 123 | AF120: 9 | AG120: 121 | AH120: 289 | AJ120: 4.2MM units on hold due to sealing surface issues / 5.3MM units on hold for clear spots
A121: Monday | B121: 2025-04-21 | D121: =SUMIFS(productionNumbers!$C:$C,productionNumbers!$E:$E,$B121,productionNumbers!$A:$A,D$4,productionNumbers!$B:$B,$B$2) -> 173888 | E121: =SUMIFS(productionNumbers!$C:$C,productionNumbers!$E:$E,$B121,productionNumbers!$A:$A,E$4,productionNumbers!$B:$B,$B$2) -> 189696 | F121: =SUMIFS(productionNumbers!$C:$C,productionNumbers!$E:$E,$B121,productionNumbers!$A:$A,F$4,productionNumbers!$B:$B,$B$2) -> 0 | G121: =SUMIFS(productionNumbers!$C:$C,productionNumbers!$E:$E,$B121,productionNumbers!$A:$A,G$4,productionNumbers!$B:$B,$B$2) -> 260832 | H121: =SUMIFS(productionNumbers!$C:$C,productionNumbers!$E:$E,$B121,productionNumbers!$A:$A,H$4,productionNumbers!$B:$B,$B$2) -> 110656 | I121: =SUMIFS(productionNumbers!$C:$C,productionNumbers!$E:$E,$B121,productionNumbers!$A:$A,I$4,productionNumbers!$B:$B,$B$2) -> 268736 | J121: 1003808 | L121: =SUMIFS(planningNumbers!$H:$H,planningNumbers!$F:$F,$B121,planningNumbers!$C:$C,L$4,planningNumbers!$A:$A,$B$2) -> 157416 | M121: =SUMIFS(planningNumbers!$H:$H,planningNumbers!$F:$F,$B121,planningNumbers!$C:$C,M$4,planningNumbers!$A:$A,$B$2) -> 207360 | N121: =SUMIFS(planningNumbers!$H:$H,planningNumbers!$F:$F,$B121,planningNumbers!$C:$C,N$4,planningNumbers!$A:$A,$B$2) -> 0 | O121: =SUMIFS(planningNumbers!$H:$H,planningNumbers!$F:$F,$B121,planningNumbers!$C:$C,O$4,planningNumbers!$A:$A,$B$2) -> 262916 | P121: =SUMIFS(planningNumbers!$H:$H,planningNumbers!$F:$F,$B121,planningNumbers!$C:$C,P$4,planningNumbers!$A:$A,$B$2) -> 123744 | Q121: =SUMIFS(planningNumbers!$H:$H,planningNumbers!$F:$F,$B121,planningNumbers!$C:$C,Q$4,planningNumbers!$A:$A,$B$2) -> 246802 | R121: 998238 | S121: =ROUND(IF(DATE(YEAR(Forecast!$K$2),MONTH(Forecast!$K$2),1)=DATE(YEAR(B121),MONTH(B121),1),Forecast!$K$6/Forecast!$K$3,INDEX(Forecast!$D$2:$D$16,MATCH(DATE(YEAR(B121),MONTH(B121),1),Forecast!$A$2:$A$16,0))/DAY(EOMONTH(B121,0))),0) -> 939777 | T121: =IFERROR(IF((Forecast!$K$2+30)<B121,0,IF(INDEX('Truck list'!$G$6:$G$500,COUNTA('Truck list'!$G$6:$G$500))<B121,S121,IF(U121="",SUMIFS('Truck list'!H:H,'Truck list'!G:G,B121),U121))),0) -> 1217216 | U121: 1217216 | W121: 5888480 | X121: 4829344 | Y121: 4995328 | Z121: 10717824 | AB121: 87 | AC121: 278 | AD121: 0 | AE121: 104 | AF121: 175 | AG121: 101 | AH121: 745 | AJ121: 4.2MM units on hold due to sealing surface issues / 5.3MM units on hold for clear spots
A122: Tuesday | B122: 2025-04-22 | D122: =SUMIFS(productionNumbers!$C:$C,productionNumbers!$E:$E,$B122,productionNumbers!$A:$A,D$4,productionNumbers!$B:$B,$B$2) -> 150176 | E122: =SUMIFS(productionNumbers!$C:$C,productionNumbers!$E:$E,$B122,productionNumbers!$A:$A,E$4,productionNumbers!$B:$B,$B$2) -> 173888 | F122: =SUMIFS(productionNumbers!$C:$C,productionNumbers!$E:$E,$B122,productionNumbers!$A:$A,F$4,productionNumbers!$B:$B,$B$2) -> 0 | G122: =SUMIFS(productionNumbers!$C:$C,productionNumbers!$E:$E,$B122,productionNumbers!$A:$A,G$4,productionNumbers!$B:$B,$B$2) -> 268736 | H122: =SUMIFS(productionNumbers!$C:$C,productionNumbers!$E:$E,$B122,productionNumbers!$A:$A,H$4,productionNumbers!$B:$B,$B$2) -> 142272 | I122: =SUMIFS(productionNumbers!$C:$C,productionNumbers!$E:$E,$B122,productionNumbers!$A:$A,I$4,productionNumbers!$B:$B,$B$2) -> 245024 | J122: 980096 | L122: =SUMIFS(planningNumbers!$H:$H,planningNumbers!$F:$F,$B122,planningNumbers!$C:$C,L$4,planningNumbers!$A:$A,$B$2) -> 188163 | M122: =SUMIFS(planningNumbers!$H:$H,planningNumbers!$F:$F,$B122,planningNumbers!$C:$C,M$4,planningNumbers!$A:$A,$B$2) -> 207360 | N122: =SUMIFS(planningNumbers!$H:$H,planningNumbers!$F:$F,$B122,planningNumbers!$C:$C,N$4,planningNumbers!$A:$A,$B$2) -> 0 | O122: =SUMIFS(planningNumbers!$H:$H,planningNumbers!$F:$F,$B122,planningNumbers!$C:$C,O$4,planningNumbers!$A:$A,$B$2) -> 259949 | P122: =SUMIFS(planningNumbers!$H:$H,planningNumbers!$F:$F,$B122,planningNumbers!$C:$C,P$4,planningNumbers!$A:$A,$B$2) -> 204288 | Q122: =SUMIFS(planningNumbers!$H:$H,planningNumbers!$F:$F,$B122,planningNumbers!$C:$C,Q$4,planningNumbers!$A:$A,$B$2) -> 253247 | R122: 1113007 | S122: =ROUND(IF(DATE(YEAR(Forecast!$K$2),MONTH(Forecast!$K$2),1)=DATE(YEAR(B122),MONTH(B122),1),Forecast!$K$6/Forecast!$K$3,INDEX(Forecast!$D$2:$D$16,MATCH(DATE(YEAR(B122),MONTH(B122),1),Forecast!$A$2:$A$16,0))/DAY(EOMONTH(B122,0))),0) -> 939777 | T122: =IFERROR(IF((Forecast!$K$2+30)<B122,0,IF(INDEX('Truck list'!$G$6:$G$500,COUNTA('Truck list'!$G$6:$G$500))<B122,S122,IF(U122="",SUMIFS('Truck list'!H:H,'Truck list'!G:G,B122),U122))),0) -> 869440 | U122: 869440 | W122: 7477184 | X122: 3454048 | Y122: 4600128 | Z122: 10931232 | AB122: 102 | AC122: 368 | AD122: 0 | AE122: 103 | AF122: 219 | AG122: 154 | AH122: 946 | AJ122: 4.2MM units on hold due to sealing surface issues
A123: Wednesday | B123: 2025-04-23 | D123: =SUMIFS(productionNumbers!$C:$C,productionNumbers!$E:$E,$B123,productionNumbers!$A:$A,D$4,productionNumbers!$B:$B,$B$2) -> 189696 | E123: =SUMIFS(productionNumbers!$C:$C,productionNumbers!$E:$E,$B123,productionNumbers!$A:$A,E$4,productionNumbers!$B:$B,$B$2) -> 181792 | F123: =SUMIFS(productionNumbers!$C:$C,productionNumbers!$E:$E,$B123,productionNumbers!$A:$A,F$4,productionNumbers!$B:$B,$B$2) -> 0 | G123: =SUMIFS(productionNumbers!$C:$C,productionNumbers!$E:$E,$B123,productionNumbers!$A:$A,G$4,productionNumbers!$B:$B,$B$2) -> 189696 | H123: =SUMIFS(productionNumbers!$C:$C,productionNumbers!$E:$E,$B123,productionNumbers!$A:$A,H$4,productionNumbers!$B:$B,$B$2) -> 134368 | I123: =SUMIFS(productionNumbers!$C:$C,productionNumbers!$E:$E,$B123,productionNumbers!$A:$A,I$4,productionNumbers!$B:$B,$B$2) -> 245024 | J123: 940576 | L123: =SUMIFS(planningNumbers!$H:$H,planningNumbers!$F:$F,$B123,planningNumbers!$C:$C,L$4,planningNumbers!$A:$A,$B$2) -> 207360 | M123: =SUMIFS(planningNumbers!$H:$H,planningNumbers!$F:$F,$B123,planningNumbers!$C:$C,M$4,planningNumbers!$A:$A,$B$2) -> 208828 | N123: =SUMIFS(planningNumbers!$H:$H,planningNumbers!$F:$F,$B123,planningNumbers!$C:$C,N$4,planningNumbers!$A:$A,$B$2) -> 0 | O123: =SUMIFS(planningNumbers!$H:$H,planningNumbers!$F:$F,$B123,planningNumbers!$C:$C,O$4,planningNumbers!$A:$A,$B$2) -> 210969 | P123: =SUMIFS(planningNumbers!$H:$H,planningNumbers!$F:$F,$B123,planningNumbers!$C:$C,P$4,planningNumbers!$A:$A,$B$2) -> 170847 | Q123: =SUMIFS(planningNumbers!$H:$H,planningNumbers!$F:$F,$B123,planningNumbers!$C:$C,Q$4,planningNumbers!$A:$A,$B$2) -> 259068 | R123: 1057072 | S123: =ROUND(IF(DATE(YEAR(Forecast!$K$2),MONTH(Forecast!$K$2),1)=DATE(YEAR(B123),MONTH(B123),1),Forecast!$K$6/Forecast!$K$3,INDEX(Forecast!$D$2:$D$16,MATCH(DATE(YEAR(B123),MONTH(B123),1),Forecast!$A$2:$A$16,0))/DAY(EOMONTH(B123,0))),0) -> 939777 | T123: =IFERROR(IF((Forecast!$K$2+30)<B123,0,IF(INDEX('Truck list'!$G$6:$G$500,COUNTA('Truck list'!$G$6:$G$500))<B123,S123,IF(U123="",SUMIFS('Truck list'!H:H,'Truck list'!G:G,B123),U123))),0) -> 1043328 | U123: 1043328 | W123: 8488896 | X123: 2284256 | Y123: 4584320 | Z123: 10773152 | AB123: 162 | AC123: 329 | AD123: 0 | AE123: 179 | AF123: 196 | AG123: 208 | AH123: 1074 | AJ123: 4.2MM units on hold due to sealing surface issues
A124: Thursday | B124: 2025-04-24 | D124: =SUMIFS(productionNumbers!$C:$C,productionNumbers!$E:$E,$B124,productionNumbers!$A:$A,D$4,productionNumbers!$B:$B,$B$2) -> 173888 | E124: =SUMIFS(productionNumbers!$C:$C,productionNumbers!$E:$E,$B124,productionNumbers!$A:$A,E$4,productionNumbers!$B:$B,$B$2) -> 158080 | F124: =SUMIFS(productionNumbers!$C:$C,productionNumbers!$E:$E,$B124,productionNumbers!$A:$A,F$4,productionNumbers!$B:$B,$B$2) -> 0 | G124: =SUMIFS(productionNumbers!$C:$C,productionNumbers!$E:$E,$B124,productionNumbers!$A:$A,G$4,productionNumbers!$B:$B,$B$2) -> 260832 | H124: =SUMIFS(productionNumbers!$C:$C,productionNumbers!$E:$E,$B124,productionNumbers!$A:$A,H$4,productionNumbers!$B:$B,$B$2) -> 181792 | I124: =SUMIFS(productionNumbers!$C:$C,productionNumbers!$E:$E,$B124,productionNumbers!$A:$A,I$4,productionNumbers!$B:$B,$B$2) -> 205504 | J124: 980096 | L124: =SUMIFS(planningNumbers!$H:$H,planningNumbers!$F:$F,$B124,planningNumbers!$C:$C,L$4,planningNumbers!$A:$A,$B$2) -> 186651 | M124: =SUMIFS(planningNumbers!$H:$H,planningNumbers!$F:$F,$B124,planningNumbers!$C:$C,M$4,planningNumbers!$A:$A,$B$2) -> 156583 | N124: =SUMIFS(planningNumbers!$H:$H,planningNumbers!$F:$F,$B124,planningNumbers!$C:$C,N$4,planningNumbers!$A:$A,$B$2) -> 0 | O124: =SUMIFS(planningNumbers!$H:$H,planningNumbers!$F:$F,$B124,planningNumbers!$C:$C,O$4,planningNumbers!$A:$A,$B$2) -> 241107 | P124: =SUMIFS(planningNumbers!$H:$H,planningNumbers!$F:$F,$B124,planningNumbers!$C:$C,P$4,planningNumbers!$A:$A,$B$2) -> 193748 | Q124: =SUMIFS(planningNumbers!$H:$H,planningNumbers!$F:$F,$B124,planningNumbers!$C:$C,Q$4,planningNumbers!$A:$A,$B$2) -> 201258 | R124: 979347 | S124: =ROUND(IF(DATE(YEAR(Forecast!$K$2),MONTH(Forecast!$K$2),1)=DATE(YEAR(B124),MONTH(B124),1),Forecast!$K$6/Forecast!$K$3,INDEX(Forecast!$D$2:$D$16,MATCH(DATE(YEAR(B124),MONTH(B124),1),Forecast!$A$2:$A$16,0))/DAY(EOMONTH(B124,0))),0) -> 939777 | T124: =IFERROR(IF((Forecast!$K$2+30)<B124,0,IF(INDEX('Truck list'!$G$6:$G$500,COUNTA('Truck list'!$G$6:$G$500))<B124,S124,IF(U124="",SUMIFS('Truck list'!H:H,'Truck list'!G:G,B124),U124))),0) -> 1391104 | U124: 1391104 | W124: 8243872 | X124: 1999712 | Y124: 4078464 | Z124: 10243584 | AB124: 139 | AC124: 391 | AD124: 0 | AE124: 148 | AF124: 182 | AG124: 183 | AH124: 1043 | AJ124: 4.2MM units on hold due to sealing surface issues
A125: Friday | B125: 2025-04-25 | D125: =SUMIFS(productionNumbers!$C:$C,productionNumbers!$E:$E,$B125,productionNumbers!$A:$A,D$4,productionNumbers!$B:$B,$B$2) -> 134368 | E125: =SUMIFS(productionNumbers!$C:$C,productionNumbers!$E:$E,$B125,productionNumbers!$A:$A,E$4,productionNumbers!$B:$B,$B$2) -> 173888 | F125: =SUMIFS(productionNumbers!$C:$C,productionNumbers!$E:$E,$B125,productionNumbers!$A:$A,F$4,productionNumbers!$B:$B,$B$2) -> 0 | G125: =SUMIFS(productionNumbers!$C:$C,productionNumbers!$E:$E,$B125,productionNumbers!$A:$A,G$4,productionNumbers!$B:$B,$B$2) -> 237120 | H125: =SUMIFS(productionNumbers!$C:$C,productionNumbers!$E:$E,$B125,productionNumbers!$A:$A,H$4,productionNumbers!$B:$B,$B$2) -> 197600 | I125: =SUMIFS(productionNumbers!$C:$C,productionNumbers!$E:$E,$B125,productionNumbers!$A:$A,I$4,productionNumbers!$B:$B,$B$2) -> 252928 | J125: 995904 | L125: =SUMIFS(planningNumbers!$H:$H,planningNumbers!$F:$F,$B125,planningNumbers!$C:$C,L$4,planningNumbers!$A:$A,$B$2) -> 156229 | M125: =SUMIFS(planningNumbers!$H:$H,planningNumbers!$F:$F,$B125,planningNumbers!$C:$C,M$4,planningNumbers!$A:$A,$B$2) -> 178952 | N125: =SUMIFS(planningNumbers!$H:$H,planningNumbers!$F:$F,$B125,planningNumbers!$C:$C,N$4,planningNumbers!$A:$A,$B$2) -> 0 | O125: =SUMIFS(planningNumbers!$H:$H,planningNumbers!$F:$F,$B125,planningNumbers!$C:$C,O$4,planningNumbers!$A:$A,$B$2) -> 253978 | P125: =SUMIFS(planningNumbers!$H:$H,planningNumbers!$F:$F,$B125,planningNumbers!$C:$C,P$4,planningNumbers!$A:$A,$B$2) -> 194536 | Q125: =SUMIFS(planningNumbers!$H:$H,planningNumbers!$F:$F,$B125,planningNumbers!$C:$C,Q$4,planningNumbers!$A:$A,$B$2) -> 230009 | R125: 1013704 | S125: =ROUND(IF(DATE(YEAR(Forecast!$K$2),MONTH(Forecast!$K$2),1)=DATE(YEAR(B125),MONTH(B125),1),Forecast!$K$6/Forecast!$K$3,INDEX(Forecast!$D$2:$D$16,MATCH(DATE(YEAR(B125),MONTH(B125),1),Forecast!$A$2:$A$16,0))/DAY(EOMONTH(B125,0))),0) -> 939777 | T125: =IFERROR(IF((Forecast!$K$2+30)<B125,0,IF(INDEX('Truck list'!$G$6:$G$500,COUNTA('Truck list'!$G$6:$G$500))<B125,S125,IF(U125="",SUMIFS('Truck list'!H:H,'Truck list'!G:G,B125),U125))),0) -> 1217216 | U125: 1217216 | W125: 5406336 | X125: 3983616 | Y125: 4078464 | Z125: 9389952 | AB125: 139 | AC125: 244 | AD125: 0 | AE125: 98 | AF125: 77 | AG125: 126 | AH125: 684 | AJ125: 4 MM units on hold due to sealing surface issues
A126: Saturday | B126: 2025-04-26 | D126: =SUMIFS(productionNumbers!$C:$C,productionNumbers!$E:$E,$B126,productionNumbers!$A:$A,D$4,productionNumbers!$B:$B,$B$2) -> 189696 | E126: =SUMIFS(productionNumbers!$C:$C,productionNumbers!$E:$E,$B126,productionNumbers!$A:$A,E$4,productionNumbers!$B:$B,$B$2) -> 181792 | F126: =SUMIFS(productionNumbers!$C:$C,productionNumbers!$E:$E,$B126,productionNumbers!$A:$A,F$4,productionNumbers!$B:$B,$B$2) -> 0 | G126: =SUMIFS(productionNumbers!$C:$C,productionNumbers!$E:$E,$B126,productionNumbers!$A:$A,G$4,productionNumbers!$B:$B,$B$2) -> 221312 | H126: =SUMIFS(productionNumbers!$C:$C,productionNumbers!$E:$E,$B126,productionNumbers!$A:$A,H$4,productionNumbers!$B:$B,$B$2) -> 181792 | I126: =SUMIFS(productionNumbers!$C:$C,productionNumbers!$E:$E,$B126,productionNumbers!$A:$A,I$4,productionNumbers!$B:$B,$B$2) -> 165984 | J126: 940576 | L126: =SUMIFS(planningNumbers!$H:$H,planningNumbers!$F:$F,$B126,planningNumbers!$C:$C,L$4,planningNumbers!$A:$A,$B$2) -> 178547 | M126: =SUMIFS(planningNumbers!$H:$H,planningNumbers!$F:$F,$B126,planningNumbers!$C:$C,M$4,planningNumbers!$A:$A,$B$2) -> 178952 | N126: =SUMIFS(planningNumbers!$H:$H,planningNumbers!$F:$F,$B126,planningNumbers!$C:$C,N$4,planningNumbers!$A:$A,$B$2) -> 0 | O126: =SUMIFS(planningNumbers!$H:$H,planningNumbers!$F:$F,$B126,planningNumbers!$C:$C,O$4,planningNumbers!$A:$A,$B$2) -> 259200 | P126: =SUMIFS(planningNumbers!$H:$H,planningNumbers!$F:$F,$B126,planningNumbers!$C:$C,P$4,planningNumbers!$A:$A,$B$2) -> 207443 | Q126: =SUMIFS(planningNumbers!$H:$H,planningNumbers!$F:$F,$B126,planningNumbers!$C:$C,Q$4,planningNumbers!$A:$A,$B$2) -> 223294 | R126: 1047436 | S126: =ROUND(IF(DATE(YEAR(Forecast!$K$2),MONTH(Forecast!$K$2),1)=DATE(YEAR(B126),MONTH(B126),1),Forecast!$K$6/Forecast!$K$3,INDEX(Forecast!$D$2:$D$16,MATCH(DATE(YEAR(B126),MONTH(B126),1),Forecast!$A$2:$A$16,0))/DAY(EOMONTH(B126,0))),0) -> 939777 | T126: =IFERROR(IF((Forecast!$K$2+30)<B126,0,IF(INDEX('Truck list'!$G$6:$G$500,COUNTA('Truck list'!$G$6:$G$500))<B126,S126,IF(U126="",SUMIFS('Truck list'!H:H,'Truck list'!G:G,B126),U126))),0) -> 1217216 | U126: 1217216 | W126: 5406336 | X126: 3983616 | Y126: 4078464 | Z126: 9389952 | AB126: 139 | AC126: 244 | AD126: 0 | AE126: 98 | AF126: 77 | AG126: 126 | AH126: 684 | AJ126: 4 MM units on hold due to sealing surface issues
A127: Sunday | B127: 2025-04-27 | D127: =SUMIFS(productionNumbers!$C:$C,productionNumbers!$E:$E,$B127,productionNumbers!$A:$A,D$4,productionNumbers!$B:$B,$B$2) -> 181792 | E127: =SUMIFS(productionNumbers!$C:$C,productionNumbers!$E:$E,$B127,productionNumbers!$A:$A,E$4,productionNumbers!$B:$B,$B$2) -> 189696 | F127: =SUMIFS(productionNumbers!$C:$C,productionNumbers!$E:$E,$B127,productionNumbers!$A:$A,F$4,productionNumbers!$B:$B,$B$2) -> 0 | G127: =SUMIFS(productionNumbers!$C:$C,productionNumbers!$E:$E,$B127,productionNumbers!$A:$A,G$4,productionNumbers!$B:$B,$B$2) -> 189696 | H127: =SUMIFS(productionNumbers!$C:$C,productionNumbers!$E:$E,$B127,productionNumbers!$A:$A,H$4,productionNumbers!$B:$B,$B$2) -> 134368 | I127: =SUMIFS(productionNumbers!$C:$C,productionNumbers!$E:$E,$B127,productionNumbers!$A:$A,I$4,productionNumbers!$B:$B,$B$2) -> 252928 | J127: 948480 | L127: =SUMIFS(planningNumbers!$H:$H,planningNumbers!$F:$F,$B127,planningNumbers!$C:$C,L$4,planningNumbers!$A:$A,$B$2) -> 178547 | M127: =SUMIFS(planningNumbers!$H:$H,planningNumbers!$F:$F,$B127,planningNumbers!$C:$C,M$4,planningNumbers!$A:$A,$B$2) -> 175926 | N127: =SUMIFS(planningNumbers!$H:$H,planningNumbers!$F:$F,$B127,planningNumbers!$C:$C,N$4,planningNumbers!$A:$A,$B$2) -> 0 | O127: =SUMIFS(planningNumbers!$H:$H,planningNumbers!$F:$F,$B127,planningNumbers!$C:$C,O$4,planningNumbers!$A:$A,$B$2) -> 217248 | P127: =SUMIFS(planningNumbers!$H:$H,planningNumbers!$F:$F,$B127,planningNumbers!$C:$C,P$4,planningNumbers!$A:$A,$B$2) -> 207443 | Q127: =SUMIFS(planningNumbers!$H:$H,planningNumbers!$F:$F,$B127,planningNumbers!$C:$C,Q$4,planningNumbers!$A:$A,$B$2) -> 218945 | R127: 998109 | S127: =ROUND(IF(DATE(YEAR(Forecast!$K$2),MONTH(Forecast!$K$2),1)=DATE(YEAR(B127),MONTH(B127),1),Forecast!$K$6/Forecast!$K$3,INDEX(Forecast!$D$2:$D$16,MATCH(DATE(YEAR(B127),MONTH(B127),1),Forecast!$A$2:$A$16,0))/DAY(EOMONTH(B127,0))),0) -> 939777 | T127: =IFERROR(IF((Forecast!$K$2+30)<B127,0,IF(INDEX('Truck list'!$G$6:$G$500,COUNTA('Truck list'!$G$6:$G$500))<B127,S127,IF(U127="",SUMIFS('Truck list'!H:H,'Truck list'!G:G,B127),U127))),0) -> 1391104 | U127: 1391104 | W127: 5406336 | X127: 3983616 | Y127: 4078464 | Z127: 9389952 | AB127: 139 | AC127: 244 | AD127: 0 | AE127: 98 | AF127: 77 | AG127: 126 | AH127: 684 | AJ127: 4 MM units on hold due to sealing surface issues
A128: Monday | B128: 2025-04-28 | D128: =SUMIFS(productionNumbers!$C:$C,productionNumbers!$E:$E,$B128,productionNumbers!$A:$A,D$4,productionNumbers!$B:$B,$B$2) -> 173888 | E128: =SUMIFS(productionNumbers!$C:$C,productionNumbers!$E:$E,$B128,productionNumbers!$A:$A,E$4,productionNumbers!$B:$B,$B$2) -> 197600 | F128: =SUMIFS(productionNumbers!$C:$C,productionNumbers!$E:$E,$B128,productionNumbers!$A:$A,F$4,productionNumbers!$B:$B,$B$2) -> 0 | G128: =SUMIFS(productionNumbers!$C:$C,productionNumbers!$E:$E,$B128,productionNumbers!$A:$A,G$4,productionNumbers!$B:$B,$B$2) -> 245024 | H128: =SUMIFS(productionNumbers!$C:$C,productionNumbers!$E:$E,$B128,productionNumbers!$A:$A,H$4,productionNumbers!$B:$B,$B$2) -> 0 | I128: =SUMIFS(productionNumbers!$C:$C,productionNumbers!$E:$E,$B128,productionNumbers!$A:$A,I$4,productionNumbers!$B:$B,$B$2) -> 268736 | J128: 885248 | L128: =SUMIFS(planningNumbers!$H:$H,planningNumbers!$F:$F,$B128,planningNumbers!$C:$C,L$4,planningNumbers!$A:$A,$B$2) -> 198037 | M128: =SUMIFS(planningNumbers!$H:$H,planningNumbers!$F:$F,$B128,planningNumbers!$C:$C,M$4,planningNumbers!$A:$A,$B$2) -> 175800 | N128: =SUMIFS(planningNumbers!$H:$H,planningNumbers!$F:$F,$B128,planningNumbers!$C:$C,N$4,planningNumbers!$A:$A,$B$2) -> 0 | O128: =SUMIFS(planningNumbers!$H:$H,planningNumbers!$F:$F,$B128,planningNumbers!$C:$C,O$4,planningNumbers!$A:$A,$B$2) -> 199165 | P128: =SUMIFS(planningNumbers!$H:$H,planningNumbers!$F:$F,$B128,planningNumbers!$C:$C,P$4,planningNumbers!$A:$A,$B$2) -> 0 | Q128: =SUMIFS(planningNumbers!$H:$H,planningNumbers!$F:$F,$B128,planningNumbers!$C:$C,Q$4,planningNumbers!$A:$A,$B$2) -> 227758 | R128: 800760 | S128: =ROUND(IF(DATE(YEAR(Forecast!$K$2),MONTH(Forecast!$K$2),1)=DATE(YEAR(B128),MONTH(B128),1),Forecast!$K$6/Forecast!$K$3,INDEX(Forecast!$D$2:$D$16,MATCH(DATE(YEAR(B128),MONTH(B128),1),Forecast!$A$2:$A$16,0))/DAY(EOMONTH(B128,0))),0) -> 939777 | T128: =IFERROR(IF((Forecast!$K$2+30)<B128,0,IF(INDEX('Truck list'!$G$6:$G$500,COUNTA('Truck list'!$G$6:$G$500))<B128,S128,IF(U128="",SUMIFS('Truck list'!H:H,'Truck list'!G:G,B128),U128))),0) -> 521664 | U128: 521664 | W128: 6014944 | X128: 3952000 | Y128: 4078464 | Z128: 9966944 | AB128: 124 | AC128: 303 | AD128: 0 | AE128: 153 | AF128: 77 | AG128: 104 | AH128: 761 | AJ128: Line 5 idle 12,000 hr PM 5 days alloted/4 MM units on hold due to sealing surface issues
A129: Tuesday | B129: 2025-04-29 | D129: =SUMIFS(productionNumbers!$C:$C,productionNumbers!$E:$E,$B129,productionNumbers!$A:$A,D$4,productionNumbers!$B:$B,$B$2) -> 110656 | E129: =SUMIFS(productionNumbers!$C:$C,productionNumbers!$E:$E,$B129,productionNumbers!$A:$A,E$4,productionNumbers!$B:$B,$B$2) -> 134368 | F129: =SUMIFS(productionNumbers!$C:$C,productionNumbers!$E:$E,$B129,productionNumbers!$A:$A,F$4,productionNumbers!$B:$B,$B$2) -> 0 | G129: =SUMIFS(productionNumbers!$C:$C,productionNumbers!$E:$E,$B129,productionNumbers!$A:$A,G$4,productionNumbers!$B:$B,$B$2) -> 189696 | H129: =SUMIFS(productionNumbers!$C:$C,productionNumbers!$E:$E,$B129,productionNumbers!$A:$A,H$4,productionNumbers!$B:$B,$B$2) -> 0 | I129: =SUMIFS(productionNumbers!$C:$C,productionNumbers!$E:$E,$B129,productionNumbers!$A:$A,I$4,productionNumbers!$B:$B,$B$2) -> 181792 | J129: =SUM(D129:I129) -> 616512 | L129: =SUMIFS(planningNumbers!$H:$H,planningNumbers!$F:$F,$B129,planningNumbers!$C:$C,L$4,planningNumbers!$A:$A,$B$2) -> 137306 | M129: =SUMIFS(planningNumbers!$H:$H,planningNumbers!$F:$F,$B129,planningNumbers!$C:$C,M$4,planningNumbers!$A:$A,$B$2) -> 175800 | N129: =SUMIFS(planningNumbers!$H:$H,planningNumbers!$F:$F,$B129,planningNumbers!$C:$C,N$4,planningNumbers!$A:$A,$B$2) -> 0 | O129: =SUMIFS(planningNumbers!$H:$H,planningNumbers!$F:$F,$B129,planningNumbers!$C:$C,O$4,planningNumbers!$A:$A,$B$2) -> 204287 | P129: =SUMIFS(planningNumbers!$H:$H,planningNumbers!$F:$F,$B129,planningNumbers!$C:$C,P$4,planningNumbers!$A:$A,$B$2) -> 0 | Q129: =SUMIFS(planningNumbers!$H:$H,planningNumbers!$F:$F,$B129,planningNumbers!$C:$C,Q$4,planningNumbers!$A:$A,$B$2) -> 258225 | R129: 775618 | S129: =ROUND(IF(DATE(YEAR(Forecast!$K$2),MONTH(Forecast!$K$2),1)=DATE(YEAR(B129),MONTH(B129),1),Forecast!$K$6/Forecast!$K$3,INDEX(Forecast!$D$2:$D$16,MATCH(DATE(YEAR(B129),MONTH(B129),1),Forecast!$A$2:$A$16,0))/DAY(EOMONTH(B129,0))),0) -> 939777 | T129: =IFERROR(IF((Forecast!$K$2+30)<B129,0,IF(INDEX('Truck list'!$G$6:$G$500,COUNTA('Truck list'!$G$6:$G$500))<B129,S129,IF(U129="",SUMIFS('Truck list'!H:H,'Truck list'!G:G,B129),U129))),0) -> 173888 | U129: 173888 | W129: 7651072 | X129: 2505568 | Y129: 4086368 | Z129: 10156640 | AB129: 123 | AC129: 301 | AD129: 0 | AE129: 150 | AF129: 161 | AG129: 233 | AH129: 968 | AJ129: 4 MM units on hold due to sealing surface issues
A130: Wednesday | B130: 2025-04-30 | D130: =SUMIFS(productionNumbers!$C:$C,productionNumbers!$E:$E,$B130,productionNumbers!$A:$A,D$4,productionNumbers!$B:$B,$B$2) -> 181792 | E130: =SUMIFS(productionNumbers!$C:$C,productionNumbers!$E:$E,$B130,productionNumbers!$A:$A,E$4,productionNumbers!$B:$B,$B$2) -> 181792 | F130: =SUMIFS(productionNumbers!$C:$C,productionNumbers!$E:$E,$B130,productionNumbers!$A:$A,F$4,productionNumbers!$B:$B,$B$2) -> 0 | G130: =SUMIFS(productionNumbers!$C:$C,productionNumbers!$E:$E,$B130,productionNumbers!$A:$A,G$4,productionNumbers!$B:$B,$B$2) -> 276640 | H130: =SUMIFS(productionNumbers!$C:$C,productionNumbers!$E:$E,$B130,productionNumbers!$A:$A,H$4,productionNumbers!$B:$B,$B$2) -> 0 | I130: =SUMIFS(productionNumbers!$C:$C,productionNumbers!$E:$E,$B130,productionNumbers!$A:$A,I$4,productionNumbers!$B:$B,$B$2) -> 221312 | J130: 861536 | L130: =SUMIFS(planningNumbers!$H:$H,planningNumbers!$F:$F,$B130,planningNumbers!$C:$C,L$4,planningNumbers!$A:$A,$B$2) -> 156921 | M130: =SUMIFS(planningNumbers!$H:$H,planningNumbers!$F:$F,$B130,planningNumbers!$C:$C,M$4,planningNumbers!$A:$A,$B$2) -> 206048 | N130: =SUMIFS(planningNumbers!$H:$H,planningNumbers!$F:$F,$B130,planningNumbers!$C:$C,N$4,planningNumbers!$A:$A,$B$2) -> 0 | O130: =SUMIFS(planningNumbers!$H:$H,planningNumbers!$F:$F,$B130,planningNumbers!$C:$C,O$4,planningNumbers!$A:$A,$B$2) -> 263582 | P130: =SUMIFS(planningNumbers!$H:$H,planningNumbers!$F:$F,$B130,planningNumbers!$C:$C,P$4,planningNumbers!$A:$A,$B$2) -> 0 | Q130: =SUMIFS(planningNumbers!$H:$H,planningNumbers!$F:$F,$B130,planningNumbers!$C:$C,Q$4,planningNumbers!$A:$A,$B$2) -> 204843 | R130: 831394 | S130: =ROUND(IF(DATE(YEAR(Forecast!$K$2),MONTH(Forecast!$K$2),1)=DATE(YEAR(B130),MONTH(B130),1),Forecast!$K$6/Forecast!$K$3,INDEX(Forecast!$D$2:$D$16,MATCH(DATE(YEAR(B130),MONTH(B130),1),Forecast!$A$2:$A$16,0))/DAY(EOMONTH(B130,0))),0) -> 939777 | T130: =IFERROR(IF((Forecast!$K$2+30)<B130,0,IF(INDEX('Truck list'!$G$6:$G$500,COUNTA('Truck list'!$G$6:$G$500))<B130,S130,IF(U130="",SUMIFS('Truck list'!H:H,'Truck list'!G:G,B130),U130))),0) -> 347776 | U130: 347776 | W130: 8180640 | X130: 2900768 | Y130: 3833440 | Z130: 11081408 | AB130: 117 | AC130: 325 | AD130: 0 | AE130: 218 | AF130: 156 | AG130: 219 | AH130: 1035 | AJ130: 4 MM units on hold due to sealing surface issues
A131: Month totals | J131: =SUM(J101:J130) -> 26549536 | R131: =SUM(R101:R130) -> 27999664 | T131: =SUM(T101:T130) -> 27648192
A133: Thursday | B133: =B130+1 -> 2025-05-01 | D133: =SUMIFS(productionNumbers!$C:$C,productionNumbers!$E:$E,$B133,productionNumbers!$A:$A,D$4,productionNumbers!$B:$B,$B$2) -> 173888 | E133: =SUMIFS(productionNumbers!$C:$C,productionNumbers!$E:$E,$B133,productionNumbers!$A:$A,E$4,productionNumbers!$B:$B,$B$2) -> 181792 | F133: =SUMIFS(productionNumbers!$C:$C,productionNumbers!$E:$E,$B133,productionNumbers!$A:$A,F$4,productionNumbers!$B:$B,$B$2) -> 0 | G133: =SUMIFS(productionNumbers!$C:$C,productionNumbers!$E:$E,$B133,productionNumbers!$A:$A,G$4,productionNumbers!$B:$B,$B$2) -> 229216 | H133: =SUMIFS(productionNumbers!$C:$C,productionNumbers!$E:$E,$B133,productionNumbers!$A:$A,H$4,productionNumbers!$B:$B,$B$2) -> 0 | I133: =SUMIFS(productionNumbers!$C:$C,productionNumbers!$E:$E,$B133,productionNumbers!$A:$A,I$4,productionNumbers!$B:$B,$B$2) -> 221312 | J133: =SUM(D133:I133) -> 806208 | L133: =SUMIFS(planningNumbers!$H:$H,planningNumbers!$F:$F,$B133,planningNumbers!$C:$C,L$4,planningNumbers!$A:$A,$B$2) -> 156921 | M133: =SUMIFS(planningNumbers!$H:$H,planningNumbers!$F:$F,$B133,planningNumbers!$C:$C,M$4,planningNumbers!$A:$A,$B$2) -> 206275 | N133: =SUMIFS(planningNumbers!$H:$H,planningNumbers!$F:$F,$B133,planningNumbers!$C:$C,N$4,planningNumbers!$A:$A,$B$2) -> 0 | O133: =SUMIFS(planningNumbers!$H:$H,planningNumbers!$F:$F,$B133,planningNumbers!$C:$C,O$4,planningNumbers!$A:$A,$B$2) -> 217459 | P133: =SUMIFS(planningNumbers!$H:$H,planningNumbers!$F:$F,$B133,planningNumbers!$C:$C,P$4,planningNumbers!$A:$A,$B$2) -> 0 | Q133: =SUMIFS(planningNumbers!$H:$H,planningNumbers!$F:$F,$B133,planningNumbers!$C:$C,Q$4,planningNumbers!$A:$A,$B$2) -> 234106 | R133: 814761 | S133: =ROUND(IF(DATE(YEAR(Forecast!$K$2),MONTH(Forecast!$K$2),1)=DATE(YEAR(B133),MONTH(B133),1),Forecast!$K$6/Forecast!$K$3,INDEX(Forecast!$D$2:$D$16,MATCH(DATE(YEAR(B133),MONTH(B133),1),Forecast!$A$2:$A$16,0))/DAY(EOMONTH(B133,0))),0) -> 645297 | T133: =IFERROR(IF((Forecast!$K$2+30)<B133,0,IF(INDEX('Truck list'!$G$6:$G$500,COUNTA('Truck list'!$G$6:$G$500))<B133,S133,IF(U133="",SUMIFS('Truck list'!H:H,'Truck list'!G:G,B133),U133))),0) -> 521664 | U133: 521664 | W133: 9042176 | X133: 2402816 | Y133: 3817632 | Z133: =IF(W133="",IF(J133=0,Z130+R133-IF(U133=0,T133,U133),Z130+J133-IF(U133=0,T133,U133)),SUM(W133:X133)) -> 11444992 | AB133: 109 | AC133: 389 | AD133: 0 | AE133: 249 | AF133: 156 | AG133: 241 | AH133: 1144 | AJ133: 3.4 MM units on hold due to sealing surface issues
A134: Friday | B134: =+B133+1 -> 2025-05-02 | D134: =SUMIFS(productionNumbers!$C:$C,productionNumbers!$E:$E,$B134,productionNumbers!$A:$A,D$4,productionNumbers!$B:$B,$B$2) -> 142272 | E134: =SUMIFS(productionNumbers!$C:$C,productionNumbers!$E:$E,$B134,productionNumbers!$A:$A,E$4,productionNumbers!$B:$B,$B$2) -> 134368 | F134: =SUMIFS(productionNumbers!$C:$C,productionNumbers!$E:$E,$B134,productionNumbers!$A:$A,F$4,productionNumbers!$B:$B,$B$2) -> 0 | G134: =SUMIFS(productionNumbers!$C:$C,productionNumbers!$E:$E,$B134,productionNumbers!$A:$A,G$4,productionNumbers!$B:$B,$B$2) -> 252928 | H134: =SUMIFS(productionNumbers!$C:$C,productionNumbers!$E:$E,$B134,productionNumbers!$A:$A,H$4,productionNumbers!$B:$B,$B$2) -> 0 | I134: =SUMIFS(productionNumbers!$C:$C,productionNumbers!$E:$E,$B134,productionNumbers!$A:$A,I$4,productionNumbers!$B:$B,$B$2) -> 252928 | J134: 782496 | L134: =SUMIFS(planningNumbers!$H:$H,planningNumbers!$F:$F,$B134,planningNumbers!$C:$C,L$4,planningNumbers!$A:$A,$B$2) -> 183132 | M134: =SUMIFS(planningNumbers!$H:$H,planningNumbers!$F:$F,$B134,planningNumbers!$C:$C,M$4,planningNumbers!$A:$A,$B$2) -> 181440 | N134: =SUMIFS(planningNumbers!$H:$H,planningNumbers!$F:$F,$B134,planningNumbers!$C:$C,N$4,planningNumbers!$A:$A,$B$2) -> 0 | O134: =SUMIFS(planningNumbers!$H:$H,planningNumbers!$F:$F,$B134,planningNumbers!$C:$C,O$4,planningNumbers!$A:$A,$B$2) -> 248525 | P134: =SUMIFS(planningNumbers!$H:$H,planningNumbers!$F:$F,$B134,planningNumbers!$C:$C,P$4,planningNumbers!$A:$A,$B$2) -> 0 | Q134: =SUMIFS(planningNumbers!$H:$H,planningNumbers!$F:$F,$B134,planningNumbers!$C:$C,Q$4,planningNumbers!$A:$A,$B$2) -> 250334 | R134: 863431 | S134: =ROUND(IF(DATE(YEAR(Forecast!$K$2),MONTH(Forecast!$K$2),1)=DATE(YEAR(B134),MONTH(B134),1),Forecast!$K$6/Forecast!$K$3,INDEX(Forecast!$D$2:$D$16,MATCH(DATE(YEAR(B134),MONTH(B134),1),Forecast!$A$2:$A$16,0))/DAY(EOMONTH(B134,0))),0) -> 645297 | T134: =IFERROR(IF((Forecast!$K$2+30)<B134,0,IF(INDEX('Truck list'!$G$6:$G$500,COUNTA('Truck list'!$G$6:$G$500))<B134,S134,IF(U134="",SUMIFS('Truck list'!H:H,'Truck list'!G:G,B134),U134))),0) -> 521664 | U134: 521664 | W134: 7682688 | X134: 4876768 | Y134: 3817632 | Z134: =IF(W134="",IF(J134=0,Z133+R134-IF(U134=0,T134,U134),Z133+J134-IF(U134=0,T134,U134)),SUM(W134:X134)) -> 12559456 | AB134: 84 | AC134: 370 | AD134: 0 | AE134: 178 | AF134: 147 | AG134: 193 | AH134: 972 | AJ134: 3.4 MM units on hold due to sealing surface issues
A135: Saturday | B135: =+B134+1 -> 2025-05-03 | D135: =SUMIFS(productionNumbers!$C:$C,productionNumbers!$E:$E,$B135,productionNumbers!$A:$A,D$4,productionNumbers!$B:$B,$B$2) -> 189696 | E135: =SUMIFS(productionNumbers!$C:$C,productionNumbers!$E:$E,$B135,productionNumbers!$A:$A,E$4,productionNumbers!$B:$B,$B$2) -> 158080 | F135: =SUMIFS(productionNumbers!$C:$C,productionNumbers!$E:$E,$B135,productionNumbers!$A:$A,F$4,productionNumbers!$B:$B,$B$2) -> 0 | G135: =SUMIFS(productionNumbers!$C:$C,productionNumbers!$E:$E,$B135,productionNumbers!$A:$A,G$4,productionNumbers!$B:$B,$B$2) -> 260832 | H135: =SUMIFS(productionNumbers!$C:$C,productionNumbers!$E:$E,$B135,productionNumbers!$A:$A,H$4,productionNumbers!$B:$B,$B$2) -> 0 | I135: =SUMIFS(productionNumbers!$C:$C,productionNumbers!$E:$E,$B135,productionNumbers!$A:$A,I$4,productionNumbers!$B:$B,$B$2) -> 205504 | J135: 814112 | L135: =SUMIFS(planningNumbers!$H:$H,planningNumbers!$F:$F,$B135,planningNumbers!$C:$C,L$4,planningNumbers!$A:$A,$B$2) -> 204524 | M135: =SUMIFS(planningNumbers!$H:$H,planningNumbers!$F:$F,$B135,planningNumbers!$C:$C,M$4,planningNumbers!$A:$A,$B$2) -> 207360 | N135: =SUMIFS(planningNumbers!$H:$H,planningNumbers!$F:$F,$B135,planningNumbers!$C:$C,N$4,planningNumbers!$A:$A,$B$2) -> 0 | O135: =SUMIFS(planningNumbers!$H:$H,planningNumbers!$F:$F,$B135,planningNumbers!$C:$C,O$4,planningNumbers!$A:$A,$B$2) -> 252523 | P135: =SUMIFS(planningNumbers!$H:$H,planningNumbers!$F:$F,$B135,planningNumbers!$C:$C,P$4,planningNumbers!$A:$A,$B$2) -> 0 | Q135: =SUMIFS(planningNumbers!$H:$H,planningNumbers!$F:$F,$B135,planningNumbers!$C:$C,Q$4,planningNumbers!$A:$A,$B$2) -> 259200 | R135: 923607 | S135: =ROUND(IF(DATE(YEAR(Forecast!$K$2),MONTH(Forecast!$K$2),1)=DATE(YEAR(B135),MONTH(B135),1),Forecast!$K$6/Forecast!$K$3,INDEX(Forecast!$D$2:$D$16,MATCH(DATE(YEAR(B135),MONTH(B135),1),Forecast!$A$2:$A$16,0))/DAY(EOMONTH(B135,0))),0) -> 645297 | T135: =IFERROR(IF((Forecast!$K$2+30)<B135,0,IF(INDEX('Truck list'!$G$6:$G$500,COUNTA('Truck list'!$G$6:$G$500))<B135,S135,IF(U135="",SUMIFS('Truck list'!H:H,'Truck list'!G:G,B135),U135))),0) -> 521664 | U135: 521664 | W135: 7682688 | X135: 4884672 | Y135: 3817632 | Z135: 12567360 | AB135: 84 | AC135: 370 | AD135: 0 | AE135: 178 | AF135: 147 | AG135: 193 | AH135: 972 | AJ135: 3.4 MM units on hold due to sealing surface issues
A136: Sunday | B136: 2025-05-04 | D136: =SUMIFS(productionNumbers!$C:$C,productionNumbers!$E:$E,$B136,productionNumbers!$A:$A,D$4,productionNumbers!$B:$B,$B$2) -> 165984 | E136: =SUMIFS(productionNumbers!$C:$C,productionNumbers!$E:$E,$B136,productionNumbers!$A:$A,E$4,productionNumbers!$B:$B,$B$2) -> 213408 | F136: =SUMIFS(productionNumbers!$C:$C,productionNumbers!$E:$E,$B136,productionNumbers!$A:$A,F$4,productionNumbers!$B:$B,$B$2) -> 0 | G136: =SUMIFS(productionNumbers!$C:$C,productionNumbers!$E:$E,$B136,productionNumbers!$A:$A,G$4,productionNumbers!$B:$B,$B$2) -> 268736 | H136: =SUMIFS(productionNumbers!$C:$C,productionNumbers!$E:$E,$B136,productionNumbers!$A:$A,H$4,productionNumbers!$B:$B,$B$2) -> 15808 | I136: =SUMIFS(productionNumbers!$C:$C,productionNumbers!$E:$E,$B136,productionNumbers!$A:$A,I$4,productionNumbers!$B:$B,$B$2) -> 268736 | J136: 932672 | L136: =SUMIFS(planningNumbers!$H:$H,planningNumbers!$F:$F,$B136,planningNumbers!$C:$C,L$4,planningNumbers!$A:$A,$B$2) -> 204524 | M136: =SUMIFS(planningNumbers!$H:$H,planningNumbers!$F:$F,$B136,planningNumbers!$C:$C,M$4,planningNumbers!$A:$A,$B$2) -> 208355 | N136: =SUMIFS(planningNumbers!$H:$H,planningNumbers!$F:$F,$B136,planningNumbers!$C:$C,N$4,planningNumbers!$A:$A,$B$2) -> 0 | O136: =SUMIFS(planningNumbers!$H:$H,planningNumbers!$F:$F,$B136,planningNumbers!$C:$C,O$4,planningNumbers!$A:$A,$B$2) -> 253677 | P136: =SUMIFS(planningNumbers!$H:$H,planningNumbers!$F:$F,$B136,planningNumbers!$C:$C,P$4,planningNumbers!$A:$A,$B$2) -> 0 | Q136: =SUMIFS(planningNumbers!$H:$H,planningNumbers!$F:$F,$B136,planningNumbers!$C:$C,Q$4,planningNumbers!$A:$A,$B$2) -> 240927 | R136: 907483 | S136: =ROUND(IF(DATE(YEAR(Forecast!$K$2),MONTH(Forecast!$K$2),1)=DATE(YEAR(B136),MONTH(B136),1),Forecast!$K$6/Forecast!$K$3,INDEX(Forecast!$D$2:$D$16,MATCH(DATE(YEAR(B136),MONTH(B136),1),Forecast!$A$2:$A$16,0))/DAY(EOMONTH(B136,0))),0) -> 645297 | T136: =IFERROR(IF((Forecast!$K$2+30)<B136,0,IF(INDEX('Truck list'!$G$6:$G$500,COUNTA('Truck list'!$G$6:$G$500))<B136,S136,IF(U136="",SUMIFS('Truck list'!H:H,'Truck list'!G:G,B136),U136))),0) -> 521664 | U136: 521664 | W136: 7682688 | X136: 4884672 | Y136: 3817632 | Z136: 12567360 | AB136: 84 | AC136: 370 | AD136: 0 | AE136: 178 | AF136: 147 | AG136: 193 | AH136: 972 | AJ136: 3.4 MM units on hold due to sealing surface issues
A137: Monday | B137: 2025-05-05 | D137: =SUMIFS(productionNumbers!$C:$C,productionNumbers!$E:$E,$B137,productionNumbers!$A:$A,D$4,productionNumbers!$B:$B,$B$2) -> 7904 | E137: =SUMIFS(productionNumbers!$C:$C,productionNumbers!$E:$E,$B137,productionNumbers!$A:$A,E$4,productionNumbers!$B:$B,$B$2) -> 39520 | F137: =SUMIFS(productionNumbers!$C:$C,productionNumbers!$E:$E,$B137,productionNumbers!$A:$A,F$4,productionNumbers!$B:$B,$B$2) -> 0 | G137: =SUMIFS(productionNumbers!$C:$C,productionNumbers!$E:$E,$B137,productionNumbers!$A:$A,G$4,productionNumbers!$B:$B,$B$2) -> 221312 | H137: =SUMIFS(productionNumbers!$C:$C,productionNumbers!$E:$E,$B137,productionNumbers!$A:$A,H$4,productionNumbers!$B:$B,$B$2) -> 110656 | I137: =SUMIFS(productionNumbers!$C:$C,productionNumbers!$E:$E,$B137,productionNumbers!$A:$A,I$4,productionNumbers!$B:$B,$B$2) -> 252928 | J137: 632320 | L137: =SUMIFS(planningNumbers!$H:$H,planningNumbers!$F:$F,$B137,planningNumbers!$C:$C,L$4,planningNumbers!$A:$A,$B$2) -> 173888 | M137: =SUMIFS(planningNumbers!$H:$H,planningNumbers!$F:$F,$B137,planningNumbers!$C:$C,M$4,planningNumbers!$A:$A,$B$2) -> 209053 | N137: =SUMIFS(planningNumbers!$H:$H,planningNumbers!$F:$F,$B137,planningNumbers!$C:$C,N$4,planningNumbers!$A:$A,$B$2) -> 0 | O137: =SUMIFS(planningNumbers!$H:$H,planningNumbers!$F:$F,$B137,planningNumbers!$C:$C,O$4,planningNumbers!$A:$A,$B$2) -> 244691 | P137: =SUMIFS(planningNumbers!$H:$H,planningNumbers!$F:$F,$B137,planningNumbers!$C:$C,P$4,planningNumbers!$A:$A,$B$2) -> 73440 | Q137: =SUMIFS(planningNumbers!$H:$H,planningNumbers!$F:$F,$B137,planningNumbers!$C:$C,Q$4,planningNumbers!$A:$A,$B$2) -> 230382 | R137: 931454 | S137: =ROUND(IF(DATE(YEAR(Forecast!$K$2),MONTH(Forecast!$K$2),1)=DATE(YEAR(B137),MONTH(B137),1),Forecast!$K$6/Forecast!$K$3,INDEX(Forecast!$D$2:$D$16,MATCH(DATE(YEAR(B137),MONTH(B137),1),Forecast!$A$2:$A$16,0))/DAY(EOMONTH(B137,0))),0) -> 645297 | T137: =IFERROR(IF((Forecast!$K$2+30)<B137,0,IF(INDEX('Truck list'!$G$6:$G$500,COUNTA('Truck list'!$G$6:$G$500))<B137,S137,IF(U137="",SUMIFS('Truck list'!H:H,'Truck list'!G:G,B137),U137))),0) -> 1043328 | U137: 1043328 | W137: 6670976 | X137: 5548608 | Y137: 3825536 | Z137: 12219584 | AB137: 84 | AC137: 280 | AD137: 0 | AE137: 178 | AF137: 130 | AG137: 172 | AH137: 844 | AJ137: 3.4 MM units on hold due to sealing surface issues
A138: Tuesday | B138: 2025-05-06 | D138: =SUMIFS(productionNumbers!$C:$C,productionNumbers!$E:$E,$B138,productionNumbers!$A:$A,D$4,productionNumbers!$B:$B,$B$2) -> 0 | E138: =SUMIFS(productionNumbers!$C:$C,productionNumbers!$E:$E,$B138,productionNumbers!$A:$A,E$4,productionNumbers!$B:$B,$B$2) -> 165984 | F138: =SUMIFS(productionNumbers!$C:$C,productionNumbers!$E:$E,$B138,productionNumbers!$A:$A,F$4,productionNumbers!$B:$B,$B$2) -> 0 | G138: =SUMIFS(productionNumbers!$C:$C,productionNumbers!$E:$E,$B138,productionNumbers!$A:$A,G$4,productionNumbers!$B:$B,$B$2) -> 252928 | H138: =SUMIFS(productionNumbers!$C:$C,productionNumbers!$E:$E,$B138,productionNumbers!$A:$A,H$4,productionNumbers!$B:$B,$B$2) -> 94848 | I138: =SUMIFS(productionNumbers!$C:$C,productionNumbers!$E:$E,$B138,productionNumbers!$A:$A,I$4,productionNumbers!$B:$B,$B$2) -> 276640 | J138: 790400 | L138: =SUMIFS(planningNumbers!$H:$H,planningNumbers!$F:$F,$B138,planningNumbers!$C:$C,L$4,planningNumbers!$A:$A,$B$2) -> 0 | M138: =SUMIFS(planningNumbers!$H:$H,planningNumbers!$F:$F,$B138,planningNumbers!$C:$C,M$4,planningNumbers!$A:$A,$B$2) -> 0 | N138: =SUMIFS(planningNumbers!$H:$H,planningNumbers!$F:$F,$B138,planningNumbers!$C:$C,N$4,planningNumbers!$A:$A,$B$2) -> 0 | O138: =SUMIFS(planningNumbers!$H:$H,planningNumbers!$F:$F,$B138,planningNumbers!$C:$C,O$4,planningNumbers!$A:$A,$B$2) -> 241189 | P138: =SUMIFS(planningNumbers!$H:$H,planningNumbers!$F:$F,$B138,planningNumbers!$C:$C,P$4,planningNumbers!$A:$A,$B$2) -> 103680 | Q138: =SUMIFS(planningNumbers!$H:$H,planningNumbers!$F:$F,$B138,planningNumbers!$C:$C,Q$4,planningNumbers!$A:$A,$B$2) -> 239077 | R138: 583946 | S138: =ROUND(IF(DATE(YEAR(Forecast!$K$2),MONTH(Forecast!$K$2),1)=DATE(YEAR(B138),MONTH(B138),1),Forecast!$K$6/Forecast!$K$3,INDEX(Forecast!$D$2:$D$16,MATCH(DATE(YEAR(B138),MONTH(B138),1),Forecast!$A$2:$A$16,0))/DAY(EOMONTH(B138,0))),0) -> 645297 | T138: =IFERROR(IF((Forecast!$K$2+30)<B138,0,IF(INDEX('Truck list'!$G$6:$G$500,COUNTA('Truck list'!$G$6:$G$500))<B138,S138,IF(U138="",SUMIFS('Truck list'!H:H,'Truck list'!G:G,B138),U138))),0) -> 1391104 | U138: 1391104 | W138: 9429472 | X138: 2189408 | Y138: 3801824 | Z138: 11618880 | AB138: 205 | AC138: 338 | AD138: 0 | AE138: 246 | AF138: 130 | AG138: 274 | AH138: 1193 | AJ138: Lines 1 and 2 idle for AME reamer refurb. Max time 2 weeks 3.4 MM units on hold due to sealing surface issues
A139: Wednesday | B139: 2025-05-07 | D139: =SUMIFS(productionNumbers!$C:$C,productionNumbers!$E:$E,$B139,productionNumbers!$A:$A,D$4,productionNumbers!$B:$B,$B$2) -> 0 | E139: =SUMIFS(productionNumbers!$C:$C,productionNumbers!$E:$E,$B139,productionNumbers!$A:$A,E$4,productionNumbers!$B:$B,$B$2) -> 173888 | F139: =SUMIFS(productionNumbers!$C:$C,productionNumbers!$E:$E,$B139,productionNumbers!$A:$A,F$4,productionNumbers!$B:$B,$B$2) -> 0 | G139: =SUMIFS(productionNumbers!$C:$C,productionNumbers!$E:$E,$B139,productionNumbers!$A:$A,G$4,productionNumbers!$B:$B,$B$2) -> 197600 | H139: =SUMIFS(productionNumbers!$C:$C,productionNumbers!$E:$E,$B139,productionNumbers!$A:$A,H$4,productionNumbers!$B:$B,$B$2) -> 0 | I139: =SUMIFS(productionNumbers!$C:$C,productionNumbers!$E:$E,$B139,productionNumbers!$A:$A,I$4,productionNumbers!$B:$B,$B$2) -> 260832 | J139: 632320 | L139: =SUMIFS(planningNumbers!$H:$H,planningNumbers!$F:$F,$B139,planningNumbers!$C:$C,L$4,planningNumbers!$A:$A,$B$2) -> 0 | M139: =SUMIFS(planningNumbers!$H:$H,planningNumbers!$F:$F,$B139,planningNumbers!$C:$C,M$4,planningNumbers!$A:$A,$B$2) -> 0 | N139: =SUMIFS(planningNumbers!$H:$H,planningNumbers!$F:$F,$B139,planningNumbers!$C:$C,N$4,planningNumbers!$A:$A,$B$2) -> 0 | O139: =SUMIFS(planningNumbers!$H:$H,planningNumbers!$F:$F,$B139,planningNumbers!$C:$C,O$4,planningNumbers!$A:$A,$B$2) -> 253905 | P139: =SUMIFS(planningNumbers!$H:$H,planningNumbers!$F:$F,$B139,planningNumbers!$C:$C,P$4,planningNumbers!$A:$A,$B$2) -> 101053 | Q139: =SUMIFS(planningNumbers!$H:$H,planningNumbers!$F:$F,$B139,planningNumbers!$C:$C,Q$4,planningNumbers!$A:$A,$B$2) -> 253899 | R139: 608857 | S139: =ROUND(IF(DATE(YEAR(Forecast!$K$2),MONTH(Forecast!$K$2),1)=DATE(YEAR(B139),MONTH(B139),1),Forecast!$K$6/Forecast!$K$3,INDEX(Forecast!$D$2:$D$16,MATCH(DATE(YEAR(B139),MONTH(B139),1),Forecast!$A$2:$A$16,0))/DAY(EOMONTH(B139,0))),0) -> 645297 | T139: =IFERROR(IF((Forecast!$K$2+30)<B139,0,IF(INDEX('Truck list'!$G$6:$G$500,COUNTA('Truck list'!$G$6:$G$500))<B139,S139,IF(U139="",SUMIFS('Truck list'!H:H,'Truck list'!G:G,B139),U139))),0) -> 1391104 | U139: 1391104 | W139: 8109504 | X139: 2774304 | Y139: 3746496 | Z139: 10883808 | AB139: 155 | AC139: 314 | AD139: 0 | AE139: 212 | AF139: 111 | AG139: 234 | AH139: 1026 | AJ139: 3.4 MM units on hold due to sealing surface issues
A140: Thursday | B140: 2025-05-08 | D140: =SUMIFS(productionNumbers!$C:$C,productionNumbers!$E:$E,$B140,productionNumbers!$A:$A,D$4,productionNumbers!$B:$B,$B$2) -> 0 | E140: =SUMIFS(productionNumbers!$C:$C,productionNumbers!$E:$E,$B140,productionNumbers!$A:$A,E$4,productionNumbers!$B:$B,$B$2) -> 0 | F140: =SUMIFS(productionNumbers!$C:$C,productionNumbers!$E:$E,$B140,productionNumbers!$A:$A,F$4,productionNumbers!$B:$B,$B$2) -> 0 | G140: =SUMIFS(productionNumbers!$C:$C,productionNumbers!$E:$E,$B140,productionNumbers!$A:$A,G$4,productionNumbers!$B:$B,$B$2) -> 245024 | H140: =SUMIFS(productionNumbers!$C:$C,productionNumbers!$E:$E,$B140,productionNumbers!$A:$A,H$4,productionNumbers!$B:$B,$B$2) -> 110656 | I140: =SUMIFS(productionNumbers!$C:$C,productionNumbers!$E:$E,$B140,productionNumbers!$A:$A,I$4,productionNumbers!$B:$B,$B$2) -> 252928 | J140: 608608 | L140: =SUMIFS(planningNumbers!$H:$H,planningNumbers!$F:$F,$B140,planningNumbers!$C:$C,L$4,planningNumbers!$A:$A,$B$2) -> 0 | M140: =SUMIFS(planningNumbers!$H:$H,planningNumbers!$F:$F,$B140,planningNumbers!$C:$C,M$4,planningNumbers!$A:$A,$B$2) -> 0 | N140: =SUMIFS(planningNumbers!$H:$H,planningNumbers!$F:$F,$B140,planningNumbers!$C:$C,N$4,planningNumbers!$A:$A,$B$2) -> 0 | O140: =SUMIFS(planningNumbers!$H:$H,planningNumbers!$F:$F,$B140,planningNumbers!$C:$C,O$4,planningNumbers!$A:$A,$B$2) -> 264031 | P140: =SUMIFS(planningNumbers!$H:$H,planningNumbers!$F:$F,$B140,planningNumbers!$C:$C,P$4,planningNumbers!$A:$A,$B$2) -> 142663 | Q140: =SUMIFS(planningNumbers!$H:$H,planningNumbers!$F:$F,$B140,planningNumbers!$C:$C,Q$4,planningNumbers!$A:$A,$B$2) -> 203926 | R140: 610620 | S140: =ROUND(IF(DATE(YEAR(Forecast!$K$2),MONTH(Forecast!$K$2),1)=DATE(YEAR(B140),MONTH(B140),1),Forecast!$K$6/Forecast!$K$3,INDEX(Forecast!$D$2:$D$16,MATCH(DATE(YEAR(B140),MONTH(B140),1),Forecast!$A$2:$A$16,0))/DAY(EOMONTH(B140,0))),0) -> 645297 | T140: =IFERROR(IF((Forecast!$K$2+30)<B140,0,IF(INDEX('Truck list'!$G$6:$G$500,COUNTA('Truck list'!$G$6:$G$500))<B140,S140,IF(U140="",SUMIFS('Truck list'!H:H,'Truck list'!G:G,B140),U140))),0) -> 521664 | U140: 521664 | W140: 8844576 | X140: 2126176 | Y140: 3770208 | Z140: 10970752 | AB140: 152 | AC140: 293 | AD140: 0 | AE140: 240 | AF140: 135 | AG140: 299 | AH140: 1119 | AJ140: 3.4 MM units on hold due to sealing surface issues
A141: =TEXT(B141,"dddd") -> Friday | B141: 2025-05-09 | D141: =SUMIFS(productionNumbers!$C:$C,productionNumbers!$E:$E,$B141,productionNumbers!$A:$A,D$4,productionNumbers!$B:$B,$B$2) -> 0 | E141: =SUMIFS(productionNumbers!$C:$C,productionNumbers!$E:$E,$B141,productionNumbers!$A:$A,E$4,productionNumbers!$B:$B,$B$2) -> 0 | F141: =SUMIFS(productionNumbers!$C:$C,productionNumbers!$E:$E,$B141,productionNumbers!$A:$A,F$4,productionNumbers!$B:$B,$B$2) -> 0 | G141: =SUMIFS(productionNumbers!$C:$C,productionNumbers!$E:$E,$B141,productionNumbers!$A:$A,G$4,productionNumbers!$B:$B,$B$2) -> 110656 | H141: =SUMIFS(productionNumbers!$C:$C,productionNumbers!$E:$E,$B141,productionNumbers!$A:$A,H$4,productionNumbers!$B:$B,$B$2) -> 181792 | I141: =SUMIFS(productionNumbers!$C:$C,productionNumbers!$E:$E,$B141,productionNumbers!$A:$A,I$4,productionNumbers!$B:$B,$B$2) -> 268736 | J141: =SUM(D141:I141) -> 561184 | L141: =SUMIFS(planningNumbers!$H:$H,planningNumbers!$F:$F,$B141,planningNumbers!$C:$C,L$4,planningNumbers!$A:$A,$B$2) -> 0 | M141: =SUMIFS(planningNumbers!$H:$H,planningNumbers!$F:$F,$B141,planningNumbers!$C:$C,M$4,planningNumbers!$A:$A,$B$2) -> 0 | N141: =SUMIFS(planningNumbers!$H:$H,planningNumbers!$F:$F,$B141,planningNumbers!$C:$C,N$4,planningNumbers!$A:$A,$B$2) -> 0 | O141: =SUMIFS(planningNumbers!$H:$H,planningNumbers!$F:$F,$B141,planningNumbers!$C:$C,O$4,planningNumbers!$A:$A,$B$2) -> 135165 | P141: =SUMIFS(planningNumbers!$H:$H,planningNumbers!$F:$F,$B141,planningNumbers!$C:$C,P$4,planningNumbers!$A:$A,$B$2) -> 142663 | Q141: =SUMIFS(planningNumbers!$H:$H,planningNumbers!$F:$F,$B141,planningNumbers!$C:$C,Q$4,planningNumbers!$A:$A,$B$2) -> 233058 | R141: =SUM(L141:Q141) -> 510886 | S141: =ROUND(IF(DATE(YEAR(Forecast!$K$2),MONTH(Forecast!$K$2),1)=DATE(YEAR(B141),MONTH(B141),1),Forecast!$K$6/Forecast!$K$3,INDEX(Forecast!$D$2:$D$16,MATCH(DATE(YEAR(B141),MONTH(B141),1),Forecast!$A$2:$A$16,0))/DAY(EOMONTH(B141,0))),0) -> 645297 | T141: =IFERROR(IF((Forecast!$K$2+30)<B141,0,IF(INDEX('Truck list'!$G$6:$G$500,COUNTA('Truck list'!$G$6:$G$500))<B141,S141,IF(U141="",SUMIFS('Truck list'!H:H,'Truck list'!G:G,B141),U141))),0) -> 1043328 | U141: 1043328 | W141: 6196736 | X141: 2956096 | Y141: 3936192 | Z141: 9152832 | AB141: 74 | AC141: 214 | AD141: 0 | AE141: 213 | AF141: 81 | AG141: 202 | AH141: =SUM(AB141:AG141) -> 784 | AJ141: 3.4 MM units on hold due to sealing surface issues
A142: Saturday | B142: 2025-05-10 | D142: =SUMIFS(productionNumbers!$C:$C,productionNumbers!$E:$E,$B142,productionNumbers!$A:$A,D$4,productionNumbers!$B:$B,$B$2) -> 0 | E142: =SUMIFS(productionNumbers!$C:$C,productionNumbers!$E:$E,$B142,productionNumbers!$A:$A,E$4,productionNumbers!$B:$B,$B$2) -> 0 | F142: =SUMIFS(productionNumbers!$C:$C,productionNumbers!$E:$E,$B142,productionNumbers!$A:$A,F$4,productionNumbers!$B:$B,$B$2) -> 0 | G142: =SUMIFS(productionNumbers!$C:$C,productionNumbers!$E:$E,$B142,productionNumbers!$A:$A,G$4,productionNumbers!$B:$B,$B$2) -> 165984 | H142: =SUMIFS(productionNumbers!$C:$C,productionNumbers!$E:$E,$B142,productionNumbers!$A:$A,H$4,productionNumbers!$B:$B,$B$2) -> 213408 | I142: =SUMIFS(productionNumbers!$C:$C,productionNumbers!$E:$E,$B142,productionNumbers!$A:$A,I$4,productionNumbers!$B:$B,$B$2) -> 252928 | J142: 632320 | L142: =SUMIFS(planningNumbers!$H:$H,planningNumbers!$F:$F,$B142,planningNumbers!$C:$C,L$4,planningNumbers!$A:$A,$B$2) -> 0 | M142: =SUMIFS(planningNumbers!$H:$H,planningNumbers!$F:$F,$B142,planningNumbers!$C:$C,M$4,planningNumbers!$A:$A,$B$2) -> 0 | N142: =SUMIFS(planningNumbers!$H:$H,planningNumbers!$F:$F,$B142,planningNumbers!$C:$C,N$4,planningNumbers!$A:$A,$B$2) -> 0 | O142: =SUMIFS(planningNumbers!$H:$H,planningNumbers!$F:$F,$B142,planningNumbers!$C:$C,O$4,planningNumbers!$A:$A,$B$2) -> 154474 | P142: =SUMIFS(planningNumbers!$H:$H,planningNumbers!$F:$F,$B142,planningNumbers!$C:$C,P$4,planningNumbers!$A:$A,$B$2) -> 145671 | Q142: =SUMIFS(planningNumbers!$H:$H,planningNumbers!$F:$F,$B142,planningNumbers!$C:$C,Q$4,planningNumbers!$A:$A,$B$2) -> 259595 | R142: 559740 | S142: =ROUND(IF(DATE(YEAR(Forecast!$K$2),MONTH(Forecast!$K$2),1)=DATE(YEAR(B142),MONTH(B142),1),Forecast!$K$6/Forecast!$K$3,INDEX(Forecast!$D$2:$D$16,MATCH(DATE(YEAR(B142),MONTH(B142),1),Forecast!$A$2:$A$16,0))/DAY(EOMONTH(B142,0))),0) -> 645297 | T142: =IFERROR(IF((Forecast!$K$2+30)<B142,0,IF(INDEX('Truck list'!$G$6:$G$500,COUNTA('Truck list'!$G$6:$G$500))<B142,S142,IF(U142="",SUMIFS('Truck list'!H:H,'Truck list'!G:G,B142),U142))),0) -> 1391104 | U142: 1391104 | W142: 6196736 | X142: 2956096 | Y142: 3936192 | Z142: 9152832 | AB142: 74 | AC142: 214 | AD142: 0 | AE142: 213 | AF142: 81 | AG142: 202 | AH142: 784 | AJ142: 3.4 MM units on hold due to sealing surface issues
